Workbook

Sheet Overview
F1: © Copyright 2018 letstalkaboutmoney.ca info@letstalkaboutmoney.ca Please don't re-distribute
A4: Asset | B4: Current Price | C4: Last Price | D4: Price Change | E4: Holding change | G4: Shares Owned | H4: Current Value | I4: Book Value | K4: Dividends Paid | L4: Return Value | M4: Return Percentage | N4: Portfolio Percentage | P4: 1 week return | R4: 30 day return | T4: 90 day return | V4: 1 year return
A5: TFSA | G5: TFSA | K5: TFSA | P5: TFSA
A6: TD Canadian Index -e | B6: =INDEX('TD e-Series Price List'!B:B,2) -> 26.28 | C6: =INDEX('TD e-Series Price List'!B:B,3) -> 26.17 | D6: =(B6-C6)/B6 -> 0.004185692542 | E6: =(B6*G6)-(C6*G6) -> 0 | G6: =SUM((SUMIFS(Transactions!E:E,Transactions!B:B,"TFSA",Transactions!D:D,"TD Canadian Index Fund -e (TDB900)",Transactions!C:C,{"Buy","Dividend","Switch to"})))-SUM((SUMIFS(Transactions!E:E,Transactions!B:B,"TFSA",Transactions!D:D,"TD Canadian Index Fund -e (TDB900)",Transactions!C:C,{"Switch from","Sell"}))) -> 0 | H6: =G6*B6 -> 0 | I6: =IFERROR(((SUM(SUMIFS(Transactions!G:G,Transactions!B:B,"TFSA",Transactions!C:C,{"Buy","Switch to"},Transactions!D:D,"TD Canadian Index Fund -e (TDB900)")))-(SUM(SUMIFS(Transactions!E:E,Transactions!B:B,"TFSA",Transactions!C:C,{"Sell","Switch from"},Transactions!D:D,"TD Canadian Index Fund -e (TDB900)"))*(SUM(SUMIFS(Transactions!G:G,Transactions!B:B,"TFSA",Transactions!C:C,{"Buy","Switch to"},Transactions!D:D,"TD Canadian Index Fund -e (TDB900)"))/G6))),0) -> 0 | K6: =SUMIFS(Transactions!G:G,Transactions!B:B,"TFSA",Transactions!C:C,"Dividend",Transactions!D:D,"TD Canadian Index Fund -e (TDB900)") -> 0 | L6: =H6-I6 -> 0 | M6: =IFERROR(((H6/I6)-1),0) -> 0 | N6: =IFERROR((H6/$H$10),0) -> 0 | P6: =IFERROR(INDEX('Running Portfolio Value'!D:D,4)-INDEX('Running Portfolio Value'!D:D,11) - (SUM(SUMIFS(Transactions!G:G,Transactions!C:C,{"Buy","Switch to"},Transactions!B:B,"TFSA",Transactions!A:A,">"&TODAY()-7,Transactions!D:D,"TD Canadian Index Fund -e (TDB900)")))+SUM(SUMIFS(Transactions!G:G,Transactions!C:C,{"Sell","Switch from"},Transactions!B:B,"TFSA",Transactions!A:A,">"&TODAY()-7,Transactions!D:D,"TD Canadian Index Fund -e (TDB900)")),"N/A") -> 0 | Q6: =IFERROR((P6/H6),0) -> 0 | R6: =IFERROR(INDEX('Running Portfolio Value'!D:D,4)-INDEX('Running Portfolio Value'!D:D,34) - (SUM(SUMIFS(Transactions!G:G,Transactions!C:C,{"Buy","Switch to"},Transactions!B:B,"TFSA",Transactions!A:A,">"&TODAY()-30,Transactions!D:D,"TD Canadian Index Fund -e (TDB900)")))+SUM(SUMIFS(Transactions!G:G,Transactions!C:C,{"Sell","Switch from"},Transactions!B:B,"TFSA",Transactions!A:A,">"&TODAY()-30,Transactions!D:D,"TD Canadian Index Fund -e (TDB900)")),"N/A") -> 0 | S6: =IFERROR((R6/H6),0) -> 0 | T6: =IFERROR(INDEX('Running Portfolio Value'!D:D,4)-INDEX('Running Portfolio Value'!D:D,94) - (SUM(SUMIFS(Transactions!G:G,Transactions!C:C,{"Buy","Switch to"},Transactions!B:B,"TFSA",Transactions!A:A,">"&TODAY()-90,Transactions!D:D,"TD Canadian Index Fund -e (TDB900)")))+SUM(SUMIFS(Transactions!G:G,Transactions!C:C,{"Sell","Switch from"},Transactions!B:B,"TFSA",Transactions!A:A,">"&TODAY()-90,Transactions!D:D,"TD Canadian Index Fund -e (TDB900)")),"N/A") -> 0 | U6: =IFERROR((T6/H6),0) -> 0 | V6: =IFERROR(INDEX('Running Portfolio Value'!D:D,4)-INDEX('Running Portfolio Value'!D:D,369) - (SUM(SUMIFS(Transactions!G:G,Transactions!C:C,{"Buy","Switch to"},Transactions!B:B,"TFSA",Transactions!A:A,">"&TODAY()-365,Transactions!D:D,"TD Canadian Index Fund -e (TDB900)")))+SUM(SUMIFS(Transactions!G:G,Transactions!C:C,{"Sell","Switch from"},Transactions!B:B,"TFSA",Transactions!A:A,">"&TODAY()-365,Transactions!D:D,"TD Canadian Index Fund -e (TDB900)")),"N/A") -> 0 | W6: =IFERROR((V6/H6),0) -> 0
A7: TD U.S. Index Fund -e | B7: =INDEX('TD e-Series Price List'!E:E,2) -> 60.56 | C7: =INDEX('TD e-Series Price List'!E:E,3) -> 60.42 | D7: =(B7-C7)/B7 -> 0.002311756935 | E7: =(B7*G7)-(C7*G7) -> 0 | G7: =SUM((SUMIFS(Transactions!E:E,Transactions!B:B,"TFSA",Transactions!D:D,"TD US Index Fund -e (TDB902)",Transactions!C:C,{"Buy","Dividend","Switch to"})))-SUM((SUMIFS(Transactions!E:E,Transactions!B:B,"TFSA",Transactions!D:D,"TD US Index Fund -e (TDB902)",Transactions!C:C,{"Switch from","Sell"}))) -> 0 | H7: =G7*B7 -> 0 | I7: =IFERROR(((SUM(SUMIFS(Transactions!G:G,Transactions!B:B,"TFSA",Transactions!C:C,{"Buy","Switch to"},Transactions!D:D,"TD US Index Fund -e (TDB902)")))-(SUM(SUMIFS(Transactions!E:E,Transactions!B:B,"TFSA",Transactions!C:C,{"Sell","Switch from"},Transactions!D:D,"TD US Index Fund -e (TDB902)"))*(SUM(SUMIFS(Transactions!G:G,Transactions!B:B,"TFSA",Transactions!C:C,{"Buy","Switch to"},Transactions!D:D,"TD US Index Fund -e (TDB902)"))/G6))),0) -> 0 | K7: =SUMIFS(Transactions!G:G,Transactions!B:B,"TFSA",Transactions!C:C,"Dividend",Transactions!D:D,"TD US Index Fund -e (TDB902)") -> 0 | L7: =H7-I7 -> 0 | M7: 0 | N7: =IFERROR((H7/$H$10),0) -> 0 | P7: =IFERROR(INDEX('Running Portfolio Value'!H:H,4)-INDEX('Running Portfolio Value'!H:H,11) - (SUM(SUMIFS(Transactions!G:G,Transactions!C:C,{"Buy","Switch to"},Transactions!B:B,"TFSA",Transactions!A:A,">"&TODAY()-7,Transactions!D:D,"TD US Index Fund -e (TDB902)")))+SUM(SUMIFS(Transactions!G:G,Transactions!C:C,{"Sell","Switch from"},Transactions!B:B,"TFSA",Transactions!A:A,">"&TODAY()-7,Transactions!D:D,"TD US Index Fund -e (TDB902)")),"N/A") -> 0 | Q7: 0 | R7: =IFERROR(INDEX('Running Portfolio Value'!H:H,4)-INDEX('Running Portfolio Value'!H:H,34) - (SUM(SUMIFS(Transactions!G:G,Transactions!C:C,{"Buy","Switch to"},Transactions!B:B,"TFSA",Transactions!A:A,">"&TODAY()-30,Transactions!D:D,"TD US Index Fund -e (TDB902)")))+SUM(SUMIFS(Transactions!G:G,Transactions!C:C,{"Sell","Switch from"},Transactions!B:B,"TFSA",Transactions!A:A,">"&TODAY()-30,Transactions!D:D,"TD US Index Fund -e (TDB902)")),"N/A") -> 0 | S7: 0 | T7: =IFERROR(INDEX('Running Portfolio Value'!H:H,4)-INDEX('Running Portfolio Value'!H:H,94) - (SUM(SUMIFS(Transactions!G:G,Transactions!C:C,{"Buy","Switch to"},Transactions!B:B,"TFSA",Transactions!A:A,">"&TODAY()-90,Transactions!D:D,"TD US Index Fund -e (TDB902)")))+SUM(SUMIFS(Transactions!G:G,Transactions!C:C,{"Sell","Switch from"},Transactions!B:B,"TFSA",Transactions!A:A,">"&TODAY()-90,Transactions!D:D,"TD US Index Fund -e (TDB902)")),"N/A") -> 0 | U7: 0 | V7: =IFERROR(INDEX('Running Portfolio Value'!H:H,4)-INDEX('Running Portfolio Value'!H:H,369) - (SUM(SUMIFS(Transactions!G:G,Transactions!C:C,{"Buy","Switch to"},Transactions!B:B,"TFSA",Transactions!A:A,">"&TODAY()-365,Transactions!D:D,"TD US Index Fund -e (TDB902)")))+SUM(SUMIFS(Transactions!G:G,Transactions!C:C,{"Sell","Switch from"},Transactions!B:B,"TFSA",Transactions!A:A,">"&TODAY()-365,Transactions!D:D,"TD US Index Fund -e (TDB902)")),"N/A") -> 0 | W7: 0
A8: TD International Index Fund -e | B8: =INDEX('TD e-Series Price List'!H:H,2) -> 14.39 | C8: =INDEX('TD e-Series Price List'!H:H,3) -> 14.44 | D8: -0.003474635163 | E8: 0 | G8: =SUM((SUMIFS(Transactions!E:E,Transactions!B:B,"TFSA",Transactions!D:D,"TD International Fund -e (TDB911)",Transactions!C:C,{"Buy","Dividend","Switch to"})))-SUM((SUMIFS(Transactions!E:E,Transactions!B:B,"TFSA",Transactions!D:D,"TD International Fund -e (TDB911)",Transactions!C:C,{"Switch from","Sell"}))) -> 0 | H8: 0 | I8: =IFERROR(((SUM(SUMIFS(Transactions!G:G,Transactions!B:B,"TFSA",Transactions!C:C,{"Buy","Switch to"},Transactions!D:D,"TD International Fund -e (TDB911)")))-(SUM(SUMIFS(Transactions!E:E,Transactions!B:B,"TFSA",Transactions!C:C,{"Sell","Switch from"},Transactions!D:D,"TD International Fund -e (TDB911)"))*(SUM(SUMIFS(Transactions!G:G,Transactions!B:B,"TFSA",Transactions!C:C,{"Buy","Switch to"},Transactions!D:D,"TD International Fund -e (TDB911)"))/G6))),0) -> 0 | K8: =SUMIFS(Transactions!G:G,Transactions!B:B,"TFSA",Transactions!C:C,"Dividend",Transactions!D:D,"TD International Fund -e (TDB911)") -> 0 | L8: 0 | M8: 0 | N8: 0 | P8: =IFERROR(INDEX('Running Portfolio Value'!L:L,4)-INDEX('Running Portfolio Value'!L:L,11) - (SUM(SUMIFS(Transactions!G:G,Transactions!C:C,{"Buy","Switch to"},Transactions!B:B,"TFSA",Transactions!A:A,">"&TODAY()-7,Transactions!D:D,"TD International Fund -e (TDB911)")))+SUM(SUMIFS(Transactions!G:G,Transactions!C:C,{"Sell","Switch from"},Transactions!B:B,"TFSA",Transactions!A:A,">"&TODAY()-7,Transactions!D:D,"TD International Fund -e (TDB911)")),"N/A") -> 0 | Q8: 0 | R8: =IFERROR(INDEX('Running Portfolio Value'!L:L,4)-INDEX('Running Portfolio Value'!L:L,34) - (SUM(SUMIFS(Transactions!G:G,Transactions!C:C,{"Buy","Switch to"},Transactions!B:B,"TFSA",Transactions!A:A,">"&TODAY()-30,Transactions!D:D,"TD International Fund -e (TDB911)")))+SUM(SUMIFS(Transactions!G:G,Transactions!C:C,{"Sell","Switch from"},Transactions!B:B,"TFSA",Transactions!A:A,">"&TODAY()-30,Transactions!D:D,"TD International Fund -e (TDB911)")),"N/A") -> 0 | S8: 0 | T8: =IFERROR(INDEX('Running Portfolio Value'!L:L,4)-INDEX('Running Portfolio Value'!L:L,94) - (SUM(SUMIFS(Transactions!G:G,Transactions!C:C,{"Buy","Switch to"},Transactions!B:B,"TFSA",Transactions!A:A,">"&TODAY()-90,Transactions!D:D,"TD International Fund -e (TDB911)")))+SUM(SUMIFS(Transactions!G:G,Transactions!C:C,{"Sell","Switch from"},Transactions!B:B,"TFSA",Transactions!A:A,">"&TODAY()-90,Transactions!D:D,"TD International Fund -e (TDB911)")),"N/A") -> 0 | U8: 0 | V8: =IFERROR(INDEX('Running Portfolio Value'!L:L,4)-INDEX('Running Portfolio Value'!L:L,369) - (SUM(SUMIFS(Transactions!G:G,Transactions!C:C,{"Buy","Switch to"},Transactions!B:B,"TFSA",Transactions!A:A,">"&TODAY()-365,Transactions!D:D,"TD International Fund -e (TDB911)")))+SUM(SUMIFS(Transactions!G:G,Transactions!C:C,{"Sell","Switch from"},Transactions!B:B,"TFSA",Transactions!A:A,">"&TODAY()-365,Transactions!D:D,"TD International Fund -e (TDB911)")),"N/A") -> 0 | W8: 0
A9: TD Canadian Bond Index Fund -e | B9: =INDEX('TD e-Series Price List'!K:K,2) -> 11.24 | C9: =INDEX('TD e-Series Price List'!K:K,3) -> 11.26 | D9: -0.001779359431 | E9: 0 | G9: =SUM((SUMIFS(Transactions!E:E,Transactions!B:B,"TFSA",Transactions!D:D,"TD Canadian Bond Index Fund -e (TDB909)",Transactions!C:C,{"Buy","Dividend","Switch to"})))-SUM((SUMIFS(Transactions!E:E,Transactions!B:B,"TFSA",Transactions!D:D,"TD Canadian Bond Index Fund -e (TDB909)",Transactions!C:C,{"Switch from","Sell"}))) -> 0 | H9: 0 | I9: =IFERROR(((SUM(SUMIFS(Transactions!G:G,Transactions!B:B,"TFSA",Transactions!C:C,{"Buy","Switch to"},Transactions!D:D,"TD Canadian Bond Index Fund -e (TDB909)")))-(SUM(SUMIFS(Transactions!E:E,Transactions!B:B,"TFSA",Transactions!C:C,{"Sell","Switch from"},Transactions!D:D,"TD Canadian Bond Index Fund -e (TDB909)"))*(SUM(SUMIFS(Transactions!G:G,Transactions!B:B,"TFSA",Transactions!C:C,{"Buy","Switch to"},Transactions!D:D,"TD Canadian Bond Index Fund -e (TDB909)"))/G6))),0) -> 0 | K9: =SUMIFS(Transactions!G:G,Transactions!B:B,"TFSA",Transactions!C:C,"Dividend",Transactions!D:D,"TD Canadian Bond Index Fund -e (TDB909)") -> 0 | L9: 0 | M9: 0 | N9: 0 | P9: =IFERROR(INDEX('Running Portfolio Value'!P:P,4)-INDEX('Running Portfolio Value'!P:P,11) - (SUM(SUMIFS(Transactions!G:G,Transactions!C:C,{"Buy","Switch to"},Transactions!B:B,"TFSA",Transactions!A:A,">"&TODAY()-7,Transactions!D:D,"TD Canadian Bond Index Fund -e (TDB909)")))+SUM(SUMIFS(Transactions!G:G,Transactions!C:C,{"Sell","Switch from"},Transactions!B:B,"TFSA",Transactions!A:A,">"&TODAY()-7,Transactions!D:D,"TD Canadian Bond Index Fund -e (TDB909)")),"N/A") -> 0 | Q9: 0 | R9: =IFERROR(INDEX('Running Portfolio Value'!P:P,4)-INDEX('Running Portfolio Value'!P:P,34) - (SUM(SUMIFS(Transactions!G:G,Transactions!C:C,{"Buy","Switch to"},Transactions!B:B,"TFSA",Transactions!A:A,">"&TODAY()-30,Transactions!D:D,"TD Canadian Bond Index Fund -e (TDB909)")))+SUM(SUMIFS(Transactions!G:G,Transactions!C:C,{"Sell","Switch from"},Transactions!B:B,"TFSA",Transactions!A:A,">"&TODAY()-30,Transactions!D:D,"TD Canadian Bond Index Fund -e (TDB909)")),"N/A") -> 0 | S9: 0 | T9: =IFERROR(INDEX('Running Portfolio Value'!P:P,4)-INDEX('Running Portfolio Value'!P:P,94) - (SUM(SUMIFS(Transactions!G:G,Transactions!C:C,{"Buy","Switch to"},Transactions!B:B,"TFSA",Transactions!A:A,">"&TODAY()-90,Transactions!D:D,"TD Canadian Bond Index Fund -e (TDB909)")))+SUM(SUMIFS(Transactions!G:G,Transactions!C:C,{"Sell","Switch from"},Transactions!B:B,"TFSA",Transactions!A:A,">"&TODAY()-90,Transactions!D:D,"TD Canadian Bond Index Fund -e (TDB909)")),"N/A") -> 0 | U9: 0 | V9: =IFERROR(INDEX('Running Portfolio Value'!P:P,4)-INDEX('Running Portfolio Value'!P:P,369) - (SUM(SUMIFS(Transactions!G:G,Transactions!C:C,{"Buy","Switch to"},Transactions!B:B,"TFSA",Transactions!A:A,">"&TODAY()-365,Transactions!D:D,"TD Canadian Bond Index Fund -e (TDB909)")))+SUM(SUMIFS(Transactions!G:G,Transactions!C:C,{"Sell","Switch from"},Transactions!B:B,"TFSA",Transactions!A:A,">"&TODAY()-365,Transactions!D:D,"TD Canadian Bond Index Fund -e (TDB909)")),"N/A") -> 0 | W9: 0
A10: TOTALS: | E10: =SUM(E6:E9) -> 0 | H10: =SUM(H6:H9) -> 0 | I10: =SUM(I6:I9) -> 0 | K10: =SUM(K6:K9) -> 0 | L10: 0 | M10: =IFERROR(((H10/I10)-1),0) -> 0 | N10: =SUM(N6:N9) -> 0 | P10: =SUM(P6:P9) -> 0 | Q10: =IFERROR((P10/H10),0) -> 0 | R10: =SUM(R6:R9) -> 0 | S10: =IFERROR((R10/H10),0) -> 0 | T10: 0 | U10: =IFERROR((T10/H10),0) -> 0 | V10: 0 | W10: =IFERROR((V10/H10),0) -> 0
A11: RRSP | G11: RRSP | K11: RRSP | P11: RRSP
A12: TD Canadian Index -e | B12: =INDEX('TD e-Series Price List'!B:B,2) -> 26.28 | C12: =INDEX('TD e-Series Price List'!B:B,3) -> 26.17 | D12: =(B12-C12)/B12 -> 0.004185692542 | E12: =(B12*G12)-(C12*G12) -> 0 | G12: =SUM((SUMIFS(Transactions!E:E,Transactions!B:B,"RRSP",Transactions!D:D,"TD Canadian Index Fund -e (TDB900)",Transactions!C:C,{"Buy","Dividend","Switch to"})))-SUM((SUMIFS(Transactions!E:E,Transactions!B:B,"RRSP",Transactions!D:D,"TD Canadian Index Fund -e (TDB900)",Transactions!C:C,{"Switch from","Sell"}))) -> 0 | H12: =G12*B12 -> 0 | I12: =IFERROR(((SUM(SUMIFS(Transactions!G:G,Transactions!B:B,"RRSP",Transactions!C:C,{"Buy","Switch to"},Transactions!D:D,"TD Canadian Index Fund -e (TDB900)")))-(SUM(SUMIFS(Transactions!E:E,Transactions!B:B,"RRSP",Transactions!C:C,{"Sell","Switch from"},Transactions!D:D,"TD Canadian Index Fund -e (TDB900)"))*(SUM(SUMIFS(Transactions!G:G,Transactions!B:B,"RRSP",Transactions!C:C,{"Buy","Switch to"},Transactions!D:D,"TD Canadian Index Fund -e (TDB900)"))/G12))),0) -> 0 | K12: =SUMIFS(Transactions!G:G,Transactions!B:B,"RRSP",Transactions!C:C,"Dividend",Transactions!D:D,"TD Canadian Index Fund -e (TDB900)") -> 0 | L12: =H12-I12 -> 0 | M12: 0 | N12: =IFERROR((H12/$H$16),0) -> 0 | P12: =IFERROR(INDEX('Running Portfolio Value'!T:T,4)-INDEX('Running Portfolio Value'!T:T,11) - (SUM(SUMIFS(Transactions!G:G,Transactions!C:C,{"Buy","Switch to"},Transactions!B:B,"RRSP",Transactions!A:A,">"&TODAY()-7,Transactions!D:D,"TD Canadian Index Fund -e (TDB900)")))+SUM(SUMIFS(Transactions!G:G,Transactions!C:C,{"Sell","Switch from"},Transactions!B:B,"RRSP",Transactions!A:A,">"&TODAY()-7,Transactions!D:D,"TD Canadian Index Fund -e (TDB900)")),"N/A") -> 0 | Q12: 0 | R12: =IFERROR(INDEX('Running Portfolio Value'!T:T,4)-INDEX('Running Portfolio Value'!T:T,34) - (SUM(SUMIFS(Transactions!G:G,Transactions!C:C,{"Buy","Switch to"},Transactions!B:B,"RRSP",Transactions!A:A,">"&TODAY()-30,Transactions!D:D,"TD Canadian Index Fund -e (TDB900)")))+SUM(SUMIFS(Transactions!G:G,Transactions!C:C,{"Sell","Switch from"},Transactions!B:B,"RRSP",Transactions!A:A,">"&TODAY()-30,Transactions!D:D,"TD Canadian Index Fund -e (TDB900)")),"N/A") -> 0 | S12: 0 | T12: =IFERROR(INDEX('Running Portfolio Value'!T:T,4)-INDEX('Running Portfolio Value'!T:T,94) - (SUM(SUMIFS(Transactions!G:G,Transactions!C:C,{"Buy","Switch to"},Transactions!B:B,"RRSP",Transactions!A:A,">"&TODAY()-90,Transactions!D:D,"TD Canadian Index Fund -e (TDB900)")))+SUM(SUMIFS(Transactions!G:G,Transactions!C:C,{"Sell","Switch from"},Transactions!B:B,"RRSP",Transactions!A:A,">"&TODAY()-90,Transactions!D:D,"TD Canadian Index Fund -e (TDB900)")),"N/A") -> 0 | U12: 0 | V12: =IFERROR(INDEX('Running Portfolio Value'!T:T,4)-INDEX('Running Portfolio Value'!T:T,369) - (SUM(SUMIFS(Transactions!G:G,Transactions!C:C,{"Buy","Switch to"},Transactions!B:B,"RRSP",Transactions!A:A,">"&TODAY()-365,Transactions!D:D,"TD Canadian Index Fund -e (TDB900)")))+SUM(SUMIFS(Transactions!G:G,Transactions!C:C,{"Sell","Switch from"},Transactions!B:B,"RRSP",Transactions!A:A,">"&TODAY()-365,Transactions!D:D,"TD Canadian Index Fund -e (TDB900)")),"N/A") -> 0 | W12: 0
A13: TD U.S. Index Fund -e | B13: =INDEX('TD e-Series Price List'!E:E,2) -> 60.56 | C13: =INDEX('TD e-Series Price List'!E:E,3) -> 60.42 | D13: 0.002311756935 | E13: =(B13*G13)-(C13*G13) -> 0 | G13: =SUM((SUMIFS(Transactions!E:E,Transactions!B:B,"RRSP",Transactions!D:D,"TD US Index Fund -e (TDB902)",Transactions!C:C,{"Buy","Dividend","Switch to"})))-SUM((SUMIFS(Transactions!E:E,Transactions!B:B,"RRSP",Transactions!D:D,"TD US Index Fund -e (TDB902)",Transactions!C:C,{"Switch from","Sell"}))) -> 0 | H13: =G13*B13 -> 0 | I13: =IFERROR(((SUM(SUMIFS(Transactions!G:G,Transactions!B:B,"RRSP",Transactions!C:C,{"Buy","Switch to"},Transactions!D:D,"TD US Index Fund -e (TDB902)")))-(SUM(SUMIFS(Transactions!E:E,Transactions!B:B,"RRSP",Transactions!C:C,{"Sell","Switch from"},Transactions!D:D,"TD US Index Fund -e (TDB902)"))*(SUM(SUMIFS(Transactions!G:G,Transactions!B:B,"RRSP",Transactions!C:C,{"Buy","Switch to"},Transactions!D:D,"TD US Index Fund -e (TDB902)"))/G13))),0) -> 0 | K13: =SUMIFS(Transactions!G:G,Transactions!B:B,"RRSP",Transactions!C:C,"Dividend",Transactions!D:D,"TD US Index Fund -e (TDB902)") -> 0 | L13: =H13-I13 -> 0 | M13: 0 | N13: =IFERROR((H13/$H$16),0) -> 0 | P13: =IFERROR(INDEX('Running Portfolio Value'!X:X,4)-INDEX('Running Portfolio Value'!X:X,11) - (SUM(SUMIFS(Transactions!G:G,Transactions!C:C,{"Buy","Switch to"},Transactions!B:B,"RRSP",Transactions!A:A,">"&TODAY()-7,Transactions!D:D,"TD Canadian Index Fund -e (TDB900)")))+SUM(SUMIFS(Transactions!G:G,Transactions!C:C,{"Sell","Switch from"},Transactions!B:B,"RRSP",Transactions!A:A,">"&TODAY()-7,Transactions!D:D,"TD Canadian Index Fund -e (TDB900)")),"N/A") -> 0 | Q13: 0 | R13: =IFERROR(INDEX('Running Portfolio Value'!X:X,4)-INDEX('Running Portfolio Value'!X:X,34) - (SUM(SUMIFS(Transactions!G:G,Transactions!C:C,{"Buy","Switch to"},Transactions!B:B,"RRSP",Transactions!A:A,">"&TODAY()-30,Transactions!D:D,"TD US Index Fund -e (TDB902)")))+SUM(SUMIFS(Transactions!G:G,Transactions!C:C,{"Sell","Switch from"},Transactions!B:B,"RRSP",Transactions!A:A,">"&TODAY()-30,Transactions!D:D,"TD US Index Fund -e (TDB902)")),"N/A") -> 0 | S13: 0 | T13: =IFERROR(INDEX('Running Portfolio Value'!X:X,4)-INDEX('Running Portfolio Value'!X:X,94) - (SUM(SUMIFS(Transactions!G:G,Transactions!C:C,{"Buy","Switch to"},Transactions!B:B,"RRSP",Transactions!A:A,">"&TODAY()-90,Transactions!D:D,"TD US Index Fund -e (TDB902)")))+SUM(SUMIFS(Transactions!G:G,Transactions!C:C,{"Sell","Switch from"},Transactions!B:B,"RRSP",Transactions!A:A,">"&TODAY()-90,Transactions!D:D,"TD US Index Fund -e (TDB902)")),"N/A") -> 0 | U13: 0 | V13: =IFERROR(INDEX('Running Portfolio Value'!X:X,4)-INDEX('Running Portfolio Value'!X:X,369) - (SUM(SUMIFS(Transactions!G:G,Transactions!C:C,{"Buy","Switch to"},Transactions!B:B,"RRSP",Transactions!A:A,">"&TODAY()-365,Transactions!D:D,"TD US Index Fund -e (TDB902)")))+SUM(SUMIFS(Transactions!G:G,Transactions!C:C,{"Sell","Switch from"},Transactions!B:B,"RRSP",Transactions!A:A,">"&TODAY()-365,Transactions!D:D,"TD US Index Fund -e (TDB902)")),"N/A") -> 0 | W13: 0
A14: TD International Index Fund -e | B14: =INDEX('TD e-Series Price List'!H:H,2) -> 14.39 | C14: =INDEX('TD e-Series Price List'!H:H,3) -> 14.44 | D14: -0.003474635163 | E14: 0 | G14: =SUM((SUMIFS(Transactions!E:E,Transactions!B:B,"RRSP",Transactions!D:D,"TD International Fund -e (TDB911)",Transactions!C:C,{"Buy","Dividend","Switch to"})))-SUM((SUMIFS(Transactions!E:E,Transactions!B:B,"RRSP",Transactions!D:D,"TD International Fund -e (TDB911)",Transactions!C:C,{"Switch from","Sell"}))) -> 0 | H14: 0 | I14: =IFERROR(((SUM(SUMIFS(Transactions!G:G,Transactions!B:B,"RRSP",Transactions!C:C,{"Buy","Switch to"},Transactions!D:D,"TD International Fund -e (TDB911)")))-(SUM(SUMIFS(Transactions!E:E,Transactions!B:B,"RRSP",Transactions!C:C,{"Sell","Switch from"},Transactions!D:D,"TD International Fund -e (TDB911)"))*(SUM(SUMIFS(Transactions!G:G,Transactions!B:B,"RRSP",Transactions!C:C,{"Buy","Switch to"},Transactions!D:D,"TD International Fund -e (TDB911)"))/G14))),0) -> 0 | K14: =SUMIFS(Transactions!G:G,Transactions!B:B,"RRSP",Transactions!C:C,"Dividend",Transactions!D:D,"TD International Fund -e (TDB911)") -> 0 | L14: 0 | M14: =IFERROR(((H14/I14)-1),0) -> 0 | N14: 0 | P14: =IFERROR(INDEX('Running Portfolio Value'!AB:AB,4)-INDEX('Running Portfolio Value'!AB:AB,11) - (SUM(SUMIFS(Transactions!G:G,Transactions!C:C,{"Buy","Switch to"},Transactions!B:B,"RRSP",Transactions!A:A,">"&TODAY()-7,Transactions!D:D,"TD International Fund -e (TDB911)")))+SUM(SUMIFS(Transactions!G:G,Transactions!C:C,{"Sell","Switch from"},Transactions!B:B,"RRSP",Transactions!A:A,">"&TODAY()-7,Transactions!D:D,"TD International Fund -e (TDB911)")),"N/A") -> 0 | Q14: 0 | R14: =IFERROR(INDEX('Running Portfolio Value'!AB:AB,4)-INDEX('Running Portfolio Value'!AB:AB,34) - (SUM(SUMIFS(Transactions!G:G,Transactions!C:C,{"Buy","Switch to"},Transactions!B:B,"RRSP",Transactions!A:A,">"&TODAY()-30,Transactions!D:D,"TD International Fund -e (TDB911)")))+SUM(SUMIFS(Transactions!G:G,Transactions!C:C,{"Sell","Switch from"},Transactions!B:B,"RRSP",Transactions!A:A,">"&TODAY()-30,Transactions!D:D,"TD International Fund -e (TDB911)")),"N/A") -> 0 | S14: 0 | T14: =IFERROR(INDEX('Running Portfolio Value'!AB:AB,4)-INDEX('Running Portfolio Value'!AB:AB,94) - (SUM(SUMIFS(Transactions!G:G,Transactions!C:C,{"Buy","Switch to"},Transactions!B:B,"RRSP",Transactions!A:A,">"&TODAY()-90,Transactions!D:D,"TD International Fund -e (TDB911)")))+SUM(SUMIFS(Transactions!G:G,Transactions!C:C,{"Sell","Switch from"},Transactions!B:B,"RRSP",Transactions!A:A,">"&TODAY()-90,Transactions!D:D,"TD International Fund -e (TDB911)")),"N/A") -> 0 | U14: 0 | V14: =IFERROR(INDEX('Running Portfolio Value'!AB:AB,4)-INDEX('Running Portfolio Value'!AB:AB,369) - (SUM(SUMIFS(Transactions!G:G,Transactions!C:C,{"Buy","Switch to"},Transactions!B:B,"RRSP",Transactions!A:A,">"&TODAY()-365,Transactions!D:D,"TD International Fund -e (TDB911)")))+SUM(SUMIFS(Transactions!G:G,Transactions!C:C,{"Sell","Switch from"},Transactions!B:B,"RRSP",Transactions!A:A,">"&TODAY()-365,Transactions!D:D,"TD International Fund -e (TDB911)")),"N/A") -> 0 | W14: 0
A15: TD Canadian Bond Index Fund -e | B15: =INDEX('TD e-Series Price List'!K:K,2) -> 11.24 | C15: =INDEX('TD e-Series Price List'!K:K,3) -> 11.26 | D15: -0.001779359431 | E15: 0 | G15: =SUM((SUMIFS(Transactions!E:E,Transactions!B:B,"RRSP",Transactions!D:D,"TD Canadian Bond Index Fund -e (TDB909)",Transactions!C:C,{"Buy","Dividend","Switch to"})))-SUM((SUMIFS(Transactions!E:E,Transactions!B:B,"RRSP",Transactions!D:D,"TD Canadian Bond Index Fund -e (TDB909)",Transactions!C:C,{"Switch from","Sell"}))) -> 0 | H15: 0 | I15: =IFERROR(((SUM(SUMIFS(Transactions!G:G,Transactions!B:B,"RRSP",Transactions!C:C,{"Buy","Switch to"},Transactions!D:D,"TD Canadian Bond Index Fund -e (TDB909)")))-(SUM(SUMIFS(Transactions!E:E,Transactions!B:B,"RRSP",Transactions!C:C,{"Sell","Switch from"},Transactions!D:D,"TD Canadian Bond Index Fund -e (TDB909)"))*(SUM(SUMIFS(Transactions!G:G,Transactions!B:B,"RRSP",Transactions!C:C,{"Buy","Switch to"},Transactions!D:D,"TD Canadian Bond Index Fund -e (TDB909)"))/G15))),0) -> 0 | K15: =SUMIFS(Transactions!G:G,Transactions!B:B,"RRSP",Transactions!C:C,"Dividend",Transactions!D:D,"TD Canadian Bond Index Fund -e (TDB909)") -> 0 | L15: 0 | M15: =IFERROR(((H15/I15)-1),0) -> 0 | N15: 0 | P15: =IFERROR(INDEX('Running Portfolio Value'!AF:AF,4)-INDEX('Running Portfolio Value'!AF:AF,11) - (SUM(SUMIFS(Transactions!G:G,Transactions!C:C,{"Buy","Switch to"},Transactions!B:B,"RRSP",Transactions!A:A,">"&TODAY()-7,Transactions!D:D,"TD Canadian Bond Index Fund -e (TDB909)")))+SUM(SUMIFS(Transactions!G:G,Transactions!C:C,{"Sell","Switch from"},Transactions!B:B,"RRSP",Transactions!A:A,">"&TODAY()-7,Transactions!D:D,"TD Canadian Bond Index Fund -e (TDB909)")),"N/A") -> 0 | Q15: 0 | R15: =IFERROR(INDEX('Running Portfolio Value'!AF:AF,4)-INDEX('Running Portfolio Value'!AF:AF,34) - (SUM(SUMIFS(Transactions!G:G,Transactions!C:C,{"Buy","Switch to"},Transactions!B:B,"RRSP",Transactions!A:A,">"&TODAY()-30,Transactions!D:D,"TD Canadian Bond Index Fund -e (TDB909)")))+SUM(SUMIFS(Transactions!G:G,Transactions!C:C,{"Sell","Switch from"},Transactions!B:B,"RRSP",Transactions!A:A,">"&TODAY()-30,Transactions!D:D,"TD Canadian Bond Index Fund -e (TDB909)")),"N/A") -> 0 | S15: 0 | T15: =IFERROR(INDEX('Running Portfolio Value'!AF:AF,4)-INDEX('Running Portfolio Value'!AF:AF,94) - (SUM(SUMIFS(Transactions!G:G,Transactions!C:C,{"Buy","Switch to"},Transactions!B:B,"RRSP",Transactions!A:A,">"&TODAY()-90,Transactions!D:D,"TD Canadian Bond Index Fund -e (TDB909)")))+SUM(SUMIFS(Transactions!G:G,Transactions!C:C,{"Sell","Switch from"},Transactions!B:B,"RRSP",Transactions!A:A,">"&TODAY()-90,Transactions!D:D,"TD Canadian Bond Index Fund -e (TDB909)")),"N/A") -> 0 | U15: 0 | V15: =IFERROR(INDEX('Running Portfolio Value'!AF:AF,4)-INDEX('Running Portfolio Value'!AF:AF,369) - (SUM(SUMIFS(Transactions!G:G,Transactions!C:C,{"Buy","Switch to"},Transactions!B:B,"RRSP",Transactions!A:A,">"&TODAY()-365,Transactions!D:D,"TD Canadian Bond Index Fund -e (TDB909)")))+SUM(SUMIFS(Transactions!G:G,Transactions!C:C,{"Sell","Switch from"},Transactions!B:B,"RRSP",Transactions!A:A,">"&TODAY()-365,Transactions!D:D,"TD Canadian Bond Index Fund -e (TDB909)")),"N/A") -> 0 | W15: 0
A16: TOTALS: | E16: =SUM(E12:E15) -> 0 | H16: =SUM(H12:H15) -> 0 | I16: =SUM(I12:I15) -> 0 | K16: =SUM(K12:K15) -> 0 | L16: 0 | M16: =IFERROR(((H16/I16)-1),0) -> 0 | N16: =SUM(N12:N15) -> 0 | P16: =SUM(P12:P15) -> 0 | Q16: =IFERROR((P16/H16),0) -> 0 | R16: =SUM(R12:R15) -> 0 | S16: =IFERROR((R16/H16),0) -> 0 | T16: 0 | U16: =IFERROR((T16/H16),0) -> 0 | V16: 0 | W16: =IFERROR((V16/H16),0) -> 0
P17: *N/A = haven't held portfolio for long enough

Sheet Transactions
A1: Date | B1: Account | C1: Action | D1: Fund | E1: Shares | F1: Price | G1: Value
F2: =IFERROR(VLOOKUP(A2,'Price Data All Dates'!A:E,IF(Transactions!D2="TD Canadian Bond Index Fund -e (TDB909)",5,IF(Transactions!D2="TD International Fund -e (TDB911)",4,IF(Transactions!D2="TD US Index Fund -e (TDB902)",3,IF(Transactions!D2="TD Canadian Index Fund -e (TDB900)",2,"")))),FALSE),"") ->  | G2: =IF(ISNUMBER(E2*F2),E2*F2,"") -> 
F3: =IFERROR(VLOOKUP(A3,'Price Data All Dates'!A:E,IF(Transactions!D3="TD Canadian Bond Index Fund -e (TDB909)",5,IF(Transactions!D3="TD International Fund -e (TDB911)",4,IF(Transactions!D3="TD US Index Fund -e (TDB902)",3,IF(Transactions!D3="TD Canadian Index Fund -e (TDB900)",2,"")))),FALSE),"") ->  | G3: =IF(ISNUMBER(E3*F3),E3*F3,"") -> 
F4: =IFERROR(VLOOKUP(A4,'Price Data All Dates'!A:E,IF(Transactions!D4="TD Canadian Bond Index Fund -e (TDB909)",5,IF(Transactions!D4="TD International Fund -e (TDB911)",4,IF(Transactions!D4="TD US Index Fund -e (TDB902)",3,IF(Transactions!D4="TD Canadian Index Fund -e (TDB900)",2,"")))),FALSE),"") -> 
F5: =IFERROR(VLOOKUP(A5,'Price Data All Dates'!A:E,IF(Transactions!D5="TD Canadian Bond Index Fund -e (TDB909)",5,IF(Transactions!D5="TD International Fund -e (TDB911)",4,IF(Transactions!D5="TD US Index Fund -e (TDB902)",3,IF(Transactions!D5="TD Canadian Index Fund -e (TDB900)",2,"")))),FALSE),"") -> 
F6: =IFERROR(VLOOKUP(A6,'Price Data All Dates'!A:E,IF(Transactions!D6="TD Canadian Bond Index Fund -e (TDB909)",5,IF(Transactions!D6="TD International Fund -e (TDB911)",4,IF(Transactions!D6="TD US Index Fund -e (TDB902)",3,IF(Transactions!D6="TD Canadian Index Fund -e (TDB900)",2,"")))),FALSE),"") -> 
F7: =IFERROR(VLOOKUP(A7,'Price Data All Dates'!A:E,IF(Transactions!D7="TD Canadian Bond Index Fund -e (TDB909)",5,IF(Transactions!D7="TD International Fund -e (TDB911)",4,IF(Transactions!D7="TD US Index Fund -e (TDB902)",3,IF(Transactions!D7="TD Canadian Index Fund -e (TDB900)",2,"")))),FALSE),"") -> 
F8: =IFERROR(VLOOKUP(A8,'Price Data All Dates'!A:E,IF(Transactions!D8="TD Canadian Bond Index Fund -e (TDB909)",5,IF(Transactions!D8="TD International Fund -e (TDB911)",4,IF(Transactions!D8="TD US Index Fund -e (TDB902)",3,IF(Transactions!D8="TD Canadian Index Fund -e (TDB900)",2,"")))),FALSE),"") -> 
F9: =IFERROR(VLOOKUP(A9,'Price Data All Dates'!A:E,IF(Transactions!D9="TD Canadian Bond Index Fund -e (TDB909)",5,IF(Transactions!D9="TD International Fund -e (TDB911)",4,IF(Transactions!D9="TD US Index Fund -e (TDB902)",3,IF(Transactions!D9="TD Canadian Index Fund -e (TDB900)",2,"")))),FALSE),"") -> 
F10: =IFERROR(VLOOKUP(A10,'Price Data All Dates'!A:E,IF(Transactions!D10="TD Canadian Bond Index Fund -e (TDB909)",5,IF(Transactions!D10="TD International Fund -e (TDB911)",4,IF(Transactions!D10="TD US Index Fund -e (TDB902)",3,IF(Transactions!D10="TD Canadian Index Fund -e (TDB900)",2,"")))),FALSE),"") -> 
F11: =IFERROR(VLOOKUP(A11,'Price Data All Dates'!A:E,IF(Transactions!D11="TD Canadian Bond Index Fund -e (TDB909)",5,IF(Transactions!D11="TD International Fund -e (TDB911)",4,IF(Transactions!D11="TD US Index Fund -e (TDB902)",3,IF(Transactions!D11="TD Canadian Index Fund -e (TDB900)",2,"")))),FALSE),"") -> 
F12: =IFERROR(VLOOKUP(A12,'Price Data All Dates'!A:E,IF(Transactions!D12="TD Canadian Bond Index Fund -e (TDB909)",5,IF(Transactions!D12="TD International Fund -e (TDB911)",4,IF(Transactions!D12="TD US Index Fund -e (TDB902)",3,IF(Transactions!D12="TD Canadian Index Fund -e (TDB900)",2,"")))),FALSE),"") -> 
F13: =IFERROR(VLOOKUP(A13,'Price Data All Dates'!A:E,IF(Transactions!D13="TD Canadian Bond Index Fund -e (TDB909)",5,IF(Transactions!D13="TD International Fund -e (TDB911)",4,IF(Transactions!D13="TD US Index Fund -e (TDB902)",3,IF(Transactions!D13="TD Canadian Index Fund -e (TDB900)",2,"")))),FALSE),"") -> 
F14: =IFERROR(VLOOKUP(A14,'Price Data All Dates'!A:E,IF(Transactions!D14="TD Canadian Bond Index Fund -e (TDB909)",5,IF(Transactions!D14="TD International Fund -e (TDB911)",4,IF(Transactions!D14="TD US Index Fund -e (TDB902)",3,IF(Transactions!D14="TD Canadian Index Fund -e (TDB900)",2,"")))),FALSE),"") -> 
F15: =IFERROR(VLOOKUP(A15,'Price Data All Dates'!A:E,IF(Transactions!D15="TD Canadian Bond Index Fund -e (TDB909)",5,IF(Transactions!D15="TD International Fund -e (TDB911)",4,IF(Transactions!D15="TD US Index Fund -e (TDB902)",3,IF(Transactions!D15="TD Canadian Index Fund -e (TDB900)",2,"")))),FALSE),"") -> 
F16: =IFERROR(VLOOKUP(A16,'Price Data All Dates'!A:E,IF(Transactions!D16="TD Canadian Bond Index Fund -e (TDB909)",5,IF(Transactions!D16="TD International Fund -e (TDB911)",4,IF(Transactions!D16="TD US Index Fund -e (TDB902)",3,IF(Transactions!D16="TD Canadian Index Fund -e (TDB900)",2,"")))),FALSE),"") -> 
F17: =IFERROR(VLOOKUP(A17,'Price Data All Dates'!A:E,IF(Transactions!D17="TD Canadian Bond Index Fund -e (TDB909)",5,IF(Transactions!D17="TD International Fund -e (TDB911)",4,IF(Transactions!D17="TD US Index Fund -e (TDB902)",3,IF(Transactions!D17="TD Canadian Index Fund -e (TDB900)",2,"")))),FALSE),"") -> 
F18: =IFERROR(VLOOKUP(A18,'Price Data All Dates'!A:E,IF(Transactions!D18="TD Canadian Bond Index Fund -e (TDB909)",5,IF(Transactions!D18="TD International Fund -e (TDB911)",4,IF(Transactions!D18="TD US Index Fund -e (TDB902)",3,IF(Transactions!D18="TD Canadian Index Fund -e (TDB900)",2,"")))),FALSE),"") -> 
F19: =IFERROR(VLOOKUP(A19,'Price Data All Dates'!A:E,IF(Transactions!D19="TD Canadian Bond Index Fund -e (TDB909)",5,IF(Transactions!D19="TD International Fund -e (TDB911)",4,IF(Transactions!D19="TD US Index Fund -e (TDB902)",3,IF(Transactions!D19="TD Canadian Index Fund -e (TDB900)",2,"")))),FALSE),"") -> 
F20: =IFERROR(VLOOKUP(A20,'Price Data All Dates'!A:E,IF(Transactions!D20="TD Canadian Bond Index Fund -e (TDB909)",5,IF(Transactions!D20="TD International Fund -e (TDB911)",4,IF(Transactions!D20="TD US Index Fund -e (TDB902)",3,IF(Transactions!D20="TD Canadian Index Fund -e (TDB900)",2,"")))),FALSE),"") -> 
F21: =IFERROR(VLOOKUP(A21,'Price Data All Dates'!A:E,IF(Transactions!D21="TD Canadian Bond Index Fund -e (TDB909)",5,IF(Transactions!D21="TD International Fund -e (TDB911)",4,IF(Transactions!D21="TD US Index Fund -e (TDB902)",3,IF(Transactions!D21="TD Canadian Index Fund -e (TDB900)",2,"")))),FALSE),"") -> 
F22: =IFERROR(VLOOKUP(A22,'Price Data All Dates'!A:E,IF(Transactions!D22="TD Canadian Bond Index Fund -e (TDB909)",5,IF(Transactions!D22="TD International Fund -e (TDB911)",4,IF(Transactions!D22="TD US Index Fund -e (TDB902)",3,IF(Transactions!D22="TD Canadian Index Fund -e (TDB900)",2,"")))),FALSE),"") -> 
F23: =IFERROR(VLOOKUP(A23,'Price Data All Dates'!A:E,IF(Transactions!D23="TD Canadian Bond Index Fund -e (TDB909)",5,IF(Transactions!D23="TD International Fund -e (TDB911)",4,IF(Transactions!D23="TD US Index Fund -e (TDB902)",3,IF(Transactions!D23="TD Canadian Index Fund -e (TDB900)",2,"")))),FALSE),"") -> 
F24: =IFERROR(VLOOKUP(A24,'Price Data All Dates'!A:E,IF(Transactions!D24="TD Canadian Bond Index Fund -e (TDB909)",5,IF(Transactions!D24="TD International Fund -e (TDB911)",4,IF(Transactions!D24="TD US Index Fund -e (TDB902)",3,IF(Transactions!D24="TD Canadian Index Fund -e (TDB900)",2,"")))),FALSE),"") -> 
F25: =IFERROR(VLOOKUP(A25,'Price Data All Dates'!A:E,IF(Transactions!D25="TD Canadian Bond Index Fund -e (TDB909)",5,IF(Transactions!D25="TD International Fund -e (TDB911)",4,IF(Transactions!D25="TD US Index Fund -e (TDB902)",3,IF(Transactions!D25="TD Canadian Index Fund -e (TDB900)",2,"")))),FALSE),"") -> 
F26: =IFERROR(VLOOKUP(A26,'Price Data All Dates'!A:E,IF(Transactions!D26="TD Canadian Bond Index Fund -e (TDB909)",5,IF(Transactions!D26="TD International Fund -e (TDB911)",4,IF(Transactions!D26="TD US Index Fund -e (TDB902)",3,IF(Transactions!D26="TD Canadian Index Fund -e (TDB900)",2,"")))),FALSE),"") -> 
F27: =IFERROR(VLOOKUP(A27,'Price Data All Dates'!A:E,IF(Transactions!D27="TD Canadian Bond Index Fund -e (TDB909)",5,IF(Transactions!D27="TD International Fund -e (TDB911)",4,IF(Transactions!D27="TD US Index Fund -e (TDB902)",3,IF(Transactions!D27="TD Canadian Index Fund -e (TDB900)",2,"")))),FALSE),"") -> 
F28: =IFERROR(VLOOKUP(A28,'Price Data All Dates'!A:E,IF(Transactions!D28="TD Canadian Bond Index Fund -e (TDB909)",5,IF(Transactions!D28="TD International Fund -e (TDB911)",4,IF(Transactions!D28="TD US Index Fund -e (TDB902)",3,IF(Transactions!D28="TD Canadian Index Fund -e (TDB900)",2,"")))),FALSE),"") -> 
F29: =IFERROR(VLOOKUP(A29,'Price Data All Dates'!A:E,IF(Transactions!D29="TD Canadian Bond Index Fund -e (TDB909)",5,IF(Transactions!D29="TD International Fund -e (TDB911)",4,IF(Transactions!D29="TD US Index Fund -e (TDB902)",3,IF(Transactions!D29="TD Canadian Index Fund -e (TDB900)",2,"")))),FALSE),"") -> 
F30: =IFERROR(VLOOKUP(A30,'Price Data All Dates'!A:E,IF(Transactions!D30="TD Canadian Bond Index Fund -e (TDB909)",5,IF(Transactions!D30="TD International Fund -e (TDB911)",4,IF(Transactions!D30="TD US Index Fund -e (TDB902)",3,IF(Transactions!D30="TD Canadian Index Fund -e (TDB900)",2,"")))),FALSE),"") -> 
F31: =IFERROR(VLOOKUP(A31,'Price Data All Dates'!A:E,IF(Transactions!D31="TD Canadian Bond Index Fund -e (TDB909)",5,IF(Transactions!D31="TD International Fund -e (TDB911)",4,IF(Transactions!D31="TD US Index Fund -e (TDB902)",3,IF(Transactions!D31="TD Canadian Index Fund -e (TDB900)",2,"")))),FALSE),"") -> 
F32: =IFERROR(VLOOKUP(A32,'Price Data All Dates'!A:E,IF(Transactions!D32="TD Canadian Bond Index Fund -e (TDB909)",5,IF(Transactions!D32="TD International Fund -e (TDB911)",4,IF(Transactions!D32="TD US Index Fund -e (TDB902)",3,IF(Transactions!D32="TD Canadian Index Fund -e (TDB900)",2,"")))),FALSE),"") -> 
F33: =IFERROR(VLOOKUP(A33,'Price Data All Dates'!A:E,IF(Transactions!D33="TD Canadian Bond Index Fund -e (TDB909)",5,IF(Transactions!D33="TD International Fund -e (TDB911)",4,IF(Transactions!D33="TD US Index Fund -e (TDB902)",3,IF(Transactions!D33="TD Canadian Index Fund -e (TDB900)",2,"")))),FALSE),"") -> 
F34: =IFERROR(VLOOKUP(A34,'Price Data All Dates'!A:E,IF(Transactions!D34="TD Canadian Bond Index Fund -e (TDB909)",5,IF(Transactions!D34="TD International Fund -e (TDB911)",4,IF(Transactions!D34="TD US Index Fund -e (TDB902)",3,IF(Transactions!D34="TD Canadian Index Fund -e (TDB900)",2,"")))),FALSE),"") -> 
F35: =IFERROR(VLOOKUP(A35,'Price Data All Dates'!A:E,IF(Transactions!D35="TD Canadian Bond Index Fund -e (TDB909)",5,IF(Transactions!D35="TD International Fund -e (TDB911)",4,IF(Transactions!D35="TD US Index Fund -e (TDB902)",3,IF(Transactions!D35="TD Canadian Index Fund -e (TDB900)",2,"")))),FALSE),"") -> 
F36: =IFERROR(VLOOKUP(A36,'Price Data All Dates'!A:E,IF(Transactions!D36="TD Canadian Bond Index Fund -e (TDB909)",5,IF(Transactions!D36="TD International Fund -e (TDB911)",4,IF(Transactions!D36="TD US Index Fund -e (TDB902)",3,IF(Transactions!D36="TD Canadian Index Fund -e (TDB900)",2,"")))),FALSE),"") -> 
F37: =IFERROR(VLOOKUP(A37,'Price Data All Dates'!A:E,IF(Transactions!D37="TD Canadian Bond Index Fund -e (TDB909)",5,IF(Transactions!D37="TD International Fund -e (TDB911)",4,IF(Transactions!D37="TD US Index Fund -e (TDB902)",3,IF(Transactions!D37="TD Canadian Index Fund -e (TDB900)",2,"")))),FALSE),"") -> 
F38: =IFERROR(VLOOKUP(A38,'Price Data All Dates'!A:E,IF(Transactions!D38="TD Canadian Bond Index Fund -e (TDB909)",5,IF(Transactions!D38="TD International Fund -e (TDB911)",4,IF(Transactions!D38="TD US Index Fund -e (TDB902)",3,IF(Transactions!D38="TD Canadian Index Fund -e (TDB900)",2,"")))),FALSE),"") -> 
F39: =IFERROR(VLOOKUP(A39,'Price Data All Dates'!A:E,IF(Transactions!D39="TD Canadian Bond Index Fund -e (TDB909)",5,IF(Transactions!D39="TD International Fund -e (TDB911)",4,IF(Transactions!D39="TD US Index Fund -e (TDB902)",3,IF(Transactions!D39="TD Canadian Index Fund -e (TDB900)",2,"")))),FALSE),"") -> 
F40: =IFERROR(VLOOKUP(A40,'Price Data All Dates'!A:E,IF(Transactions!D40="TD Canadian Bond Index Fund -e (TDB909)",5,IF(Transactions!D40="TD International Fund -e (TDB911)",4,IF(Transactions!D40="TD US Index Fund -e (TDB902)",3,IF(Transactions!D40="TD Canadian Index Fund -e (TDB900)",2,"")))),FALSE),"") -> 
F41: =IFERROR(VLOOKUP(A41,'Price Data All Dates'!A:E,IF(Transactions!D41="TD Canadian Bond Index Fund -e (TDB909)",5,IF(Transactions!D41="TD International Fund -e (TDB911)",4,IF(Transactions!D41="TD US Index Fund -e (TDB902)",3,IF(Transactions!D41="TD Canadian Index Fund -e (TDB900)",2,"")))),FALSE),"") -> 
F42: =IFERROR(VLOOKUP(A42,'Price Data All Dates'!A:E,IF(Transactions!D42="TD Canadian Bond Index Fund -e (TDB909)",5,IF(Transactions!D42="TD International Fund -e (TDB911)",4,IF(Transactions!D42="TD US Index Fund -e (TDB902)",3,IF(Transactions!D42="TD Canadian Index Fund -e (TDB900)",2,"")))),FALSE),"") -> 
F43: =IFERROR(VLOOKUP(A43,'Price Data All Dates'!A:E,IF(Transactions!D43="TD Canadian Bond Index Fund -e (TDB909)",5,IF(Transactions!D43="TD International Fund -e (TDB911)",4,IF(Transactions!D43="TD US Index Fund -e (TDB902)",3,IF(Transactions!D43="TD Canadian Index Fund -e (TDB900)",2,"")))),FALSE),"") -> 
F44: =IFERROR(VLOOKUP(A44,'Price Data All Dates'!A:E,IF(Transactions!D44="TD Canadian Bond Index Fund -e (TDB909)",5,IF(Transactions!D44="TD International Fund -e (TDB911)",4,IF(Transactions!D44="TD US Index Fund -e (TDB902)",3,IF(Transactions!D44="TD Canadian Index Fund -e (TDB900)",2,"")))),FALSE),"") -> 
F45: =IFERROR(VLOOKUP(A45,'Price Data All Dates'!A:E,IF(Transactions!D45="TD Canadian Bond Index Fund -e (TDB909)",5,IF(Transactions!D45="TD International Fund -e (TDB911)",4,IF(Transactions!D45="TD US Index Fund -e (TDB902)",3,IF(Transactions!D45="TD Canadian Index Fund -e (TDB900)",2,"")))),FALSE),"") -> 
F46: =IFERROR(VLOOKUP(A46,'Price Data All Dates'!A:E,IF(Transactions!D46="TD Canadian Bond Index Fund -e (TDB909)",5,IF(Transactions!D46="TD International Fund -e (TDB911)",4,IF(Transactions!D46="TD US Index Fund -e (TDB902)",3,IF(Transactions!D46="TD Canadian Index Fund -e (TDB900)",2,"")))),FALSE),"") -> 
F47: =IFERROR(VLOOKUP(A47,'Price Data All Dates'!A:E,IF(Transactions!D47="TD Canadian Bond Index Fund -e (TDB909)",5,IF(Transactions!D47="TD International Fund -e (TDB911)",4,IF(Transactions!D47="TD US Index Fund -e (TDB902)",3,IF(Transactions!D47="TD Canadian Index Fund -e (TDB900)",2,"")))),FALSE),"") -> 
F48: =IFERROR(VLOOKUP(A48,'Price Data All Dates'!A:E,IF(Transactions!D48="TD Canadian Bond Index Fund -e (TDB909)",5,IF(Transactions!D48="TD International Fund -e (TDB911)",4,IF(Transactions!D48="TD US Index Fund -e (TDB902)",3,IF(Transactions!D48="TD Canadian Index Fund -e (TDB900)",2,"")))),FALSE),"") -> 
F49: =IFERROR(VLOOKUP(A49,'Price Data All Dates'!A:E,IF(Transactions!D49="TD Canadian Bond Index Fund -e (TDB909)",5,IF(Transactions!D49="TD International Fund -e (TDB911)",4,IF(Transactions!D49="TD US Index Fund -e (TDB902)",3,IF(Transactions!D49="TD Canadian Index Fund -e (TDB900)",2,"")))),FALSE),"") -> 
F50: =IFERROR(VLOOKUP(A50,'Price Data All Dates'!A:E,IF(Transactions!D50="TD Canadian Bond Index Fund -e (TDB909)",5,IF(Transactions!D50="TD International Fund -e (TDB911)",4,IF(Transactions!D50="TD US Index Fund -e (TDB902)",3,IF(Transactions!D50="TD Canadian Index Fund -e (TDB900)",2,"")))),FALSE),"") -> 
F51: =IFERROR(VLOOKUP(A51,'Price Data All Dates'!A:E,IF(Transactions!D51="TD Canadian Bond Index Fund -e (TDB909)",5,IF(Transactions!D51="TD International Fund -e (TDB911)",4,IF(Transactions!D51="TD US Index Fund -e (TDB902)",3,IF(Transactions!D51="TD Canadian Index Fund -e (TDB900)",2,"")))),FALSE),"") -> 
F52: =IFERROR(VLOOKUP(A52,'Price Data All Dates'!A:E,IF(Transactions!D52="TD Canadian Bond Index Fund -e (TDB909)",5,IF(Transactions!D52="TD International Fund -e (TDB911)",4,IF(Transactions!D52="TD US Index Fund -e (TDB902)",3,IF(Transactions!D52="TD Canadian Index Fund -e (TDB900)",2,"")))),FALSE),"") -> 
F53: =IFERROR(VLOOKUP(A53,'Price Data All Dates'!A:E,IF(Transactions!D53="TD Canadian Bond Index Fund -e (TDB909)",5,IF(Transactions!D53="TD International Fund -e (TDB911)",4,IF(Transactions!D53="TD US Index Fund -e (TDB902)",3,IF(Transactions!D53="TD Canadian Index Fund -e (TDB900)",2,"")))),FALSE),"") -> 
F54: =IFERROR(VLOOKUP(A54,'Price Data All Dates'!A:E,IF(Transactions!D54="TD Canadian Bond Index Fund -e (TDB909)",5,IF(Transactions!D54="TD International Fund -e (TDB911)",4,IF(Transactions!D54="TD US Index Fund -e (TDB902)",3,IF(Transactions!D54="TD Canadian Index Fund -e (TDB900)",2,"")))),FALSE),"") -> 
F55: =IFERROR(VLOOKUP(A55,'Price Data All Dates'!A:E,IF(Transactions!D55="TD Canadian Bond Index Fund -e (TDB909)",5,IF(Transactions!D55="TD International Fund -e (TDB911)",4,IF(Transactions!D55="TD US Index Fund -e (TDB902)",3,IF(Transactions!D55="TD Canadian Index Fund -e (TDB900)",2,"")))),FALSE),"") -> 
F56: =IFERROR(VLOOKUP(A56,'Price Data All Dates'!A:E,IF(Transactions!D56="TD Canadian Bond Index Fund -e (TDB909)",5,IF(Transactions!D56="TD International Fund -e (TDB911)",4,IF(Transactions!D56="TD US Index Fund -e (TDB902)",3,IF(Transactions!D56="TD Canadian Index Fund -e (TDB900)",2,"")))),FALSE),"") -> 
F57: =IFERROR(VLOOKUP(A57,'Price Data All Dates'!A:E,IF(Transactions!D57="TD Canadian Bond Index Fund -e (TDB909)",5,IF(Transactions!D57="TD International Fund -e (TDB911)",4,IF(Transactions!D57="TD US Index Fund -e (TDB902)",3,IF(Transactions!D57="TD Canadian Index Fund -e (TDB900)",2,"")))),FALSE),"") -> 
F58: =IFERROR(VLOOKUP(A58,'Price Data All Dates'!A:E,IF(Transactions!D58="TD Canadian Bond Index Fund -e (TDB909)",5,IF(Transactions!D58="TD International Fund -e (TDB911)",4,IF(Transactions!D58="TD US Index Fund -e (TDB902)",3,IF(Transactions!D58="TD Canadian Index Fund -e (TDB900)",2,"")))),FALSE),"") -> 
F59: =IFERROR(VLOOKUP(A59,'Price Data All Dates'!A:E,IF(Transactions!D59="TD Canadian Bond Index Fund -e (TDB909)",5,IF(Transactions!D59="TD International Fund -e (TDB911)",4,IF(Transactions!D59="TD US Index Fund -e (TDB902)",3,IF(Transactions!D59="TD Canadian Index Fund -e (TDB900)",2,"")))),FALSE),"") -> 
F60: =IFERROR(VLOOKUP(A60,'Price Data All Dates'!A:E,IF(Transactions!D60="TD Canadian Bond Index Fund -e (TDB909)",5,IF(Transactions!D60="TD International Fund -e (TDB911)",4,IF(Transactions!D60="TD US Index Fund -e (TDB902)",3,IF(Transactions!D60="TD Canadian Index Fund -e (TDB900)",2,"")))),FALSE),"") -> 
F61: =IFERROR(VLOOKUP(A61,'Price Data All Dates'!A:E,IF(Transactions!D61="TD Canadian Bond Index Fund -e (TDB909)",5,IF(Transactions!D61="TD International Fund -e (TDB911)",4,IF(Transactions!D61="TD US Index Fund -e (TDB902)",3,IF(Transactions!D61="TD Canadian Index Fund -e (TDB900)",2,"")))),FALSE),"") -> 
F62: =IFERROR(VLOOKUP(A62,'Price Data All Dates'!A:E,IF(Transactions!D62="TD Canadian Bond Index Fund -e (TDB909)",5,IF(Transactions!D62="TD International Fund -e (TDB911)",4,IF(Transactions!D62="TD US Index Fund -e (TDB902)",3,IF(Transactions!D62="TD Canadian Index Fund -e (TDB900)",2,"")))),FALSE),"") -> 
F63: =IFERROR(VLOOKUP(A63,'Price Data All Dates'!A:E,IF(Transactions!D63="TD Canadian Bond Index Fund -e (TDB909)",5,IF(Transactions!D63="TD International Fund -e (TDB911)",4,IF(Transactions!D63="TD US Index Fund -e (TDB902)",3,IF(Transactions!D63="TD Canadian Index Fund -e (TDB900)",2,"")))),FALSE),"") -> 
F64: =IFERROR(VLOOKUP(A64,'Price Data All Dates'!A:E,IF(Transactions!D64="TD Canadian Bond Index Fund -e (TDB909)",5,IF(Transactions!D64="TD International Fund -e (TDB911)",4,IF(Transactions!D64="TD US Index Fund -e (TDB902)",3,IF(Transactions!D64="TD Canadian Index Fund -e (TDB900)",2,"")))),FALSE),"") -> 
F65: =IFERROR(VLOOKUP(A65,'Price Data All Dates'!A:E,IF(Transactions!D65="TD Canadian Bond Index Fund -e (TDB909)",5,IF(Transactions!D65="TD International Fund -e (TDB911)",4,IF(Transactions!D65="TD US Index Fund -e (TDB902)",3,IF(Transactions!D65="TD Canadian Index Fund -e (TDB900)",2,"")))),FALSE),"") -> 
F66: =IFERROR(VLOOKUP(A66,'Price Data All Dates'!A:E,IF(Transactions!D66="TD Canadian Bond Index Fund -e (TDB909)",5,IF(Transactions!D66="TD International Fund -e (TDB911)",4,IF(Transactions!D66="TD US Index Fund -e (TDB902)",3,IF(Transactions!D66="TD Canadian Index Fund -e (TDB900)",2,"")))),FALSE),"") -> 
F67: =IFERROR(VLOOKUP(A67,'Price Data All Dates'!A:E,IF(Transactions!D67="TD Canadian Bond Index Fund -e (TDB909)",5,IF(Transactions!D67="TD International Fund -e (TDB911)",4,IF(Transactions!D67="TD US Index Fund -e (TDB902)",3,IF(Transactions!D67="TD Canadian Index Fund -e (TDB900)",2,"")))),FALSE),"") ->  | G67: =IF(ISNUMBER(E67*F67),E67*F67,"") -> 
F68: =IFERROR(VLOOKUP(A68,'Price Data All Dates'!A:E,IF(Transactions!D68="TD Canadian Bond Index Fund -e (TDB909)",5,IF(Transactions!D68="TD International Fund -e (TDB911)",4,IF(Transactions!D68="TD US Index Fund -e (TDB902)",3,IF(Transactions!D68="TD Canadian Index Fund -e (TDB900)",2,"")))),FALSE),"") -> 
F69: =IFERROR(VLOOKUP(A69,'Price Data All Dates'!A:E,IF(Transactions!D69="TD Canadian Bond Index Fund -e (TDB909)",5,IF(Transactions!D69="TD International Fund -e (TDB911)",4,IF(Transactions!D69="TD US Index Fund -e (TDB902)",3,IF(Transactions!D69="TD Canadian Index Fund -e (TDB900)",2,"")))),FALSE),"") -> 
F70: =IFERROR(VLOOKUP(A70,'Price Data All Dates'!A:E,IF(Transactions!D70="TD Canadian Bond Index Fund -e (TDB909)",5,IF(Transactions!D70="TD International Fund -e (TDB911)",4,IF(Transactions!D70="TD US Index Fund -e (TDB902)",3,IF(Transactions!D70="TD Canadian Index Fund -e (TDB900)",2,"")))),FALSE),"") -> 
F71: =IFERROR(VLOOKUP(A71,'Price Data All Dates'!A:E,IF(Transactions!D71="TD Canadian Bond Index Fund -e (TDB909)",5,IF(Transactions!D71="TD International Fund -e (TDB911)",4,IF(Transactions!D71="TD US Index Fund -e (TDB902)",3,IF(Transactions!D71="TD Canadian Index Fund -e (TDB900)",2,"")))),FALSE),"") -> 
F72: =IFERROR(VLOOKUP(A72,'Price Data All Dates'!A:E,IF(Transactions!D72="TD Canadian Bond Index Fund -e (TDB909)",5,IF(Transactions!D72="TD International Fund -e (TDB911)",4,IF(Transactions!D72="TD US Index Fund -e (TDB902)",3,IF(Transactions!D72="TD Canadian Index Fund -e (TDB900)",2,"")))),FALSE),"") -> 
F73: =IFERROR(VLOOKUP(A73,'Price Data All Dates'!A:E,IF(Transactions!D73="TD Canadian Bond Index Fund -e (TDB909)",5,IF(Transactions!D73="TD International Fund -e (TDB911)",4,IF(Transactions!D73="TD US Index Fund -e (TDB902)",3,IF(Transactions!D73="TD Canadian Index Fund -e (TDB900)",2,"")))),FALSE),"") -> 
F74: =IFERROR(VLOOKUP(A74,'Price Data All Dates'!A:E,IF(Transactions!D74="TD Canadian Bond Index Fund -e (TDB909)",5,IF(Transactions!D74="TD International Fund -e (TDB911)",4,IF(Transactions!D74="TD US Index Fund -e (TDB902)",3,IF(Transactions!D74="TD Canadian Index Fund -e (TDB900)",2,"")))),FALSE),"") -> 
F75: =IFERROR(VLOOKUP(A75,'Price Data All Dates'!A:E,IF(Transactions!D75="TD Canadian Bond Index Fund -e (TDB909)",5,IF(Transactions!D75="TD International Fund -e (TDB911)",4,IF(Transactions!D75="TD US Index Fund -e (TDB902)",3,IF(Transactions!D75="TD Canadian Index Fund -e (TDB900)",2,"")))),FALSE),"") -> 
F76: =IFERROR(VLOOKUP(A76,'Price Data All Dates'!A:E,IF(Transactions!D76="TD Canadian Bond Index Fund -e (TDB909)",5,IF(Transactions!D76="TD International Fund -e (TDB911)",4,IF(Transactions!D76="TD US Index Fund -e (TDB902)",3,IF(Transactions!D76="TD Canadian Index Fund -e (TDB900)",2,"")))),FALSE),"") -> 
F77: =IFERROR(VLOOKUP(A77,'Price Data All Dates'!A:E,IF(Transactions!D77="TD Canadian Bond Index Fund -e (TDB909)",5,IF(Transactions!D77="TD International Fund -e (TDB911)",4,IF(Transactions!D77="TD US Index Fund -e (TDB902)",3,IF(Transactions!D77="TD Canadian Index Fund -e (TDB900)",2,"")))),FALSE),"") -> 
F78: =IFERROR(VLOOKUP(A78,'Price Data All Dates'!A:E,IF(Transactions!D78="TD Canadian Bond Index Fund -e (TDB909)",5,IF(Transactions!D78="TD International Fund -e (TDB911)",4,IF(Transactions!D78="TD US Index Fund -e (TDB902)",3,IF(Transactions!D78="TD Canadian Index Fund -e (TDB900)",2,"")))),FALSE),"") -> 
F79: =IFERROR(VLOOKUP(A79,'Price Data All Dates'!A:E,IF(Transactions!D79="TD Canadian Bond Index Fund -e (TDB909)",5,IF(Transactions!D79="TD International Fund -e (TDB911)",4,IF(Transactions!D79="TD US Index Fund -e (TDB902)",3,IF(Transactions!D79="TD Canadian Index Fund -e (TDB900)",2,"")))),FALSE),"") -> 
F80: =IFERROR(VLOOKUP(A80,'Price Data All Dates'!A:E,IF(Transactions!D80="TD Canadian Bond Index Fund -e (TDB909)",5,IF(Transactions!D80="TD International Fund -e (TDB911)",4,IF(Transactions!D80="TD US Index Fund -e (TDB902)",3,IF(Transactions!D80="TD Canadian Index Fund -e (TDB900)",2,"")))),FALSE),"") -> 
F81: =IFERROR(VLOOKUP(A81,'Price Data All Dates'!A:E,IF(Transactions!D81="TD Canadian Bond Index Fund -e (TDB909)",5,IF(Transactions!D81="TD International Fund -e (TDB911)",4,IF(Transactions!D81="TD US Index Fund -e (TDB902)",3,IF(Transactions!D81="TD Canadian Index Fund -e (TDB900)",2,"")))),FALSE),"") -> 
F82: =IFERROR(VLOOKUP(A82,'Price Data All Dates'!A:E,IF(Transactions!D82="TD Canadian Bond Index Fund -e (TDB909)",5,IF(Transactions!D82="TD International Fund -e (TDB911)",4,IF(Transactions!D82="TD US Index Fund -e (TDB902)",3,IF(Transactions!D82="TD Canadian Index Fund -e (TDB900)",2,"")))),FALSE),"") -> 
F83: =IFERROR(VLOOKUP(A83,'Price Data All Dates'!A:E,IF(Transactions!D83="TD Canadian Bond Index Fund -e (TDB909)",5,IF(Transactions!D83="TD International Fund -e (TDB911)",4,IF(Transactions!D83="TD US Index Fund -e (TDB902)",3,IF(Transactions!D83="TD Canadian Index Fund -e (TDB900)",2,"")))),FALSE),"") -> 
F84: =IFERROR(VLOOKUP(A84,'Price Data All Dates'!A:E,IF(Transactions!D84="TD Canadian Bond Index Fund -e (TDB909)",5,IF(Transactions!D84="TD International Fund -e (TDB911)",4,IF(Transactions!D84="TD US Index Fund -e (TDB902)",3,IF(Transactions!D84="TD Canadian Index Fund -e (TDB900)",2,"")))),FALSE),"") -> 
F85: =IFERROR(VLOOKUP(A85,'Price Data All Dates'!A:E,IF(Transactions!D85="TD Canadian Bond Index Fund -e (TDB909)",5,IF(Transactions!D85="TD International Fund -e (TDB911)",4,IF(Transactions!D85="TD US Index Fund -e (TDB902)",3,IF(Transactions!D85="TD Canadian Index Fund -e (TDB900)",2,"")))),FALSE),"") -> 
F86: =IFERROR(VLOOKUP(A86,'Price Data All Dates'!A:E,IF(Transactions!D86="TD Canadian Bond Index Fund -e (TDB909)",5,IF(Transactions!D86="TD International Fund -e (TDB911)",4,IF(Transactions!D86="TD US Index Fund -e (TDB902)",3,IF(Transactions!D86="TD Canadian Index Fund -e (TDB900)",2,"")))),FALSE),"") -> 
F87: =IFERROR(VLOOKUP(A87,'Price Data All Dates'!A:E,IF(Transactions!D87="TD Canadian Bond Index Fund -e (TDB909)",5,IF(Transactions!D87="TD International Fund -e (TDB911)",4,IF(Transactions!D87="TD US Index Fund -e (TDB902)",3,IF(Transactions!D87="TD Canadian Index Fund -e (TDB900)",2,"")))),FALSE),"") -> 
F88: =IFERROR(VLOOKUP(A88,'Price Data All Dates'!A:E,IF(Transactions!D88="TD Canadian Bond Index Fund -e (TDB909)",5,IF(Transactions!D88="TD International Fund -e (TDB911)",4,IF(Transactions!D88="TD US Index Fund -e (TDB902)",3,IF(Transactions!D88="TD Canadian Index Fund -e (TDB900)",2,"")))),FALSE),"") -> 
F89: =IFERROR(VLOOKUP(A89,'Price Data All Dates'!A:E,IF(Transactions!D89="TD Canadian Bond Index Fund -e (TDB909)",5,IF(Transactions!D89="TD International Fund -e (TDB911)",4,IF(Transactions!D89="TD US Index Fund -e (TDB902)",3,IF(Transactions!D89="TD Canadian Index Fund -e (TDB900)",2,"")))),FALSE),"") -> 
F90: =IFERROR(VLOOKUP(A90,'Price Data All Dates'!A:E,IF(Transactions!D90="TD Canadian Bond Index Fund -e (TDB909)",5,IF(Transactions!D90="TD International Fund -e (TDB911)",4,IF(Transactions!D90="TD US Index Fund -e (TDB902)",3,IF(Transactions!D90="TD Canadian Index Fund -e (TDB900)",2,"")))),FALSE),"") -> 
F91: =IFERROR(VLOOKUP(A91,'Price Data All Dates'!A:E,IF(Transactions!D91="TD Canadian Bond Index Fund -e (TDB909)",5,IF(Transactions!D91="TD International Fund -e (TDB911)",4,IF(Transactions!D91="TD US Index Fund -e (TDB902)",3,IF(Transactions!D91="TD Canadian Index Fund -e (TDB900)",2,"")))),FALSE),"") -> 
F92: =IFERROR(VLOOKUP(A92,'Price Data All Dates'!A:E,IF(Transactions!D92="TD Canadian Bond Index Fund -e (TDB909)",5,IF(Transactions!D92="TD International Fund -e (TDB911)",4,IF(Transactions!D92="TD US Index Fund -e (TDB902)",3,IF(Transactions!D92="TD Canadian Index Fund -e (TDB900)",2,"")))),FALSE),"") -> 
F93: =IFERROR(VLOOKUP(A93,'Price Data All Dates'!A:E,IF(Transactions!D93="TD Canadian Bond Index Fund -e (TDB909)",5,IF(Transactions!D93="TD International Fund -e (TDB911)",4,IF(Transactions!D93="TD US Index Fund -e (TDB902)",3,IF(Transactions!D93="TD Canadian Index Fund -e (TDB900)",2,"")))),FALSE),"") -> 
F94: =IFERROR(VLOOKUP(A94,'Price Data All Dates'!A:E,IF(Transactions!D94="TD Canadian Bond Index Fund -e (TDB909)",5,IF(Transactions!D94="TD International Fund -e (TDB911)",4,IF(Transactions!D94="TD US Index Fund -e (TDB902)",3,IF(Transactions!D94="TD Canadian Index Fund -e (TDB900)",2,"")))),FALSE),"") -> 
F95: =IFERROR(VLOOKUP(A95,'Price Data All Dates'!A:E,IF(Transactions!D95="TD Canadian Bond Index Fund -e (TDB909)",5,IF(Transactions!D95="TD International Fund -e (TDB911)",4,IF(Transactions!D95="TD US Index Fund -e (TDB902)",3,IF(Transactions!D95="TD Canadian Index Fund -e (TDB900)",2,"")))),FALSE),"") -> 
F96: =IFERROR(VLOOKUP(A96,'Price Data All Dates'!A:E,IF(Transactions!D96="TD Canadian Bond Index Fund -e (TDB909)",5,IF(Transactions!D96="TD International Fund -e (TDB911)",4,IF(Transactions!D96="TD US Index Fund -e (TDB902)",3,IF(Transactions!D96="TD Canadian Index Fund -e (TDB900)",2,"")))),FALSE),"") -> 
F97: =IFERROR(VLOOKUP(A97,'Price Data All Dates'!A:E,IF(Transactions!D97="TD Canadian Bond Index Fund -e (TDB909)",5,IF(Transactions!D97="TD International Fund -e (TDB911)",4,IF(Transactions!D97="TD US Index Fund -e (TDB902)",3,IF(Transactions!D97="TD Canadian Index Fund -e (TDB900)",2,"")))),FALSE),"") -> 
F98: =IFERROR(VLOOKUP(A98,'Price Data All Dates'!A:E,IF(Transactions!D98="TD Canadian Bond Index Fund -e (TDB909)",5,IF(Transactions!D98="TD International Fund -e (TDB911)",4,IF(Transactions!D98="TD US Index Fund -e (TDB902)",3,IF(Transactions!D98="TD Canadian Index Fund -e (TDB900)",2,"")))),FALSE),"") -> 
F99: =IFERROR(VLOOKUP(A99,'Price Data All Dates'!A:E,IF(Transactions!D99="TD Canadian Bond Index Fund -e (TDB909)",5,IF(Transactions!D99="TD International Fund -e (TDB911)",4,IF(Transactions!D99="TD US Index Fund -e (TDB902)",3,IF(Transactions!D99="TD Canadian Index Fund -e (TDB900)",2,"")))),FALSE),"") -> 
F100: =IFERROR(VLOOKUP(A100,'Price Data All Dates'!A:E,IF(Transactions!D100="TD Canadian Bond Index Fund -e (TDB909)",5,IF(Transactions!D100="TD International Fund -e (TDB911)",4,IF(Transactions!D100="TD US Index Fund -e (TDB902)",3,IF(Transactions!D100="TD Canadian Index Fund -e (TDB900)",2,"")))),FALSE),"") -> 
F101: =IFERROR(VLOOKUP(A101,'Price Data All Dates'!A:E,IF(Transactions!D101="TD Canadian Bond Index Fund -e (TDB909)",5,IF(Transactions!D101="TD International Fund -e (TDB911)",4,IF(Transactions!D101="TD US Index Fund -e (TDB902)",3,IF(Transactions!D101="TD Canadian Index Fund -e (TDB900)",2,"")))),FALSE),"") -> 
F102: =IFERROR(VLOOKUP(A102,'Price Data All Dates'!A:E,IF(Transactions!D102="TD Canadian Bond Index Fund -e (TDB909)",5,IF(Transactions!D102="TD International Fund -e (TDB911)",4,IF(Transactions!D102="TD US Index Fund -e (TDB902)",3,IF(Transactions!D102="TD Canadian Index Fund -e (TDB900)",2,"")))),FALSE),"") -> 
F103: =IFERROR(VLOOKUP(A103,'Price Data All Dates'!A:E,IF(Transactions!D103="TD Canadian Bond Index Fund -e (TDB909)",5,IF(Transactions!D103="TD International Fund -e (TDB911)",4,IF(Transactions!D103="TD US Index Fund -e (TDB902)",3,IF(Transactions!D103="TD Canadian Index Fund -e (TDB900)",2,"")))),FALSE),"") -> 
F104: =IFERROR(VLOOKUP(A104,'Price Data All Dates'!A:E,IF(Transactions!D104="TD Canadian Bond Index Fund -e (TDB909)",5,IF(Transactions!D104="TD International Fund -e (TDB911)",4,IF(Transactions!D104="TD US Index Fund -e (TDB902)",3,IF(Transactions!D104="TD Canadian Index Fund -e (TDB900)",2,"")))),FALSE),"") -> 
F105: =IFERROR(VLOOKUP(A105,'Price Data All Dates'!A:E,IF(Transactions!D105="TD Canadian Bond Index Fund -e (TDB909)",5,IF(Transactions!D105="TD International Fund -e (TDB911)",4,IF(Transactions!D105="TD US Index Fund -e (TDB902)",3,IF(Transactions!D105="TD Canadian Index Fund -e (TDB900)",2,"")))),FALSE),"") -> 
F106: =IFERROR(VLOOKUP(A106,'Price Data All Dates'!A:E,IF(Transactions!D106="TD Canadian Bond Index Fund -e (TDB909)",5,IF(Transactions!D106="TD International Fund -e (TDB911)",4,IF(Transactions!D106="TD US Index Fund -e (TDB902)",3,IF(Transactions!D106="TD Canadian Index Fund -e (TDB900)",2,"")))),FALSE),"") -> 
F107: =IFERROR(VLOOKUP(A107,'Price Data All Dates'!A:E,IF(Transactions!D107="TD Canadian Bond Index Fund -e (TDB909)",5,IF(Transactions!D107="TD International Fund -e (TDB911)",4,IF(Transactions!D107="TD US Index Fund -e (TDB902)",3,IF(Transactions!D107="TD Canadian Index Fund -e (TDB900)",2,"")))),FALSE),"") -> 
F108: =IFERROR(VLOOKUP(A108,'Price Data All Dates'!A:E,IF(Transactions!D108="TD Canadian Bond Index Fund -e (TDB909)",5,IF(Transactions!D108="TD International Fund -e (TDB911)",4,IF(Transactions!D108="TD US Index Fund -e (TDB902)",3,IF(Transactions!D108="TD Canadian Index Fund -e (TDB900)",2,"")))),FALSE),"") -> 
F109: =IFERROR(VLOOKUP(A109,'Price Data All Dates'!A:E,IF(Transactions!D109="TD Canadian Bond Index Fund -e (TDB909)",5,IF(Transactions!D109="TD International Fund -e (TDB911)",4,IF(Transactions!D109="TD US Index Fund -e (TDB902)",3,IF(Transactions!D109="TD Canadian Index Fund -e (TDB900)",2,"")))),FALSE),"") -> 
F110: =IFERROR(VLOOKUP(A110,'Price Data All Dates'!A:E,IF(Transactions!D110="TD Canadian Bond Index Fund -e (TDB909)",5,IF(Transactions!D110="TD International Fund -e (TDB911)",4,IF(Transactions!D110="TD US Index Fund -e (TDB902)",3,IF(Transactions!D110="TD Canadian Index Fund -e (TDB900)",2,"")))),FALSE),"") -> 
F111: =IFERROR(VLOOKUP(A111,'Price Data All Dates'!A:E,IF(Transactions!D111="TD Canadian Bond Index Fund -e (TDB909)",5,IF(Transactions!D111="TD International Fund -e (TDB911)",4,IF(Transactions!D111="TD US Index Fund -e (TDB902)",3,IF(Transactions!D111="TD Canadian Index Fund -e (TDB900)",2,"")))),FALSE),"") -> 
F112: =IFERROR(VLOOKUP(A112,'Price Data All Dates'!A:E,IF(Transactions!D112="TD Canadian Bond Index Fund -e (TDB909)",5,IF(Transactions!D112="TD International Fund -e (TDB911)",4,IF(Transactions!D112="TD US Index Fund -e (TDB902)",3,IF(Transactions!D112="TD Canadian Index Fund -e (TDB900)",2,"")))),FALSE),"") -> 
F113: =IFERROR(VLOOKUP(A113,'Price Data All Dates'!A:E,IF(Transactions!D113="TD Canadian Bond Index Fund -e (TDB909)",5,IF(Transactions!D113="TD International Fund -e (TDB911)",4,IF(Transactions!D113="TD US Index Fund -e (TDB902)",3,IF(Transactions!D113="TD Canadian Index Fund -e (TDB900)",2,"")))),FALSE),"") -> 
F114: =IFERROR(VLOOKUP(A114,'Price Data All Dates'!A:E,IF(Transactions!D114="TD Canadian Bond Index Fund -e (TDB909)",5,IF(Transactions!D114="TD International Fund -e (TDB911)",4,IF(Transactions!D114="TD US Index Fund -e (TDB902)",3,IF(Transactions!D114="TD Canadian Index Fund -e (TDB900)",2,"")))),FALSE),"") -> 
F115: =IFERROR(VLOOKUP(A115,'Price Data All Dates'!A:E,IF(Transactions!D115="TD Canadian Bond Index Fund -e (TDB909)",5,IF(Transactions!D115="TD International Fund -e (TDB911)",4,IF(Transactions!D115="TD US Index Fund -e (TDB902)",3,IF(Transactions!D115="TD Canadian Index Fund -e (TDB900)",2,"")))),FALSE),"") -> 
F116: =IFERROR(VLOOKUP(A116,'Price Data All Dates'!A:E,IF(Transactions!D116="TD Canadian Bond Index Fund -e (TDB909)",5,IF(Transactions!D116="TD International Fund -e (TDB911)",4,IF(Transactions!D116="TD US Index Fund -e (TDB902)",3,IF(Transactions!D116="TD Canadian Index Fund -e (TDB900)",2,"")))),FALSE),"") -> 
F117: =IFERROR(VLOOKUP(A117,'Price Data All Dates'!A:E,IF(Transactions!D117="TD Canadian Bond Index Fund -e (TDB909)",5,IF(Transactions!D117="TD International Fund -e (TDB911)",4,IF(Transactions!D117="TD US Index Fund -e (TDB902)",3,IF(Transactions!D117="TD Canadian Index Fund -e (TDB900)",2,"")))),FALSE),"") -> 
F118: =IFERROR(VLOOKUP(A118,'Price Data All Dates'!A:E,IF(Transactions!D118="TD Canadian Bond Index Fund -e (TDB909)",5,IF(Transactions!D118="TD International Fund -e (TDB911)",4,IF(Transactions!D118="TD US Index Fund -e (TDB902)",3,IF(Transactions!D118="TD Canadian Index Fund -e (TDB900)",2,"")))),FALSE),"") -> 
F119: =IFERROR(VLOOKUP(A119,'Price Data All Dates'!A:E,IF(Transactions!D119="TD Canadian Bond Index Fund -e (TDB909)",5,IF(Transactions!D119="TD International Fund -e (TDB911)",4,IF(Transactions!D119="TD US Index Fund -e (TDB902)",3,IF(Transactions!D119="TD Canadian Index Fund -e (TDB900)",2,"")))),FALSE),"") -> 
F120: =IFERROR(VLOOKUP(A120,'Price Data All Dates'!A:E,IF(Transactions!D120="TD Canadian Bond Index Fund -e (TDB909)",5,IF(Transactions!D120="TD International Fund -e (TDB911)",4,IF(Transactions!D120="TD US Index Fund -e (TDB902)",3,IF(Transactions!D120="TD Canadian Index Fund -e (TDB900)",2,"")))),FALSE),"") -> 
F121: =IFERROR(VLOOKUP(A121,'Price Data All Dates'!A:E,IF(Transactions!D121="TD Canadian Bond Index Fund -e (TDB909)",5,IF(Transactions!D121="TD International Fund -e (TDB911)",4,IF(Transactions!D121="TD US Index Fund -e (TDB902)",3,IF(Transactions!D121="TD Canadian Index Fund -e (TDB900)",2,"")))),FALSE),"") -> 
F122: =IFERROR(VLOOKUP(A122,'Price Data All Dates'!A:E,IF(Transactions!D122="TD Canadian Bond Index Fund -e (TDB909)",5,IF(Transactions!D122="TD International Fund -e (TDB911)",4,IF(Transactions!D122="TD US Index Fund -e (TDB902)",3,IF(Transactions!D122="TD Canadian Index Fund -e (TDB900)",2,"")))),FALSE),"") -> 
F123: =IFERROR(VLOOKUP(A123,'Price Data All Dates'!A:E,IF(Transactions!D123="TD Canadian Bond Index Fund -e (TDB909)",5,IF(Transactions!D123="TD International Fund -e (TDB911)",4,IF(Transactions!D123="TD US Index Fund -e (TDB902)",3,IF(Transactions!D123="TD Canadian Index Fund -e (TDB900)",2,"")))),FALSE),"") -> 
F124: =IFERROR(VLOOKUP(A124,'Price Data All Dates'!A:E,IF(Transactions!D124="TD Canadian Bond Index Fund -e (TDB909)",5,IF(Transactions!D124="TD International Fund -e (TDB911)",4,IF(Transactions!D124="TD US Index Fund -e (TDB902)",3,IF(Transactions!D124="TD Canadian Index Fund -e (TDB900)",2,"")))),FALSE),"") -> 
F125: =IFERROR(VLOOKUP(A125,'Price Data All Dates'!A:E,IF(Transactions!D125="TD Canadian Bond Index Fund -e (TDB909)",5,IF(Transactions!D125="TD International Fund -e (TDB911)",4,IF(Transactions!D125="TD US Index Fund -e (TDB902)",3,IF(Transactions!D125="TD Canadian Index Fund -e (TDB900)",2,"")))),FALSE),"") -> 
F126: =IFERROR(VLOOKUP(A126,'Price Data All Dates'!A:E,IF(Transactions!D126="TD Canadian Bond Index Fund -e (TDB909)",5,IF(Transactions!D126="TD International Fund -e (TDB911)",4,IF(Transactions!D126="TD US Index Fund -e (TDB902)",3,IF(Transactions!D126="TD Canadian Index Fund -e (TDB900)",2,"")))),FALSE),"") -> 
F127: =IFERROR(VLOOKUP(A127,'Price Data All Dates'!A:E,IF(Transactions!D127="TD Canadian Bond Index Fund -e (TDB909)",5,IF(Transactions!D127="TD International Fund -e (TDB911)",4,IF(Transactions!D127="TD US Index Fund -e (TDB902)",3,IF(Transactions!D127="TD Canadian Index Fund -e (TDB900)",2,"")))),FALSE),"") -> 
F128: =IFERROR(VLOOKUP(A128,'Price Data All Dates'!A:E,IF(Transactions!D128="TD Canadian Bond Index Fund -e (TDB909)",5,IF(Transactions!D128="TD International Fund -e (TDB911)",4,IF(Transactions!D128="TD US Index Fund -e (TDB902)",3,IF(Transactions!D128="TD Canadian Index Fund -e (TDB900)",2,"")))),FALSE),"") -> 
F129: =IFERROR(VLOOKUP(A129,'Price Data All Dates'!A:E,IF(Transactions!D129="TD Canadian Bond Index Fund -e (TDB909)",5,IF(Transactions!D129="TD International Fund -e (TDB911)",4,IF(Transactions!D129="TD US Index Fund -e (TDB902)",3,IF(Transactions!D129="TD Canadian Index Fund -e (TDB900)",2,"")))),FALSE),"") -> 
F130: =IFERROR(VLOOKUP(A130,'Price Data All Dates'!A:E,IF(Transactions!D130="TD Canadian Bond Index Fund -e (TDB909)",5,IF(Transactions!D130="TD International Fund -e (TDB911)",4,IF(Transactions!D130="TD US Index Fund -e (TDB902)",3,IF(Transactions!D130="TD Canadian Index Fund -e (TDB900)",2,"")))),FALSE),"") -> 
F131: =IFERROR(VLOOKUP(A131,'Price Data All Dates'!A:E,IF(Transactions!D131="TD Canadian Bond Index Fund -e (TDB909)",5,IF(Transactions!D131="TD International Fund -e (TDB911)",4,IF(Transactions!D131="TD US Index Fund -e (TDB902)",3,IF(Transactions!D131="TD Canadian Index Fund -e (TDB900)",2,"")))),FALSE),"") ->  | G131: =IF(ISNUMBER(E131*F131),E131*F131,"") -> 
F132: =IFERROR(VLOOKUP(A132,'Price Data All Dates'!A:E,IF(Transactions!D132="TD Canadian Bond Index Fund -e (TDB909)",5,IF(Transactions!D132="TD International Fund -e (TDB911)",4,IF(Transactions!D132="TD US Index Fund -e (TDB902)",3,IF(Transactions!D132="TD Canadian Index Fund -e (TDB900)",2,"")))),FALSE),"") -> 
F133: =IFERROR(VLOOKUP(A133,'Price Data All Dates'!A:E,IF(Transactions!D133="TD Canadian Bond Index Fund -e (TDB909)",5,IF(Transactions!D133="TD International Fund -e (TDB911)",4,IF(Transactions!D133="TD US Index Fund -e (TDB902)",3,IF(Transactions!D133="TD Canadian Index Fund -e (TDB900)",2,"")))),FALSE),"") -> 
F134: =IFERROR(VLOOKUP(A134,'Price Data All Dates'!A:E,IF(Transactions!D134="TD Canadian Bond Index Fund -e (TDB909)",5,IF(Transactions!D134="TD International Fund -e (TDB911)",4,IF(Transactions!D134="TD US Index Fund -e (TDB902)",3,IF(Transactions!D134="TD Canadian Index Fund -e (TDB900)",2,"")))),FALSE),"") -> 
F135: =IFERROR(VLOOKUP(A135,'Price Data All Dates'!A:E,IF(Transactions!D135="TD Canadian Bond Index Fund -e (TDB909)",5,IF(Transactions!D135="TD International Fund -e (TDB911)",4,IF(Transactions!D135="TD US Index Fund -e (TDB902)",3,IF(Transactions!D135="TD Canadian Index Fund -e (TDB900)",2,"")))),FALSE),"") -> 
F136: =IFERROR(VLOOKUP(A136,'Price Data All Dates'!A:E,IF(Transactions!D136="TD Canadian Bond Index Fund -e (TDB909)",5,IF(Transactions!D136="TD International Fund -e (TDB911)",4,IF(Transactions!D136="TD US Index Fund -e (TDB902)",3,IF(Transactions!D136="TD Canadian Index Fund -e (TDB900)",2,"")))),FALSE),"") -> 
F137: =IFERROR(VLOOKUP(A137,'Price Data All Dates'!A:E,IF(Transactions!D137="TD Canadian Bond Index Fund -e (TDB909)",5,IF(Transactions!D137="TD International Fund -e (TDB911)",4,IF(Transactions!D137="TD US Index Fund -e (TDB902)",3,IF(Transactions!D137="TD Canadian Index Fund -e (TDB900)",2,"")))),FALSE),"") -> 
F138: =IFERROR(VLOOKUP(A138,'Price Data All Dates'!A:E,IF(Transactions!D138="TD Canadian Bond Index Fund -e (TDB909)",5,IF(Transactions!D138="TD International Fund -e (TDB911)",4,IF(Transactions!D138="TD US Index Fund -e (TDB902)",3,IF(Transactions!D138="TD Canadian Index Fund -e (TDB900)",2,"")))),FALSE),"") -> 
F139: =IFERROR(VLOOKUP(A139,'Price Data All Dates'!A:E,IF(Transactions!D139="TD Canadian Bond Index Fund -e (TDB909)",5,IF(Transactions!D139="TD International Fund -e (TDB911)",4,IF(Transactions!D139="TD US Index Fund -e (TDB902)",3,IF(Transactions!D139="TD Canadian Index Fund -e (TDB900)",2,"")))),FALSE),"") -> 
F140: =IFERROR(VLOOKUP(A140,'Price Data All Dates'!A:E,IF(Transactions!D140="TD Canadian Bond Index Fund -e (TDB909)",5,IF(Transactions!D140="TD International Fund -e (TDB911)",4,IF(Transactions!D140="TD US Index Fund -e (TDB902)",3,IF(Transactions!D140="TD Canadian Index Fund -e (TDB900)",2,"")))),FALSE),"") -> 
F141: =IFERROR(VLOOKUP(A141,'Price Data All Dates'!A:E,IF(Transactions!D141="TD Canadian Bond Index Fund -e (TDB909)",5,IF(Transactions!D141="TD International Fund -e (TDB911)",4,IF(Transactions!D141="TD US Index Fund -e (TDB902)",3,IF(Transactions!D141="TD Canadian Index Fund -e (TDB900)",2,"")))),FALSE),"") -> 
F142: =IFERROR(VLOOKUP(A142,'Price Data All Dates'!A:E,IF(Transactions!D142="TD Canadian Bond Index Fund -e (TDB909)",5,IF(Transactions!D142="TD International Fund -e (TDB911)",4,IF(Transactions!D142="TD US Index Fund -e (TDB902)",3,IF(Transactions!D142="TD Canadian Index Fund -e (TDB900)",2,"")))),FALSE),"") -> 
F143: =IFERROR(VLOOKUP(A143,'Price Data All Dates'!A:E,IF(Transactions!D143="TD Canadian Bond Index Fund -e (TDB909)",5,IF(Transactions!D143="TD International Fund -e (TDB911)",4,IF(Transactions!D143="TD US Index Fund -e (TDB902)",3,IF(Transactions!D143="TD Canadian Index Fund -e (TDB900)",2,"")))),FALSE),"") -> 
F144: =IFERROR(VLOOKUP(A144,'Price Data All Dates'!A:E,IF(Transactions!D144="TD Canadian Bond Index Fund -e (TDB909)",5,IF(Transactions!D144="TD International Fund -e (TDB911)",4,IF(Transactions!D144="TD US Index Fund -e (TDB902)",3,IF(Transactions!D144="TD Canadian Index Fund -e (TDB900)",2,"")))),FALSE),"") -> 
F145: =IFERROR(VLOOKUP(A145,'Price Data All Dates'!A:E,IF(Transactions!D145="TD Canadian Bond Index Fund -e (TDB909)",5,IF(Transactions!D145="TD International Fund -e (TDB911)",4,IF(Transactions!D145="TD US Index Fund -e (TDB902)",3,IF(Transactions!D145="TD Canadian Index Fund -e (TDB900)",2,"")))),FALSE),"") -> 
F146: =IFERROR(VLOOKUP(A146,'Price Data All Dates'!A:E,IF(Transactions!D146="TD Canadian Bond Index Fund -e (TDB909)",5,IF(Transactions!D146="TD International Fund -e (TDB911)",4,IF(Transactions!D146="TD US Index Fund -e (TDB902)",3,IF(Transactions!D146="TD Canadian Index Fund -e (TDB900)",2,"")))),FALSE),"") -> 
F147: =IFERROR(VLOOKUP(A147,'Price Data All Dates'!A:E,IF(Transactions!D147="TD Canadian Bond Index Fund -e (TDB909)",5,IF(Transactions!D147="TD International Fund -e (TDB911)",4,IF(Transactions!D147="TD US Index Fund -e (TDB902)",3,IF(Transactions!D147="TD Canadian Index Fund -e (TDB900)",2,"")))),FALSE),"") -> 
F148: =IFERROR(VLOOKUP(A148,'Price Data All Dates'!A:E,IF(Transactions!D148="TD Canadian Bond Index Fund -e (TDB909)",5,IF(Transactions!D148="TD International Fund -e (TDB911)",4,IF(Transactions!D148="TD US Index Fund -e (TDB902)",3,IF(Transactions!D148="TD Canadian Index Fund -e (TDB900)",2,"")))),FALSE),"") -> 
F149: =IFERROR(VLOOKUP(A149,'Price Data All Dates'!A:E,IF(Transactions!D149="TD Canadian Bond Index Fund -e (TDB909)",5,IF(Transactions!D149="TD International Fund -e (TDB911)",4,IF(Transactions!D149="TD US Index Fund -e (TDB902)",3,IF(Transactions!D149="TD Canadian Index Fund -e (TDB900)",2,"")))),FALSE),"") -> 
F150: =IFERROR(VLOOKUP(A150,'Price Data All Dates'!A:E,IF(Transactions!D150="TD Canadian Bond Index Fund -e (TDB909)",5,IF(Transactions!D150="TD International Fund -e (TDB911)",4,IF(Transactions!D150="TD US Index Fund -e (TDB902)",3,IF(Transactions!D150="TD Canadian Index Fund -e (TDB900)",2,"")))),FALSE),"") -> 
F151: =IFERROR(VLOOKUP(A151,'Price Data All Dates'!A:E,IF(Transactions!D151="TD Canadian Bond Index Fund -e (TDB909)",5,IF(Transactions!D151="TD International Fund -e (TDB911)",4,IF(Transactions!D151="TD US Index Fund -e (TDB902)",3,IF(Transactions!D151="TD Canadian Index Fund -e (TDB900)",2,"")))),FALSE),"") -> 
F152: =IFERROR(VLOOKUP(A152,'Price Data All Dates'!A:E,IF(Transactions!D152="TD Canadian Bond Index Fund -e (TDB909)",5,IF(Transactions!D152="TD International Fund -e (TDB911)",4,IF(Transactions!D152="TD US Index Fund -e (TDB902)",3,IF(Transactions!D152="TD Canadian Index Fund -e (TDB900)",2,"")))),FALSE),"") -> 
F153: =IFERROR(VLOOKUP(A153,'Price Data All Dates'!A:E,IF(Transactions!D153="TD Canadian Bond Index Fund -e (TDB909)",5,IF(Transactions!D153="TD International Fund -e (TDB911)",4,IF(Transactions!D153="TD US Index Fund -e (TDB902)",3,IF(Transactions!D153="TD Canadian Index Fund -e (TDB900)",2,"")))),FALSE),"") -> 
F154: =IFERROR(VLOOKUP(A154,'Price Data All Dates'!A:E,IF(Transactions!D154="TD Canadian Bond Index Fund -e (TDB909)",5,IF(Transactions!D154="TD International Fund -e (TDB911)",4,IF(Transactions!D154="TD US Index Fund -e (TDB902)",3,IF(Transactions!D154="TD Canadian Index Fund -e (TDB900)",2,"")))),FALSE),"") -> 
F155: =IFERROR(VLOOKUP(A155,'Price Data All Dates'!A:E,IF(Transactions!D155="TD Canadian Bond Index Fund -e (TDB909)",5,IF(Transactions!D155="TD International Fund -e (TDB911)",4,IF(Transactions!D155="TD US Index Fund -e (TDB902)",3,IF(Transactions!D155="TD Canadian Index Fund -e (TDB900)",2,"")))),FALSE),"") -> 
F156: =IFERROR(VLOOKUP(A156,'Price Data All Dates'!A:E,IF(Transactions!D156="TD Canadian Bond Index Fund -e (TDB909)",5,IF(Transactions!D156="TD International Fund -e (TDB911)",4,IF(Transactions!D156="TD US Index Fund -e (TDB902)",3,IF(Transactions!D156="TD Canadian Index Fund -e (TDB900)",2,"")))),FALSE),"") -> 
F157: =IFERROR(VLOOKUP(A157,'Price Data All Dates'!A:E,IF(Transactions!D157="TD Canadian Bond Index Fund -e (TDB909)",5,IF(Transactions!D157="TD International Fund -e (TDB911)",4,IF(Transactions!D157="TD US Index Fund -e (TDB902)",3,IF(Transactions!D157="TD Canadian Index Fund -e (TDB900)",2,"")))),FALSE),"") -> 
F158: =IFERROR(VLOOKUP(A158,'Price Data All Dates'!A:E,IF(Transactions!D158="TD Canadian Bond Index Fund -e (TDB909)",5,IF(Transactions!D158="TD International Fund -e (TDB911)",4,IF(Transactions!D158="TD US Index Fund -e (TDB902)",3,IF(Transactions!D158="TD Canadian Index Fund -e (TDB900)",2,"")))),FALSE),"") -> 
F159: =IFERROR(VLOOKUP(A159,'Price Data All Dates'!A:E,IF(Transactions!D159="TD Canadian Bond Index Fund -e (TDB909)",5,IF(Transactions!D159="TD International Fund -e (TDB911)",4,IF(Transactions!D159="TD US Index Fund -e (TDB902)",3,IF(Transactions!D159="TD Canadian Index Fund -e (TDB900)",2,"")))),FALSE),"") -> 
F160: =IFERROR(VLOOKUP(A160,'Price Data All Dates'!A:E,IF(Transactions!D160="TD Canadian Bond Index Fund -e (TDB909)",5,IF(Transactions!D160="TD International Fund -e (TDB911)",4,IF(Transactions!D160="TD US Index Fund -e (TDB902)",3,IF(Transactions!D160="TD Canadian Index Fund -e (TDB900)",2,"")))),FALSE),"") -> 
F161: =IFERROR(VLOOKUP(A161,'Price Data All Dates'!A:E,IF(Transactions!D161="TD Canadian Bond Index Fund -e (TDB909)",5,IF(Transactions!D161="TD International Fund -e (TDB911)",4,IF(Transactions!D161="TD US Index Fund -e (TDB902)",3,IF(Transactions!D161="TD Canadian Index Fund -e (TDB900)",2,"")))),FALSE),"") -> 
F162: =IFERROR(VLOOKUP(A162,'Price Data All Dates'!A:E,IF(Transactions!D162="TD Canadian Bond Index Fund -e (TDB909)",5,IF(Transactions!D162="TD International Fund -e (TDB911)",4,IF(Transactions!D162="TD US Index Fund -e (TDB902)",3,IF(Transactions!D162="TD Canadian Index Fund -e (TDB900)",2,"")))),FALSE),"") -> 
F163: =IFERROR(VLOOKUP(A163,'Price Data All Dates'!A:E,IF(Transactions!D163="TD Canadian Bond Index Fund -e (TDB909)",5,IF(Transactions!D163="TD International Fund -e (TDB911)",4,IF(Transactions!D163="TD US Index Fund -e (TDB902)",3,IF(Transactions!D163="TD Canadian Index Fund -e (TDB900)",2,"")))),FALSE),"") -> 
F164: =IFERROR(VLOOKUP(A164,'Price Data All Dates'!A:E,IF(Transactions!D164="TD Canadian Bond Index Fund -e (TDB909)",5,IF(Transactions!D164="TD International Fund -e (TDB911)",4,IF(Transactions!D164="TD US Index Fund -e (TDB902)",3,IF(Transactions!D164="TD Canadian Index Fund -e (TDB900)",2,"")))),FALSE),"") -> 
F165: =IFERROR(VLOOKUP(A165,'Price Data All Dates'!A:E,IF(Transactions!D165="TD Canadian Bond Index Fund -e (TDB909)",5,IF(Transactions!D165="TD International Fund -e (TDB911)",4,IF(Transactions!D165="TD US Index Fund -e (TDB902)",3,IF(Transactions!D165="TD Canadian Index Fund -e (TDB900)",2,"")))),FALSE),"") -> 
F166: =IFERROR(VLOOKUP(A166,'Price Data All Dates'!A:E,IF(Transactions!D166="TD Canadian Bond Index Fund -e (TDB909)",5,IF(Transactions!D166="TD International Fund -e (TDB911)",4,IF(Transactions!D166="TD US Index Fund -e (TDB902)",3,IF(Transactions!D166="TD Canadian Index Fund -e (TDB900)",2,"")))),FALSE),"") -> 
F167: =IFERROR(VLOOKUP(A167,'Price Data All Dates'!A:E,IF(Transactions!D167="TD Canadian Bond Index Fund -e (TDB909)",5,IF(Transactions!D167="TD International Fund -e (TDB911)",4,IF(Transactions!D167="TD US Index Fund -e (TDB902)",3,IF(Transactions!D167="TD Canadian Index Fund -e (TDB900)",2,"")))),FALSE),"") -> 
F168: =IFERROR(VLOOKUP(A168,'Price Data All Dates'!A:E,IF(Transactions!D168="TD Canadian Bond Index Fund -e (TDB909)",5,IF(Transactions!D168="TD International Fund -e (TDB911)",4,IF(Transactions!D168="TD US Index Fund -e (TDB902)",3,IF(Transactions!D168="TD Canadian Index Fund -e (TDB900)",2,"")))),FALSE),"") -> 
F169: =IFERROR(VLOOKUP(A169,'Price Data All Dates'!A:E,IF(Transactions!D169="TD Canadian Bond Index Fund -e (TDB909)",5,IF(Transactions!D169="TD International Fund -e (TDB911)",4,IF(Transactions!D169="TD US Index Fund -e (TDB902)",3,IF(Transactions!D169="TD Canadian Index Fund -e (TDB900)",2,"")))),FALSE),"") -> 
F170: =IFERROR(VLOOKUP(A170,'Price Data All Dates'!A:E,IF(Transactions!D170="TD Canadian Bond Index Fund -e (TDB909)",5,IF(Transactions!D170="TD International Fund -e (TDB911)",4,IF(Transactions!D170="TD US Index Fund -e (TDB902)",3,IF(Transactions!D170="TD Canadian Index Fund -e (TDB900)",2,"")))),FALSE),"") -> 
F171: =IFERROR(VLOOKUP(A171,'Price Data All Dates'!A:E,IF(Transactions!D171="TD Canadian Bond Index Fund -e (TDB909)",5,IF(Transactions!D171="TD International Fund -e (TDB911)",4,IF(Transactions!D171="TD US Index Fund -e (TDB902)",3,IF(Transactions!D171="TD Canadian Index Fund -e (TDB900)",2,"")))),FALSE),"") -> 
F172: =IFERROR(VLOOKUP(A172,'Price Data All Dates'!A:E,IF(Transactions!D172="TD Canadian Bond Index Fund -e (TDB909)",5,IF(Transactions!D172="TD International Fund -e (TDB911)",4,IF(Transactions!D172="TD US Index Fund -e (TDB902)",3,IF(Transactions!D172="TD Canadian Index Fund -e (TDB900)",2,"")))),FALSE),"") -> 
F173: =IFERROR(VLOOKUP(A173,'Price Data All Dates'!A:E,IF(Transactions!D173="TD Canadian Bond Index Fund -e (TDB909)",5,IF(Transactions!D173="TD International Fund -e (TDB911)",4,IF(Transactions!D173="TD US Index Fund -e (TDB902)",3,IF(Transactions!D173="TD Canadian Index Fund -e (TDB900)",2,"")))),FALSE),"") -> 
F174: =IFERROR(VLOOKUP(A174,'Price Data All Dates'!A:E,IF(Transactions!D174="TD Canadian Bond Index Fund -e (TDB909)",5,IF(Transactions!D174="TD International Fund -e (TDB911)",4,IF(Transactions!D174="TD US Index Fund -e (TDB902)",3,IF(Transactions!D174="TD Canadian Index Fund -e (TDB900)",2,"")))),FALSE),"") -> 
F175: =IFERROR(VLOOKUP(A175,'Price Data All Dates'!A:E,IF(Transactions!D175="TD Canadian Bond Index Fund -e (TDB909)",5,IF(Transactions!D175="TD International Fund -e (TDB911)",4,IF(Transactions!D175="TD US Index Fund -e (TDB902)",3,IF(Transactions!D175="TD Canadian Index Fund -e (TDB900)",2,"")))),FALSE),"") -> 
F176: =IFERROR(VLOOKUP(A176,'Price Data All Dates'!A:E,IF(Transactions!D176="TD Canadian Bond Index Fund -e (TDB909)",5,IF(Transactions!D176="TD International Fund -e (TDB911)",4,IF(Transactions!D176="TD US Index Fund -e (TDB902)",3,IF(Transactions!D176="TD Canadian Index Fund -e (TDB900)",2,"")))),FALSE),"") -> 
F177: =IFERROR(VLOOKUP(A177,'Price Data All Dates'!A:E,IF(Transactions!D177="TD Canadian Bond Index Fund -e (TDB909)",5,IF(Transactions!D177="TD International Fund -e (TDB911)",4,IF(Transactions!D177="TD US Index Fund -e (TDB902)",3,IF(Transactions!D177="TD Canadian Index Fund -e (TDB900)",2,"")))),FALSE),"") -> 
F178: =IFERROR(VLOOKUP(A178,'Price Data All Dates'!A:E,IF(Transactions!D178="TD Canadian Bond Index Fund -e (TDB909)",5,IF(Transactions!D178="TD International Fund -e (TDB911)",4,IF(Transactions!D178="TD US Index Fund -e (TDB902)",3,IF(Transactions!D178="TD Canadian Index Fund -e (TDB900)",2,"")))),FALSE),"") -> 
F179: =IFERROR(VLOOKUP(A179,'Price Data All Dates'!A:E,IF(Transactions!D179="TD Canadian Bond Index Fund -e (TDB909)",5,IF(Transactions!D179="TD International Fund -e (TDB911)",4,IF(Transactions!D179="TD US Index Fund -e (TDB902)",3,IF(Transactions!D179="TD Canadian Index Fund -e (TDB900)",2,"")))),FALSE),"") -> 
F180: =IFERROR(VLOOKUP(A180,'Price Data All Dates'!A:E,IF(Transactions!D180="TD Canadian Bond Index Fund -e (TDB909)",5,IF(Transactions!D180="TD International Fund -e (TDB911)",4,IF(Transactions!D180="TD US Index Fund -e (TDB902)",3,IF(Transactions!D180="TD Canadian Index Fund -e (TDB900)",2,"")))),FALSE),"") -> 
F181: =IFERROR(VLOOKUP(A181,'Price Data All Dates'!A:E,IF(Transactions!D181="TD Canadian Bond Index Fund -e (TDB909)",5,IF(Transactions!D181="TD International Fund -e (TDB911)",4,IF(Transactions!D181="TD US Index Fund -e (TDB902)",3,IF(Transactions!D181="TD Canadian Index Fund -e (TDB900)",2,"")))),FALSE),"") -> 
F182: =IFERROR(VLOOKUP(A182,'Price Data All Dates'!A:E,IF(Transactions!D182="TD Canadian Bond Index Fund -e (TDB909)",5,IF(Transactions!D182="TD International Fund -e (TDB911)",4,IF(Transactions!D182="TD US Index Fund -e (TDB902)",3,IF(Transactions!D182="TD Canadian Index Fund -e (TDB900)",2,"")))),FALSE),"") -> 
F183: =IFERROR(VLOOKUP(A183,'Price Data All Dates'!A:E,IF(Transactions!D183="TD Canadian Bond Index Fund -e (TDB909)",5,IF(Transactions!D183="TD International Fund -e (TDB911)",4,IF(Transactions!D183="TD US Index Fund -e (TDB902)",3,IF(Transactions!D183="TD Canadian Index Fund -e (TDB900)",2,"")))),FALSE),"") -> 
F184: =IFERROR(VLOOKUP(A184,'Price Data All Dates'!A:E,IF(Transactions!D184="TD Canadian Bond Index Fund -e (TDB909)",5,IF(Transactions!D184="TD International Fund -e (TDB911)",4,IF(Transactions!D184="TD US Index Fund -e (TDB902)",3,IF(Transactions!D184="TD Canadian Index Fund -e (TDB900)",2,"")))),FALSE),"") -> 
F185: =IFERROR(VLOOKUP(A185,'Price Data All Dates'!A:E,IF(Transactions!D185="TD Canadian Bond Index Fund -e (TDB909)",5,IF(Transactions!D185="TD International Fund -e (TDB911)",4,IF(Transactions!D185="TD US Index Fund -e (TDB902)",3,IF(Transactions!D185="TD Canadian Index Fund -e (TDB900)",2,"")))),FALSE),"") -> 
F186: =IFERROR(VLOOKUP(A186,'Price Data All Dates'!A:E,IF(Transactions!D186="TD Canadian Bond Index Fund -e (TDB909)",5,IF(Transactions!D186="TD International Fund -e (TDB911)",4,IF(Transactions!D186="TD US Index Fund -e (TDB902)",3,IF(Transactions!D186="TD Canadian Index Fund -e (TDB900)",2,"")))),FALSE),"") -> 
F187: =IFERROR(VLOOKUP(A187,'Price Data All Dates'!A:E,IF(Transactions!D187="TD Canadian Bond Index Fund -e (TDB909)",5,IF(Transactions!D187="TD International Fund -e (TDB911)",4,IF(Transactions!D187="TD US Index Fund -e (TDB902)",3,IF(Transactions!D187="TD Canadian Index Fund -e (TDB900)",2,"")))),FALSE),"") -> 
F188: =IFERROR(VLOOKUP(A188,'Price Data All Dates'!A:E,IF(Transactions!D188="TD Canadian Bond Index Fund -e (TDB909)",5,IF(Transactions!D188="TD International Fund -e (TDB911)",4,IF(Transactions!D188="TD US Index Fund -e (TDB902)",3,IF(Transactions!D188="TD Canadian Index Fund -e (TDB900)",2,"")))),FALSE),"") -> 
F189: =IFERROR(VLOOKUP(A189,'Price Data All Dates'!A:E,IF(Transactions!D189="TD Canadian Bond Index Fund -e (TDB909)",5,IF(Transactions!D189="TD International Fund -e (TDB911)",4,IF(Transactions!D189="TD US Index Fund -e (TDB902)",3,IF(Transactions!D189="TD Canadian Index Fund -e (TDB900)",2,"")))),FALSE),"") -> 
F190: =IFERROR(VLOOKUP(A190,'Price Data All Dates'!A:E,IF(Transactions!D190="TD Canadian Bond Index Fund -e (TDB909)",5,IF(Transactions!D190="TD International Fund -e (TDB911)",4,IF(Transactions!D190="TD US Index Fund -e (TDB902)",3,IF(Transactions!D190="TD Canadian Index Fund -e (TDB900)",2,"")))),FALSE),"") -> 
F191: =IFERROR(VLOOKUP(A191,'Price Data All Dates'!A:E,IF(Transactions!D191="TD Canadian Bond Index Fund -e (TDB909)",5,IF(Transactions!D191="TD International Fund -e (TDB911)",4,IF(Transactions!D191="TD US Index Fund -e (TDB902)",3,IF(Transactions!D191="TD Canadian Index Fund -e (TDB900)",2,"")))),FALSE),"") -> 
F192: =IFERROR(VLOOKUP(A192,'Price Data All Dates'!A:E,IF(Transactions!D192="TD Canadian Bond Index Fund -e (TDB909)",5,IF(Transactions!D192="TD International Fund -e (TDB911)",4,IF(Transactions!D192="TD US Index Fund -e (TDB902)",3,IF(Transactions!D192="TD Canadian Index Fund -e (TDB900)",2,"")))),FALSE),"") -> 
F193: =IFERROR(VLOOKUP(A193,'Price Data All Dates'!A:E,IF(Transactions!D193="TD Canadian Bond Index Fund -e (TDB909)",5,IF(Transactions!D193="TD International Fund -e (TDB911)",4,IF(Transactions!D193="TD US Index Fund -e (TDB902)",3,IF(Transactions!D193="TD Canadian Index Fund -e (TDB900)",2,"")))),FALSE),"") -> 
F194: =IFERROR(VLOOKUP(A194,'Price Data All Dates'!A:E,IF(Transactions!D194="TD Canadian Bond Index Fund -e (TDB909)",5,IF(Transactions!D194="TD International Fund -e (TDB911)",4,IF(Transactions!D194="TD US Index Fund -e (TDB902)",3,IF(Transactions!D194="TD Canadian Index Fund -e (TDB900)",2,"")))),FALSE),"") -> 
F195: =IFERROR(VLOOKUP(A195,'Price Data All Dates'!A:E,IF(Transactions!D195="TD Canadian Bond Index Fund -e (TDB909)",5,IF(Transactions!D195="TD International Fund -e (TDB911)",4,IF(Transactions!D195="TD US Index Fund -e (TDB902)",3,IF(Transactions!D195="TD Canadian Index Fund -e (TDB900)",2,"")))),FALSE),"") ->  | G195: =IF(ISNUMBER(E195*F195),E195*F195,"") -> 
F196: =IFERROR(VLOOKUP(A196,'Price Data All Dates'!A:E,IF(Transactions!D196="TD Canadian Bond Index Fund -e (TDB909)",5,IF(Transactions!D196="TD International Fund -e (TDB911)",4,IF(Transactions!D196="TD US Index Fund -e (TDB902)",3,IF(Transactions!D196="TD Canadian Index Fund -e (TDB900)",2,"")))),FALSE),"") -> 
F197: =IFERROR(VLOOKUP(A197,'Price Data All Dates'!A:E,IF(Transactions!D197="TD Canadian Bond Index Fund -e (TDB909)",5,IF(Transactions!D197="TD International Fund -e (TDB911)",4,IF(Transactions!D197="TD US Index Fund -e (TDB902)",3,IF(Transactions!D197="TD Canadian Index Fund -e (TDB900)",2,"")))),FALSE),"") -> 
F198: =IFERROR(VLOOKUP(A198,'Price Data All Dates'!A:E,IF(Transactions!D198="TD Canadian Bond Index Fund -e (TDB909)",5,IF(Transactions!D198="TD International Fund -e (TDB911)",4,IF(Transactions!D198="TD US Index Fund -e (TDB902)",3,IF(Transactions!D198="TD Canadian Index Fund -e (TDB900)",2,"")))),FALSE),"") -> 
F199: =IFERROR(VLOOKUP(A199,'Price Data All Dates'!A:E,IF(Transactions!D199="TD Canadian Bond Index Fund -e (TDB909)",5,IF(Transactions!D199="TD International Fund -e (TDB911)",4,IF(Transactions!D199="TD US Index Fund -e (TDB902)",3,IF(Transactions!D199="TD Canadian Index Fund -e (TDB900)",2,"")))),FALSE),"") -> 
F200: =IFERROR(VLOOKUP(A200,'Price Data All Dates'!A:E,IF(Transactions!D200="TD Canadian Bond Index Fund -e (TDB909)",5,IF(Transactions!D200="TD International Fund -e (TDB911)",4,IF(Transactions!D200="TD US Index Fund -e (TDB902)",3,IF(Transactions!D200="TD Canadian Index Fund -e (TDB900)",2,"")))),FALSE),"") -> 
... 925 more rows

Sheet Running Portfolio Value (hidden)
B1: TFSA | R1: RRSP
B2: CDN IDX | F2: US IDX | J2: ITNL IDX | N2: CDN BND | R2: CDN IDX | V2: US IDX | Z2: ITNL IDX | AD2: CDN BND
A3: Date | B3: Shares | C3: Book value | D3: Market Value | E3: Profit | F3: Shares | G3: Book value | H3: Market Value | I3: Profit | J3: Shares | K3: Book value | L3: Market Value | M3: Profit | N3: Shares | O3: Book value | P3: Market Value | Q3: Profit | R3: Shares | S3: Book value | T3: Market Value | U3: Profit | V3: Shares | W3: Book value | X3: Market Value | Y3: Profit | Z3: Shares | AA3: Book value | AB3: Market Value | AC3: Profit | AD3: Shares | AE3: Book value | AF3: Market Value | AG3: Profit | AH3: TFSA Total Portfolio | AI3: TFSA Total Profit | AJ3: RRSP Total Portfolio | AK3: RRSP Total Profit | AL3: Total Portfolio | AM3: Total Profit
A4: =IF(TODAY()-(ROW()-3)>MIN(Transactions!A:A),TODAY()-(ROW()-3),"") -> 2018-05-09 | B4: =IF($A4="","",SUM((SUMIFS(Transactions!E:E,Transactions!A:A,"<="&'Running Portfolio Value'!$A4,Transactions!B:B,"TFSA",Transactions!D:D,"TD Canadian Index Fund -e (TDB900)",Transactions!C:C,{"Buy","Dividend","Switch to"})))-SUM((SUMIFS(Transactions!E:E,Transactions!A:A,"<="&'Running Portfolio Value'!A4,Transactions!B:B,"TFSA",Transactions!D:D,"TD Canadian Index Fund -e (TDB900)",Transactions!C:C,{"Sell","Switch from"})))) -> 0 | C4: =IF(A4="","",(SUM((SUMIFS(Transactions!G:G,Transactions!A:A,"<="&'Running Portfolio Value'!A4,Transactions!B:B,"TFSA",Transactions!D:D,"TD Canadian Index Fund -e (TDB900)",Transactions!C:C,{"Buy","Dividend","Switch to"})))-SUM((SUMIFS(Transactions!E:E,Transactions!A:A,"<="&'Running Portfolio Value'!A4,Transactions!B:B,"TFSA",Transactions!D:D,"TD Canadian Index Fund -e (TDB900)",Transactions!C:C,{"Sell","Switch from"}))))-SUM((SUMIFS(Transactions!G:G,Transactions!A:A,"<="&'Running Portfolio Value'!A4,Transactions!B:B,"TFSA",Transactions!D:D,"TD Canadian Index Fund -e (TDB900)",Transactions!C:C,{"Dividend"})))) -> 0 | D4: =IF(A4="","",(B4*(VLOOKUP(A4,'Price Data All Dates'!A:B,2,FALSE)))) -> 0 | E4: =IF(A4="","",D4-C4) -> 0 | F4: =IF($A4="","",SUM((SUMIFS(Transactions!E:E,Transactions!A:A,"<="&'Running Portfolio Value'!$A4,Transactions!B:B,"TFSA",Transactions!D:D,"TD US Index Fund -e (TDB902)",Transactions!C:C,{"Buy","Dividend","Switch to"})))-SUM((SUMIFS(Transactions!E:E,Transactions!A:A,"<="&'Running Portfolio Value'!A4,Transactions!B:B,"TFSA",Transactions!D:D,"TD US Index Fund -e (TDB902)",Transactions!C:C,{"Sell","Switch from"})))) -> 0 | G4: =IF(A4="","",(SUM((SUMIFS(Transactions!G:G,Transactions!A:A,"<="&'Running Portfolio Value'!A4,Transactions!B:B,"TFSA",Transactions!D:D,"TD US Index Fund -e (TDB902)",Transactions!C:C,{"Buy","Dividend","Switch to"})))-SUM((SUMIFS(Transactions!E:E,Transactions!A:A,"<="&'Running Portfolio Value'!A4,Transactions!B:B,"TFSA",Transactions!D:D,"TD US Index Fund -e (TDB902)",Transactions!C:C,{"Sell","Switch from"}))))-SUM((SUMIFS(Transactions!G:G,Transactions!A:A,"<="&'Running Portfolio Value'!A4,Transactions!B:B,"TFSA",Transactions!D:D,"TD US Index Fund -e (TDB902)",Transactions!C:C,{"Dividend"})))) -> 0 | H4: =IF(A4="","",(F4*(VLOOKUP(A4,'Price Data All Dates'!A:C,3,FALSE)))) -> 0 | I4: =IF(A4="","",H4-G4) -> 0 | J4: =IF($A4="","",SUM((SUMIFS(Transactions!E:E,Transactions!A:A,"<="&'Running Portfolio Value'!$A4,Transactions!B:B,"TFSA",Transactions!D:D,"TD International Fund -e (TDB911)",Transactions!C:C,{"Buy","Dividend","Switch to"})))-SUM((SUMIFS(Transactions!E:E,Transactions!A:A,"<="&'Running Portfolio Value'!A4,Transactions!B:B,"TFSA",Transactions!D:D,"TD International Fund -e (TDB911)",Transactions!C:C,{"Sell","Switch from"})))) -> 0 | K4: =IF(A4="","",(SUM((SUMIFS(Transactions!G:G,Transactions!A:A,"<="&'Running Portfolio Value'!A4,Transactions!B:B,"TFSA",Transactions!D:D,"TD International Fund -e (TDB911)",Transactions!C:C,{"Buy","Dividend","Switch to"})))-SUM((SUMIFS(Transactions!E:E,Transactions!A:A,"<="&'Running Portfolio Value'!A4,Transactions!B:B,"TFSA",Transactions!D:D,"TD International Fund -e (TDB911)",Transactions!C:C,{"Sell","Switch from"}))))-SUM((SUMIFS(Transactions!G:G,Transactions!A:A,"<="&'Running Portfolio Value'!A4,Transactions!B:B,"TFSA",Transactions!D:D,"TD International Fund -e (TDB911)",Transactions!C:C,{"Dividend"})))) -> 0 | L4: =IF(A4="","",(J4*(VLOOKUP(A4,'Price Data All Dates'!A:D,4,FALSE)))) -> 0 | M4: =IF(A4="","",L4-K4) -> 0 | N4: =IF($A4="","",SUM((SUMIFS(Transactions!E:E,Transactions!A:A,"<="&'Running Portfolio Value'!$A4,Transactions!B:B,"TFSA",Transactions!D:D,"TD Canadian Bond Index Fund -e (TDB909)",Transactions!C:C,{"Buy","Dividend","Switch to"})))-SUM((SUMIFS(Transactions!E:E,Transactions!A:A,"<="&'Running Portfolio Value'!A4,Transactions!B:B,"TFSA",Transactions!D:D,"TD Canadian Bond Index Fund -e (TDB909)",Transactions!C:C,{"Sell","Switch from"})))) -> 0 | O4: =IF(A4="","",(SUM((SUMIFS(Transactions!G:G,Transactions!A:A,"<="&'Running Portfolio Value'!A4,Transactions!B:B,"TFSA",Transactions!D:D,"TD Canadian Bond Index Fund -e (TDB909)",Transactions!C:C,{"Buy","Dividend","Switch to"})))-SUM((SUMIFS(Transactions!E:E,Transactions!A:A,"<="&'Running Portfolio Value'!A4,Transactions!B:B,"TFSA",Transactions!D:D,"TD Canadian Bond Index Fund -e (TDB909)",Transactions!C:C,{"Sell","Switch from"}))))-SUM((SUMIFS(Transactions!G:G,Transactions!A:A,"<="&'Running Portfolio Value'!A4,Transactions!B:B,"TFSA",Transactions!D:D,"TD Canadian Bond Index Fund -e (TDB909)",Transactions!C:C,{"Dividend"})))) -> 0 | P4: =IF(A4="","",(N4*(VLOOKUP(A4,'Price Data All Dates'!A:E,5,FALSE)))) -> 0 | Q4: =IF(A4="","",P4-O4) -> 0 | R4: =IF($A4="","",SUM((SUMIFS(Transactions!E:E,Transactions!A:A,"<="&'Running Portfolio Value'!$A4,Transactions!B:B,"RRSP",Transactions!D:D,"TD Canadian Index Fund -e (TDB900)",Transactions!C:C,{"Buy","Dividend","Switch to"})))-SUM((SUMIFS(Transactions!E:E,Transactions!A:A,"<="&'Running Portfolio Value'!A4,Transactions!B:B,"RRSP",Transactions!D:D,"TD Canadian Index Fund -e (TDB900)",Transactions!C:C,{"Sell","Switch from"})))) -> 0 | S4: =IF(A4="","",(SUM((SUMIFS(Transactions!G:G,Transactions!A:A,"<="&'Running Portfolio Value'!A4,Transactions!B:B,"RRSP",Transactions!D:D,"TD Canadian Index Fund -e (TDB900)",Transactions!C:C,{"Buy","Dividend","Switch to"})))-SUM((SUMIFS(Transactions!E:E,Transactions!A:A,"<="&'Running Portfolio Value'!A4,Transactions!B:B,"RRSP",Transactions!D:D,"TD Canadian Index Fund -e (TDB900)",Transactions!C:C,{"Sell","Switch from"}))))-SUM((SUMIFS(Transactions!G:G,Transactions!A:A,"<="&'Running Portfolio Value'!A4,Transactions!B:B,"RRSP",Transactions!D:D,"TD Canadian Index Fund -e (TDB900)",Transactions!C:C,{"Dividend"})))) -> 0 | T4: =IF(A4="","",(R4*(VLOOKUP(A4,'Price Data All Dates'!A:B,2,FALSE)))) -> 0 | U4: =IF(A4="","",T4-S4) -> 0 | V4: =IF($A4="","",SUM((SUMIFS(Transactions!E:E,Transactions!A:A,"<="&'Running Portfolio Value'!$A4,Transactions!B:B,"RRSP",Transactions!D:D,"TD US Index Fund -e (TDB902)",Transactions!C:C,{"Buy","Dividend","Switch to"})))-SUM((SUMIFS(Transactions!E:E,Transactions!A:A,"<="&'Running Portfolio Value'!A4,Transactions!B:B,"RRSP",Transactions!D:D,"TD US Index Fund -e (TDB902)",Transactions!C:C,{"Sell","Switch from"})))) -> 0 | W4: =IF(A4="","",(SUM((SUMIFS(Transactions!G:G,Transactions!A:A,"<="&'Running Portfolio Value'!A4,Transactions!B:B,"RRSP",Transactions!D:D,"TD US Index Fund -e (TDB902)",Transactions!C:C,{"Buy","Dividend","Switch to"})))-SUM((SUMIFS(Transactions!E:E,Transactions!A:A,"<="&'Running Portfolio Value'!A4,Transactions!B:B,"RRSP",Transactions!D:D,"TD US Index Fund -e (TDB902)",Transactions!C:C,{"Sell","Switch from"}))))-SUM((SUMIFS(Transactions!G:G,Transactions!A:A,"<="&'Running Portfolio Value'!A4,Transactions!B:B,"RRSP",Transactions!D:D,"TD US Index Fund -e (TDB902)",Transactions!C:C,{"Dividend"})))) -> 0 | X4: =IF(A4="","",(V4*(VLOOKUP(A4,'Price Data All Dates'!A:C,3,FALSE)))) -> 0 | Y4: =IF(A4="","",X4-W4) -> 0 | Z4: =IF($A4="","",SUM((SUMIFS(Transactions!E:E,Transactions!A:A,"<="&'Running Portfolio Value'!$A4,Transactions!B:B,"RRSP",Transactions!D:D,"TD International Fund -e (TDB911)",Transactions!C:C,{"Buy","Dividend","Switch to"})))-SUM((SUMIFS(Transactions!E:E,Transactions!A:A,"<="&'Running Portfolio Value'!A4,Transactions!B:B,"RRSP",Transactions!D:D,"TD International Fund -e (TDB911)",Transactions!C:C,{"Sell","Switch from"})))) -> 0 | AA4: =IF(A4="","",(SUM((SUMIFS(Transactions!G:G,Transactions!A:A,"<="&'Running Portfolio Value'!A4,Transactions!B:B,"RRSP",Transactions!D:D,"TD International Fund -e (TDB911)",Transactions!C:C,{"Buy","Dividend","Switch to"})))-SUM((SUMIFS(Transactions!E:E,Transactions!A:A,"<="&'Running Portfolio Value'!A4,Transactions!B:B,"RRSP",Transactions!D:D,"TD International Fund -e (TDB911)",Transactions!C:C,{"Sell","Switch from"}))))-SUM((SUMIFS(Transactions!G:G,Transactions!A:A,"<="&'Running Portfolio Value'!A4,Transactions!B:B,"RRSP",Transactions!D:D,"TD International Fund -e (TDB911)",Transactions!C:C,{"Dividend"})))) -> 0 | AB4: =IF(A4="","",(Z4*(VLOOKUP(A4,'Price Data All Dates'!A:D,4,FALSE)))) -> 0 | AC4: =IF(A4="","",AB4-AA4) -> 0 | AD4: =IF($A4="","",SUM((SUMIFS(Transactions!E:E,Transactions!A:A,"<="&'Running Portfolio Value'!$A4,Transactions!B:B,"RRSP",Transactions!D:D,"TD Canadian Bond Index Fund -e (TDB909)",Transactions!C:C,{"Buy","Dividend","Switch to"})))-SUM((SUMIFS(Transactions!E:E,Transactions!A:A,"<="&'Running Portfolio Value'!A4,Transactions!B:B,"RRSP",Transactions!D:D,"TD Canadian Bond Index Fund -e (TDB909)",Transactions!C:C,{"Sell","Switch from"})))) -> 0 | AE4: =IF(A4="","",(SUM((SUMIFS(Transactions!G:G,Transactions!A:A,"<="&'Running Portfolio Value'!A4,Transactions!B:B,"RRSP",Transactions!D:D,"TD Canadian Bond Index Fund -e (TDB909)",Transactions!C:C,{"Buy","Dividend","Switch to"})))-SUM((SUMIFS(Transactions!E:E,Transactions!A:A,"<="&'Running Portfolio Value'!A4,Transactions!B:B,"RRSP",Transactions!D:D,"TD Canadian Bond Index Fund -e (TDB909)",Transactions!C:C,{"Sell","Switch from"}))))-SUM((SUMIFS(Transactions!G:G,Transactions!A:A,"<="&'Running Portfolio Value'!A4,Transactions!B:B,"RRSP",Transactions!D:D,"TD Canadian Bond Index Fund -e (TDB909)",Transactions!C:C,{"Dividend"})))) -> 0 | AF4: =IF(A4="","",(AD4*(VLOOKUP(A4,'Price Data All Dates'!A:E,5,FALSE)))) -> 0 | AG4: =IF(A4="","",AF4-AE4) -> 0 | AH4: =IF(A4="","",(SUM(P4,L4,H4,D4))) -> 0 | AI4: =IF(A4="","",(SUM(E4,I4,M4,Q4))) -> 0 | AJ4: =IF(A4="","",(SUM(T4,X4,AB4,AF4))) -> 0 | AK4: =IF(A4="","",(SUM(U4,Y4,AC4,AG4))) -> 0 | AL4: =IF(A4="","",AH4+AJ4) -> 0 | AM4: =IF(A4="","",AI4+AK4) -> 0
A5: =IF(TODAY()-(ROW()-3)>MIN(Transactions!A:A),TODAY()-(ROW()-3),"") -> 2018-05-08 | B5: =IF(A5="","",SUM((SUMIFS(Transactions!E:E,Transactions!A:A,"<="&'Running Portfolio Value'!A5,Transactions!B:B,"TFSA",Transactions!D:D,"TD Canadian Index Fund -e (TDB900)",Transactions!C:C,{"Buy","Dividend","Switch to"})))-SUM((SUMIFS(Transactions!E:E,Transactions!A:A,"<="&'Running Portfolio Value'!A5,Transactions!B:B,"TFSA",Transactions!D:D,"TD Canadian Index Fund -e (TDB900)",Transactions!C:C,{"Sell","Switch from"})))) -> 0 | C5: =IF(A5="","",(SUM((SUMIFS(Transactions!G:G,Transactions!A:A,"<="&'Running Portfolio Value'!A5,Transactions!B:B,"TFSA",Transactions!D:D,"TD Canadian Index Fund -e (TDB900)",Transactions!C:C,{"Buy","Dividend","Switch to"})))-SUM((SUMIFS(Transactions!E:E,Transactions!A:A,"<="&'Running Portfolio Value'!A5,Transactions!B:B,"TFSA",Transactions!D:D,"TD Canadian Index Fund -e (TDB900)",Transactions!C:C,{"Sell","Switch from"}))))-SUM((SUMIFS(Transactions!G:G,Transactions!A:A,"<="&'Running Portfolio Value'!A5,Transactions!B:B,"TFSA",Transactions!D:D,"TD Canadian Index Fund -e (TDB900)",Transactions!C:C,{"Dividend"})))) -> 0 | D5: =IF(A5="","",(B5*(VLOOKUP(A5,'Price Data All Dates'!A:B,2,FALSE)))) -> 0 | E5: =IF(A5="","",D5-C5) -> 0 | F5: =IF($A5="","",SUM((SUMIFS(Transactions!E:E,Transactions!A:A,"<="&'Running Portfolio Value'!$A5,Transactions!B:B,"TFSA",Transactions!D:D,"TD US Index Fund -e (TDB902)",Transactions!C:C,{"Buy","Dividend","Switch to"})))-SUM((SUMIFS(Transactions!E:E,Transactions!A:A,"<="&'Running Portfolio Value'!A5,Transactions!B:B,"TFSA",Transactions!D:D,"TD US Index Fund -e (TDB902)",Transactions!C:C,{"Sell","Switch from"})))) -> 0 | G5: =IF(A5="","",(SUM((SUMIFS(Transactions!G:G,Transactions!A:A,"<="&'Running Portfolio Value'!A5,Transactions!B:B,"TFSA",Transactions!D:D,"TD US Index Fund -e (TDB902)",Transactions!C:C,{"Buy","Dividend","Switch to"})))-SUM((SUMIFS(Transactions!E:E,Transactions!A:A,"<="&'Running Portfolio Value'!A5,Transactions!B:B,"TFSA",Transactions!D:D,"TD US Index Fund -e (TDB902)",Transactions!C:C,{"Sell","Switch from"}))))-SUM((SUMIFS(Transactions!G:G,Transactions!A:A,"<="&'Running Portfolio Value'!A5,Transactions!B:B,"TFSA",Transactions!D:D,"TD US Index Fund -e (TDB902)",Transactions!C:C,{"Dividend"})))) -> 0 | H5: =IF(A5="","",(F5*(VLOOKUP(A5,'Price Data All Dates'!A:C,3,FALSE)))) -> 0 | I5: =IF(A5="","",H5-G5) -> 0 | J5: =IF($A5="","",SUM((SUMIFS(Transactions!E:E,Transactions!A:A,"<="&'Running Portfolio Value'!$A5,Transactions!B:B,"TFSA",Transactions!D:D,"TD International Fund -e (TDB911)",Transactions!C:C,{"Buy","Dividend","Switch to"})))-SUM((SUMIFS(Transactions!E:E,Transactions!A:A,"<="&'Running Portfolio Value'!A5,Transactions!B:B,"TFSA",Transactions!D:D,"TD International Fund -e (TDB911)",Transactions!C:C,{"Sell","Switch from"})))) -> 0 | K5: =IF(A5="","",(SUM((SUMIFS(Transactions!G:G,Transactions!A:A,"<="&'Running Portfolio Value'!A5,Transactions!B:B,"TFSA",Transactions!D:D,"TD International Fund -e (TDB911)",Transactions!C:C,{"Buy","Dividend","Switch to"})))-SUM((SUMIFS(Transactions!E:E,Transactions!A:A,"<="&'Running Portfolio Value'!A5,Transactions!B:B,"TFSA",Transactions!D:D,"TD International Fund -e (TDB911)",Transactions!C:C,{"Sell","Switch from"}))))-SUM((SUMIFS(Transactions!G:G,Transactions!A:A,"<="&'Running Portfolio Value'!A5,Transactions!B:B,"TFSA",Transactions!D:D,"TD International Fund -e (TDB911)",Transactions!C:C,{"Dividend"})))) -> 0 | L5: =IF(A5="","",(J5*(VLOOKUP(A5,'Price Data All Dates'!A:D,4,FALSE)))) -> 0 | M5: =IF(A5="","",L5-K5) -> 0 | N5: =IF($A5="","",SUM((SUMIFS(Transactions!E:E,Transactions!A:A,"<="&'Running Portfolio Value'!$A5,Transactions!B:B,"TFSA",Transactions!D:D,"TD Canadian Bond Index Fund -e (TDB909)",Transactions!C:C,{"Buy","Dividend","Switch to"})))-SUM((SUMIFS(Transactions!E:E,Transactions!A:A,"<="&'Running Portfolio Value'!A5,Transactions!B:B,"TFSA",Transactions!D:D,"TD Canadian Bond Index Fund -e (TDB909)",Transactions!C:C,{"Sell","Switch from"})))) -> 0 | O5: =IF(A5="","",(SUM((SUMIFS(Transactions!G:G,Transactions!A:A,"<="&'Running Portfolio Value'!A5,Transactions!B:B,"TFSA",Transactions!D:D,"TD Canadian Bond Index Fund -e (TDB909)",Transactions!C:C,{"Buy","Dividend","Switch to"})))-SUM((SUMIFS(Transactions!E:E,Transactions!A:A,"<="&'Running Portfolio Value'!A5,Transactions!B:B,"TFSA",Transactions!D:D,"TD Canadian Bond Index Fund -e (TDB909)",Transactions!C:C,{"Sell","Switch from"}))))-SUM((SUMIFS(Transactions!G:G,Transactions!A:A,"<="&'Running Portfolio Value'!A5,Transactions!B:B,"TFSA",Transactions!D:D,"TD Canadian Bond Index Fund -e (TDB909)",Transactions!C:C,{"Dividend"})))) -> 0 | P5: =IF(A5="","",(N5*(VLOOKUP(A5,'Price Data All Dates'!A:E,5,FALSE)))) -> 0 | Q5: =IF(A5="","",P5-O5) -> 0 | R5: =IF($A5="","",SUM((SUMIFS(Transactions!E:E,Transactions!A:A,"<="&'Running Portfolio Value'!$A5,Transactions!B:B,"RRSP",Transactions!D:D,"TD Canadian Index Fund -e (TDB900)",Transactions!C:C,{"Buy","Dividend","Switch to"})))-SUM((SUMIFS(Transactions!E:E,Transactions!A:A,"<="&'Running Portfolio Value'!A5,Transactions!B:B,"RRSP",Transactions!D:D,"TD Canadian Index Fund -e (TDB900)",Transactions!C:C,{"Sell","Switch from"})))) -> 0 | S5: =IF(A5="","",(SUM((SUMIFS(Transactions!G:G,Transactions!A:A,"<="&'Running Portfolio Value'!A5,Transactions!B:B,"RRSP",Transactions!D:D,"TD Canadian Index Fund -e (TDB900)",Transactions!C:C,{"Buy","Dividend","Switch to"})))-SUM((SUMIFS(Transactions!E:E,Transactions!A:A,"<="&'Running Portfolio Value'!A5,Transactions!B:B,"RRSP",Transactions!D:D,"TD Canadian Index Fund -e (TDB900)",Transactions!C:C,{"Sell","Switch from"}))))-SUM((SUMIFS(Transactions!G:G,Transactions!A:A,"<="&'Running Portfolio Value'!A5,Transactions!B:B,"RRSP",Transactions!D:D,"TD Canadian Index Fund -e (TDB900)",Transactions!C:C,{"Dividend"})))) -> 0 | T5: =IF(A5="","",(R5*(VLOOKUP(A5,'Price Data All Dates'!A:B,2,FALSE)))) -> 0 | U5: =IF(A5="","",T5-S5) -> 0 | V5: =IF($A5="","",SUM((SUMIFS(Transactions!E:E,Transactions!A:A,"<="&'Running Portfolio Value'!$A5,Transactions!B:B,"RRSP",Transactions!D:D,"TD US Index Fund -e (TDB902)",Transactions!C:C,{"Buy","Dividend","Switch to"})))-SUM((SUMIFS(Transactions!E:E,Transactions!A:A,"<="&'Running Portfolio Value'!A5,Transactions!B:B,"RRSP",Transactions!D:D,"TD US Index Fund -e (TDB902)",Transactions!C:C,{"Sell","Switch from"})))) -> 0 | W5: =IF(A5="","",(SUM((SUMIFS(Transactions!G:G,Transactions!A:A,"<="&'Running Portfolio Value'!A5,Transactions!B:B,"RRSP",Transactions!D:D,"TD US Index Fund -e (TDB902)",Transactions!C:C,{"Buy","Dividend","Switch to"})))-SUM((SUMIFS(Transactions!E:E,Transactions!A:A,"<="&'Running Portfolio Value'!A5,Transactions!B:B,"RRSP",Transactions!D:D,"TD US Index Fund -e (TDB902)",Transactions!C:C,{"Sell","Switch from"}))))-SUM((SUMIFS(Transactions!G:G,Transactions!A:A,"<="&'Running Portfolio Value'!A5,Transactions!B:B,"RRSP",Transactions!D:D,"TD US Index Fund -e (TDB902)",Transactions!C:C,{"Dividend"})))) -> 0 | X5: =IF(A5="","",(V5*(VLOOKUP(A5,'Price Data All Dates'!A:C,3,FALSE)))) -> 0 | Y5: =IF(A5="","",X5-W5) -> 0 | Z5: =IF($A5="","",SUM((SUMIFS(Transactions!E:E,Transactions!A:A,"<="&'Running Portfolio Value'!$A5,Transactions!B:B,"RRSP",Transactions!D:D,"TD International Fund -e (TDB911)",Transactions!C:C,{"Buy","Dividend","Switch to"})))-SUM((SUMIFS(Transactions!E:E,Transactions!A:A,"<="&'Running Portfolio Value'!A5,Transactions!B:B,"RRSP",Transactions!D:D,"TD International Fund -e (TDB911)",Transactions!C:C,{"Sell","Switch from"})))) -> 0 | AA5: =IF(A5="","",(SUM((SUMIFS(Transactions!G:G,Transactions!A:A,"<="&'Running Portfolio Value'!A5,Transactions!B:B,"RRSP",Transactions!D:D,"TD International Fund -e (TDB911)",Transactions!C:C,{"Buy","Dividend","Switch to"})))-SUM((SUMIFS(Transactions!E:E,Transactions!A:A,"<="&'Running Portfolio Value'!A5,Transactions!B:B,"RRSP",Transactions!D:D,"TD International Fund -e (TDB911)",Transactions!C:C,{"Sell","Switch from"}))))-SUM((SUMIFS(Transactions!G:G,Transactions!A:A,"<="&'Running Portfolio Value'!A5,Transactions!B:B,"RRSP",Transactions!D:D,"TD International Fund -e (TDB911)",Transactions!C:C,{"Dividend"})))) -> 0 | AB5: =IF(A5="","",(Z5*(VLOOKUP(A5,'Price Data All Dates'!A:D,4,FALSE)))) -> 0 | AC5: =IF(A5="","",AB5-AA5) -> 0 | AD5: =IF($A5="","",SUM((SUMIFS(Transactions!E:E,Transactions!A:A,"<="&'Running Portfolio Value'!$A5,Transactions!B:B,"RRSP",Transactions!D:D,"TD Canadian Bond Index Fund -e (TDB909)",Transactions!C:C,{"Buy","Dividend","Switch to"})))-SUM((SUMIFS(Transactions!E:E,Transactions!A:A,"<="&'Running Portfolio Value'!A5,Transactions!B:B,"RRSP",Transactions!D:D,"TD Canadian Bond Index Fund -e (TDB909)",Transactions!C:C,{"Sell","Switch from"})))) -> 0 | AE5: =IF(A5="","",(SUM((SUMIFS(Transactions!G:G,Transactions!A:A,"<="&'Running Portfolio Value'!A5,Transactions!B:B,"RRSP",Transactions!D:D,"TD Canadian Bond Index Fund -e (TDB909)",Transactions!C:C,{"Buy","Dividend","Switch to"})))-SUM((SUMIFS(Transactions!E:E,Transactions!A:A,"<="&'Running Portfolio Value'!A5,Transactions!B:B,"RRSP",Transactions!D:D,"TD Canadian Bond Index Fund -e (TDB909)",Transactions!C:C,{"Sell","Switch from"}))))-SUM((SUMIFS(Transactions!G:G,Transactions!A:A,"<="&'Running Portfolio Value'!A5,Transactions!B:B,"RRSP",Transactions!D:D,"TD Canadian Bond Index Fund -e (TDB909)",Transactions!C:C,{"Dividend"})))) -> 0 | AF5: =IF(A5="","",(AD5*(VLOOKUP(A5,'Price Data All Dates'!A:E,5,FALSE)))) -> 0 | AG5: =IF(A5="","",AF5-AE5) -> 0 | AH5: =IF(A5="","",(SUM(P5,L5,H5,D5))) -> 0 | AI5: =IF(A5="","",(SUM(E5,I5,M5,Q5))) -> 0 | AJ5: =IF(A5="","",(SUM(T5,X5,AB5,AF5))) -> 0 | AK5: =IF(A5="","",(SUM(U5,Y5,AC5,AG5))) -> 0 | AL5: =IF(A5="","",AH5+AJ5) -> 0 | AM5: =IF(A5="","",AI5+AK5) -> 0
A6: =IF(TODAY()-(ROW()-3)>MIN(Transactions!A:A),TODAY()-(ROW()-3),"") -> 2018-05-07 | B6: =IF(A6="","",SUM((SUMIFS(Transactions!E:E,Transactions!A:A,"<="&'Running Portfolio Value'!A6,Transactions!B:B,"TFSA",Transactions!D:D,"TD Canadian Index Fund -e (TDB900)",Transactions!C:C,{"Buy","Dividend","Switch to"})))-SUM((SUMIFS(Transactions!E:E,Transactions!A:A,"<="&'Running Portfolio Value'!A6,Transactions!B:B,"TFSA",Transactions!D:D,"TD Canadian Index Fund -e (TDB900)",Transactions!C:C,{"Sell","Switch from"})))) -> 0 | C6: =IF(A6="","",(SUM((SUMIFS(Transactions!G:G,Transactions!A:A,"<="&'Running Portfolio Value'!A6,Transactions!B:B,"TFSA",Transactions!D:D,"TD Canadian Index Fund -e (TDB900)",Transactions!C:C,{"Buy","Dividend","Switch to"})))-SUM((SUMIFS(Transactions!E:E,Transactions!A:A,"<="&'Running Portfolio Value'!A6,Transactions!B:B,"TFSA",Transactions!D:D,"TD Canadian Index Fund -e (TDB900)",Transactions!C:C,{"Sell","Switch from"}))))-SUM((SUMIFS(Transactions!G:G,Transactions!A:A,"<="&'Running Portfolio Value'!A6,Transactions!B:B,"TFSA",Transactions!D:D,"TD Canadian Index Fund -e (TDB900)",Transactions!C:C,{"Dividend"})))) -> 0 | D6: =IF(A6="","",(B6*(VLOOKUP(A6,'Price Data All Dates'!A:B,2,FALSE)))) -> 0 | E6: 0 | F6: =IF($A6="","",SUM((SUMIFS(Transactions!E:E,Transactions!A:A,"<="&'Running Portfolio Value'!$A6,Transactions!B:B,"TFSA",Transactions!D:D,"TD US Index Fund -e (TDB902)",Transactions!C:C,{"Buy","Dividend","Switch to"})))-SUM((SUMIFS(Transactions!E:E,Transactions!A:A,"<="&'Running Portfolio Value'!A6,Transactions!B:B,"TFSA",Transactions!D:D,"TD US Index Fund -e (TDB902)",Transactions!C:C,{"Sell","Switch from"})))) -> 0 | G6: =IF(A6="","",(SUM((SUMIFS(Transactions!G:G,Transactions!A:A,"<="&'Running Portfolio Value'!A6,Transactions!B:B,"TFSA",Transactions!D:D,"TD US Index Fund -e (TDB902)",Transactions!C:C,{"Buy","Dividend","Switch to"})))-SUM((SUMIFS(Transactions!E:E,Transactions!A:A,"<="&'Running Portfolio Value'!A6,Transactions!B:B,"TFSA",Transactions!D:D,"TD US Index Fund -e (TDB902)",Transactions!C:C,{"Sell","Switch from"}))))-SUM((SUMIFS(Transactions!G:G,Transactions!A:A,"<="&'Running Portfolio Value'!A6,Transactions!B:B,"TFSA",Transactions!D:D,"TD US Index Fund -e (TDB902)",Transactions!C:C,{"Dividend"})))) -> 0 | H6: =IF(A6="","",(F6*(VLOOKUP(A6,'Price Data All Dates'!A:C,3,FALSE)))) -> 0 | I6: 0 | J6: =IF($A6="","",SUM((SUMIFS(Transactions!E:E,Transactions!A:A,"<="&'Running Portfolio Value'!$A6,Transactions!B:B,"TFSA",Transactions!D:D,"TD International Fund -e (TDB911)",Transactions!C:C,{"Buy","Dividend","Switch to"})))-SUM((SUMIFS(Transactions!E:E,Transactions!A:A,"<="&'Running Portfolio Value'!A6,Transactions!B:B,"TFSA",Transactions!D:D,"TD International Fund -e (TDB911)",Transactions!C:C,{"Sell","Switch from"})))) -> 0 | K6: =IF(A6="","",(SUM((SUMIFS(Transactions!G:G,Transactions!A:A,"<="&'Running Portfolio Value'!A6,Transactions!B:B,"TFSA",Transactions!D:D,"TD International Fund -e (TDB911)",Transactions!C:C,{"Buy","Dividend","Switch to"})))-SUM((SUMIFS(Transactions!E:E,Transactions!A:A,"<="&'Running Portfolio Value'!A6,Transactions!B:B,"TFSA",Transactions!D:D,"TD International Fund -e (TDB911)",Transactions!C:C,{"Sell","Switch from"}))))-SUM((SUMIFS(Transactions!G:G,Transactions!A:A,"<="&'Running Portfolio Value'!A6,Transactions!B:B,"TFSA",Transactions!D:D,"TD International Fund -e (TDB911)",Transactions!C:C,{"Dividend"})))) -> 0 | L6: =IF(A6="","",(J6*(VLOOKUP(A6,'Price Data All Dates'!A:D,4,FALSE)))) -> 0 | M6: 0 | N6: =IF($A6="","",SUM((SUMIFS(Transactions!E:E,Transactions!A:A,"<="&'Running Portfolio Value'!$A6,Transactions!B:B,"TFSA",Transactions!D:D,"TD Canadian Bond Index Fund -e (TDB909)",Transactions!C:C,{"Buy","Dividend","Switch to"})))-SUM((SUMIFS(Transactions!E:E,Transactions!A:A,"<="&'Running Portfolio Value'!A6,Transactions!B:B,"TFSA",Transactions!D:D,"TD Canadian Bond Index Fund -e (TDB909)",Transactions!C:C,{"Sell","Switch from"})))) -> 0 | O6: =IF(A6="","",(SUM((SUMIFS(Transactions!G:G,Transactions!A:A,"<="&'Running Portfolio Value'!A6,Transactions!B:B,"TFSA",Transactions!D:D,"TD Canadian Bond Index Fund -e (TDB909)",Transactions!C:C,{"Buy","Dividend","Switch to"})))-SUM((SUMIFS(Transactions!E:E,Transactions!A:A,"<="&'Running Portfolio Value'!A6,Transactions!B:B,"TFSA",Transactions!D:D,"TD Canadian Bond Index Fund -e (TDB909)",Transactions!C:C,{"Sell","Switch from"}))))-SUM((SUMIFS(Transactions!G:G,Transactions!A:A,"<="&'Running Portfolio Value'!A6,Transactions!B:B,"TFSA",Transactions!D:D,"TD Canadian Bond Index Fund -e (TDB909)",Transactions!C:C,{"Dividend"})))) -> 0 | P6: =IF(A6="","",(N6*(VLOOKUP(A6,'Price Data All Dates'!A:E,5,FALSE)))) -> 0 | Q6: 0 | R6: =IF($A6="","",SUM((SUMIFS(Transactions!E:E,Transactions!A:A,"<="&'Running Portfolio Value'!$A6,Transactions!B:B,"RRSP",Transactions!D:D,"TD Canadian Index Fund -e (TDB900)",Transactions!C:C,{"Buy","Dividend","Switch to"})))-SUM((SUMIFS(Transactions!E:E,Transactions!A:A,"<="&'Running Portfolio Value'!A6,Transactions!B:B,"RRSP",Transactions!D:D,"TD Canadian Index Fund -e (TDB900)",Transactions!C:C,{"Sell","Switch from"})))) -> 0 | S6: =IF(A6="","",(SUM((SUMIFS(Transactions!G:G,Transactions!A:A,"<="&'Running Portfolio Value'!A6,Transactions!B:B,"RRSP",Transactions!D:D,"TD Canadian Index Fund -e (TDB900)",Transactions!C:C,{"Buy","Dividend","Switch to"})))-SUM((SUMIFS(Transactions!E:E,Transactions!A:A,"<="&'Running Portfolio Value'!A6,Transactions!B:B,"RRSP",Transactions!D:D,"TD Canadian Index Fund -e (TDB900)",Transactions!C:C,{"Sell","Switch from"}))))-SUM((SUMIFS(Transactions!G:G,Transactions!A:A,"<="&'Running Portfolio Value'!A6,Transactions!B:B,"RRSP",Transactions!D:D,"TD Canadian Index Fund -e (TDB900)",Transactions!C:C,{"Dividend"})))) -> 0 | T6: =IF(A6="","",(R6*(VLOOKUP(A6,'Price Data All Dates'!A:B,2,FALSE)))) -> 0 | U6: 0 | V6: =IF($A6="","",SUM((SUMIFS(Transactions!E:E,Transactions!A:A,"<="&'Running Portfolio Value'!$A6,Transactions!B:B,"RRSP",Transactions!D:D,"TD US Index Fund -e (TDB902)",Transactions!C:C,{"Buy","Dividend","Switch to"})))-SUM((SUMIFS(Transactions!E:E,Transactions!A:A,"<="&'Running Portfolio Value'!A6,Transactions!B:B,"RRSP",Transactions!D:D,"TD US Index Fund -e (TDB902)",Transactions!C:C,{"Sell","Switch from"})))) -> 0 | W6: =IF(A6="","",(SUM((SUMIFS(Transactions!G:G,Transactions!A:A,"<="&'Running Portfolio Value'!A6,Transactions!B:B,"RRSP",Transactions!D:D,"TD US Index Fund -e (TDB902)",Transactions!C:C,{"Buy","Dividend","Switch to"})))-SUM((SUMIFS(Transactions!E:E,Transactions!A:A,"<="&'Running Portfolio Value'!A6,Transactions!B:B,"RRSP",Transactions!D:D,"TD US Index Fund -e (TDB902)",Transactions!C:C,{"Sell","Switch from"}))))-SUM((SUMIFS(Transactions!G:G,Transactions!A:A,"<="&'Running Portfolio Value'!A6,Transactions!B:B,"RRSP",Transactions!D:D,"TD US Index Fund -e (TDB902)",Transactions!C:C,{"Dividend"})))) -> 0 | X6: =IF(A6="","",(V6*(VLOOKUP(A6,'Price Data All Dates'!A:C,3,FALSE)))) -> 0 | Y6: 0 | Z6: =IF($A6="","",SUM((SUMIFS(Transactions!E:E,Transactions!A:A,"<="&'Running Portfolio Value'!$A6,Transactions!B:B,"RRSP",Transactions!D:D,"TD International Fund -e (TDB911)",Transactions!C:C,{"Buy","Dividend","Switch to"})))-SUM((SUMIFS(Transactions!E:E,Transactions!A:A,"<="&'Running Portfolio Value'!A6,Transactions!B:B,"RRSP",Transactions!D:D,"TD International Fund -e (TDB911)",Transactions!C:C,{"Sell","Switch from"})))) -> 0 | AA6: =IF(A6="","",(SUM((SUMIFS(Transactions!G:G,Transactions!A:A,"<="&'Running Portfolio Value'!A6,Transactions!B:B,"RRSP",Transactions!D:D,"TD International Fund -e (TDB911)",Transactions!C:C,{"Buy","Dividend","Switch to"})))-SUM((SUMIFS(Transactions!E:E,Transactions!A:A,"<="&'Running Portfolio Value'!A6,Transactions!B:B,"RRSP",Transactions!D:D,"TD International Fund -e (TDB911)",Transactions!C:C,{"Sell","Switch from"}))))-SUM((SUMIFS(Transactions!G:G,Transactions!A:A,"<="&'Running Portfolio Value'!A6,Transactions!B:B,"RRSP",Transactions!D:D,"TD International Fund -e (TDB911)",Transactions!C:C,{"Dividend"})))) -> 0 | AB6: =IF(A6="","",(Z6*(VLOOKUP(A6,'Price Data All Dates'!A:D,4,FALSE)))) -> 0 | AC6: 0 | AD6: =IF($A6="","",SUM((SUMIFS(Transactions!E:E,Transactions!A:A,"<="&'Running Portfolio Value'!$A6,Transactions!B:B,"RRSP",Transactions!D:D,"TD Canadian Bond Index Fund -e (TDB909)",Transactions!C:C,{"Buy","Dividend","Switch to"})))-SUM((SUMIFS(Transactions!E:E,Transactions!A:A,"<="&'Running Portfolio Value'!A6,Transactions!B:B,"RRSP",Transactions!D:D,"TD Canadian Bond Index Fund -e (TDB909)",Transactions!C:C,{"Sell","Switch from"})))) -> 0 | AE6: =IF(A6="","",(SUM((SUMIFS(Transactions!G:G,Transactions!A:A,"<="&'Running Portfolio Value'!A6,Transactions!B:B,"RRSP",Transactions!D:D,"TD Canadian Bond Index Fund -e (TDB909)",Transactions!C:C,{"Buy","Dividend","Switch to"})))-SUM((SUMIFS(Transactions!E:E,Transactions!A:A,"<="&'Running Portfolio Value'!A6,Transactions!B:B,"RRSP",Transactions!D:D,"TD Canadian Bond Index Fund -e (TDB909)",Transactions!C:C,{"Sell","Switch from"}))))-SUM((SUMIFS(Transactions!G:G,Transactions!A:A,"<="&'Running Portfolio Value'!A6,Transactions!B:B,"RRSP",Transactions!D:D,"TD Canadian Bond Index Fund -e (TDB909)",Transactions!C:C,{"Dividend"})))) -> 0 | AF6: =IF(A6="","",(AD6*(VLOOKUP(A6,'Price Data All Dates'!A:E,5,FALSE)))) -> 0 | AG6: 0 | AH6: 0 | AI6: 0 | AJ6: 0 | AK6: 0 | AL6: 0 | AM6: 0
A7: =IF(TODAY()-(ROW()-3)>MIN(Transactions!A:A),TODAY()-(ROW()-3),"") -> 2018-05-06 | B7: =IF(A7="","",SUM((SUMIFS(Transactions!E:E,Transactions!A:A,"<="&'Running Portfolio Value'!A7,Transactions!B:B,"TFSA",Transactions!D:D,"TD Canadian Index Fund -e (TDB900)",Transactions!C:C,{"Buy","Dividend","Switch to"})))-SUM((SUMIFS(Transactions!E:E,Transactions!A:A,"<="&'Running Portfolio Value'!A7,Transactions!B:B,"TFSA",Transactions!D:D,"TD Canadian Index Fund -e (TDB900)",Transactions!C:C,{"Sell","Switch from"})))) -> 0 | C7: =IF(A7="","",(SUM((SUMIFS(Transactions!G:G,Transactions!A:A,"<="&'Running Portfolio Value'!A7,Transactions!B:B,"TFSA",Transactions!D:D,"TD Canadian Index Fund -e (TDB900)",Transactions!C:C,{"Buy","Dividend","Switch to"})))-SUM((SUMIFS(Transactions!E:E,Transactions!A:A,"<="&'Running Portfolio Value'!A7,Transactions!B:B,"TFSA",Transactions!D:D,"TD Canadian Index Fund -e (TDB900)",Transactions!C:C,{"Sell","Switch from"}))))-SUM((SUMIFS(Transactions!G:G,Transactions!A:A,"<="&'Running Portfolio Value'!A7,Transactions!B:B,"TFSA",Transactions!D:D,"TD Canadian Index Fund -e (TDB900)",Transactions!C:C,{"Dividend"})))) -> 0 | D7: =IF(A7="","",(B7*(VLOOKUP(A7,'Price Data All Dates'!A:B,2,FALSE)))) -> 0 | E7: 0 | F7: =IF($A7="","",SUM((SUMIFS(Transactions!E:E,Transactions!A:A,"<="&'Running Portfolio Value'!$A7,Transactions!B:B,"TFSA",Transactions!D:D,"TD US Index Fund -e (TDB902)",Transactions!C:C,{"Buy","Dividend","Switch to"})))-SUM((SUMIFS(Transactions!E:E,Transactions!A:A,"<="&'Running Portfolio Value'!A7,Transactions!B:B,"TFSA",Transactions!D:D,"TD US Index Fund -e (TDB902)",Transactions!C:C,{"Sell","Switch from"})))) -> 0 | G7: =IF(A7="","",(SUM((SUMIFS(Transactions!G:G,Transactions!A:A,"<="&'Running Portfolio Value'!A7,Transactions!B:B,"TFSA",Transactions!D:D,"TD US Index Fund -e (TDB902)",Transactions!C:C,{"Buy","Dividend","Switch to"})))-SUM((SUMIFS(Transactions!E:E,Transactions!A:A,"<="&'Running Portfolio Value'!A7,Transactions!B:B,"TFSA",Transactions!D:D,"TD US Index Fund -e (TDB902)",Transactions!C:C,{"Sell","Switch from"}))))-SUM((SUMIFS(Transactions!G:G,Transactions!A:A,"<="&'Running Portfolio Value'!A7,Transactions!B:B,"TFSA",Transactions!D:D,"TD US Index Fund -e (TDB902)",Transactions!C:C,{"Dividend"})))) -> 0 | H7: =IF(A7="","",(F7*(VLOOKUP(A7,'Price Data All Dates'!A:C,3,FALSE)))) -> 0 | I7: 0 | J7: =IF($A7="","",SUM((SUMIFS(Transactions!E:E,Transactions!A:A,"<="&'Running Portfolio Value'!$A7,Transactions!B:B,"TFSA",Transactions!D:D,"TD International Fund -e (TDB911)",Transactions!C:C,{"Buy","Dividend","Switch to"})))-SUM((SUMIFS(Transactions!E:E,Transactions!A:A,"<="&'Running Portfolio Value'!A7,Transactions!B:B,"TFSA",Transactions!D:D,"TD International Fund -e (TDB911)",Transactions!C:C,{"Sell","Switch from"})))) -> 0 | K7: =IF(A7="","",(SUM((SUMIFS(Transactions!G:G,Transactions!A:A,"<="&'Running Portfolio Value'!A7,Transactions!B:B,"TFSA",Transactions!D:D,"TD International Fund -e (TDB911)",Transactions!C:C,{"Buy","Dividend","Switch to"})))-SUM((SUMIFS(Transactions!E:E,Transactions!A:A,"<="&'Running Portfolio Value'!A7,Transactions!B:B,"TFSA",Transactions!D:D,"TD International Fund -e (TDB911)",Transactions!C:C,{"Sell","Switch from"}))))-SUM((SUMIFS(Transactions!G:G,Transactions!A:A,"<="&'Running Portfolio Value'!A7,Transactions!B:B,"TFSA",Transactions!D:D,"TD International Fund -e (TDB911)",Transactions!C:C,{"Dividend"})))) -> 0 | L7: =IF(A7="","",(J7*(VLOOKUP(A7,'Price Data All Dates'!A:D,4,FALSE)))) -> 0 | M7: 0 | N7: =IF($A7="","",SUM((SUMIFS(Transactions!E:E,Transactions!A:A,"<="&'Running Portfolio Value'!$A7,Transactions!B:B,"TFSA",Transactions!D:D,"TD Canadian Bond Index Fund -e (TDB909)",Transactions!C:C,{"Buy","Dividend","Switch to"})))-SUM((SUMIFS(Transactions!E:E,Transactions!A:A,"<="&'Running Portfolio Value'!A7,Transactions!B:B,"TFSA",Transactions!D:D,"TD Canadian Bond Index Fund -e (TDB909)",Transactions!C:C,{"Sell","Switch from"})))) -> 0 | O7: =IF(A7="","",(SUM((SUMIFS(Transactions!G:G,Transactions!A:A,"<="&'Running Portfolio Value'!A7,Transactions!B:B,"TFSA",Transactions!D:D,"TD Canadian Bond Index Fund -e (TDB909)",Transactions!C:C,{"Buy","Dividend","Switch to"})))-SUM((SUMIFS(Transactions!E:E,Transactions!A:A,"<="&'Running Portfolio Value'!A7,Transactions!B:B,"TFSA",Transactions!D:D,"TD Canadian Bond Index Fund -e (TDB909)",Transactions!C:C,{"Sell","Switch from"}))))-SUM((SUMIFS(Transactions!G:G,Transactions!A:A,"<="&'Running Portfolio Value'!A7,Transactions!B:B,"TFSA",Transactions!D:D,"TD Canadian Bond Index Fund -e (TDB909)",Transactions!C:C,{"Dividend"})))) -> 0 | P7: =IF(A7="","",(N7*(VLOOKUP(A7,'Price Data All Dates'!A:E,5,FALSE)))) -> 0 | Q7: 0 | R7: =IF($A7="","",SUM((SUMIFS(Transactions!E:E,Transactions!A:A,"<="&'Running Portfolio Value'!$A7,Transactions!B:B,"RRSP",Transactions!D:D,"TD Canadian Index Fund -e (TDB900)",Transactions!C:C,{"Buy","Dividend","Switch to"})))-SUM((SUMIFS(Transactions!E:E,Transactions!A:A,"<="&'Running Portfolio Value'!A7,Transactions!B:B,"RRSP",Transactions!D:D,"TD Canadian Index Fund -e (TDB900)",Transactions!C:C,{"Sell","Switch from"})))) -> 0 | S7: =IF(A7="","",(SUM((SUMIFS(Transactions!G:G,Transactions!A:A,"<="&'Running Portfolio Value'!A7,Transactions!B:B,"RRSP",Transactions!D:D,"TD Canadian Index Fund -e (TDB900)",Transactions!C:C,{"Buy","Dividend","Switch to"})))-SUM((SUMIFS(Transactions!E:E,Transactions!A:A,"<="&'Running Portfolio Value'!A7,Transactions!B:B,"RRSP",Transactions!D:D,"TD Canadian Index Fund -e (TDB900)",Transactions!C:C,{"Sell","Switch from"}))))-SUM((SUMIFS(Transactions!G:G,Transactions!A:A,"<="&'Running Portfolio Value'!A7,Transactions!B:B,"RRSP",Transactions!D:D,"TD Canadian Index Fund -e (TDB900)",Transactions!C:C,{"Dividend"})))) -> 0 | T7: =IF(A7="","",(R7*(VLOOKUP(A7,'Price Data All Dates'!A:B,2,FALSE)))) -> 0 | U7: 0 | V7: =IF($A7="","",SUM((SUMIFS(Transactions!E:E,Transactions!A:A,"<="&'Running Portfolio Value'!$A7,Transactions!B:B,"RRSP",Transactions!D:D,"TD US Index Fund -e (TDB902)",Transactions!C:C,{"Buy","Dividend","Switch to"})))-SUM((SUMIFS(Transactions!E:E,Transactions!A:A,"<="&'Running Portfolio Value'!A7,Transactions!B:B,"RRSP",Transactions!D:D,"TD US Index Fund -e (TDB902)",Transactions!C:C,{"Sell","Switch from"})))) -> 0 | W7: =IF(A7="","",(SUM((SUMIFS(Transactions!G:G,Transactions!A:A,"<="&'Running Portfolio Value'!A7,Transactions!B:B,"RRSP",Transactions!D:D,"TD US Index Fund -e (TDB902)",Transactions!C:C,{"Buy","Dividend","Switch to"})))-SUM((SUMIFS(Transactions!E:E,Transactions!A:A,"<="&'Running Portfolio Value'!A7,Transactions!B:B,"RRSP",Transactions!D:D,"TD US Index Fund -e (TDB902)",Transactions!C:C,{"Sell","Switch from"}))))-SUM((SUMIFS(Transactions!G:G,Transactions!A:A,"<="&'Running Portfolio Value'!A7,Transactions!B:B,"RRSP",Transactions!D:D,"TD US Index Fund -e (TDB902)",Transactions!C:C,{"Dividend"})))) -> 0 | X7: =IF(A7="","",(V7*(VLOOKUP(A7,'Price Data All Dates'!A:C,3,FALSE)))) -> 0 | Y7: 0 | Z7: =IF($A7="","",SUM((SUMIFS(Transactions!E:E,Transactions!A:A,"<="&'Running Portfolio Value'!$A7,Transactions!B:B,"RRSP",Transactions!D:D,"TD International Fund -e (TDB911)",Transactions!C:C,{"Buy","Dividend","Switch to"})))-SUM((SUMIFS(Transactions!E:E,Transactions!A:A,"<="&'Running Portfolio Value'!A7,Transactions!B:B,"RRSP",Transactions!D:D,"TD International Fund -e (TDB911)",Transactions!C:C,{"Sell","Switch from"})))) -> 0 | AA7: =IF(A7="","",(SUM((SUMIFS(Transactions!G:G,Transactions!A:A,"<="&'Running Portfolio Value'!A7,Transactions!B:B,"RRSP",Transactions!D:D,"TD International Fund -e (TDB911)",Transactions!C:C,{"Buy","Dividend","Switch to"})))-SUM((SUMIFS(Transactions!E:E,Transactions!A:A,"<="&'Running Portfolio Value'!A7,Transactions!B:B,"RRSP",Transactions!D:D,"TD International Fund -e (TDB911)",Transactions!C:C,{"Sell","Switch from"}))))-SUM((SUMIFS(Transactions!G:G,Transactions!A:A,"<="&'Running Portfolio Value'!A7,Transactions!B:B,"RRSP",Transactions!D:D,"TD International Fund -e (TDB911)",Transactions!C:C,{"Dividend"})))) -> 0 | AB7: =IF(A7="","",(Z7*(VLOOKUP(A7,'Price Data All Dates'!A:D,4,FALSE)))) -> 0 | AC7: 0 | AD7: =IF($A7="","",SUM((SUMIFS(Transactions!E:E,Transactions!A:A,"<="&'Running Portfolio Value'!$A7,Transactions!B:B,"RRSP",Transactions!D:D,"TD Canadian Bond Index Fund -e (TDB909)",Transactions!C:C,{"Buy","Dividend","Switch to"})))-SUM((SUMIFS(Transactions!E:E,Transactions!A:A,"<="&'Running Portfolio Value'!A7,Transactions!B:B,"RRSP",Transactions!D:D,"TD Canadian Bond Index Fund -e (TDB909)",Transactions!C:C,{"Sell","Switch from"})))) -> 0 | AE7: =IF(A7="","",(SUM((SUMIFS(Transactions!G:G,Transactions!A:A,"<="&'Running Portfolio Value'!A7,Transactions!B:B,"RRSP",Transactions!D:D,"TD Canadian Bond Index Fund -e (TDB909)",Transactions!C:C,{"Buy","Dividend","Switch to"})))-SUM((SUMIFS(Transactions!E:E,Transactions!A:A,"<="&'Running Portfolio Value'!A7,Transactions!B:B,"RRSP",Transactions!D:D,"TD Canadian Bond Index Fund -e (TDB909)",Transactions!C:C,{"Sell","Switch from"}))))-SUM((SUMIFS(Transactions!G:G,Transactions!A:A,"<="&'Running Portfolio Value'!A7,Transactions!B:B,"RRSP",Transactions!D:D,"TD Canadian Bond Index Fund -e (TDB909)",Transactions!C:C,{"Dividend"})))) -> 0 | AF7: =IF(A7="","",(AD7*(VLOOKUP(A7,'Price Data All Dates'!A:E,5,FALSE)))) -> 0 | AG7: 0 | AH7: 0 | AI7: 0 | AJ7: 0 | AK7: 0 | AL7: 0 | AM7: 0
A8: =IF(TODAY()-(ROW()-3)>MIN(Transactions!A:A),TODAY()-(ROW()-3),"") -> 2018-05-05 | B8: =IF(A8="","",SUM((SUMIFS(Transactions!E:E,Transactions!A:A,"<="&'Running Portfolio Value'!A8,Transactions!B:B,"TFSA",Transactions!D:D,"TD Canadian Index Fund -e (TDB900)",Transactions!C:C,{"Buy","Dividend","Switch to"})))-SUM((SUMIFS(Transactions!E:E,Transactions!A:A,"<="&'Running Portfolio Value'!A8,Transactions!B:B,"TFSA",Transactions!D:D,"TD Canadian Index Fund -e (TDB900)",Transactions!C:C,{"Sell","Switch from"})))) -> 0 | C8: =IF(A8="","",(SUM((SUMIFS(Transactions!G:G,Transactions!A:A,"<="&'Running Portfolio Value'!A8,Transactions!B:B,"TFSA",Transactions!D:D,"TD Canadian Index Fund -e (TDB900)",Transactions!C:C,{"Buy","Dividend","Switch to"})))-SUM((SUMIFS(Transactions!E:E,Transactions!A:A,"<="&'Running Portfolio Value'!A8,Transactions!B:B,"TFSA",Transactions!D:D,"TD Canadian Index Fund -e (TDB900)",Transactions!C:C,{"Sell","Switch from"}))))-SUM((SUMIFS(Transactions!G:G,Transactions!A:A,"<="&'Running Portfolio Value'!A8,Transactions!B:B,"TFSA",Transactions!D:D,"TD Canadian Index Fund -e (TDB900)",Transactions!C:C,{"Dividend"})))) -> 0 | D8: =IF(A8="","",(B8*(VLOOKUP(A8,'Price Data All Dates'!A:B,2,FALSE)))) -> 0 | E8: 0 | F8: =IF($A8="","",SUM((SUMIFS(Transactions!E:E,Transactions!A:A,"<="&'Running Portfolio Value'!$A8,Transactions!B:B,"TFSA",Transactions!D:D,"TD US Index Fund -e (TDB902)",Transactions!C:C,{"Buy","Dividend","Switch to"})))-SUM((SUMIFS(Transactions!E:E,Transactions!A:A,"<="&'Running Portfolio Value'!A8,Transactions!B:B,"TFSA",Transactions!D:D,"TD US Index Fund -e (TDB902)",Transactions!C:C,{"Sell","Switch from"})))) -> 0 | G8: =IF(A8="","",(SUM((SUMIFS(Transactions!G:G,Transactions!A:A,"<="&'Running Portfolio Value'!A8,Transactions!B:B,"TFSA",Transactions!D:D,"TD US Index Fund -e (TDB902)",Transactions!C:C,{"Buy","Dividend","Switch to"})))-SUM((SUMIFS(Transactions!E:E,Transactions!A:A,"<="&'Running Portfolio Value'!A8,Transactions!B:B,"TFSA",Transactions!D:D,"TD US Index Fund -e (TDB902)",Transactions!C:C,{"Sell","Switch from"}))))-SUM((SUMIFS(Transactions!G:G,Transactions!A:A,"<="&'Running Portfolio Value'!A8,Transactions!B:B,"TFSA",Transactions!D:D,"TD US Index Fund -e (TDB902)",Transactions!C:C,{"Dividend"})))) -> 0 | H8: =IF(A8="","",(F8*(VLOOKUP(A8,'Price Data All Dates'!A:C,3,FALSE)))) -> 0 | I8: 0 | J8: =IF($A8="","",SUM((SUMIFS(Transactions!E:E,Transactions!A:A,"<="&'Running Portfolio Value'!$A8,Transactions!B:B,"TFSA",Transactions!D:D,"TD International Fund -e (TDB911)",Transactions!C:C,{"Buy","Dividend","Switch to"})))-SUM((SUMIFS(Transactions!E:E,Transactions!A:A,"<="&'Running Portfolio Value'!A8,Transactions!B:B,"TFSA",Transactions!D:D,"TD International Fund -e (TDB911)",Transactions!C:C,{"Sell","Switch from"})))) -> 0 | K8: =IF(A8="","",(SUM((SUMIFS(Transactions!G:G,Transactions!A:A,"<="&'Running Portfolio Value'!A8,Transactions!B:B,"TFSA",Transactions!D:D,"TD International Fund -e (TDB911)",Transactions!C:C,{"Buy","Dividend","Switch to"})))-SUM((SUMIFS(Transactions!E:E,Transactions!A:A,"<="&'Running Portfolio Value'!A8,Transactions!B:B,"TFSA",Transactions!D:D,"TD International Fund -e (TDB911)",Transactions!C:C,{"Sell","Switch from"}))))-SUM((SUMIFS(Transactions!G:G,Transactions!A:A,"<="&'Running Portfolio Value'!A8,Transactions!B:B,"TFSA",Transactions!D:D,"TD International Fund -e (TDB911)",Transactions!C:C,{"Dividend"})))) -> 0 | L8: =IF(A8="","",(J8*(VLOOKUP(A8,'Price Data All Dates'!A:D,4,FALSE)))) -> 0 | M8: 0 | N8: =IF($A8="","",SUM((SUMIFS(Transactions!E:E,Transactions!A:A,"<="&'Running Portfolio Value'!$A8,Transactions!B:B,"TFSA",Transactions!D:D,"TD Canadian Bond Index Fund -e (TDB909)",Transactions!C:C,{"Buy","Dividend","Switch to"})))-SUM((SUMIFS(Transactions!E:E,Transactions!A:A,"<="&'Running Portfolio Value'!A8,Transactions!B:B,"TFSA",Transactions!D:D,"TD Canadian Bond Index Fund -e (TDB909)",Transactions!C:C,{"Sell","Switch from"})))) -> 0 | O8: =IF(A8="","",(SUM((SUMIFS(Transactions!G:G,Transactions!A:A,"<="&'Running Portfolio Value'!A8,Transactions!B:B,"TFSA",Transactions!D:D,"TD Canadian Bond Index Fund -e (TDB909)",Transactions!C:C,{"Buy","Dividend","Switch to"})))-SUM((SUMIFS(Transactions!E:E,Transactions!A:A,"<="&'Running Portfolio Value'!A8,Transactions!B:B,"TFSA",Transactions!D:D,"TD Canadian Bond Index Fund -e (TDB909)",Transactions!C:C,{"Sell","Switch from"}))))-SUM((SUMIFS(Transactions!G:G,Transactions!A:A,"<="&'Running Portfolio Value'!A8,Transactions!B:B,"TFSA",Transactions!D:D,"TD Canadian Bond Index Fund -e (TDB909)",Transactions!C:C,{"Dividend"})))) -> 0 | P8: =IF(A8="","",(N8*(VLOOKUP(A8,'Price Data All Dates'!A:E,5,FALSE)))) -> 0 | Q8: 0 | R8: =IF($A8="","",SUM((SUMIFS(Transactions!E:E,Transactions!A:A,"<="&'Running Portfolio Value'!$A8,Transactions!B:B,"RRSP",Transactions!D:D,"TD Canadian Index Fund -e (TDB900)",Transactions!C:C,{"Buy","Dividend","Switch to"})))-SUM((SUMIFS(Transactions!E:E,Transactions!A:A,"<="&'Running Portfolio Value'!A8,Transactions!B:B,"RRSP",Transactions!D:D,"TD Canadian Index Fund -e (TDB900)",Transactions!C:C,{"Sell","Switch from"})))) -> 0 | S8: =IF(A8="","",(SUM((SUMIFS(Transactions!G:G,Transactions!A:A,"<="&'Running Portfolio Value'!A8,Transactions!B:B,"RRSP",Transactions!D:D,"TD Canadian Index Fund -e (TDB900)",Transactions!C:C,{"Buy","Dividend","Switch to"})))-SUM((SUMIFS(Transactions!E:E,Transactions!A:A,"<="&'Running Portfolio Value'!A8,Transactions!B:B,"RRSP",Transactions!D:D,"TD Canadian Index Fund -e (TDB900)",Transactions!C:C,{"Sell","Switch from"}))))-SUM((SUMIFS(Transactions!G:G,Transactions!A:A,"<="&'Running Portfolio Value'!A8,Transactions!B:B,"RRSP",Transactions!D:D,"TD Canadian Index Fund -e (TDB900)",Transactions!C:C,{"Dividend"})))) -> 0 | T8: =IF(A8="","",(R8*(VLOOKUP(A8,'Price Data All Dates'!A:B,2,FALSE)))) -> 0 | U8: 0 | V8: =IF($A8="","",SUM((SUMIFS(Transactions!E:E,Transactions!A:A,"<="&'Running Portfolio Value'!$A8,Transactions!B:B,"RRSP",Transactions!D:D,"TD US Index Fund -e (TDB902)",Transactions!C:C,{"Buy","Dividend","Switch to"})))-SUM((SUMIFS(Transactions!E:E,Transactions!A:A,"<="&'Running Portfolio Value'!A8,Transactions!B:B,"RRSP",Transactions!D:D,"TD US Index Fund -e (TDB902)",Transactions!C:C,{"Sell","Switch from"})))) -> 0 | W8: =IF(A8="","",(SUM((SUMIFS(Transactions!G:G,Transactions!A:A,"<="&'Running Portfolio Value'!A8,Transactions!B:B,"RRSP",Transactions!D:D,"TD US Index Fund -e (TDB902)",Transactions!C:C,{"Buy","Dividend","Switch to"})))-SUM((SUMIFS(Transactions!E:E,Transactions!A:A,"<="&'Running Portfolio Value'!A8,Transactions!B:B,"RRSP",Transactions!D:D,"TD US Index Fund -e (TDB902)",Transactions!C:C,{"Sell","Switch from"}))))-SUM((SUMIFS(Transactions!G:G,Transactions!A:A,"<="&'Running Portfolio Value'!A8,Transactions!B:B,"RRSP",Transactions!D:D,"TD US Index Fund -e (TDB902)",Transactions!C:C,{"Dividend"})))) -> 0 | X8: =IF(A8="","",(V8*(VLOOKUP(A8,'Price Data All Dates'!A:C,3,FALSE)))) -> 0 | Y8: 0 | Z8: =IF($A8="","",SUM((SUMIFS(Transactions!E:E,Transactions!A:A,"<="&'Running Portfolio Value'!$A8,Transactions!B:B,"RRSP",Transactions!D:D,"TD International Fund -e (TDB911)",Transactions!C:C,{"Buy","Dividend","Switch to"})))-SUM((SUMIFS(Transactions!E:E,Transactions!A:A,"<="&'Running Portfolio Value'!A8,Transactions!B:B,"RRSP",Transactions!D:D,"TD International Fund -e (TDB911)",Transactions!C:C,{"Sell","Switch from"})))) -> 0 | AA8: =IF(A8="","",(SUM((SUMIFS(Transactions!G:G,Transactions!A:A,"<="&'Running Portfolio Value'!A8,Transactions!B:B,"RRSP",Transactions!D:D,"TD International Fund -e (TDB911)",Transactions!C:C,{"Buy","Dividend","Switch to"})))-SUM((SUMIFS(Transactions!E:E,Transactions!A:A,"<="&'Running Portfolio Value'!A8,Transactions!B:B,"RRSP",Transactions!D:D,"TD International Fund -e (TDB911)",Transactions!C:C,{"Sell","Switch from"}))))-SUM((SUMIFS(Transactions!G:G,Transactions!A:A,"<="&'Running Portfolio Value'!A8,Transactions!B:B,"RRSP",Transactions!D:D,"TD International Fund -e (TDB911)",Transactions!C:C,{"Dividend"})))) -> 0 | AB8: =IF(A8="","",(Z8*(VLOOKUP(A8,'Price Data All Dates'!A:D,4,FALSE)))) -> 0 | AC8: 0 | AD8: =IF($A8="","",SUM((SUMIFS(Transactions!E:E,Transactions!A:A,"<="&'Running Portfolio Value'!$A8,Transactions!B:B,"RRSP",Transactions!D:D,"TD Canadian Bond Index Fund -e (TDB909)",Transactions!C:C,{"Buy","Dividend","Switch to"})))-SUM((SUMIFS(Transactions!E:E,Transactions!A:A,"<="&'Running Portfolio Value'!A8,Transactions!B:B,"RRSP",Transactions!D:D,"TD Canadian Bond Index Fund -e (TDB909)",Transactions!C:C,{"Sell","Switch from"})))) -> 0 | AE8: =IF(A8="","",(SUM((SUMIFS(Transactions!G:G,Transactions!A:A,"<="&'Running Portfolio Value'!A8,Transactions!B:B,"RRSP",Transactions!D:D,"TD Canadian Bond Index Fund -e (TDB909)",Transactions!C:C,{"Buy","Dividend","Switch to"})))-SUM((SUMIFS(Transactions!E:E,Transactions!A:A,"<="&'Running Portfolio Value'!A8,Transactions!B:B,"RRSP",Transactions!D:D,"TD Canadian Bond Index Fund -e (TDB909)",Transactions!C:C,{"Sell","Switch from"}))))-SUM((SUMIFS(Transactions!G:G,Transactions!A:A,"<="&'Running Portfolio Value'!A8,Transactions!B:B,"RRSP",Transactions!D:D,"TD Canadian Bond Index Fund -e (TDB909)",Transactions!C:C,{"Dividend"})))) -> 0 | AF8: =IF(A8="","",(AD8*(VLOOKUP(A8,'Price Data All Dates'!A:E,5,FALSE)))) -> 0 | AG8: 0 | AH8: 0 | AI8: 0 | AJ8: 0 | AK8: 0 | AL8: 0 | AM8: 0
A9: =IF(TODAY()-(ROW()-3)>MIN(Transactions!A:A),TODAY()-(ROW()-3),"") -> 2018-05-04 | B9: =IF(A9="","",SUM((SUMIFS(Transactions!E:E,Transactions!A:A,"<="&'Running Portfolio Value'!A9,Transactions!B:B,"TFSA",Transactions!D:D,"TD Canadian Index Fund -e (TDB900)",Transactions!C:C,{"Buy","Dividend","Switch to"})))-SUM((SUMIFS(Transactions!E:E,Transactions!A:A,"<="&'Running Portfolio Value'!A9,Transactions!B:B,"TFSA",Transactions!D:D,"TD Canadian Index Fund -e (TDB900)",Transactions!C:C,{"Sell","Switch from"})))) -> 0 | C9: =IF(A9="","",(SUM((SUMIFS(Transactions!G:G,Transactions!A:A,"<="&'Running Portfolio Value'!A9,Transactions!B:B,"TFSA",Transactions!D:D,"TD Canadian Index Fund -e (TDB900)",Transactions!C:C,{"Buy","Dividend","Switch to"})))-SUM((SUMIFS(Transactions!E:E,Transactions!A:A,"<="&'Running Portfolio Value'!A9,Transactions!B:B,"TFSA",Transactions!D:D,"TD Canadian Index Fund -e (TDB900)",Transactions!C:C,{"Sell","Switch from"}))))-SUM((SUMIFS(Transactions!G:G,Transactions!A:A,"<="&'Running Portfolio Value'!A9,Transactions!B:B,"TFSA",Transactions!D:D,"TD Canadian Index Fund -e (TDB900)",Transactions!C:C,{"Dividend"})))) -> 0 | D9: =IF(A9="","",(B9*(VLOOKUP(A9,'Price Data All Dates'!A:B,2,FALSE)))) -> 0 | E9: 0 | F9: =IF($A9="","",SUM((SUMIFS(Transactions!E:E,Transactions!A:A,"<="&'Running Portfolio Value'!$A9,Transactions!B:B,"TFSA",Transactions!D:D,"TD US Index Fund -e (TDB902)",Transactions!C:C,{"Buy","Dividend","Switch to"})))-SUM((SUMIFS(Transactions!E:E,Transactions!A:A,"<="&'Running Portfolio Value'!A9,Transactions!B:B,"TFSA",Transactions!D:D,"TD US Index Fund -e (TDB902)",Transactions!C:C,{"Sell","Switch from"})))) -> 0 | G9: =IF(A9="","",(SUM((SUMIFS(Transactions!G:G,Transactions!A:A,"<="&'Running Portfolio Value'!A9,Transactions!B:B,"TFSA",Transactions!D:D,"TD US Index Fund -e (TDB902)",Transactions!C:C,{"Buy","Dividend","Switch to"})))-SUM((SUMIFS(Transactions!E:E,Transactions!A:A,"<="&'Running Portfolio Value'!A9,Transactions!B:B,"TFSA",Transactions!D:D,"TD US Index Fund -e (TDB902)",Transactions!C:C,{"Sell","Switch from"}))))-SUM((SUMIFS(Transactions!G:G,Transactions!A:A,"<="&'Running Portfolio Value'!A9,Transactions!B:B,"TFSA",Transactions!D:D,"TD US Index Fund -e (TDB902)",Transactions!C:C,{"Dividend"})))) -> 0 | H9: =IF(A9="","",(F9*(VLOOKUP(A9,'Price Data All Dates'!A:C,3,FALSE)))) -> 0 | I9: 0 | J9: =IF($A9="","",SUM((SUMIFS(Transactions!E:E,Transactions!A:A,"<="&'Running Portfolio Value'!$A9,Transactions!B:B,"TFSA",Transactions!D:D,"TD International Fund -e (TDB911)",Transactions!C:C,{"Buy","Dividend","Switch to"})))-SUM((SUMIFS(Transactions!E:E,Transactions!A:A,"<="&'Running Portfolio Value'!A9,Transactions!B:B,"TFSA",Transactions!D:D,"TD International Fund -e (TDB911)",Transactions!C:C,{"Sell","Switch from"})))) -> 0 | K9: =IF(A9="","",(SUM((SUMIFS(Transactions!G:G,Transactions!A:A,"<="&'Running Portfolio Value'!A9,Transactions!B:B,"TFSA",Transactions!D:D,"TD International Fund -e (TDB911)",Transactions!C:C,{"Buy","Dividend","Switch to"})))-SUM((SUMIFS(Transactions!E:E,Transactions!A:A,"<="&'Running Portfolio Value'!A9,Transactions!B:B,"TFSA",Transactions!D:D,"TD International Fund -e (TDB911)",Transactions!C:C,{"Sell","Switch from"}))))-SUM((SUMIFS(Transactions!G:G,Transactions!A:A,"<="&'Running Portfolio Value'!A9,Transactions!B:B,"TFSA",Transactions!D:D,"TD International Fund -e (TDB911)",Transactions!C:C,{"Dividend"})))) -> 0 | L9: =IF(A9="","",(J9*(VLOOKUP(A9,'Price Data All Dates'!A:D,4,FALSE)))) -> 0 | M9: 0 | N9: =IF($A9="","",SUM((SUMIFS(Transactions!E:E,Transactions!A:A,"<="&'Running Portfolio Value'!$A9,Transactions!B:B,"TFSA",Transactions!D:D,"TD Canadian Bond Index Fund -e (TDB909)",Transactions!C:C,{"Buy","Dividend","Switch to"})))-SUM((SUMIFS(Transactions!E:E,Transactions!A:A,"<="&'Running Portfolio Value'!A9,Transactions!B:B,"TFSA",Transactions!D:D,"TD Canadian Bond Index Fund -e (TDB909)",Transactions!C:C,{"Sell","Switch from"})))) -> 0 | O9: =IF(A9="","",(SUM((SUMIFS(Transactions!G:G,Transactions!A:A,"<="&'Running Portfolio Value'!A9,Transactions!B:B,"TFSA",Transactions!D:D,"TD Canadian Bond Index Fund -e (TDB909)",Transactions!C:C,{"Buy","Dividend","Switch to"})))-SUM((SUMIFS(Transactions!E:E,Transactions!A:A,"<="&'Running Portfolio Value'!A9,Transactions!B:B,"TFSA",Transactions!D:D,"TD Canadian Bond Index Fund -e (TDB909)",Transactions!C:C,{"Sell","Switch from"}))))-SUM((SUMIFS(Transactions!G:G,Transactions!A:A,"<="&'Running Portfolio Value'!A9,Transactions!B:B,"TFSA",Transactions!D:D,"TD Canadian Bond Index Fund -e (TDB909)",Transactions!C:C,{"Dividend"})))) -> 0 | P9: =IF(A9="","",(N9*(VLOOKUP(A9,'Price Data All Dates'!A:E,5,FALSE)))) -> 0 | Q9: 0 | R9: =IF($A9="","",SUM((SUMIFS(Transactions!E:E,Transactions!A:A,"<="&'Running Portfolio Value'!$A9,Transactions!B:B,"RRSP",Transactions!D:D,"TD Canadian Index Fund -e (TDB900)",Transactions!C:C,{"Buy","Dividend","Switch to"})))-SUM((SUMIFS(Transactions!E:E,Transactions!A:A,"<="&'Running Portfolio Value'!A9,Transactions!B:B,"RRSP",Transactions!D:D,"TD Canadian Index Fund -e (TDB900)",Transactions!C:C,{"Sell","Switch from"})))) -> 0 | S9: =IF(A9="","",(SUM((SUMIFS(Transactions!G:G,Transactions!A:A,"<="&'Running Portfolio Value'!A9,Transactions!B:B,"RRSP",Transactions!D:D,"TD Canadian Index Fund -e (TDB900)",Transactions!C:C,{"Buy","Dividend","Switch to"})))-SUM((SUMIFS(Transactions!E:E,Transactions!A:A,"<="&'Running Portfolio Value'!A9,Transactions!B:B,"RRSP",Transactions!D:D,"TD Canadian Index Fund -e (TDB900)",Transactions!C:C,{"Sell","Switch from"}))))-SUM((SUMIFS(Transactions!G:G,Transactions!A:A,"<="&'Running Portfolio Value'!A9,Transactions!B:B,"RRSP",Transactions!D:D,"TD Canadian Index Fund -e (TDB900)",Transactions!C:C,{"Dividend"})))) -> 0 | T9: =IF(A9="","",(R9*(VLOOKUP(A9,'Price Data All Dates'!A:B,2,FALSE)))) -> 0 | U9: 0 | V9: =IF($A9="","",SUM((SUMIFS(Transactions!E:E,Transactions!A:A,"<="&'Running Portfolio Value'!$A9,Transactions!B:B,"RRSP",Transactions!D:D,"TD US Index Fund -e (TDB902)",Transactions!C:C,{"Buy","Dividend","Switch to"})))-SUM((SUMIFS(Transactions!E:E,Transactions!A:A,"<="&'Running Portfolio Value'!A9,Transactions!B:B,"RRSP",Transactions!D:D,"TD US Index Fund -e (TDB902)",Transactions!C:C,{"Sell","Switch from"})))) -> 0 | W9: =IF(A9="","",(SUM((SUMIFS(Transactions!G:G,Transactions!A:A,"<="&'Running Portfolio Value'!A9,Transactions!B:B,"RRSP",Transactions!D:D,"TD US Index Fund -e (TDB902)",Transactions!C:C,{"Buy","Dividend","Switch to"})))-SUM((SUMIFS(Transactions!E:E,Transactions!A:A,"<="&'Running Portfolio Value'!A9,Transactions!B:B,"RRSP",Transactions!D:D,"TD US Index Fund -e (TDB902)",Transactions!C:C,{"Sell","Switch from"}))))-SUM((SUMIFS(Transactions!G:G,Transactions!A:A,"<="&'Running Portfolio Value'!A9,Transactions!B:B,"RRSP",Transactions!D:D,"TD US Index Fund -e (TDB902)",Transactions!C:C,{"Dividend"})))) -> 0 | X9: =IF(A9="","",(V9*(VLOOKUP(A9,'Price Data All Dates'!A:C,3,FALSE)))) -> 0 | Y9: 0 | Z9: =IF($A9="","",SUM((SUMIFS(Transactions!E:E,Transactions!A:A,"<="&'Running Portfolio Value'!$A9,Transactions!B:B,"RRSP",Transactions!D:D,"TD International Fund -e (TDB911)",Transactions!C:C,{"Buy","Dividend","Switch to"})))-SUM((SUMIFS(Transactions!E:E,Transactions!A:A,"<="&'Running Portfolio Value'!A9,Transactions!B:B,"RRSP",Transactions!D:D,"TD International Fund -e (TDB911)",Transactions!C:C,{"Sell","Switch from"})))) -> 0 | AA9: =IF(A9="","",(SUM((SUMIFS(Transactions!G:G,Transactions!A:A,"<="&'Running Portfolio Value'!A9,Transactions!B:B,"RRSP",Transactions!D:D,"TD International Fund -e (TDB911)",Transactions!C:C,{"Buy","Dividend","Switch to"})))-SUM((SUMIFS(Transactions!E:E,Transactions!A:A,"<="&'Running Portfolio Value'!A9,Transactions!B:B,"RRSP",Transactions!D:D,"TD International Fund -e (TDB911)",Transactions!C:C,{"Sell","Switch from"}))))-SUM((SUMIFS(Transactions!G:G,Transactions!A:A,"<="&'Running Portfolio Value'!A9,Transactions!B:B,"RRSP",Transactions!D:D,"TD International Fund -e (TDB911)",Transactions!C:C,{"Dividend"})))) -> 0 | AB9: =IF(A9="","",(Z9*(VLOOKUP(A9,'Price Data All Dates'!A:D,4,FALSE)))) -> 0 | AC9: 0 | AD9: =IF($A9="","",SUM((SUMIFS(Transactions!E:E,Transactions!A:A,"<="&'Running Portfolio Value'!$A9,Transactions!B:B,"RRSP",Transactions!D:D,"TD Canadian Bond Index Fund -e (TDB909)",Transactions!C:C,{"Buy","Dividend","Switch to"})))-SUM((SUMIFS(Transactions!E:E,Transactions!A:A,"<="&'Running Portfolio Value'!A9,Transactions!B:B,"RRSP",Transactions!D:D,"TD Canadian Bond Index Fund -e (TDB909)",Transactions!C:C,{"Sell","Switch from"})))) -> 0 | AE9: =IF(A9="","",(SUM((SUMIFS(Transactions!G:G,Transactions!A:A,"<="&'Running Portfolio Value'!A9,Transactions!B:B,"RRSP",Transactions!D:D,"TD Canadian Bond Index Fund -e (TDB909)",Transactions!C:C,{"Buy","Dividend","Switch to"})))-SUM((SUMIFS(Transactions!E:E,Transactions!A:A,"<="&'Running Portfolio Value'!A9,Transactions!B:B,"RRSP",Transactions!D:D,"TD Canadian Bond Index Fund -e (TDB909)",Transactions!C:C,{"Sell","Switch from"}))))-SUM((SUMIFS(Transactions!G:G,Transactions!A:A,"<="&'Running Portfolio Value'!A9,Transactions!B:B,"RRSP",Transactions!D:D,"TD Canadian Bond Index Fund -e (TDB909)",Transactions!C:C,{"Dividend"})))) -> 0 | AF9: =IF(A9="","",(AD9*(VLOOKUP(A9,'Price Data All Dates'!A:E,5,FALSE)))) -> 0 | AG9: 0 | AH9: 0 | AI9: 0 | AJ9: 0 | AK9: 0 | AL9: 0 | AM9: 0
A10: =IF(TODAY()-(ROW()-3)>MIN(Transactions!A:A),TODAY()-(ROW()-3),"") -> 2018-05-03 | B10: =IF(A10="","",SUM((SUMIFS(Transactions!E:E,Transactions!A:A,"<="&'Running Portfolio Value'!A10,Transactions!B:B,"TFSA",Transactions!D:D,"TD Canadian Index Fund -e (TDB900)",Transactions!C:C,{"Buy","Dividend","Switch to"})))-SUM((SUMIFS(Transactions!E:E,Transactions!A:A,"<="&'Running Portfolio Value'!A10,Transactions!B:B,"TFSA",Transactions!D:D,"TD Canadian Index Fund -e (TDB900)",Transactions!C:C,{"Sell","Switch from"})))) -> 0 | C10: =IF(A10="","",(SUM((SUMIFS(Transactions!G:G,Transactions!A:A,"<="&'Running Portfolio Value'!A10,Transactions!B:B,"TFSA",Transactions!D:D,"TD Canadian Index Fund -e (TDB900)",Transactions!C:C,{"Buy","Dividend","Switch to"})))-SUM((SUMIFS(Transactions!E:E,Transactions!A:A,"<="&'Running Portfolio Value'!A10,Transactions!B:B,"TFSA",Transactions!D:D,"TD Canadian Index Fund -e (TDB900)",Transactions!C:C,{"Sell","Switch from"}))))-SUM((SUMIFS(Transactions!G:G,Transactions!A:A,"<="&'Running Portfolio Value'!A10,Transactions!B:B,"TFSA",Transactions!D:D,"TD Canadian Index Fund -e (TDB900)",Transactions!C:C,{"Dividend"})))) -> 0 | D10: =IF(A10="","",(B10*(VLOOKUP(A10,'Price Data All Dates'!A:B,2,FALSE)))) -> 0 | E10: 0 | F10: =IF($A10="","",SUM((SUMIFS(Transactions!E:E,Transactions!A:A,"<="&'Running Portfolio Value'!$A10,Transactions!B:B,"TFSA",Transactions!D:D,"TD US Index Fund -e (TDB902)",Transactions!C:C,{"Buy","Dividend","Switch to"})))-SUM((SUMIFS(Transactions!E:E,Transactions!A:A,"<="&'Running Portfolio Value'!A10,Transactions!B:B,"TFSA",Transactions!D:D,"TD US Index Fund -e (TDB902)",Transactions!C:C,{"Sell","Switch from"})))) -> 0 | G10: =IF(A10="","",(SUM((SUMIFS(Transactions!G:G,Transactions!A:A,"<="&'Running Portfolio Value'!A10,Transactions!B:B,"TFSA",Transactions!D:D,"TD US Index Fund -e (TDB902)",Transactions!C:C,{"Buy","Dividend","Switch to"})))-SUM((SUMIFS(Transactions!E:E,Transactions!A:A,"<="&'Running Portfolio Value'!A10,Transactions!B:B,"TFSA",Transactions!D:D,"TD US Index Fund -e (TDB902)",Transactions!C:C,{"Sell","Switch from"}))))-SUM((SUMIFS(Transactions!G:G,Transactions!A:A,"<="&'Running Portfolio Value'!A10,Transactions!B:B,"TFSA",Transactions!D:D,"TD US Index Fund -e (TDB902)",Transactions!C:C,{"Dividend"})))) -> 0 | H10: =IF(A10="","",(F10*(VLOOKUP(A10,'Price Data All Dates'!A:C,3,FALSE)))) -> 0 | I10: 0 | J10: =IF($A10="","",SUM((SUMIFS(Transactions!E:E,Transactions!A:A,"<="&'Running Portfolio Value'!$A10,Transactions!B:B,"TFSA",Transactions!D:D,"TD International Fund -e (TDB911)",Transactions!C:C,{"Buy","Dividend","Switch to"})))-SUM((SUMIFS(Transactions!E:E,Transactions!A:A,"<="&'Running Portfolio Value'!A10,Transactions!B:B,"TFSA",Transactions!D:D,"TD International Fund -e (TDB911)",Transactions!C:C,{"Sell","Switch from"})))) -> 0 | K10: =IF(A10="","",(SUM((SUMIFS(Transactions!G:G,Transactions!A:A,"<="&'Running Portfolio Value'!A10,Transactions!B:B,"TFSA",Transactions!D:D,"TD International Fund -e (TDB911)",Transactions!C:C,{"Buy","Dividend","Switch to"})))-SUM((SUMIFS(Transactions!E:E,Transactions!A:A,"<="&'Running Portfolio Value'!A10,Transactions!B:B,"TFSA",Transactions!D:D,"TD International Fund -e (TDB911)",Transactions!C:C,{"Sell","Switch from"}))))-SUM((SUMIFS(Transactions!G:G,Transactions!A:A,"<="&'Running Portfolio Value'!A10,Transactions!B:B,"TFSA",Transactions!D:D,"TD International Fund -e (TDB911)",Transactions!C:C,{"Dividend"})))) -> 0 | L10: =IF(A10="","",(J10*(VLOOKUP(A10,'Price Data All Dates'!A:D,4,FALSE)))) -> 0 | M10: 0 | N10: =IF($A10="","",SUM((SUMIFS(Transactions!E:E,Transactions!A:A,"<="&'Running Portfolio Value'!$A10,Transactions!B:B,"TFSA",Transactions!D:D,"TD Canadian Bond Index Fund -e (TDB909)",Transactions!C:C,{"Buy","Dividend","Switch to"})))-SUM((SUMIFS(Transactions!E:E,Transactions!A:A,"<="&'Running Portfolio Value'!A10,Transactions!B:B,"TFSA",Transactions!D:D,"TD Canadian Bond Index Fund -e (TDB909)",Transactions!C:C,{"Sell","Switch from"})))) -> 0 | O10: =IF(A10="","",(SUM((SUMIFS(Transactions!G:G,Transactions!A:A,"<="&'Running Portfolio Value'!A10,Transactions!B:B,"TFSA",Transactions!D:D,"TD Canadian Bond Index Fund -e (TDB909)",Transactions!C:C,{"Buy","Dividend","Switch to"})))-SUM((SUMIFS(Transactions!E:E,Transactions!A:A,"<="&'Running Portfolio Value'!A10,Transactions!B:B,"TFSA",Transactions!D:D,"TD Canadian Bond Index Fund -e (TDB909)",Transactions!C:C,{"Sell","Switch from"}))))-SUM((SUMIFS(Transactions!G:G,Transactions!A:A,"<="&'Running Portfolio Value'!A10,Transactions!B:B,"TFSA",Transactions!D:D,"TD Canadian Bond Index Fund -e (TDB909)",Transactions!C:C,{"Dividend"})))) -> 0 | P10: =IF(A10="","",(N10*(VLOOKUP(A10,'Price Data All Dates'!A:E,5,FALSE)))) -> 0 | Q10: 0 | R10: =IF($A10="","",SUM((SUMIFS(Transactions!E:E,Transactions!A:A,"<="&'Running Portfolio Value'!$A10,Transactions!B:B,"RRSP",Transactions!D:D,"TD Canadian Index Fund -e (TDB900)",Transactions!C:C,{"Buy","Dividend","Switch to"})))-SUM((SUMIFS(Transactions!E:E,Transactions!A:A,"<="&'Running Portfolio Value'!A10,Transactions!B:B,"RRSP",Transactions!D:D,"TD Canadian Index Fund -e (TDB900)",Transactions!C:C,{"Sell","Switch from"})))) -> 0 | S10: =IF(A10="","",(SUM((SUMIFS(Transactions!G:G,Transactions!A:A,"<="&'Running Portfolio Value'!A10,Transactions!B:B,"RRSP",Transactions!D:D,"TD Canadian Index Fund -e (TDB900)",Transactions!C:C,{"Buy","Dividend","Switch to"})))-SUM((SUMIFS(Transactions!E:E,Transactions!A:A,"<="&'Running Portfolio Value'!A10,Transactions!B:B,"RRSP",Transactions!D:D,"TD Canadian Index Fund -e (TDB900)",Transactions!C:C,{"Sell","Switch from"}))))-SUM((SUMIFS(Transactions!G:G,Transactions!A:A,"<="&'Running Portfolio Value'!A10,Transactions!B:B,"RRSP",Transactions!D:D,"TD Canadian Index Fund -e (TDB900)",Transactions!C:C,{"Dividend"})))) -> 0 | T10: =IF(A10="","",(R10*(VLOOKUP(A10,'Price Data All Dates'!A:B,2,FALSE)))) -> 0 | U10: 0 | V10: =IF($A10="","",SUM((SUMIFS(Transactions!E:E,Transactions!A:A,"<="&'Running Portfolio Value'!$A10,Transactions!B:B,"RRSP",Transactions!D:D,"TD US Index Fund -e (TDB902)",Transactions!C:C,{"Buy","Dividend","Switch to"})))-SUM((SUMIFS(Transactions!E:E,Transactions!A:A,"<="&'Running Portfolio Value'!A10,Transactions!B:B,"RRSP",Transactions!D:D,"TD US Index Fund -e (TDB902)",Transactions!C:C,{"Sell","Switch from"})))) -> 0 | W10: =IF(A10="","",(SUM((SUMIFS(Transactions!G:G,Transactions!A:A,"<="&'Running Portfolio Value'!A10,Transactions!B:B,"RRSP",Transactions!D:D,"TD US Index Fund -e (TDB902)",Transactions!C:C,{"Buy","Dividend","Switch to"})))-SUM((SUMIFS(Transactions!E:E,Transactions!A:A,"<="&'Running Portfolio Value'!A10,Transactions!B:B,"RRSP",Transactions!D:D,"TD US Index Fund -e (TDB902)",Transactions!C:C,{"Sell","Switch from"}))))-SUM((SUMIFS(Transactions!G:G,Transactions!A:A,"<="&'Running Portfolio Value'!A10,Transactions!B:B,"RRSP",Transactions!D:D,"TD US Index Fund -e (TDB902)",Transactions!C:C,{"Dividend"})))) -> 0 | X10: =IF(A10="","",(V10*(VLOOKUP(A10,'Price Data All Dates'!A:C,3,FALSE)))) -> 0 | Y10: 0 | Z10: =IF($A10="","",SUM((SUMIFS(Transactions!E:E,Transactions!A:A,"<="&'Running Portfolio Value'!$A10,Transactions!B:B,"RRSP",Transactions!D:D,"TD International Fund -e (TDB911)",Transactions!C:C,{"Buy","Dividend","Switch to"})))-SUM((SUMIFS(Transactions!E:E,Transactions!A:A,"<="&'Running Portfolio Value'!A10,Transactions!B:B,"RRSP",Transactions!D:D,"TD International Fund -e (TDB911)",Transactions!C:C,{"Sell","Switch from"})))) -> 0 | AA10: =IF(A10="","",(SUM((SUMIFS(Transactions!G:G,Transactions!A:A,"<="&'Running Portfolio Value'!A10,Transactions!B:B,"RRSP",Transactions!D:D,"TD International Fund -e (TDB911)",Transactions!C:C,{"Buy","Dividend","Switch to"})))-SUM((SUMIFS(Transactions!E:E,Transactions!A:A,"<="&'Running Portfolio Value'!A10,Transactions!B:B,"RRSP",Transactions!D:D,"TD International Fund -e (TDB911)",Transactions!C:C,{"Sell","Switch from"}))))-SUM((SUMIFS(Transactions!G:G,Transactions!A:A,"<="&'Running Portfolio Value'!A10,Transactions!B:B,"RRSP",Transactions!D:D,"TD International Fund -e (TDB911)",Transactions!C:C,{"Dividend"})))) -> 0 | AB10: =IF(A10="","",(Z10*(VLOOKUP(A10,'Price Data All Dates'!A:D,4,FALSE)))) -> 0 | AC10: 0 | AD10: =IF($A10="","",SUM((SUMIFS(Transactions!E:E,Transactions!A:A,"<="&'Running Portfolio Value'!$A10,Transactions!B:B,"RRSP",Transactions!D:D,"TD Canadian Bond Index Fund -e (TDB909)",Transactions!C:C,{"Buy","Dividend","Switch to"})))-SUM((SUMIFS(Transactions!E:E,Transactions!A:A,"<="&'Running Portfolio Value'!A10,Transactions!B:B,"RRSP",Transactions!D:D,"TD Canadian Bond Index Fund -e (TDB909)",Transactions!C:C,{"Sell","Switch from"})))) -> 0 | AE10: =IF(A10="","",(SUM((SUMIFS(Transactions!G:G,Transactions!A:A,"<="&'Running Portfolio Value'!A10,Transactions!B:B,"RRSP",Transactions!D:D,"TD Canadian Bond Index Fund -e (TDB909)",Transactions!C:C,{"Buy","Dividend","Switch to"})))-SUM((SUMIFS(Transactions!E:E,Transactions!A:A,"<="&'Running Portfolio Value'!A10,Transactions!B:B,"RRSP",Transactions!D:D,"TD Canadian Bond Index Fund -e (TDB909)",Transactions!C:C,{"Sell","Switch from"}))))-SUM((SUMIFS(Transactions!G:G,Transactions!A:A,"<="&'Running Portfolio Value'!A10,Transactions!B:B,"RRSP",Transactions!D:D,"TD Canadian Bond Index Fund -e (TDB909)",Transactions!C:C,{"Dividend"})))) -> 0 | AF10: =IF(A10="","",(AD10*(VLOOKUP(A10,'Price Data All Dates'!A:E,5,FALSE)))) -> 0 | AG10: 0 | AH10: 0 | AI10: 0 | AJ10: 0 | AK10: 0 | AL10: 0 | AM10: 0
A11: =IF(TODAY()-(ROW()-3)>MIN(Transactions!A:A),TODAY()-(ROW()-3),"") -> 2018-05-02 | B11: =IF(A11="","",SUM((SUMIFS(Transactions!E:E,Transactions!A:A,"<="&'Running Portfolio Value'!A11,Transactions!B:B,"TFSA",Transactions!D:D,"TD Canadian Index Fund -e (TDB900)",Transactions!C:C,{"Buy","Dividend","Switch to"})))-SUM((SUMIFS(Transactions!E:E,Transactions!A:A,"<="&'Running Portfolio Value'!A11,Transactions!B:B,"TFSA",Transactions!D:D,"TD Canadian Index Fund -e (TDB900)",Transactions!C:C,{"Sell","Switch from"})))) -> 0 | C11: =IF(A11="","",(SUM((SUMIFS(Transactions!G:G,Transactions!A:A,"<="&'Running Portfolio Value'!A11,Transactions!B:B,"TFSA",Transactions!D:D,"TD Canadian Index Fund -e (TDB900)",Transactions!C:C,{"Buy","Dividend","Switch to"})))-SUM((SUMIFS(Transactions!E:E,Transactions!A:A,"<="&'Running Portfolio Value'!A11,Transactions!B:B,"TFSA",Transactions!D:D,"TD Canadian Index Fund -e (TDB900)",Transactions!C:C,{"Sell","Switch from"}))))-SUM((SUMIFS(Transactions!G:G,Transactions!A:A,"<="&'Running Portfolio Value'!A11,Transactions!B:B,"TFSA",Transactions!D:D,"TD Canadian Index Fund -e (TDB900)",Transactions!C:C,{"Dividend"})))) -> 0 | D11: =IF(A11="","",(B11*(VLOOKUP(A11,'Price Data All Dates'!A:B,2,FALSE)))) -> 0 | E11: 0 | F11: =IF($A11="","",SUM((SUMIFS(Transactions!E:E,Transactions!A:A,"<="&'Running Portfolio Value'!$A11,Transactions!B:B,"TFSA",Transactions!D:D,"TD US Index Fund -e (TDB902)",Transactions!C:C,{"Buy","Dividend","Switch to"})))-SUM((SUMIFS(Transactions!E:E,Transactions!A:A,"<="&'Running Portfolio Value'!A11,Transactions!B:B,"TFSA",Transactions!D:D,"TD US Index Fund -e (TDB902)",Transactions!C:C,{"Sell","Switch from"})))) -> 0 | G11: =IF(A11="","",(SUM((SUMIFS(Transactions!G:G,Transactions!A:A,"<="&'Running Portfolio Value'!A11,Transactions!B:B,"TFSA",Transactions!D:D,"TD US Index Fund -e (TDB902)",Transactions!C:C,{"Buy","Dividend","Switch to"})))-SUM((SUMIFS(Transactions!E:E,Transactions!A:A,"<="&'Running Portfolio Value'!A11,Transactions!B:B,"TFSA",Transactions!D:D,"TD US Index Fund -e (TDB902)",Transactions!C:C,{"Sell","Switch from"}))))-SUM((SUMIFS(Transactions!G:G,Transactions!A:A,"<="&'Running Portfolio Value'!A11,Transactions!B:B,"TFSA",Transactions!D:D,"TD US Index Fund -e (TDB902)",Transactions!C:C,{"Dividend"})))) -> 0 | H11: =IF(A11="","",(F11*(VLOOKUP(A11,'Price Data All Dates'!A:C,3,FALSE)))) -> 0 | I11: 0 | J11: =IF($A11="","",SUM((SUMIFS(Transactions!E:E,Transactions!A:A,"<="&'Running Portfolio Value'!$A11,Transactions!B:B,"TFSA",Transactions!D:D,"TD International Fund -e (TDB911)",Transactions!C:C,{"Buy","Dividend","Switch to"})))-SUM((SUMIFS(Transactions!E:E,Transactions!A:A,"<="&'Running Portfolio Value'!A11,Transactions!B:B,"TFSA",Transactions!D:D,"TD International Fund -e (TDB911)",Transactions!C:C,{"Sell","Switch from"})))) -> 0 | K11: =IF(A11="","",(SUM((SUMIFS(Transactions!G:G,Transactions!A:A,"<="&'Running Portfolio Value'!A11,Transactions!B:B,"TFSA",Transactions!D:D,"TD International Fund -e (TDB911)",Transactions!C:C,{"Buy","Dividend","Switch to"})))-SUM((SUMIFS(Transactions!E:E,Transactions!A:A,"<="&'Running Portfolio Value'!A11,Transactions!B:B,"TFSA",Transactions!D:D,"TD International Fund -e (TDB911)",Transactions!C:C,{"Sell","Switch from"}))))-SUM((SUMIFS(Transactions!G:G,Transactions!A:A,"<="&'Running Portfolio Value'!A11,Transactions!B:B,"TFSA",Transactions!D:D,"TD International Fund -e (TDB911)",Transactions!C:C,{"Dividend"})))) -> 0 | L11: =IF(A11="","",(J11*(VLOOKUP(A11,'Price Data All Dates'!A:D,4,FALSE)))) -> 0 | M11: 0 | N11: =IF($A11="","",SUM((SUMIFS(Transactions!E:E,Transactions!A:A,"<="&'Running Portfolio Value'!$A11,Transactions!B:B,"TFSA",Transactions!D:D,"TD Canadian Bond Index Fund -e (TDB909)",Transactions!C:C,{"Buy","Dividend","Switch to"})))-SUM((SUMIFS(Transactions!E:E,Transactions!A:A,"<="&'Running Portfolio Value'!A11,Transactions!B:B,"TFSA",Transactions!D:D,"TD Canadian Bond Index Fund -e (TDB909)",Transactions!C:C,{"Sell","Switch from"})))) -> 0 | O11: =IF(A11="","",(SUM((SUMIFS(Transactions!G:G,Transactions!A:A,"<="&'Running Portfolio Value'!A11,Transactions!B:B,"TFSA",Transactions!D:D,"TD Canadian Bond Index Fund -e (TDB909)",Transactions!C:C,{"Buy","Dividend","Switch to"})))-SUM((SUMIFS(Transactions!E:E,Transactions!A:A,"<="&'Running Portfolio Value'!A11,Transactions!B:B,"TFSA",Transactions!D:D,"TD Canadian Bond Index Fund -e (TDB909)",Transactions!C:C,{"Sell","Switch from"}))))-SUM((SUMIFS(Transactions!G:G,Transactions!A:A,"<="&'Running Portfolio Value'!A11,Transactions!B:B,"TFSA",Transactions!D:D,"TD Canadian Bond Index Fund -e (TDB909)",Transactions!C:C,{"Dividend"})))) -> 0 | P11: =IF(A11="","",(N11*(VLOOKUP(A11,'Price Data All Dates'!A:E,5,FALSE)))) -> 0 | Q11: 0 | R11: =IF($A11="","",SUM((SUMIFS(Transactions!E:E,Transactions!A:A,"<="&'Running Portfolio Value'!$A11,Transactions!B:B,"RRSP",Transactions!D:D,"TD Canadian Index Fund -e (TDB900)",Transactions!C:C,{"Buy","Dividend","Switch to"})))-SUM((SUMIFS(Transactions!E:E,Transactions!A:A,"<="&'Running Portfolio Value'!A11,Transactions!B:B,"RRSP",Transactions!D:D,"TD Canadian Index Fund -e (TDB900)",Transactions!C:C,{"Sell","Switch from"})))) -> 0 | S11: =IF(A11="","",(SUM((SUMIFS(Transactions!G:G,Transactions!A:A,"<="&'Running Portfolio Value'!A11,Transactions!B:B,"RRSP",Transactions!D:D,"TD Canadian Index Fund -e (TDB900)",Transactions!C:C,{"Buy","Dividend","Switch to"})))-SUM((SUMIFS(Transactions!E:E,Transactions!A:A,"<="&'Running Portfolio Value'!A11,Transactions!B:B,"RRSP",Transactions!D:D,"TD Canadian Index Fund -e (TDB900)",Transactions!C:C,{"Sell","Switch from"}))))-SUM((SUMIFS(Transactions!G:G,Transactions!A:A,"<="&'Running Portfolio Value'!A11,Transactions!B:B,"RRSP",Transactions!D:D,"TD Canadian Index Fund -e (TDB900)",Transactions!C:C,{"Dividend"})))) -> 0 | T11: =IF(A11="","",(R11*(VLOOKUP(A11,'Price Data All Dates'!A:B,2,FALSE)))) -> 0 | U11: 0 | V11: =IF($A11="","",SUM((SUMIFS(Transactions!E:E,Transactions!A:A,"<="&'Running Portfolio Value'!$A11,Transactions!B:B,"RRSP",Transactions!D:D,"TD US Index Fund -e (TDB902)",Transactions!C:C,{"Buy","Dividend","Switch to"})))-SUM((SUMIFS(Transactions!E:E,Transactions!A:A,"<="&'Running Portfolio Value'!A11,Transactions!B:B,"RRSP",Transactions!D:D,"TD US Index Fund -e (TDB902)",Transactions!C:C,{"Sell","Switch from"})))) -> 0 | W11: =IF(A11="","",(SUM((SUMIFS(Transactions!G:G,Transactions!A:A,"<="&'Running Portfolio Value'!A11,Transactions!B:B,"RRSP",Transactions!D:D,"TD US Index Fund -e (TDB902)",Transactions!C:C,{"Buy","Dividend","Switch to"})))-SUM((SUMIFS(Transactions!E:E,Transactions!A:A,"<="&'Running Portfolio Value'!A11,Transactions!B:B,"RRSP",Transactions!D:D,"TD US Index Fund -e (TDB902)",Transactions!C:C,{"Sell","Switch from"}))))-SUM((SUMIFS(Transactions!G:G,Transactions!A:A,"<="&'Running Portfolio Value'!A11,Transactions!B:B,"RRSP",Transactions!D:D,"TD US Index Fund -e (TDB902)",Transactions!C:C,{"Dividend"})))) -> 0 | X11: =IF(A11="","",(V11*(VLOOKUP(A11,'Price Data All Dates'!A:C,3,FALSE)))) -> 0 | Y11: 0 | Z11: =IF($A11="","",SUM((SUMIFS(Transactions!E:E,Transactions!A:A,"<="&'Running Portfolio Value'!$A11,Transactions!B:B,"RRSP",Transactions!D:D,"TD International Fund -e (TDB911)",Transactions!C:C,{"Buy","Dividend","Switch to"})))-SUM((SUMIFS(Transactions!E:E,Transactions!A:A,"<="&'Running Portfolio Value'!A11,Transactions!B:B,"RRSP",Transactions!D:D,"TD International Fund -e (TDB911)",Transactions!C:C,{"Sell","Switch from"})))) -> 0 | AA11: =IF(A11="","",(SUM((SUMIFS(Transactions!G:G,Transactions!A:A,"<="&'Running Portfolio Value'!A11,Transactions!B:B,"RRSP",Transactions!D:D,"TD International Fund -e (TDB911)",Transactions!C:C,{"Buy","Dividend","Switch to"})))-SUM((SUMIFS(Transactions!E:E,Transactions!A:A,"<="&'Running Portfolio Value'!A11,Transactions!B:B,"RRSP",Transactions!D:D,"TD International Fund -e (TDB911)",Transactions!C:C,{"Sell","Switch from"}))))-SUM((SUMIFS(Transactions!G:G,Transactions!A:A,"<="&'Running Portfolio Value'!A11,Transactions!B:B,"RRSP",Transactions!D:D,"TD International Fund -e (TDB911)",Transactions!C:C,{"Dividend"})))) -> 0 | AB11: =IF(A11="","",(Z11*(VLOOKUP(A11,'Price Data All Dates'!A:D,4,FALSE)))) -> 0 | AC11: 0 | AD11: =IF($A11="","",SUM((SUMIFS(Transactions!E:E,Transactions!A:A,"<="&'Running Portfolio Value'!$A11,Transactions!B:B,"RRSP",Transactions!D:D,"TD Canadian Bond Index Fund -e (TDB909)",Transactions!C:C,{"Buy","Dividend","Switch to"})))-SUM((SUMIFS(Transactions!E:E,Transactions!A:A,"<="&'Running Portfolio Value'!A11,Transactions!B:B,"RRSP",Transactions!D:D,"TD Canadian Bond Index Fund -e (TDB909)",Transactions!C:C,{"Sell","Switch from"})))) -> 0 | AE11: =IF(A11="","",(SUM((SUMIFS(Transactions!G:G,Transactions!A:A,"<="&'Running Portfolio Value'!A11,Transactions!B:B,"RRSP",Transactions!D:D,"TD Canadian Bond Index Fund -e (TDB909)",Transactions!C:C,{"Buy","Dividend","Switch to"})))-SUM((SUMIFS(Transactions!E:E,Transactions!A:A,"<="&'Running Portfolio Value'!A11,Transactions!B:B,"RRSP",Transactions!D:D,"TD Canadian Bond Index Fund -e (TDB909)",Transactions!C:C,{"Sell","Switch from"}))))-SUM((SUMIFS(Transactions!G:G,Transactions!A:A,"<="&'Running Portfolio Value'!A11,Transactions!B:B,"RRSP",Transactions!D:D,"TD Canadian Bond Index Fund -e (TDB909)",Transactions!C:C,{"Dividend"})))) -> 0 | AF11: =IF(A11="","",(AD11*(VLOOKUP(A11,'Price Data All Dates'!A:E,5,FALSE)))) -> 0 | AG11: 0 | AH11: 0 | AI11: 0 | AJ11: 0 | AK11: 0 | AL11: 0 | AM11: 0
A12: =IF(TODAY()-(ROW()-3)>MIN(Transactions!A:A),TODAY()-(ROW()-3),"") -> 2018-05-01 | B12: =IF(A12="","",SUM((SUMIFS(Transactions!E:E,Transactions!A:A,"<="&'Running Portfolio Value'!A12,Transactions!B:B,"TFSA",Transactions!D:D,"TD Canadian Index Fund -e (TDB900)",Transactions!C:C,{"Buy","Dividend","Switch to"})))-SUM((SUMIFS(Transactions!E:E,Transactions!A:A,"<="&'Running Portfolio Value'!A12,Transactions!B:B,"TFSA",Transactions!D:D,"TD Canadian Index Fund -e (TDB900)",Transactions!C:C,{"Sell","Switch from"})))) -> 0 | C12: =IF(A12="","",(SUM((SUMIFS(Transactions!G:G,Transactions!A:A,"<="&'Running Portfolio Value'!A12,Transactions!B:B,"TFSA",Transactions!D:D,"TD Canadian Index Fund -e (TDB900)",Transactions!C:C,{"Buy","Dividend","Switch to"})))-SUM((SUMIFS(Transactions!E:E,Transactions!A:A,"<="&'Running Portfolio Value'!A12,Transactions!B:B,"TFSA",Transactions!D:D,"TD Canadian Index Fund -e (TDB900)",Transactions!C:C,{"Sell","Switch from"}))))-SUM((SUMIFS(Transactions!G:G,Transactions!A:A,"<="&'Running Portfolio Value'!A12,Transactions!B:B,"TFSA",Transactions!D:D,"TD Canadian Index Fund -e (TDB900)",Transactions!C:C,{"Dividend"})))) -> 0 | D12: =IF(A12="","",(B12*(VLOOKUP(A12,'Price Data All Dates'!A:B,2,FALSE)))) -> 0 | E12: 0 | F12: =IF($A12="","",SUM((SUMIFS(Transactions!E:E,Transactions!A:A,"<="&'Running Portfolio Value'!$A12,Transactions!B:B,"TFSA",Transactions!D:D,"TD US Index Fund -e (TDB902)",Transactions!C:C,{"Buy","Dividend","Switch to"})))-SUM((SUMIFS(Transactions!E:E,Transactions!A:A,"<="&'Running Portfolio Value'!A12,Transactions!B:B,"TFSA",Transactions!D:D,"TD US Index Fund -e (TDB902)",Transactions!C:C,{"Sell","Switch from"})))) -> 0 | G12: =IF(A12="","",(SUM((SUMIFS(Transactions!G:G,Transactions!A:A,"<="&'Running Portfolio Value'!A12,Transactions!B:B,"TFSA",Transactions!D:D,"TD US Index Fund -e (TDB902)",Transactions!C:C,{"Buy","Dividend","Switch to"})))-SUM((SUMIFS(Transactions!E:E,Transactions!A:A,"<="&'Running Portfolio Value'!A12,Transactions!B:B,"TFSA",Transactions!D:D,"TD US Index Fund -e (TDB902)",Transactions!C:C,{"Sell","Switch from"}))))-SUM((SUMIFS(Transactions!G:G,Transactions!A:A,"<="&'Running Portfolio Value'!A12,Transactions!B:B,"TFSA",Transactions!D:D,"TD US Index Fund -e (TDB902)",Transactions!C:C,{"Dividend"})))) -> 0 | H12: =IF(A12="","",(F12*(VLOOKUP(A12,'Price Data All Dates'!A:C,3,FALSE)))) -> 0 | I12: 0 | J12: =IF($A12="","",SUM((SUMIFS(Transactions!E:E,Transactions!A:A,"<="&'Running Portfolio Value'!$A12,Transactions!B:B,"TFSA",Transactions!D:D,"TD International Fund -e (TDB911)",Transactions!C:C,{"Buy","Dividend","Switch to"})))-SUM((SUMIFS(Transactions!E:E,Transactions!A:A,"<="&'Running Portfolio Value'!A12,Transactions!B:B,"TFSA",Transactions!D:D,"TD International Fund -e (TDB911)",Transactions!C:C,{"Sell","Switch from"})))) -> 0 | K12: =IF(A12="","",(SUM((SUMIFS(Transactions!G:G,Transactions!A:A,"<="&'Running Portfolio Value'!A12,Transactions!B:B,"TFSA",Transactions!D:D,"TD International Fund -e (TDB911)",Transactions!C:C,{"Buy","Dividend","Switch to"})))-SUM((SUMIFS(Transactions!E:E,Transactions!A:A,"<="&'Running Portfolio Value'!A12,Transactions!B:B,"TFSA",Transactions!D:D,"TD International Fund -e (TDB911)",Transactions!C:C,{"Sell","Switch from"}))))-SUM((SUMIFS(Transactions!G:G,Transactions!A:A,"<="&'Running Portfolio Value'!A12,Transactions!B:B,"TFSA",Transactions!D:D,"TD International Fund -e (TDB911)",Transactions!C:C,{"Dividend"})))) -> 0 | L12: =IF(A12="","",(J12*(VLOOKUP(A12,'Price Data All Dates'!A:D,4,FALSE)))) -> 0 | M12: 0 | N12: =IF($A12="","",SUM((SUMIFS(Transactions!E:E,Transactions!A:A,"<="&'Running Portfolio Value'!$A12,Transactions!B:B,"TFSA",Transactions!D:D,"TD Canadian Bond Index Fund -e (TDB909)",Transactions!C:C,{"Buy","Dividend","Switch to"})))-SUM((SUMIFS(Transactions!E:E,Transactions!A:A,"<="&'Running Portfolio Value'!A12,Transactions!B:B,"TFSA",Transactions!D:D,"TD Canadian Bond Index Fund -e (TDB909)",Transactions!C:C,{"Sell","Switch from"})))) -> 0 | O12: =IF(A12="","",(SUM((SUMIFS(Transactions!G:G,Transactions!A:A,"<="&'Running Portfolio Value'!A12,Transactions!B:B,"TFSA",Transactions!D:D,"TD Canadian Bond Index Fund -e (TDB909)",Transactions!C:C,{"Buy","Dividend","Switch to"})))-SUM((SUMIFS(Transactions!E:E,Transactions!A:A,"<="&'Running Portfolio Value'!A12,Transactions!B:B,"TFSA",Transactions!D:D,"TD Canadian Bond Index Fund -e (TDB909)",Transactions!C:C,{"Sell","Switch from"}))))-SUM((SUMIFS(Transactions!G:G,Transactions!A:A,"<="&'Running Portfolio Value'!A12,Transactions!B:B,"TFSA",Transactions!D:D,"TD Canadian Bond Index Fund -e (TDB909)",Transactions!C:C,{"Dividend"})))) -> 0 | P12: =IF(A12="","",(N12*(VLOOKUP(A12,'Price Data All Dates'!A:E,5,FALSE)))) -> 0 | Q12: 0 | R12: =IF($A12="","",SUM((SUMIFS(Transactions!E:E,Transactions!A:A,"<="&'Running Portfolio Value'!$A12,Transactions!B:B,"RRSP",Transactions!D:D,"TD Canadian Index Fund -e (TDB900)",Transactions!C:C,{"Buy","Dividend","Switch to"})))-SUM((SUMIFS(Transactions!E:E,Transactions!A:A,"<="&'Running Portfolio Value'!A12,Transactions!B:B,"RRSP",Transactions!D:D,"TD Canadian Index Fund -e (TDB900)",Transactions!C:C,{"Sell","Switch from"})))) -> 0 | S12: =IF(A12="","",(SUM((SUMIFS(Transactions!G:G,Transactions!A:A,"<="&'Running Portfolio Value'!A12,Transactions!B:B,"RRSP",Transactions!D:D,"TD Canadian Index Fund -e (TDB900)",Transactions!C:C,{"Buy","Dividend","Switch to"})))-SUM((SUMIFS(Transactions!E:E,Transactions!A:A,"<="&'Running Portfolio Value'!A12,Transactions!B:B,"RRSP",Transactions!D:D,"TD Canadian Index Fund -e (TDB900)",Transactions!C:C,{"Sell","Switch from"}))))-SUM((SUMIFS(Transactions!G:G,Transactions!A:A,"<="&'Running Portfolio Value'!A12,Transactions!B:B,"RRSP",Transactions!D:D,"TD Canadian Index Fund -e (TDB900)",Transactions!C:C,{"Dividend"})))) -> 0 | T12: =IF(A12="","",(R12*(VLOOKUP(A12,'Price Data All Dates'!A:B,2,FALSE)))) -> 0 | U12: 0 | V12: =IF($A12="","",SUM((SUMIFS(Transactions!E:E,Transactions!A:A,"<="&'Running Portfolio Value'!$A12,Transactions!B:B,"RRSP",Transactions!D:D,"TD US Index Fund -e (TDB902)",Transactions!C:C,{"Buy","Dividend","Switch to"})))-SUM((SUMIFS(Transactions!E:E,Transactions!A:A,"<="&'Running Portfolio Value'!A12,Transactions!B:B,"RRSP",Transactions!D:D,"TD US Index Fund -e (TDB902)",Transactions!C:C,{"Sell","Switch from"})))) -> 0 | W12: =IF(A12="","",(SUM((SUMIFS(Transactions!G:G,Transactions!A:A,"<="&'Running Portfolio Value'!A12,Transactions!B:B,"RRSP",Transactions!D:D,"TD US Index Fund -e (TDB902)",Transactions!C:C,{"Buy","Dividend","Switch to"})))-SUM((SUMIFS(Transactions!E:E,Transactions!A:A,"<="&'Running Portfolio Value'!A12,Transactions!B:B,"RRSP",Transactions!D:D,"TD US Index Fund -e (TDB902)",Transactions!C:C,{"Sell","Switch from"}))))-SUM((SUMIFS(Transactions!G:G,Transactions!A:A,"<="&'Running Portfolio Value'!A12,Transactions!B:B,"RRSP",Transactions!D:D,"TD US Index Fund -e (TDB902)",Transactions!C:C,{"Dividend"})))) -> 0 | X12: =IF(A12="","",(V12*(VLOOKUP(A12,'Price Data All Dates'!A:C,3,FALSE)))) -> 0 | Y12: 0 | Z12: =IF($A12="","",SUM((SUMIFS(Transactions!E:E,Transactions!A:A,"<="&'Running Portfolio Value'!$A12,Transactions!B:B,"RRSP",Transactions!D:D,"TD International Fund -e (TDB911)",Transactions!C:C,{"Buy","Dividend","Switch to"})))-SUM((SUMIFS(Transactions!E:E,Transactions!A:A,"<="&'Running Portfolio Value'!A12,Transactions!B:B,"RRSP",Transactions!D:D,"TD International Fund -e (TDB911)",Transactions!C:C,{"Sell","Switch from"})))) -> 0 | AA12: =IF(A12="","",(SUM((SUMIFS(Transactions!G:G,Transactions!A:A,"<="&'Running Portfolio Value'!A12,Transactions!B:B,"RRSP",Transactions!D:D,"TD International Fund -e (TDB911)",Transactions!C:C,{"Buy","Dividend","Switch to"})))-SUM((SUMIFS(Transactions!E:E,Transactions!A:A,"<="&'Running Portfolio Value'!A12,Transactions!B:B,"RRSP",Transactions!D:D,"TD International Fund -e (TDB911)",Transactions!C:C,{"Sell","Switch from"}))))-SUM((SUMIFS(Transactions!G:G,Transactions!A:A,"<="&'Running Portfolio Value'!A12,Transactions!B:B,"RRSP",Transactions!D:D,"TD International Fund -e (TDB911)",Transactions!C:C,{"Dividend"})))) -> 0 | AB12: =IF(A12="","",(Z12*(VLOOKUP(A12,'Price Data All Dates'!A:D,4,FALSE)))) -> 0 | AC12: 0 | AD12: =IF($A12="","",SUM((SUMIFS(Transactions!E:E,Transactions!A:A,"<="&'Running Portfolio Value'!$A12,Transactions!B:B,"RRSP",Transactions!D:D,"TD Canadian Bond Index Fund -e (TDB909)",Transactions!C:C,{"Buy","Dividend","Switch to"})))-SUM((SUMIFS(Transactions!E:E,Transactions!A:A,"<="&'Running Portfolio Value'!A12,Transactions!B:B,"RRSP",Transactions!D:D,"TD Canadian Bond Index Fund -e (TDB909)",Transactions!C:C,{"Sell","Switch from"})))) -> 0 | AE12: =IF(A12="","",(SUM((SUMIFS(Transactions!G:G,Transactions!A:A,"<="&'Running Portfolio Value'!A12,Transactions!B:B,"RRSP",Transactions!D:D,"TD Canadian Bond Index Fund -e (TDB909)",Transactions!C:C,{"Buy","Dividend","Switch to"})))-SUM((SUMIFS(Transactions!E:E,Transactions!A:A,"<="&'Running Portfolio Value'!A12,Transactions!B:B,"RRSP",Transactions!D:D,"TD Canadian Bond Index Fund -e (TDB909)",Transactions!C:C,{"Sell","Switch from"}))))-SUM((SUMIFS(Transactions!G:G,Transactions!A:A,"<="&'Running Portfolio Value'!A12,Transactions!B:B,"RRSP",Transactions!D:D,"TD Canadian Bond Index Fund -e (TDB909)",Transactions!C:C,{"Dividend"})))) -> 0 | AF12: =IF(A12="","",(AD12*(VLOOKUP(A12,'Price Data All Dates'!A:E,5,FALSE)))) -> 0 | AG12: 0 | AH12: 0 | AI12: 0 | AJ12: 0 | AK12: 0 | AL12: 0 | AM12: 0
A13: =IF(TODAY()-(ROW()-3)>MIN(Transactions!A:A),TODAY()-(ROW()-3),"") -> 2018-04-30 | B13: =IF(A13="","",SUM((SUMIFS(Transactions!E:E,Transactions!A:A,"<="&'Running Portfolio Value'!A13,Transactions!B:B,"TFSA",Transactions!D:D,"TD Canadian Index Fund -e (TDB900)",Transactions!C:C,{"Buy","Dividend","Switch to"})))-SUM((SUMIFS(Transactions!E:E,Transactions!A:A,"<="&'Running Portfolio Value'!A13,Transactions!B:B,"TFSA",Transactions!D:D,"TD Canadian Index Fund -e (TDB900)",Transactions!C:C,{"Sell","Switch from"})))) -> 0 | C13: =IF(A13="","",(SUM((SUMIFS(Transactions!G:G,Transactions!A:A,"<="&'Running Portfolio Value'!A13,Transactions!B:B,"TFSA",Transactions!D:D,"TD Canadian Index Fund -e (TDB900)",Transactions!C:C,{"Buy","Dividend","Switch to"})))-SUM((SUMIFS(Transactions!E:E,Transactions!A:A,"<="&'Running Portfolio Value'!A13,Transactions!B:B,"TFSA",Transactions!D:D,"TD Canadian Index Fund -e (TDB900)",Transactions!C:C,{"Sell","Switch from"}))))-SUM((SUMIFS(Transactions!G:G,Transactions!A:A,"<="&'Running Portfolio Value'!A13,Transactions!B:B,"TFSA",Transactions!D:D,"TD Canadian Index Fund -e (TDB900)",Transactions!C:C,{"Dividend"})))) -> 0 | D13: =IF(A13="","",(B13*(VLOOKUP(A13,'Price Data All Dates'!A:B,2,FALSE)))) -> 0 | E13: 0 | F13: =IF($A13="","",SUM((SUMIFS(Transactions!E:E,Transactions!A:A,"<="&'Running Portfolio Value'!$A13,Transactions!B:B,"TFSA",Transactions!D:D,"TD US Index Fund -e (TDB902)",Transactions!C:C,{"Buy","Dividend","Switch to"})))-SUM((SUMIFS(Transactions!E:E,Transactions!A:A,"<="&'Running Portfolio Value'!A13,Transactions!B:B,"TFSA",Transactions!D:D,"TD US Index Fund -e (TDB902)",Transactions!C:C,{"Sell","Switch from"})))) -> 0 | G13: =IF(A13="","",(SUM((SUMIFS(Transactions!G:G,Transactions!A:A,"<="&'Running Portfolio Value'!A13,Transactions!B:B,"TFSA",Transactions!D:D,"TD US Index Fund -e (TDB902)",Transactions!C:C,{"Buy","Dividend","Switch to"})))-SUM((SUMIFS(Transactions!E:E,Transactions!A:A,"<="&'Running Portfolio Value'!A13,Transactions!B:B,"TFSA",Transactions!D:D,"TD US Index Fund -e (TDB902)",Transactions!C:C,{"Sell","Switch from"}))))-SUM((SUMIFS(Transactions!G:G,Transactions!A:A,"<="&'Running Portfolio Value'!A13,Transactions!B:B,"TFSA",Transactions!D:D,"TD US Index Fund -e (TDB902)",Transactions!C:C,{"Dividend"})))) -> 0 | H13: =IF(A13="","",(F13*(VLOOKUP(A13,'Price Data All Dates'!A:C,3,FALSE)))) -> 0 | I13: 0 | J13: =IF($A13="","",SUM((SUMIFS(Transactions!E:E,Transactions!A:A,"<="&'Running Portfolio Value'!$A13,Transactions!B:B,"TFSA",Transactions!D:D,"TD International Fund -e (TDB911)",Transactions!C:C,{"Buy","Dividend","Switch to"})))-SUM((SUMIFS(Transactions!E:E,Transactions!A:A,"<="&'Running Portfolio Value'!A13,Transactions!B:B,"TFSA",Transactions!D:D,"TD International Fund -e (TDB911)",Transactions!C:C,{"Sell","Switch from"})))) -> 0 | K13: =IF(A13="","",(SUM((SUMIFS(Transactions!G:G,Transactions!A:A,"<="&'Running Portfolio Value'!A13,Transactions!B:B,"TFSA",Transactions!D:D,"TD International Fund -e (TDB911)",Transactions!C:C,{"Buy","Dividend","Switch to"})))-SUM((SUMIFS(Transactions!E:E,Transactions!A:A,"<="&'Running Portfolio Value'!A13,Transactions!B:B,"TFSA",Transactions!D:D,"TD International Fund -e (TDB911)",Transactions!C:C,{"Sell","Switch from"}))))-SUM((SUMIFS(Transactions!G:G,Transactions!A:A,"<="&'Running Portfolio Value'!A13,Transactions!B:B,"TFSA",Transactions!D:D,"TD International Fund -e (TDB911)",Transactions!C:C,{"Dividend"})))) -> 0 | L13: =IF(A13="","",(J13*(VLOOKUP(A13,'Price Data All Dates'!A:D,4,FALSE)))) -> 0 | M13: 0 | N13: =IF($A13="","",SUM((SUMIFS(Transactions!E:E,Transactions!A:A,"<="&'Running Portfolio Value'!$A13,Transactions!B:B,"TFSA",Transactions!D:D,"TD Canadian Bond Index Fund -e (TDB909)",Transactions!C:C,{"Buy","Dividend","Switch to"})))-SUM((SUMIFS(Transactions!E:E,Transactions!A:A,"<="&'Running Portfolio Value'!A13,Transactions!B:B,"TFSA",Transactions!D:D,"TD Canadian Bond Index Fund -e (TDB909)",Transactions!C:C,{"Sell","Switch from"})))) -> 0 | O13: =IF(A13="","",(SUM((SUMIFS(Transactions!G:G,Transactions!A:A,"<="&'Running Portfolio Value'!A13,Transactions!B:B,"TFSA",Transactions!D:D,"TD Canadian Bond Index Fund -e (TDB909)",Transactions!C:C,{"Buy","Dividend","Switch to"})))-SUM((SUMIFS(Transactions!E:E,Transactions!A:A,"<="&'Running Portfolio Value'!A13,Transactions!B:B,"TFSA",Transactions!D:D,"TD Canadian Bond Index Fund -e (TDB909)",Transactions!C:C,{"Sell","Switch from"}))))-SUM((SUMIFS(Transactions!G:G,Transactions!A:A,"<="&'Running Portfolio Value'!A13,Transactions!B:B,"TFSA",Transactions!D:D,"TD Canadian Bond Index Fund -e (TDB909)",Transactions!C:C,{"Dividend"})))) -> 0 | P13: =IF(A13="","",(N13*(VLOOKUP(A13,'Price Data All Dates'!A:E,5,FALSE)))) -> 0 | Q13: 0 | R13: =IF($A13="","",SUM((SUMIFS(Transactions!E:E,Transactions!A:A,"<="&'Running Portfolio Value'!$A13,Transactions!B:B,"RRSP",Transactions!D:D,"TD Canadian Index Fund -e (TDB900)",Transactions!C:C,{"Buy","Dividend","Switch to"})))-SUM((SUMIFS(Transactions!E:E,Transactions!A:A,"<="&'Running Portfolio Value'!A13,Transactions!B:B,"RRSP",Transactions!D:D,"TD Canadian Index Fund -e (TDB900)",Transactions!C:C,{"Sell","Switch from"})))) -> 0 | S13: =IF(A13="","",(SUM((SUMIFS(Transactions!G:G,Transactions!A:A,"<="&'Running Portfolio Value'!A13,Transactions!B:B,"RRSP",Transactions!D:D,"TD Canadian Index Fund -e (TDB900)",Transactions!C:C,{"Buy","Dividend","Switch to"})))-SUM((SUMIFS(Transactions!E:E,Transactions!A:A,"<="&'Running Portfolio Value'!A13,Transactions!B:B,"RRSP",Transactions!D:D,"TD Canadian Index Fund -e (TDB900)",Transactions!C:C,{"Sell","Switch from"}))))-SUM((SUMIFS(Transactions!G:G,Transactions!A:A,"<="&'Running Portfolio Value'!A13,Transactions!B:B,"RRSP",Transactions!D:D,"TD Canadian Index Fund -e (TDB900)",Transactions!C:C,{"Dividend"})))) -> 0 | T13: =IF(A13="","",(R13*(VLOOKUP(A13,'Price Data All Dates'!A:B,2,FALSE)))) -> 0 | U13: 0 | V13: =IF($A13="","",SUM((SUMIFS(Transactions!E:E,Transactions!A:A,"<="&'Running Portfolio Value'!$A13,Transactions!B:B,"RRSP",Transactions!D:D,"TD US Index Fund -e (TDB902)",Transactions!C:C,{"Buy","Dividend","Switch to"})))-SUM((SUMIFS(Transactions!E:E,Transactions!A:A,"<="&'Running Portfolio Value'!A13,Transactions!B:B,"RRSP",Transactions!D:D,"TD US Index Fund -e (TDB902)",Transactions!C:C,{"Sell","Switch from"})))) -> 0 | W13: =IF(A13="","",(SUM((SUMIFS(Transactions!G:G,Transactions!A:A,"<="&'Running Portfolio Value'!A13,Transactions!B:B,"RRSP",Transactions!D:D,"TD US Index Fund -e (TDB902)",Transactions!C:C,{"Buy","Dividend","Switch to"})))-SUM((SUMIFS(Transactions!E:E,Transactions!A:A,"<="&'Running Portfolio Value'!A13,Transactions!B:B,"RRSP",Transactions!D:D,"TD US Index Fund -e (TDB902)",Transactions!C:C,{"Sell","Switch from"}))))-SUM((SUMIFS(Transactions!G:G,Transactions!A:A,"<="&'Running Portfolio Value'!A13,Transactions!B:B,"RRSP",Transactions!D:D,"TD US Index Fund -e (TDB902)",Transactions!C:C,{"Dividend"})))) -> 0 | X13: =IF(A13="","",(V13*(VLOOKUP(A13,'Price Data All Dates'!A:C,3,FALSE)))) -> 0 | Y13: 0 | Z13: =IF($A13="","",SUM((SUMIFS(Transactions!E:E,Transactions!A:A,"<="&'Running Portfolio Value'!$A13,Transactions!B:B,"RRSP",Transactions!D:D,"TD International Fund -e (TDB911)",Transactions!C:C,{"Buy","Dividend","Switch to"})))-SUM((SUMIFS(Transactions!E:E,Transactions!A:A,"<="&'Running Portfolio Value'!A13,Transactions!B:B,"RRSP",Transactions!D:D,"TD International Fund -e (TDB911)",Transactions!C:C,{"Sell","Switch from"})))) -> 0 | AA13: =IF(A13="","",(SUM((SUMIFS(Transactions!G:G,Transactions!A:A,"<="&'Running Portfolio Value'!A13,Transactions!B:B,"RRSP",Transactions!D:D,"TD International Fund -e (TDB911)",Transactions!C:C,{"Buy","Dividend","Switch to"})))-SUM((SUMIFS(Transactions!E:E,Transactions!A:A,"<="&'Running Portfolio Value'!A13,Transactions!B:B,"RRSP",Transactions!D:D,"TD International Fund -e (TDB911)",Transactions!C:C,{"Sell","Switch from"}))))-SUM((SUMIFS(Transactions!G:G,Transactions!A:A,"<="&'Running Portfolio Value'!A13,Transactions!B:B,"RRSP",Transactions!D:D,"TD International Fund -e (TDB911)",Transactions!C:C,{"Dividend"})))) -> 0 | AB13: =IF(A13="","",(Z13*(VLOOKUP(A13,'Price Data All Dates'!A:D,4,FALSE)))) -> 0 | AC13: 0 | AD13: =IF($A13="","",SUM((SUMIFS(Transactions!E:E,Transactions!A:A,"<="&'Running Portfolio Value'!$A13,Transactions!B:B,"RRSP",Transactions!D:D,"TD Canadian Bond Index Fund -e (TDB909)",Transactions!C:C,{"Buy","Dividend","Switch to"})))-SUM((SUMIFS(Transactions!E:E,Transactions!A:A,"<="&'Running Portfolio Value'!A13,Transactions!B:B,"RRSP",Transactions!D:D,"TD Canadian Bond Index Fund -e (TDB909)",Transactions!C:C,{"Sell","Switch from"})))) -> 0 | AE13: =IF(A13="","",(SUM((SUMIFS(Transactions!G:G,Transactions!A:A,"<="&'Running Portfolio Value'!A13,Transactions!B:B,"RRSP",Transactions!D:D,"TD Canadian Bond Index Fund -e (TDB909)",Transactions!C:C,{"Buy","Dividend","Switch to"})))-SUM((SUMIFS(Transactions!E:E,Transactions!A:A,"<="&'Running Portfolio Value'!A13,Transactions!B:B,"RRSP",Transactions!D:D,"TD Canadian Bond Index Fund -e (TDB909)",Transactions!C:C,{"Sell","Switch from"}))))-SUM((SUMIFS(Transactions!G:G,Transactions!A:A,"<="&'Running Portfolio Value'!A13,Transactions!B:B,"RRSP",Transactions!D:D,"TD Canadian Bond Index Fund -e (TDB909)",Transactions!C:C,{"Dividend"})))) -> 0 | AF13: =IF(A13="","",(AD13*(VLOOKUP(A13,'Price Data All Dates'!A:E,5,FALSE)))) -> 0 | AG13: 0 | AH13: 0 | AI13: 0 | AJ13: 0 | AK13: 0 | AL13: 0 | AM13: 0
A14: =IF(TODAY()-(ROW()-3)>MIN(Transactions!A:A),TODAY()-(ROW()-3),"") -> 2018-04-29 | B14: =IF(A14="","",SUM((SUMIFS(Transactions!E:E,Transactions!A:A,"<="&'Running Portfolio Value'!A14,Transactions!B:B,"TFSA",Transactions!D:D,"TD Canadian Index Fund -e (TDB900)",Transactions!C:C,{"Buy","Dividend","Switch to"})))-SUM((SUMIFS(Transactions!E:E,Transactions!A:A,"<="&'Running Portfolio Value'!A14,Transactions!B:B,"TFSA",Transactions!D:D,"TD Canadian Index Fund -e (TDB900)",Transactions!C:C,{"Sell","Switch from"})))) -> 0 | C14: =IF(A14="","",(SUM((SUMIFS(Transactions!G:G,Transactions!A:A,"<="&'Running Portfolio Value'!A14,Transactions!B:B,"TFSA",Transactions!D:D,"TD Canadian Index Fund -e (TDB900)",Transactions!C:C,{"Buy","Dividend","Switch to"})))-SUM((SUMIFS(Transactions!E:E,Transactions!A:A,"<="&'Running Portfolio Value'!A14,Transactions!B:B,"TFSA",Transactions!D:D,"TD Canadian Index Fund -e (TDB900)",Transactions!C:C,{"Sell","Switch from"}))))-SUM((SUMIFS(Transactions!G:G,Transactions!A:A,"<="&'Running Portfolio Value'!A14,Transactions!B:B,"TFSA",Transactions!D:D,"TD Canadian Index Fund -e (TDB900)",Transactions!C:C,{"Dividend"})))) -> 0 | D14: =IF(A14="","",(B14*(VLOOKUP(A14,'Price Data All Dates'!A:B,2,FALSE)))) -> 0 | E14: 0 | F14: =IF($A14="","",SUM((SUMIFS(Transactions!E:E,Transactions!A:A,"<="&'Running Portfolio Value'!$A14,Transactions!B:B,"TFSA",Transactions!D:D,"TD US Index Fund -e (TDB902)",Transactions!C:C,{"Buy","Dividend","Switch to"})))-SUM((SUMIFS(Transactions!E:E,Transactions!A:A,"<="&'Running Portfolio Value'!A14,Transactions!B:B,"TFSA",Transactions!D:D,"TD US Index Fund -e (TDB902)",Transactions!C:C,{"Sell","Switch from"})))) -> 0 | G14: =IF(A14="","",(SUM((SUMIFS(Transactions!G:G,Transactions!A:A,"<="&'Running Portfolio Value'!A14,Transactions!B:B,"TFSA",Transactions!D:D,"TD US Index Fund -e (TDB902)",Transactions!C:C,{"Buy","Dividend","Switch to"})))-SUM((SUMIFS(Transactions!E:E,Transactions!A:A,"<="&'Running Portfolio Value'!A14,Transactions!B:B,"TFSA",Transactions!D:D,"TD US Index Fund -e (TDB902)",Transactions!C:C,{"Sell","Switch from"}))))-SUM((SUMIFS(Transactions!G:G,Transactions!A:A,"<="&'Running Portfolio Value'!A14,Transactions!B:B,"TFSA",Transactions!D:D,"TD US Index Fund -e (TDB902)",Transactions!C:C,{"Dividend"})))) -> 0 | H14: =IF(A14="","",(F14*(VLOOKUP(A14,'Price Data All Dates'!A:C,3,FALSE)))) -> 0 | I14: 0 | J14: =IF($A14="","",SUM((SUMIFS(Transactions!E:E,Transactions!A:A,"<="&'Running Portfolio Value'!$A14,Transactions!B:B,"TFSA",Transactions!D:D,"TD International Fund -e (TDB911)",Transactions!C:C,{"Buy","Dividend","Switch to"})))-SUM((SUMIFS(Transactions!E:E,Transactions!A:A,"<="&'Running Portfolio Value'!A14,Transactions!B:B,"TFSA",Transactions!D:D,"TD International Fund -e (TDB911)",Transactions!C:C,{"Sell","Switch from"})))) -> 0 | K14: =IF(A14="","",(SUM((SUMIFS(Transactions!G:G,Transactions!A:A,"<="&'Running Portfolio Value'!A14,Transactions!B:B,"TFSA",Transactions!D:D,"TD International Fund -e (TDB911)",Transactions!C:C,{"Buy","Dividend","Switch to"})))-SUM((SUMIFS(Transactions!E:E,Transactions!A:A,"<="&'Running Portfolio Value'!A14,Transactions!B:B,"TFSA",Transactions!D:D,"TD International Fund -e (TDB911)",Transactions!C:C,{"Sell","Switch from"}))))-SUM((SUMIFS(Transactions!G:G,Transactions!A:A,"<="&'Running Portfolio Value'!A14,Transactions!B:B,"TFSA",Transactions!D:D,"TD International Fund -e (TDB911)",Transactions!C:C,{"Dividend"})))) -> 0 | L14: =IF(A14="","",(J14*(VLOOKUP(A14,'Price Data All Dates'!A:D,4,FALSE)))) -> 0 | M14: 0 | N14: =IF($A14="","",SUM((SUMIFS(Transactions!E:E,Transactions!A:A,"<="&'Running Portfolio Value'!$A14,Transactions!B:B,"TFSA",Transactions!D:D,"TD Canadian Bond Index Fund -e (TDB909)",Transactions!C:C,{"Buy","Dividend","Switch to"})))-SUM((SUMIFS(Transactions!E:E,Transactions!A:A,"<="&'Running Portfolio Value'!A14,Transactions!B:B,"TFSA",Transactions!D:D,"TD Canadian Bond Index Fund -e (TDB909)",Transactions!C:C,{"Sell","Switch from"})))) -> 0 | O14: =IF(A14="","",(SUM((SUMIFS(Transactions!G:G,Transactions!A:A,"<="&'Running Portfolio Value'!A14,Transactions!B:B,"TFSA",Transactions!D:D,"TD Canadian Bond Index Fund -e (TDB909)",Transactions!C:C,{"Buy","Dividend","Switch to"})))-SUM((SUMIFS(Transactions!E:E,Transactions!A:A,"<="&'Running Portfolio Value'!A14,Transactions!B:B,"TFSA",Transactions!D:D,"TD Canadian Bond Index Fund -e (TDB909)",Transactions!C:C,{"Sell","Switch from"}))))-SUM((SUMIFS(Transactions!G:G,Transactions!A:A,"<="&'Running Portfolio Value'!A14,Transactions!B:B,"TFSA",Transactions!D:D,"TD Canadian Bond Index Fund -e (TDB909)",Transactions!C:C,{"Dividend"})))) -> 0 | P14: =IF(A14="","",(N14*(VLOOKUP(A14,'Price Data All Dates'!A:E,5,FALSE)))) -> 0 | Q14: 0 | R14: =IF($A14="","",SUM((SUMIFS(Transactions!E:E,Transactions!A:A,"<="&'Running Portfolio Value'!$A14,Transactions!B:B,"RRSP",Transactions!D:D,"TD Canadian Index Fund -e (TDB900)",Transactions!C:C,{"Buy","Dividend","Switch to"})))-SUM((SUMIFS(Transactions!E:E,Transactions!A:A,"<="&'Running Portfolio Value'!A14,Transactions!B:B,"RRSP",Transactions!D:D,"TD Canadian Index Fund -e (TDB900)",Transactions!C:C,{"Sell","Switch from"})))) -> 0 | S14: =IF(A14="","",(SUM((SUMIFS(Transactions!G:G,Transactions!A:A,"<="&'Running Portfolio Value'!A14,Transactions!B:B,"RRSP",Transactions!D:D,"TD Canadian Index Fund -e (TDB900)",Transactions!C:C,{"Buy","Dividend","Switch to"})))-SUM((SUMIFS(Transactions!E:E,Transactions!A:A,"<="&'Running Portfolio Value'!A14,Transactions!B:B,"RRSP",Transactions!D:D,"TD Canadian Index Fund -e (TDB900)",Transactions!C:C,{"Sell","Switch from"}))))-SUM((SUMIFS(Transactions!G:G,Transactions!A:A,"<="&'Running Portfolio Value'!A14,Transactions!B:B,"RRSP",Transactions!D:D,"TD Canadian Index Fund -e (TDB900)",Transactions!C:C,{"Dividend"})))) -> 0 | T14: =IF(A14="","",(R14*(VLOOKUP(A14,'Price Data All Dates'!A:B,2,FALSE)))) -> 0 | U14: 0 | V14: =IF($A14="","",SUM((SUMIFS(Transactions!E:E,Transactions!A:A,"<="&'Running Portfolio Value'!$A14,Transactions!B:B,"RRSP",Transactions!D:D,"TD US Index Fund -e (TDB902)",Transactions!C:C,{"Buy","Dividend","Switch to"})))-SUM((SUMIFS(Transactions!E:E,Transactions!A:A,"<="&'Running Portfolio Value'!A14,Transactions!B:B,"RRSP",Transactions!D:D,"TD US Index Fund -e (TDB902)",Transactions!C:C,{"Sell","Switch from"})))) -> 0 | W14: =IF(A14="","",(SUM((SUMIFS(Transactions!G:G,Transactions!A:A,"<="&'Running Portfolio Value'!A14,Transactions!B:B,"RRSP",Transactions!D:D,"TD US Index Fund -e (TDB902)",Transactions!C:C,{"Buy","Dividend","Switch to"})))-SUM((SUMIFS(Transactions!E:E,Transactions!A:A,"<="&'Running Portfolio Value'!A14,Transactions!B:B,"RRSP",Transactions!D:D,"TD US Index Fund -e (TDB902)",Transactions!C:C,{"Sell","Switch from"}))))-SUM((SUMIFS(Transactions!G:G,Transactions!A:A,"<="&'Running Portfolio Value'!A14,Transactions!B:B,"RRSP",Transactions!D:D,"TD US Index Fund -e (TDB902)",Transactions!C:C,{"Dividend"})))) -> 0 | X14: =IF(A14="","",(V14*(VLOOKUP(A14,'Price Data All Dates'!A:C,3,FALSE)))) -> 0 | Y14: 0 | Z14: =IF($A14="","",SUM((SUMIFS(Transactions!E:E,Transactions!A:A,"<="&'Running Portfolio Value'!$A14,Transactions!B:B,"RRSP",Transactions!D:D,"TD International Fund -e (TDB911)",Transactions!C:C,{"Buy","Dividend","Switch to"})))-SUM((SUMIFS(Transactions!E:E,Transactions!A:A,"<="&'Running Portfolio Value'!A14,Transactions!B:B,"RRSP",Transactions!D:D,"TD International Fund -e (TDB911)",Transactions!C:C,{"Sell","Switch from"})))) -> 0 | AA14: =IF(A14="","",(SUM((SUMIFS(Transactions!G:G,Transactions!A:A,"<="&'Running Portfolio Value'!A14,Transactions!B:B,"RRSP",Transactions!D:D,"TD International Fund -e (TDB911)",Transactions!C:C,{"Buy","Dividend","Switch to"})))-SUM((SUMIFS(Transactions!E:E,Transactions!A:A,"<="&'Running Portfolio Value'!A14,Transactions!B:B,"RRSP",Transactions!D:D,"TD International Fund -e (TDB911)",Transactions!C:C,{"Sell","Switch from"}))))-SUM((SUMIFS(Transactions!G:G,Transactions!A:A,"<="&'Running Portfolio Value'!A14,Transactions!B:B,"RRSP",Transactions!D:D,"TD International Fund -e (TDB911)",Transactions!C:C,{"Dividend"})))) -> 0 | AB14: =IF(A14="","",(Z14*(VLOOKUP(A14,'Price Data All Dates'!A:D,4,FALSE)))) -> 0 | AC14: 0 | AD14: =IF($A14="","",SUM((SUMIFS(Transactions!E:E,Transactions!A:A,"<="&'Running Portfolio Value'!$A14,Transactions!B:B,"RRSP",Transactions!D:D,"TD Canadian Bond Index Fund -e (TDB909)",Transactions!C:C,{"Buy","Dividend","Switch to"})))-SUM((SUMIFS(Transactions!E:E,Transactions!A:A,"<="&'Running Portfolio Value'!A14,Transactions!B:B,"RRSP",Transactions!D:D,"TD Canadian Bond Index Fund -e (TDB909)",Transactions!C:C,{"Sell","Switch from"})))) -> 0 | AE14: =IF(A14="","",(SUM((SUMIFS(Transactions!G:G,Transactions!A:A,"<="&'Running Portfolio Value'!A14,Transactions!B:B,"RRSP",Transactions!D:D,"TD Canadian Bond Index Fund -e (TDB909)",Transactions!C:C,{"Buy","Dividend","Switch to"})))-SUM((SUMIFS(Transactions!E:E,Transactions!A:A,"<="&'Running Portfolio Value'!A14,Transactions!B:B,"RRSP",Transactions!D:D,"TD Canadian Bond Index Fund -e (TDB909)",Transactions!C:C,{"Sell","Switch from"}))))-SUM((SUMIFS(Transactions!G:G,Transactions!A:A,"<="&'Running Portfolio Value'!A14,Transactions!B:B,"RRSP",Transactions!D:D,"TD Canadian Bond Index Fund -e (TDB909)",Transactions!C:C,{"Dividend"})))) -> 0 | AF14: =IF(A14="","",(AD14*(VLOOKUP(A14,'Price Data All Dates'!A:E,5,FALSE)))) -> 0 | AG14: 0 | AH14: 0 | AI14: 0 | AJ14: 0 | AK14: 0 | AL14: 0 | AM14: 0
A15: =IF(TODAY()-(ROW()-3)>MIN(Transactions!A:A),TODAY()-(ROW()-3),"") -> 2018-04-28 | B15: =IF(A15="","",SUM((SUMIFS(Transactions!E:E,Transactions!A:A,"<="&'Running Portfolio Value'!A15,Transactions!B:B,"TFSA",Transactions!D:D,"TD Canadian Index Fund -e (TDB900)",Transactions!C:C,{"Buy","Dividend","Switch to"})))-SUM((SUMIFS(Transactions!E:E,Transactions!A:A,"<="&'Running Portfolio Value'!A15,Transactions!B:B,"TFSA",Transactions!D:D,"TD Canadian Index Fund -e (TDB900)",Transactions!C:C,{"Sell","Switch from"})))) -> 0 | C15: =IF(A15="","",(SUM((SUMIFS(Transactions!G:G,Transactions!A:A,"<="&'Running Portfolio Value'!A15,Transactions!B:B,"TFSA",Transactions!D:D,"TD Canadian Index Fund -e (TDB900)",Transactions!C:C,{"Buy","Dividend","Switch to"})))-SUM((SUMIFS(Transactions!E:E,Transactions!A:A,"<="&'Running Portfolio Value'!A15,Transactions!B:B,"TFSA",Transactions!D:D,"TD Canadian Index Fund -e (TDB900)",Transactions!C:C,{"Sell","Switch from"}))))-SUM((SUMIFS(Transactions!G:G,Transactions!A:A,"<="&'Running Portfolio Value'!A15,Transactions!B:B,"TFSA",Transactions!D:D,"TD Canadian Index Fund -e (TDB900)",Transactions!C:C,{"Dividend"})))) -> 0 | D15: =IF(A15="","",(B15*(VLOOKUP(A15,'Price Data All Dates'!A:B,2,FALSE)))) -> 0 | E15: 0 | F15: =IF($A15="","",SUM((SUMIFS(Transactions!E:E,Transactions!A:A,"<="&'Running Portfolio Value'!$A15,Transactions!B:B,"TFSA",Transactions!D:D,"TD US Index Fund -e (TDB902)",Transactions!C:C,{"Buy","Dividend","Switch to"})))-SUM((SUMIFS(Transactions!E:E,Transactions!A:A,"<="&'Running Portfolio Value'!A15,Transactions!B:B,"TFSA",Transactions!D:D,"TD US Index Fund -e (TDB902)",Transactions!C:C,{"Sell","Switch from"})))) -> 0 | G15: =IF(A15="","",(SUM((SUMIFS(Transactions!G:G,Transactions!A:A,"<="&'Running Portfolio Value'!A15,Transactions!B:B,"TFSA",Transactions!D:D,"TD US Index Fund -e (TDB902)",Transactions!C:C,{"Buy","Dividend","Switch to"})))-SUM((SUMIFS(Transactions!E:E,Transactions!A:A,"<="&'Running Portfolio Value'!A15,Transactions!B:B,"TFSA",Transactions!D:D,"TD US Index Fund -e (TDB902)",Transactions!C:C,{"Sell","Switch from"}))))-SUM((SUMIFS(Transactions!G:G,Transactions!A:A,"<="&'Running Portfolio Value'!A15,Transactions!B:B,"TFSA",Transactions!D:D,"TD US Index Fund -e (TDB902)",Transactions!C:C,{"Dividend"})))) -> 0 | H15: =IF(A15="","",(F15*(VLOOKUP(A15,'Price Data All Dates'!A:C,3,FALSE)))) -> 0 | I15: 0 | J15: =IF($A15="","",SUM((SUMIFS(Transactions!E:E,Transactions!A:A,"<="&'Running Portfolio Value'!$A15,Transactions!B:B,"TFSA",Transactions!D:D,"TD International Fund -e (TDB911)",Transactions!C:C,{"Buy","Dividend","Switch to"})))-SUM((SUMIFS(Transactions!E:E,Transactions!A:A,"<="&'Running Portfolio Value'!A15,Transactions!B:B,"TFSA",Transactions!D:D,"TD International Fund -e (TDB911)",Transactions!C:C,{"Sell","Switch from"})))) -> 0 | K15: =IF(A15="","",(SUM((SUMIFS(Transactions!G:G,Transactions!A:A,"<="&'Running Portfolio Value'!A15,Transactions!B:B,"TFSA",Transactions!D:D,"TD International Fund -e (TDB911)",Transactions!C:C,{"Buy","Dividend","Switch to"})))-SUM((SUMIFS(Transactions!E:E,Transactions!A:A,"<="&'Running Portfolio Value'!A15,Transactions!B:B,"TFSA",Transactions!D:D,"TD International Fund -e (TDB911)",Transactions!C:C,{"Sell","Switch from"}))))-SUM((SUMIFS(Transactions!G:G,Transactions!A:A,"<="&'Running Portfolio Value'!A15,Transactions!B:B,"TFSA",Transactions!D:D,"TD International Fund -e (TDB911)",Transactions!C:C,{"Dividend"})))) -> 0 | L15: =IF(A15="","",(J15*(VLOOKUP(A15,'Price Data All Dates'!A:D,4,FALSE)))) -> 0 | M15: 0 | N15: =IF($A15="","",SUM((SUMIFS(Transactions!E:E,Transactions!A:A,"<="&'Running Portfolio Value'!$A15,Transactions!B:B,"TFSA",Transactions!D:D,"TD Canadian Bond Index Fund -e (TDB909)",Transactions!C:C,{"Buy","Dividend","Switch to"})))-SUM((SUMIFS(Transactions!E:E,Transactions!A:A,"<="&'Running Portfolio Value'!A15,Transactions!B:B,"TFSA",Transactions!D:D,"TD Canadian Bond Index Fund -e (TDB909)",Transactions!C:C,{"Sell","Switch from"})))) -> 0 | O15: =IF(A15="","",(SUM((SUMIFS(Transactions!G:G,Transactions!A:A,"<="&'Running Portfolio Value'!A15,Transactions!B:B,"TFSA",Transactions!D:D,"TD Canadian Bond Index Fund -e (TDB909)",Transactions!C:C,{"Buy","Dividend","Switch to"})))-SUM((SUMIFS(Transactions!E:E,Transactions!A:A,"<="&'Running Portfolio Value'!A15,Transactions!B:B,"TFSA",Transactions!D:D,"TD Canadian Bond Index Fund -e (TDB909)",Transactions!C:C,{"Sell","Switch from"}))))-SUM((SUMIFS(Transactions!G:G,Transactions!A:A,"<="&'Running Portfolio Value'!A15,Transactions!B:B,"TFSA",Transactions!D:D,"TD Canadian Bond Index Fund -e (TDB909)",Transactions!C:C,{"Dividend"})))) -> 0 | P15: =IF(A15="","",(N15*(VLOOKUP(A15,'Price Data All Dates'!A:E,5,FALSE)))) -> 0 | Q15: 0 | R15: =IF($A15="","",SUM((SUMIFS(Transactions!E:E,Transactions!A:A,"<="&'Running Portfolio Value'!$A15,Transactions!B:B,"RRSP",Transactions!D:D,"TD Canadian Index Fund -e (TDB900)",Transactions!C:C,{"Buy","Dividend","Switch to"})))-SUM((SUMIFS(Transactions!E:E,Transactions!A:A,"<="&'Running Portfolio Value'!A15,Transactions!B:B,"RRSP",Transactions!D:D,"TD Canadian Index Fund -e (TDB900)",Transactions!C:C,{"Sell","Switch from"})))) -> 0 | S15: =IF(A15="","",(SUM((SUMIFS(Transactions!G:G,Transactions!A:A,"<="&'Running Portfolio Value'!A15,Transactions!B:B,"RRSP",Transactions!D:D,"TD Canadian Index Fund -e (TDB900)",Transactions!C:C,{"Buy","Dividend","Switch to"})))-SUM((SUMIFS(Transactions!E:E,Transactions!A:A,"<="&'Running Portfolio Value'!A15,Transactions!B:B,"RRSP",Transactions!D:D,"TD Canadian Index Fund -e (TDB900)",Transactions!C:C,{"Sell","Switch from"}))))-SUM((SUMIFS(Transactions!G:G,Transactions!A:A,"<="&'Running Portfolio Value'!A15,Transactions!B:B,"RRSP",Transactions!D:D,"TD Canadian Index Fund -e (TDB900)",Transactions!C:C,{"Dividend"})))) -> 0 | T15: =IF(A15="","",(R15*(VLOOKUP(A15,'Price Data All Dates'!A:B,2,FALSE)))) -> 0 | U15: 0 | V15: =IF($A15="","",SUM((SUMIFS(Transactions!E:E,Transactions!A:A,"<="&'Running Portfolio Value'!$A15,Transactions!B:B,"RRSP",Transactions!D:D,"TD US Index Fund -e (TDB902)",Transactions!C:C,{"Buy","Dividend","Switch to"})))-SUM((SUMIFS(Transactions!E:E,Transactions!A:A,"<="&'Running Portfolio Value'!A15,Transactions!B:B,"RRSP",Transactions!D:D,"TD US Index Fund -e (TDB902)",Transactions!C:C,{"Sell","Switch from"})))) -> 0 | W15: =IF(A15="","",(SUM((SUMIFS(Transactions!G:G,Transactions!A:A,"<="&'Running Portfolio Value'!A15,Transactions!B:B,"RRSP",Transactions!D:D,"TD US Index Fund -e (TDB902)",Transactions!C:C,{"Buy","Dividend","Switch to"})))-SUM((SUMIFS(Transactions!E:E,Transactions!A:A,"<="&'Running Portfolio Value'!A15,Transactions!B:B,"RRSP",Transactions!D:D,"TD US Index Fund -e (TDB902)",Transactions!C:C,{"Sell","Switch from"}))))-SUM((SUMIFS(Transactions!G:G,Transactions!A:A,"<="&'Running Portfolio Value'!A15,Transactions!B:B,"RRSP",Transactions!D:D,"TD US Index Fund -e (TDB902)",Transactions!C:C,{"Dividend"})))) -> 0 | X15: =IF(A15="","",(V15*(VLOOKUP(A15,'Price Data All Dates'!A:C,3,FALSE)))) -> 0 | Y15: 0 | Z15: =IF($A15="","",SUM((SUMIFS(Transactions!E:E,Transactions!A:A,"<="&'Running Portfolio Value'!$A15,Transactions!B:B,"RRSP",Transactions!D:D,"TD International Fund -e (TDB911)",Transactions!C:C,{"Buy","Dividend","Switch to"})))-SUM((SUMIFS(Transactions!E:E,Transactions!A:A,"<="&'Running Portfolio Value'!A15,Transactions!B:B,"RRSP",Transactions!D:D,"TD International Fund -e (TDB911)",Transactions!C:C,{"Sell","Switch from"})))) -> 0 | AA15: =IF(A15="","",(SUM((SUMIFS(Transactions!G:G,Transactions!A:A,"<="&'Running Portfolio Value'!A15,Transactions!B:B,"RRSP",Transactions!D:D,"TD International Fund -e (TDB911)",Transactions!C:C,{"Buy","Dividend","Switch to"})))-SUM((SUMIFS(Transactions!E:E,Transactions!A:A,"<="&'Running Portfolio Value'!A15,Transactions!B:B,"RRSP",Transactions!D:D,"TD International Fund -e (TDB911)",Transactions!C:C,{"Sell","Switch from"}))))-SUM((SUMIFS(Transactions!G:G,Transactions!A:A,"<="&'Running Portfolio Value'!A15,Transactions!B:B,"RRSP",Transactions!D:D,"TD International Fund -e (TDB911)",Transactions!C:C,{"Dividend"})))) -> 0 | AB15: =IF(A15="","",(Z15*(VLOOKUP(A15,'Price Data All Dates'!A:D,4,FALSE)))) -> 0 | AC15: 0 | AD15: =IF($A15="","",SUM((SUMIFS(Transactions!E:E,Transactions!A:A,"<="&'Running Portfolio Value'!$A15,Transactions!B:B,"RRSP",Transactions!D:D,"TD Canadian Bond Index Fund -e (TDB909)",Transactions!C:C,{"Buy","Dividend","Switch to"})))-SUM((SUMIFS(Transactions!E:E,Transactions!A:A,"<="&'Running Portfolio Value'!A15,Transactions!B:B,"RRSP",Transactions!D:D,"TD Canadian Bond Index Fund -e (TDB909)",Transactions!C:C,{"Sell","Switch from"})))) -> 0 | AE15: =IF(A15="","",(SUM((SUMIFS(Transactions!G:G,Transactions!A:A,"<="&'Running Portfolio Value'!A15,Transactions!B:B,"RRSP",Transactions!D:D,"TD Canadian Bond Index Fund -e (TDB909)",Transactions!C:C,{"Buy","Dividend","Switch to"})))-SUM((SUMIFS(Transactions!E:E,Transactions!A:A,"<="&'Running Portfolio Value'!A15,Transactions!B:B,"RRSP",Transactions!D:D,"TD Canadian Bond Index Fund -e (TDB909)",Transactions!C:C,{"Sell","Switch from"}))))-SUM((SUMIFS(Transactions!G:G,Transactions!A:A,"<="&'Running Portfolio Value'!A15,Transactions!B:B,"RRSP",Transactions!D:D,"TD Canadian Bond Index Fund -e (TDB909)",Transactions!C:C,{"Dividend"})))) -> 0 | AF15: =IF(A15="","",(AD15*(VLOOKUP(A15,'Price Data All Dates'!A:E,5,FALSE)))) -> 0 | AG15: 0 | AH15: 0 | AI15: 0 | AJ15: 0 | AK15: 0 | AL15: 0 | AM15: 0
A16: =IF(TODAY()-(ROW()-3)>MIN(Transactions!A:A),TODAY()-(ROW()-3),"") -> 2018-04-27 | B16: =IF(A16="","",SUM((SUMIFS(Transactions!E:E,Transactions!A:A,"<="&'Running Portfolio Value'!A16,Transactions!B:B,"TFSA",Transactions!D:D,"TD Canadian Index Fund -e (TDB900)",Transactions!C:C,{"Buy","Dividend","Switch to"})))-SUM((SUMIFS(Transactions!E:E,Transactions!A:A,"<="&'Running Portfolio Value'!A16,Transactions!B:B,"TFSA",Transactions!D:D,"TD Canadian Index Fund -e (TDB900)",Transactions!C:C,{"Sell","Switch from"})))) -> 0 | C16: =IF(A16="","",(SUM((SUMIFS(Transactions!G:G,Transactions!A:A,"<="&'Running Portfolio Value'!A16,Transactions!B:B,"TFSA",Transactions!D:D,"TD Canadian Index Fund -e (TDB900)",Transactions!C:C,{"Buy","Dividend","Switch to"})))-SUM((SUMIFS(Transactions!E:E,Transactions!A:A,"<="&'Running Portfolio Value'!A16,Transactions!B:B,"TFSA",Transactions!D:D,"TD Canadian Index Fund -e (TDB900)",Transactions!C:C,{"Sell","Switch from"}))))-SUM((SUMIFS(Transactions!G:G,Transactions!A:A,"<="&'Running Portfolio Value'!A16,Transactions!B:B,"TFSA",Transactions!D:D,"TD Canadian Index Fund -e (TDB900)",Transactions!C:C,{"Dividend"})))) -> 0 | D16: =IF(A16="","",(B16*(VLOOKUP(A16,'Price Data All Dates'!A:B,2,FALSE)))) -> 0 | E16: 0 | F16: =IF($A16="","",SUM((SUMIFS(Transactions!E:E,Transactions!A:A,"<="&'Running Portfolio Value'!$A16,Transactions!B:B,"TFSA",Transactions!D:D,"TD US Index Fund -e (TDB902)",Transactions!C:C,{"Buy","Dividend","Switch to"})))-SUM((SUMIFS(Transactions!E:E,Transactions!A:A,"<="&'Running Portfolio Value'!A16,Transactions!B:B,"TFSA",Transactions!D:D,"TD US Index Fund -e (TDB902)",Transactions!C:C,{"Sell","Switch from"})))) -> 0 | G16: =IF(A16="","",(SUM((SUMIFS(Transactions!G:G,Transactions!A:A,"<="&'Running Portfolio Value'!A16,Transactions!B:B,"TFSA",Transactions!D:D,"TD US Index Fund -e (TDB902)",Transactions!C:C,{"Buy","Dividend","Switch to"})))-SUM((SUMIFS(Transactions!E:E,Transactions!A:A,"<="&'Running Portfolio Value'!A16,Transactions!B:B,"TFSA",Transactions!D:D,"TD US Index Fund -e (TDB902)",Transactions!C:C,{"Sell","Switch from"}))))-SUM((SUMIFS(Transactions!G:G,Transactions!A:A,"<="&'Running Portfolio Value'!A16,Transactions!B:B,"TFSA",Transactions!D:D,"TD US Index Fund -e (TDB902)",Transactions!C:C,{"Dividend"})))) -> 0 | H16: =IF(A16="","",(F16*(VLOOKUP(A16,'Price Data All Dates'!A:C,3,FALSE)))) -> 0 | I16: 0 | J16: =IF($A16="","",SUM((SUMIFS(Transactions!E:E,Transactions!A:A,"<="&'Running Portfolio Value'!$A16,Transactions!B:B,"TFSA",Transactions!D:D,"TD International Fund -e (TDB911)",Transactions!C:C,{"Buy","Dividend","Switch to"})))-SUM((SUMIFS(Transactions!E:E,Transactions!A:A,"<="&'Running Portfolio Value'!A16,Transactions!B:B,"TFSA",Transactions!D:D,"TD International Fund -e (TDB911)",Transactions!C:C,{"Sell","Switch from"})))) -> 0 | K16: =IF(A16="","",(SUM((SUMIFS(Transactions!G:G,Transactions!A:A,"<="&'Running Portfolio Value'!A16,Transactions!B:B,"TFSA",Transactions!D:D,"TD International Fund -e (TDB911)",Transactions!C:C,{"Buy","Dividend","Switch to"})))-SUM((SUMIFS(Transactions!E:E,Transactions!A:A,"<="&'Running Portfolio Value'!A16,Transactions!B:B,"TFSA",Transactions!D:D,"TD International Fund -e (TDB911)",Transactions!C:C,{"Sell","Switch from"}))))-SUM((SUMIFS(Transactions!G:G,Transactions!A:A,"<="&'Running Portfolio Value'!A16,Transactions!B:B,"TFSA",Transactions!D:D,"TD International Fund -e (TDB911)",Transactions!C:C,{"Dividend"})))) -> 0 | L16: =IF(A16="","",(J16*(VLOOKUP(A16,'Price Data All Dates'!A:D,4,FALSE)))) -> 0 | M16: 0 | N16: =IF($A16="","",SUM((SUMIFS(Transactions!E:E,Transactions!A:A,"<="&'Running Portfolio Value'!$A16,Transactions!B:B,"TFSA",Transactions!D:D,"TD Canadian Bond Index Fund -e (TDB909)",Transactions!C:C,{"Buy","Dividend","Switch to"})))-SUM((SUMIFS(Transactions!E:E,Transactions!A:A,"<="&'Running Portfolio Value'!A16,Transactions!B:B,"TFSA",Transactions!D:D,"TD Canadian Bond Index Fund -e (TDB909)",Transactions!C:C,{"Sell","Switch from"})))) -> 0 | O16: =IF(A16="","",(SUM((SUMIFS(Transactions!G:G,Transactions!A:A,"<="&'Running Portfolio Value'!A16,Transactions!B:B,"TFSA",Transactions!D:D,"TD Canadian Bond Index Fund -e (TDB909)",Transactions!C:C,{"Buy","Dividend","Switch to"})))-SUM((SUMIFS(Transactions!E:E,Transactions!A:A,"<="&'Running Portfolio Value'!A16,Transactions!B:B,"TFSA",Transactions!D:D,"TD Canadian Bond Index Fund -e (TDB909)",Transactions!C:C,{"Sell","Switch from"}))))-SUM((SUMIFS(Transactions!G:G,Transactions!A:A,"<="&'Running Portfolio Value'!A16,Transactions!B:B,"TFSA",Transactions!D:D,"TD Canadian Bond Index Fund -e (TDB909)",Transactions!C:C,{"Dividend"})))) -> 0 | P16: =IF(A16="","",(N16*(VLOOKUP(A16,'Price Data All Dates'!A:E,5,FALSE)))) -> 0 | Q16: 0 | R16: =IF($A16="","",SUM((SUMIFS(Transactions!E:E,Transactions!A:A,"<="&'Running Portfolio Value'!$A16,Transactions!B:B,"RRSP",Transactions!D:D,"TD Canadian Index Fund -e (TDB900)",Transactions!C:C,{"Buy","Dividend","Switch to"})))-SUM((SUMIFS(Transactions!E:E,Transactions!A:A,"<="&'Running Portfolio Value'!A16,Transactions!B:B,"RRSP",Transactions!D:D,"TD Canadian Index Fund -e (TDB900)",Transactions!C:C,{"Sell","Switch from"})))) -> 0 | S16: =IF(A16="","",(SUM((SUMIFS(Transactions!G:G,Transactions!A:A,"<="&'Running Portfolio Value'!A16,Transactions!B:B,"RRSP",Transactions!D:D,"TD Canadian Index Fund -e (TDB900)",Transactions!C:C,{"Buy","Dividend","Switch to"})))-SUM((SUMIFS(Transactions!E:E,Transactions!A:A,"<="&'Running Portfolio Value'!A16,Transactions!B:B,"RRSP",Transactions!D:D,"TD Canadian Index Fund -e (TDB900)",Transactions!C:C,{"Sell","Switch from"}))))-SUM((SUMIFS(Transactions!G:G,Transactions!A:A,"<="&'Running Portfolio Value'!A16,Transactions!B:B,"RRSP",Transactions!D:D,"TD Canadian Index Fund -e (TDB900)",Transactions!C:C,{"Dividend"})))) -> 0 | T16: =IF(A16="","",(R16*(VLOOKUP(A16,'Price Data All Dates'!A:B,2,FALSE)))) -> 0 | U16: 0 | V16: =IF($A16="","",SUM((SUMIFS(Transactions!E:E,Transactions!A:A,"<="&'Running Portfolio Value'!$A16,Transactions!B:B,"RRSP",Transactions!D:D,"TD US Index Fund -e (TDB902)",Transactions!C:C,{"Buy","Dividend","Switch to"})))-SUM((SUMIFS(Transactions!E:E,Transactions!A:A,"<="&'Running Portfolio Value'!A16,Transactions!B:B,"RRSP",Transactions!D:D,"TD US Index Fund -e (TDB902)",Transactions!C:C,{"Sell","Switch from"})))) -> 0 | W16: =IF(A16="","",(SUM((SUMIFS(Transactions!G:G,Transactions!A:A,"<="&'Running Portfolio Value'!A16,Transactions!B:B,"RRSP",Transactions!D:D,"TD US Index Fund -e (TDB902)",Transactions!C:C,{"Buy","Dividend","Switch to"})))-SUM((SUMIFS(Transactions!E:E,Transactions!A:A,"<="&'Running Portfolio Value'!A16,Transactions!B:B,"RRSP",Transactions!D:D,"TD US Index Fund -e (TDB902)",Transactions!C:C,{"Sell","Switch from"}))))-SUM((SUMIFS(Transactions!G:G,Transactions!A:A,"<="&'Running Portfolio Value'!A16,Transactions!B:B,"RRSP",Transactions!D:D,"TD US Index Fund -e (TDB902)",Transactions!C:C,{"Dividend"})))) -> 0 | X16: =IF(A16="","",(V16*(VLOOKUP(A16,'Price Data All Dates'!A:C,3,FALSE)))) -> 0 | Y16: 0 | Z16: =IF($A16="","",SUM((SUMIFS(Transactions!E:E,Transactions!A:A,"<="&'Running Portfolio Value'!$A16,Transactions!B:B,"RRSP",Transactions!D:D,"TD International Fund -e (TDB911)",Transactions!C:C,{"Buy","Dividend","Switch to"})))-SUM((SUMIFS(Transactions!E:E,Transactions!A:A,"<="&'Running Portfolio Value'!A16,Transactions!B:B,"RRSP",Transactions!D:D,"TD International Fund -e (TDB911)",Transactions!C:C,{"Sell","Switch from"})))) -> 0 | AA16: =IF(A16="","",(SUM((SUMIFS(Transactions!G:G,Transactions!A:A,"<="&'Running Portfolio Value'!A16,Transactions!B:B,"RRSP",Transactions!D:D,"TD International Fund -e (TDB911)",Transactions!C:C,{"Buy","Dividend","Switch to"})))-SUM((SUMIFS(Transactions!E:E,Transactions!A:A,"<="&'Running Portfolio Value'!A16,Transactions!B:B,"RRSP",Transactions!D:D,"TD International Fund -e (TDB911)",Transactions!C:C,{"Sell","Switch from"}))))-SUM((SUMIFS(Transactions!G:G,Transactions!A:A,"<="&'Running Portfolio Value'!A16,Transactions!B:B,"RRSP",Transactions!D:D,"TD International Fund -e (TDB911)",Transactions!C:C,{"Dividend"})))) -> 0 | AB16: =IF(A16="","",(Z16*(VLOOKUP(A16,'Price Data All Dates'!A:D,4,FALSE)))) -> 0 | AC16: 0 | AD16: =IF($A16="","",SUM((SUMIFS(Transactions!E:E,Transactions!A:A,"<="&'Running Portfolio Value'!$A16,Transactions!B:B,"RRSP",Transactions!D:D,"TD Canadian Bond Index Fund -e (TDB909)",Transactions!C:C,{"Buy","Dividend","Switch to"})))-SUM((SUMIFS(Transactions!E:E,Transactions!A:A,"<="&'Running Portfolio Value'!A16,Transactions!B:B,"RRSP",Transactions!D:D,"TD Canadian Bond Index Fund -e (TDB909)",Transactions!C:C,{"Sell","Switch from"})))) -> 0 | AE16: =IF(A16="","",(SUM((SUMIFS(Transactions!G:G,Transactions!A:A,"<="&'Running Portfolio Value'!A16,Transactions!B:B,"RRSP",Transactions!D:D,"TD Canadian Bond Index Fund -e (TDB909)",Transactions!C:C,{"Buy","Dividend","Switch to"})))-SUM((SUMIFS(Transactions!E:E,Transactions!A:A,"<="&'Running Portfolio Value'!A16,Transactions!B:B,"RRSP",Transactions!D:D,"TD Canadian Bond Index Fund -e (TDB909)",Transactions!C:C,{"Sell","Switch from"}))))-SUM((SUMIFS(Transactions!G:G,Transactions!A:A,"<="&'Running Portfolio Value'!A16,Transactions!B:B,"RRSP",Transactions!D:D,"TD Canadian Bond Index Fund -e (TDB909)",Transactions!C:C,{"Dividend"})))) -> 0 | AF16: =IF(A16="","",(AD16*(VLOOKUP(A16,'Price Data All Dates'!A:E,5,FALSE)))) -> 0 | AG16: 0 | AH16: 0 | AI16: 0 | AJ16: 0 | AK16: 0 | AL16: 0 | AM16: 0
A17: =IF(TODAY()-(ROW()-3)>MIN(Transactions!A:A),TODAY()-(ROW()-3),"") -> 2018-04-26 | B17: =IF(A17="","",SUM((SUMIFS(Transactions!E:E,Transactions!A:A,"<="&'Running Portfolio Value'!A17,Transactions!B:B,"TFSA",Transactions!D:D,"TD Canadian Index Fund -e (TDB900)",Transactions!C:C,{"Buy","Dividend","Switch to"})))-SUM((SUMIFS(Transactions!E:E,Transactions!A:A,"<="&'Running Portfolio Value'!A17,Transactions!B:B,"TFSA",Transactions!D:D,"TD Canadian Index Fund -e (TDB900)",Transactions!C:C,{"Sell","Switch from"})))) -> 0 | C17: =IF(A17="","",(SUM((SUMIFS(Transactions!G:G,Transactions!A:A,"<="&'Running Portfolio Value'!A17,Transactions!B:B,"TFSA",Transactions!D:D,"TD Canadian Index Fund -e (TDB900)",Transactions!C:C,{"Buy","Dividend","Switch to"})))-SUM((SUMIFS(Transactions!E:E,Transactions!A:A,"<="&'Running Portfolio Value'!A17,Transactions!B:B,"TFSA",Transactions!D:D,"TD Canadian Index Fund -e (TDB900)",Transactions!C:C,{"Sell","Switch from"}))))-SUM((SUMIFS(Transactions!G:G,Transactions!A:A,"<="&'Running Portfolio Value'!A17,Transactions!B:B,"TFSA",Transactions!D:D,"TD Canadian Index Fund -e (TDB900)",Transactions!C:C,{"Dividend"})))) -> 0 | D17: =IF(A17="","",(B17*(VLOOKUP(A17,'Price Data All Dates'!A:B,2,FALSE)))) -> 0 | E17: 0 | F17: =IF($A17="","",SUM((SUMIFS(Transactions!E:E,Transactions!A:A,"<="&'Running Portfolio Value'!$A17,Transactions!B:B,"TFSA",Transactions!D:D,"TD US Index Fund -e (TDB902)",Transactions!C:C,{"Buy","Dividend","Switch to"})))-SUM((SUMIFS(Transactions!E:E,Transactions!A:A,"<="&'Running Portfolio Value'!A17,Transactions!B:B,"TFSA",Transactions!D:D,"TD US Index Fund -e (TDB902)",Transactions!C:C,{"Sell","Switch from"})))) -> 0 | G17: =IF(A17="","",(SUM((SUMIFS(Transactions!G:G,Transactions!A:A,"<="&'Running Portfolio Value'!A17,Transactions!B:B,"TFSA",Transactions!D:D,"TD US Index Fund -e (TDB902)",Transactions!C:C,{"Buy","Dividend","Switch to"})))-SUM((SUMIFS(Transactions!E:E,Transactions!A:A,"<="&'Running Portfolio Value'!A17,Transactions!B:B,"TFSA",Transactions!D:D,"TD US Index Fund -e (TDB902)",Transactions!C:C,{"Sell","Switch from"}))))-SUM((SUMIFS(Transactions!G:G,Transactions!A:A,"<="&'Running Portfolio Value'!A17,Transactions!B:B,"TFSA",Transactions!D:D,"TD US Index Fund -e (TDB902)",Transactions!C:C,{"Dividend"})))) -> 0 | H17: =IF(A17="","",(F17*(VLOOKUP(A17,'Price Data All Dates'!A:C,3,FALSE)))) -> 0 | I17: 0 | J17: =IF($A17="","",SUM((SUMIFS(Transactions!E:E,Transactions!A:A,"<="&'Running Portfolio Value'!$A17,Transactions!B:B,"TFSA",Transactions!D:D,"TD International Fund -e (TDB911)",Transactions!C:C,{"Buy","Dividend","Switch to"})))-SUM((SUMIFS(Transactions!E:E,Transactions!A:A,"<="&'Running Portfolio Value'!A17,Transactions!B:B,"TFSA",Transactions!D:D,"TD International Fund -e (TDB911)",Transactions!C:C,{"Sell","Switch from"})))) -> 0 | K17: =IF(A17="","",(SUM((SUMIFS(Transactions!G:G,Transactions!A:A,"<="&'Running Portfolio Value'!A17,Transactions!B:B,"TFSA",Transactions!D:D,"TD International Fund -e (TDB911)",Transactions!C:C,{"Buy","Dividend","Switch to"})))-SUM((SUMIFS(Transactions!E:E,Transactions!A:A,"<="&'Running Portfolio Value'!A17,Transactions!B:B,"TFSA",Transactions!D:D,"TD International Fund -e (TDB911)",Transactions!C:C,{"Sell","Switch from"}))))-SUM((SUMIFS(Transactions!G:G,Transactions!A:A,"<="&'Running Portfolio Value'!A17,Transactions!B:B,"TFSA",Transactions!D:D,"TD International Fund -e (TDB911)",Transactions!C:C,{"Dividend"})))) -> 0 | L17: =IF(A17="","",(J17*(VLOOKUP(A17,'Price Data All Dates'!A:D,4,FALSE)))) -> 0 | M17: 0 | N17: =IF($A17="","",SUM((SUMIFS(Transactions!E:E,Transactions!A:A,"<="&'Running Portfolio Value'!$A17,Transactions!B:B,"TFSA",Transactions!D:D,"TD Canadian Bond Index Fund -e (TDB909)",Transactions!C:C,{"Buy","Dividend","Switch to"})))-SUM((SUMIFS(Transactions!E:E,Transactions!A:A,"<="&'Running Portfolio Value'!A17,Transactions!B:B,"TFSA",Transactions!D:D,"TD Canadian Bond Index Fund -e (TDB909)",Transactions!C:C,{"Sell","Switch from"})))) -> 0 | O17: =IF(A17="","",(SUM((SUMIFS(Transactions!G:G,Transactions!A:A,"<="&'Running Portfolio Value'!A17,Transactions!B:B,"TFSA",Transactions!D:D,"TD Canadian Bond Index Fund -e (TDB909)",Transactions!C:C,{"Buy","Dividend","Switch to"})))-SUM((SUMIFS(Transactions!E:E,Transactions!A:A,"<="&'Running Portfolio Value'!A17,Transactions!B:B,"TFSA",Transactions!D:D,"TD Canadian Bond Index Fund -e (TDB909)",Transactions!C:C,{"Sell","Switch from"}))))-SUM((SUMIFS(Transactions!G:G,Transactions!A:A,"<="&'Running Portfolio Value'!A17,Transactions!B:B,"TFSA",Transactions!D:D,"TD Canadian Bond Index Fund -e (TDB909)",Transactions!C:C,{"Dividend"})))) -> 0 | P17: =IF(A17="","",(N17*(VLOOKUP(A17,'Price Data All Dates'!A:E,5,FALSE)))) -> 0 | Q17: 0 | R17: =IF($A17="","",SUM((SUMIFS(Transactions!E:E,Transactions!A:A,"<="&'Running Portfolio Value'!$A17,Transactions!B:B,"RRSP",Transactions!D:D,"TD Canadian Index Fund -e (TDB900)",Transactions!C:C,{"Buy","Dividend","Switch to"})))-SUM((SUMIFS(Transactions!E:E,Transactions!A:A,"<="&'Running Portfolio Value'!A17,Transactions!B:B,"RRSP",Transactions!D:D,"TD Canadian Index Fund -e (TDB900)",Transactions!C:C,{"Sell","Switch from"})))) -> 0 | S17: =IF(A17="","",(SUM((SUMIFS(Transactions!G:G,Transactions!A:A,"<="&'Running Portfolio Value'!A17,Transactions!B:B,"RRSP",Transactions!D:D,"TD Canadian Index Fund -e (TDB900)",Transactions!C:C,{"Buy","Dividend","Switch to"})))-SUM((SUMIFS(Transactions!E:E,Transactions!A:A,"<="&'Running Portfolio Value'!A17,Transactions!B:B,"RRSP",Transactions!D:D,"TD Canadian Index Fund -e (TDB900)",Transactions!C:C,{"Sell","Switch from"}))))-SUM((SUMIFS(Transactions!G:G,Transactions!A:A,"<="&'Running Portfolio Value'!A17,Transactions!B:B,"RRSP",Transactions!D:D,"TD Canadian Index Fund -e (TDB900)",Transactions!C:C,{"Dividend"})))) -> 0 | T17: =IF(A17="","",(R17*(VLOOKUP(A17,'Price Data All Dates'!A:B,2,FALSE)))) -> 0 | U17: 0 | V17: =IF($A17="","",SUM((SUMIFS(Transactions!E:E,Transactions!A:A,"<="&'Running Portfolio Value'!$A17,Transactions!B:B,"RRSP",Transactions!D:D,"TD US Index Fund -e (TDB902)",Transactions!C:C,{"Buy","Dividend","Switch to"})))-SUM((SUMIFS(Transactions!E:E,Transactions!A:A,"<="&'Running Portfolio Value'!A17,Transactions!B:B,"RRSP",Transactions!D:D,"TD US Index Fund -e (TDB902)",Transactions!C:C,{"Sell","Switch from"})))) -> 0 | W17: =IF(A17="","",(SUM((SUMIFS(Transactions!G:G,Transactions!A:A,"<="&'Running Portfolio Value'!A17,Transactions!B:B,"RRSP",Transactions!D:D,"TD US Index Fund -e (TDB902)",Transactions!C:C,{"Buy","Dividend","Switch to"})))-SUM((SUMIFS(Transactions!E:E,Transactions!A:A,"<="&'Running Portfolio Value'!A17,Transactions!B:B,"RRSP",Transactions!D:D,"TD US Index Fund -e (TDB902)",Transactions!C:C,{"Sell","Switch from"}))))-SUM((SUMIFS(Transactions!G:G,Transactions!A:A,"<="&'Running Portfolio Value'!A17,Transactions!B:B,"RRSP",Transactions!D:D,"TD US Index Fund -e (TDB902)",Transactions!C:C,{"Dividend"})))) -> 0 | X17: =IF(A17="","",(V17*(VLOOKUP(A17,'Price Data All Dates'!A:C,3,FALSE)))) -> 0 | Y17: 0 | Z17: =IF($A17="","",SUM((SUMIFS(Transactions!E:E,Transactions!A:A,"<="&'Running Portfolio Value'!$A17,Transactions!B:B,"RRSP",Transactions!D:D,"TD International Fund -e (TDB911)",Transactions!C:C,{"Buy","Dividend","Switch to"})))-SUM((SUMIFS(Transactions!E:E,Transactions!A:A,"<="&'Running Portfolio Value'!A17,Transactions!B:B,"RRSP",Transactions!D:D,"TD International Fund -e (TDB911)",Transactions!C:C,{"Sell","Switch from"})))) -> 0 | AA17: =IF(A17="","",(SUM((SUMIFS(Transactions!G:G,Transactions!A:A,"<="&'Running Portfolio Value'!A17,Transactions!B:B,"RRSP",Transactions!D:D,"TD International Fund -e (TDB911)",Transactions!C:C,{"Buy","Dividend","Switch to"})))-SUM((SUMIFS(Transactions!E:E,Transactions!A:A,"<="&'Running Portfolio Value'!A17,Transactions!B:B,"RRSP",Transactions!D:D,"TD International Fund -e (TDB911)",Transactions!C:C,{"Sell","Switch from"}))))-SUM((SUMIFS(Transactions!G:G,Transactions!A:A,"<="&'Running Portfolio Value'!A17,Transactions!B:B,"RRSP",Transactions!D:D,"TD International Fund -e (TDB911)",Transactions!C:C,{"Dividend"})))) -> 0 | AB17: =IF(A17="","",(Z17*(VLOOKUP(A17,'Price Data All Dates'!A:D,4,FALSE)))) -> 0 | AC17: 0 | AD17: =IF($A17="","",SUM((SUMIFS(Transactions!E:E,Transactions!A:A,"<="&'Running Portfolio Value'!$A17,Transactions!B:B,"RRSP",Transactions!D:D,"TD Canadian Bond Index Fund -e (TDB909)",Transactions!C:C,{"Buy","Dividend","Switch to"})))-SUM((SUMIFS(Transactions!E:E,Transactions!A:A,"<="&'Running Portfolio Value'!A17,Transactions!B:B,"RRSP",Transactions!D:D,"TD Canadian Bond Index Fund -e (TDB909)",Transactions!C:C,{"Sell","Switch from"})))) -> 0 | AE17: =IF(A17="","",(SUM((SUMIFS(Transactions!G:G,Transactions!A:A,"<="&'Running Portfolio Value'!A17,Transactions!B:B,"RRSP",Transactions!D:D,"TD Canadian Bond Index Fund -e (TDB909)",Transactions!C:C,{"Buy","Dividend","Switch to"})))-SUM((SUMIFS(Transactions!E:E,Transactions!A:A,"<="&'Running Portfolio Value'!A17,Transactions!B:B,"RRSP",Transactions!D:D,"TD Canadian Bond Index Fund -e (TDB909)",Transactions!C:C,{"Sell","Switch from"}))))-SUM((SUMIFS(Transactions!G:G,Transactions!A:A,"<="&'Running Portfolio Value'!A17,Transactions!B:B,"RRSP",Transactions!D:D,"TD Canadian Bond Index Fund -e (TDB909)",Transactions!C:C,{"Dividend"})))) -> 0 | AF17: =IF(A17="","",(AD17*(VLOOKUP(A17,'Price Data All Dates'!A:E,5,FALSE)))) -> 0 | AG17: 0 | AH17: 0 | AI17: 0 | AJ17: 0 | AK17: 0 | AL17: 0 | AM17: 0
A18: =IF(TODAY()-(ROW()-3)>MIN(Transactions!A:A),TODAY()-(ROW()-3),"") -> 2018-04-25 | B18: =IF(A18="","",SUM((SUMIFS(Transactions!E:E,Transactions!A:A,"<="&'Running Portfolio Value'!A18,Transactions!B:B,"TFSA",Transactions!D:D,"TD Canadian Index Fund -e (TDB900)",Transactions!C:C,{"Buy","Dividend","Switch to"})))-SUM((SUMIFS(Transactions!E:E,Transactions!A:A,"<="&'Running Portfolio Value'!A18,Transactions!B:B,"TFSA",Transactions!D:D,"TD Canadian Index Fund -e (TDB900)",Transactions!C:C,{"Sell","Switch from"})))) -> 0 | C18: =IF(A18="","",(SUM((SUMIFS(Transactions!G:G,Transactions!A:A,"<="&'Running Portfolio Value'!A18,Transactions!B:B,"TFSA",Transactions!D:D,"TD Canadian Index Fund -e (TDB900)",Transactions!C:C,{"Buy","Dividend","Switch to"})))-SUM((SUMIFS(Transactions!E:E,Transactions!A:A,"<="&'Running Portfolio Value'!A18,Transactions!B:B,"TFSA",Transactions!D:D,"TD Canadian Index Fund -e (TDB900)",Transactions!C:C,{"Sell","Switch from"}))))-SUM((SUMIFS(Transactions!G:G,Transactions!A:A,"<="&'Running Portfolio Value'!A18,Transactions!B:B,"TFSA",Transactions!D:D,"TD Canadian Index Fund -e (TDB900)",Transactions!C:C,{"Dividend"})))) -> 0 | D18: =IF(A18="","",(B18*(VLOOKUP(A18,'Price Data All Dates'!A:B,2,FALSE)))) -> 0 | E18: 0 | F18: =IF($A18="","",SUM((SUMIFS(Transactions!E:E,Transactions!A:A,"<="&'Running Portfolio Value'!$A18,Transactions!B:B,"TFSA",Transactions!D:D,"TD US Index Fund -e (TDB902)",Transactions!C:C,{"Buy","Dividend","Switch to"})))-SUM((SUMIFS(Transactions!E:E,Transactions!A:A,"<="&'Running Portfolio Value'!A18,Transactions!B:B,"TFSA",Transactions!D:D,"TD US Index Fund -e (TDB902)",Transactions!C:C,{"Sell","Switch from"})))) -> 0 | G18: =IF(A18="","",(SUM((SUMIFS(Transactions!G:G,Transactions!A:A,"<="&'Running Portfolio Value'!A18,Transactions!B:B,"TFSA",Transactions!D:D,"TD US Index Fund -e (TDB902)",Transactions!C:C,{"Buy","Dividend","Switch to"})))-SUM((SUMIFS(Transactions!E:E,Transactions!A:A,"<="&'Running Portfolio Value'!A18,Transactions!B:B,"TFSA",Transactions!D:D,"TD US Index Fund -e (TDB902)",Transactions!C:C,{"Sell","Switch from"}))))-SUM((SUMIFS(Transactions!G:G,Transactions!A:A,"<="&'Running Portfolio Value'!A18,Transactions!B:B,"TFSA",Transactions!D:D,"TD US Index Fund -e (TDB902)",Transactions!C:C,{"Dividend"})))) -> 0 | H18: =IF(A18="","",(F18*(VLOOKUP(A18,'Price Data All Dates'!A:C,3,FALSE)))) -> 0 | I18: 0 | J18: =IF($A18="","",SUM((SUMIFS(Transactions!E:E,Transactions!A:A,"<="&'Running Portfolio Value'!$A18,Transactions!B:B,"TFSA",Transactions!D:D,"TD International Fund -e (TDB911)",Transactions!C:C,{"Buy","Dividend","Switch to"})))-SUM((SUMIFS(Transactions!E:E,Transactions!A:A,"<="&'Running Portfolio Value'!A18,Transactions!B:B,"TFSA",Transactions!D:D,"TD International Fund -e (TDB911)",Transactions!C:C,{"Sell","Switch from"})))) -> 0 | K18: =IF(A18="","",(SUM((SUMIFS(Transactions!G:G,Transactions!A:A,"<="&'Running Portfolio Value'!A18,Transactions!B:B,"TFSA",Transactions!D:D,"TD International Fund -e (TDB911)",Transactions!C:C,{"Buy","Dividend","Switch to"})))-SUM((SUMIFS(Transactions!E:E,Transactions!A:A,"<="&'Running Portfolio Value'!A18,Transactions!B:B,"TFSA",Transactions!D:D,"TD International Fund -e (TDB911)",Transactions!C:C,{"Sell","Switch from"}))))-SUM((SUMIFS(Transactions!G:G,Transactions!A:A,"<="&'Running Portfolio Value'!A18,Transactions!B:B,"TFSA",Transactions!D:D,"TD International Fund -e (TDB911)",Transactions!C:C,{"Dividend"})))) -> 0 | L18: =IF(A18="","",(J18*(VLOOKUP(A18,'Price Data All Dates'!A:D,4,FALSE)))) -> 0 | M18: 0 | N18: =IF($A18="","",SUM((SUMIFS(Transactions!E:E,Transactions!A:A,"<="&'Running Portfolio Value'!$A18,Transactions!B:B,"TFSA",Transactions!D:D,"TD Canadian Bond Index Fund -e (TDB909)",Transactions!C:C,{"Buy","Dividend","Switch to"})))-SUM((SUMIFS(Transactions!E:E,Transactions!A:A,"<="&'Running Portfolio Value'!A18,Transactions!B:B,"TFSA",Transactions!D:D,"TD Canadian Bond Index Fund -e (TDB909)",Transactions!C:C,{"Sell","Switch from"})))) -> 0 | O18: =IF(A18="","",(SUM((SUMIFS(Transactions!G:G,Transactions!A:A,"<="&'Running Portfolio Value'!A18,Transactions!B:B,"TFSA",Transactions!D:D,"TD Canadian Bond Index Fund -e (TDB909)",Transactions!C:C,{"Buy","Dividend","Switch to"})))-SUM((SUMIFS(Transactions!E:E,Transactions!A:A,"<="&'Running Portfolio Value'!A18,Transactions!B:B,"TFSA",Transactions!D:D,"TD Canadian Bond Index Fund -e (TDB909)",Transactions!C:C,{"Sell","Switch from"}))))-SUM((SUMIFS(Transactions!G:G,Transactions!A:A,"<="&'Running Portfolio Value'!A18,Transactions!B:B,"TFSA",Transactions!D:D,"TD Canadian Bond Index Fund -e (TDB909)",Transactions!C:C,{"Dividend"})))) -> 0 | P18: =IF(A18="","",(N18*(VLOOKUP(A18,'Price Data All Dates'!A:E,5,FALSE)))) -> 0 | Q18: 0 | R18: =IF($A18="","",SUM((SUMIFS(Transactions!E:E,Transactions!A:A,"<="&'Running Portfolio Value'!$A18,Transactions!B:B,"RRSP",Transactions!D:D,"TD Canadian Index Fund -e (TDB900)",Transactions!C:C,{"Buy","Dividend","Switch to"})))-SUM((SUMIFS(Transactions!E:E,Transactions!A:A,"<="&'Running Portfolio Value'!A18,Transactions!B:B,"RRSP",Transactions!D:D,"TD Canadian Index Fund -e (TDB900)",Transactions!C:C,{"Sell","Switch from"})))) -> 0 | S18: =IF(A18="","",(SUM((SUMIFS(Transactions!G:G,Transactions!A:A,"<="&'Running Portfolio Value'!A18,Transactions!B:B,"RRSP",Transactions!D:D,"TD Canadian Index Fund -e (TDB900)",Transactions!C:C,{"Buy","Dividend","Switch to"})))-SUM((SUMIFS(Transactions!E:E,Transactions!A:A,"<="&'Running Portfolio Value'!A18,Transactions!B:B,"RRSP",Transactions!D:D,"TD Canadian Index Fund -e (TDB900)",Transactions!C:C,{"Sell","Switch from"}))))-SUM((SUMIFS(Transactions!G:G,Transactions!A:A,"<="&'Running Portfolio Value'!A18,Transactions!B:B,"RRSP",Transactions!D:D,"TD Canadian Index Fund -e (TDB900)",Transactions!C:C,{"Dividend"})))) -> 0 | T18: =IF(A18="","",(R18*(VLOOKUP(A18,'Price Data All Dates'!A:B,2,FALSE)))) -> 0 | U18: 0 | V18: =IF($A18="","",SUM((SUMIFS(Transactions!E:E,Transactions!A:A,"<="&'Running Portfolio Value'!$A18,Transactions!B:B,"RRSP",Transactions!D:D,"TD US Index Fund -e (TDB902)",Transactions!C:C,{"Buy","Dividend","Switch to"})))-SUM((SUMIFS(Transactions!E:E,Transactions!A:A,"<="&'Running Portfolio Value'!A18,Transactions!B:B,"RRSP",Transactions!D:D,"TD US Index Fund -e (TDB902)",Transactions!C:C,{"Sell","Switch from"})))) -> 0 | W18: =IF(A18="","",(SUM((SUMIFS(Transactions!G:G,Transactions!A:A,"<="&'Running Portfolio Value'!A18,Transactions!B:B,"RRSP",Transactions!D:D,"TD US Index Fund -e (TDB902)",Transactions!C:C,{"Buy","Dividend","Switch to"})))-SUM((SUMIFS(Transactions!E:E,Transactions!A:A,"<="&'Running Portfolio Value'!A18,Transactions!B:B,"RRSP",Transactions!D:D,"TD US Index Fund -e (TDB902)",Transactions!C:C,{"Sell","Switch from"}))))-SUM((SUMIFS(Transactions!G:G,Transactions!A:A,"<="&'Running Portfolio Value'!A18,Transactions!B:B,"RRSP",Transactions!D:D,"TD US Index Fund -e (TDB902)",Transactions!C:C,{"Dividend"})))) -> 0 | X18: =IF(A18="","",(V18*(VLOOKUP(A18,'Price Data All Dates'!A:C,3,FALSE)))) -> 0 | Y18: 0 | Z18: =IF($A18="","",SUM((SUMIFS(Transactions!E:E,Transactions!A:A,"<="&'Running Portfolio Value'!$A18,Transactions!B:B,"RRSP",Transactions!D:D,"TD International Fund -e (TDB911)",Transactions!C:C,{"Buy","Dividend","Switch to"})))-SUM((SUMIFS(Transactions!E:E,Transactions!A:A,"<="&'Running Portfolio Value'!A18,Transactions!B:B,"RRSP",Transactions!D:D,"TD International Fund -e (TDB911)",Transactions!C:C,{"Sell","Switch from"})))) -> 0 | AA18: =IF(A18="","",(SUM((SUMIFS(Transactions!G:G,Transactions!A:A,"<="&'Running Portfolio Value'!A18,Transactions!B:B,"RRSP",Transactions!D:D,"TD International Fund -e (TDB911)",Transactions!C:C,{"Buy","Dividend","Switch to"})))-SUM((SUMIFS(Transactions!E:E,Transactions!A:A,"<="&'Running Portfolio Value'!A18,Transactions!B:B,"RRSP",Transactions!D:D,"TD International Fund -e (TDB911)",Transactions!C:C,{"Sell","Switch from"}))))-SUM((SUMIFS(Transactions!G:G,Transactions!A:A,"<="&'Running Portfolio Value'!A18,Transactions!B:B,"RRSP",Transactions!D:D,"TD International Fund -e (TDB911)",Transactions!C:C,{"Dividend"})))) -> 0 | AB18: =IF(A18="","",(Z18*(VLOOKUP(A18,'Price Data All Dates'!A:D,4,FALSE)))) -> 0 | AC18: 0 | AD18: =IF($A18="","",SUM((SUMIFS(Transactions!E:E,Transactions!A:A,"<="&'Running Portfolio Value'!$A18,Transactions!B:B,"RRSP",Transactions!D:D,"TD Canadian Bond Index Fund -e (TDB909)",Transactions!C:C,{"Buy","Dividend","Switch to"})))-SUM((SUMIFS(Transactions!E:E,Transactions!A:A,"<="&'Running Portfolio Value'!A18,Transactions!B:B,"RRSP",Transactions!D:D,"TD Canadian Bond Index Fund -e (TDB909)",Transactions!C:C,{"Sell","Switch from"})))) -> 0 | AE18: =IF(A18="","",(SUM((SUMIFS(Transactions!G:G,Transactions!A:A,"<="&'Running Portfolio Value'!A18,Transactions!B:B,"RRSP",Transactions!D:D,"TD Canadian Bond Index Fund -e (TDB909)",Transactions!C:C,{"Buy","Dividend","Switch to"})))-SUM((SUMIFS(Transactions!E:E,Transactions!A:A,"<="&'Running Portfolio Value'!A18,Transactions!B:B,"RRSP",Transactions!D:D,"TD Canadian Bond Index Fund -e (TDB909)",Transactions!C:C,{"Sell","Switch from"}))))-SUM((SUMIFS(Transactions!G:G,Transactions!A:A,"<="&'Running Portfolio Value'!A18,Transactions!B:B,"RRSP",Transactions!D:D,"TD Canadian Bond Index Fund -e (TDB909)",Transactions!C:C,{"Dividend"})))) -> 0 | AF18: =IF(A18="","",(AD18*(VLOOKUP(A18,'Price Data All Dates'!A:E,5,FALSE)))) -> 0 | AG18: 0 | AH18: 0 | AI18: 0 | AJ18: 0 | AK18: 0 | AL18: 0 | AM18: 0
A19: =IF(TODAY()-(ROW()-3)>MIN(Transactions!A:A),TODAY()-(ROW()-3),"") -> 2018-04-24 | B19: =IF(A19="","",SUM((SUMIFS(Transactions!E:E,Transactions!A:A,"<="&'Running Portfolio Value'!A19,Transactions!B:B,"TFSA",Transactions!D:D,"TD Canadian Index Fund -e (TDB900)",Transactions!C:C,{"Buy","Dividend","Switch to"})))-SUM((SUMIFS(Transactions!E:E,Transactions!A:A,"<="&'Running Portfolio Value'!A19,Transactions!B:B,"TFSA",Transactions!D:D,"TD Canadian Index Fund -e (TDB900)",Transactions!C:C,{"Sell","Switch from"})))) -> 0 | C19: =IF(A19="","",(SUM((SUMIFS(Transactions!G:G,Transactions!A:A,"<="&'Running Portfolio Value'!A19,Transactions!B:B,"TFSA",Transactions!D:D,"TD Canadian Index Fund -e (TDB900)",Transactions!C:C,{"Buy","Dividend","Switch to"})))-SUM((SUMIFS(Transactions!E:E,Transactions!A:A,"<="&'Running Portfolio Value'!A19,Transactions!B:B,"TFSA",Transactions!D:D,"TD Canadian Index Fund -e (TDB900)",Transactions!C:C,{"Sell","Switch from"}))))-SUM((SUMIFS(Transactions!G:G,Transactions!A:A,"<="&'Running Portfolio Value'!A19,Transactions!B:B,"TFSA",Transactions!D:D,"TD Canadian Index Fund -e (TDB900)",Transactions!C:C,{"Dividend"})))) -> 0 | D19: =IF(A19="","",(B19*(VLOOKUP(A19,'Price Data All Dates'!A:B,2,FALSE)))) -> 0 | E19: 0 | F19: =IF($A19="","",SUM((SUMIFS(Transactions!E:E,Transactions!A:A,"<="&'Running Portfolio Value'!$A19,Transactions!B:B,"TFSA",Transactions!D:D,"TD US Index Fund -e (TDB902)",Transactions!C:C,{"Buy","Dividend","Switch to"})))-SUM((SUMIFS(Transactions!E:E,Transactions!A:A,"<="&'Running Portfolio Value'!A19,Transactions!B:B,"TFSA",Transactions!D:D,"TD US Index Fund -e (TDB902)",Transactions!C:C,{"Sell","Switch from"})))) -> 0 | G19: =IF(A19="","",(SUM((SUMIFS(Transactions!G:G,Transactions!A:A,"<="&'Running Portfolio Value'!A19,Transactions!B:B,"TFSA",Transactions!D:D,"TD US Index Fund -e (TDB902)",Transactions!C:C,{"Buy","Dividend","Switch to"})))-SUM((SUMIFS(Transactions!E:E,Transactions!A:A,"<="&'Running Portfolio Value'!A19,Transactions!B:B,"TFSA",Transactions!D:D,"TD US Index Fund -e (TDB902)",Transactions!C:C,{"Sell","Switch from"}))))-SUM((SUMIFS(Transactions!G:G,Transactions!A:A,"<="&'Running Portfolio Value'!A19,Transactions!B:B,"TFSA",Transactions!D:D,"TD US Index Fund -e (TDB902)",Transactions!C:C,{"Dividend"})))) -> 0 | H19: =IF(A19="","",(F19*(VLOOKUP(A19,'Price Data All Dates'!A:C,3,FALSE)))) -> 0 | I19: 0 | J19: =IF($A19="","",SUM((SUMIFS(Transactions!E:E,Transactions!A:A,"<="&'Running Portfolio Value'!$A19,Transactions!B:B,"TFSA",Transactions!D:D,"TD International Fund -e (TDB911)",Transactions!C:C,{"Buy","Dividend","Switch to"})))-SUM((SUMIFS(Transactions!E:E,Transactions!A:A,"<="&'Running Portfolio Value'!A19,Transactions!B:B,"TFSA",Transactions!D:D,"TD International Fund -e (TDB911)",Transactions!C:C,{"Sell","Switch from"})))) -> 0 | K19: =IF(A19="","",(SUM((SUMIFS(Transactions!G:G,Transactions!A:A,"<="&'Running Portfolio Value'!A19,Transactions!B:B,"TFSA",Transactions!D:D,"TD International Fund -e (TDB911)",Transactions!C:C,{"Buy","Dividend","Switch to"})))-SUM((SUMIFS(Transactions!E:E,Transactions!A:A,"<="&'Running Portfolio Value'!A19,Transactions!B:B,"TFSA",Transactions!D:D,"TD International Fund -e (TDB911)",Transactions!C:C,{"Sell","Switch from"}))))-SUM((SUMIFS(Transactions!G:G,Transactions!A:A,"<="&'Running Portfolio Value'!A19,Transactions!B:B,"TFSA",Transactions!D:D,"TD International Fund -e (TDB911)",Transactions!C:C,{"Dividend"})))) -> 0 | L19: =IF(A19="","",(J19*(VLOOKUP(A19,'Price Data All Dates'!A:D,4,FALSE)))) -> 0 | M19: 0 | N19: =IF($A19="","",SUM((SUMIFS(Transactions!E:E,Transactions!A:A,"<="&'Running Portfolio Value'!$A19,Transactions!B:B,"TFSA",Transactions!D:D,"TD Canadian Bond Index Fund -e (TDB909)",Transactions!C:C,{"Buy","Dividend","Switch to"})))-SUM((SUMIFS(Transactions!E:E,Transactions!A:A,"<="&'Running Portfolio Value'!A19,Transactions!B:B,"TFSA",Transactions!D:D,"TD Canadian Bond Index Fund -e (TDB909)",Transactions!C:C,{"Sell","Switch from"})))) -> 0 | O19: =IF(A19="","",(SUM((SUMIFS(Transactions!G:G,Transactions!A:A,"<="&'Running Portfolio Value'!A19,Transactions!B:B,"TFSA",Transactions!D:D,"TD Canadian Bond Index Fund -e (TDB909)",Transactions!C:C,{"Buy","Dividend","Switch to"})))-SUM((SUMIFS(Transactions!E:E,Transactions!A:A,"<="&'Running Portfolio Value'!A19,Transactions!B:B,"TFSA",Transactions!D:D,"TD Canadian Bond Index Fund -e (TDB909)",Transactions!C:C,{"Sell","Switch from"}))))-SUM((SUMIFS(Transactions!G:G,Transactions!A:A,"<="&'Running Portfolio Value'!A19,Transactions!B:B,"TFSA",Transactions!D:D,"TD Canadian Bond Index Fund -e (TDB909)",Transactions!C:C,{"Dividend"})))) -> 0 | P19: =IF(A19="","",(N19*(VLOOKUP(A19,'Price Data All Dates'!A:E,5,FALSE)))) -> 0 | Q19: 0 | R19: =IF($A19="","",SUM((SUMIFS(Transactions!E:E,Transactions!A:A,"<="&'Running Portfolio Value'!$A19,Transactions!B:B,"RRSP",Transactions!D:D,"TD Canadian Index Fund -e (TDB900)",Transactions!C:C,{"Buy","Dividend","Switch to"})))-SUM((SUMIFS(Transactions!E:E,Transactions!A:A,"<="&'Running Portfolio Value'!A19,Transactions!B:B,"RRSP",Transactions!D:D,"TD Canadian Index Fund -e (TDB900)",Transactions!C:C,{"Sell","Switch from"})))) -> 0 | S19: =IF(A19="","",(SUM((SUMIFS(Transactions!G:G,Transactions!A:A,"<="&'Running Portfolio Value'!A19,Transactions!B:B,"RRSP",Transactions!D:D,"TD Canadian Index Fund -e (TDB900)",Transactions!C:C,{"Buy","Dividend","Switch to"})))-SUM((SUMIFS(Transactions!E:E,Transactions!A:A,"<="&'Running Portfolio Value'!A19,Transactions!B:B,"RRSP",Transactions!D:D,"TD Canadian Index Fund -e (TDB900)",Transactions!C:C,{"Sell","Switch from"}))))-SUM((SUMIFS(Transactions!G:G,Transactions!A:A,"<="&'Running Portfolio Value'!A19,Transactions!B:B,"RRSP",Transactions!D:D,"TD Canadian Index Fund -e (TDB900)",Transactions!C:C,{"Dividend"})))) -> 0 | T19: =IF(A19="","",(R19*(VLOOKUP(A19,'Price Data All Dates'!A:B,2,FALSE)))) -> 0 | U19: 0 | V19: =IF($A19="","",SUM((SUMIFS(Transactions!E:E,Transactions!A:A,"<="&'Running Portfolio Value'!$A19,Transactions!B:B,"RRSP",Transactions!D:D,"TD US Index Fund -e (TDB902)",Transactions!C:C,{"Buy","Dividend","Switch to"})))-SUM((SUMIFS(Transactions!E:E,Transactions!A:A,"<="&'Running Portfolio Value'!A19,Transactions!B:B,"RRSP",Transactions!D:D,"TD US Index Fund -e (TDB902)",Transactions!C:C,{"Sell","Switch from"})))) -> 0 | W19: =IF(A19="","",(SUM((SUMIFS(Transactions!G:G,Transactions!A:A,"<="&'Running Portfolio Value'!A19,Transactions!B:B,"RRSP",Transactions!D:D,"TD US Index Fund -e (TDB902)",Transactions!C:C,{"Buy","Dividend","Switch to"})))-SUM((SUMIFS(Transactions!E:E,Transactions!A:A,"<="&'Running Portfolio Value'!A19,Transactions!B:B,"RRSP",Transactions!D:D,"TD US Index Fund -e (TDB902)",Transactions!C:C,{"Sell","Switch from"}))))-SUM((SUMIFS(Transactions!G:G,Transactions!A:A,"<="&'Running Portfolio Value'!A19,Transactions!B:B,"RRSP",Transactions!D:D,"TD US Index Fund -e (TDB902)",Transactions!C:C,{"Dividend"})))) -> 0 | X19: =IF(A19="","",(V19*(VLOOKUP(A19,'Price Data All Dates'!A:C,3,FALSE)))) -> 0 | Y19: 0 | Z19: =IF($A19="","",SUM((SUMIFS(Transactions!E:E,Transactions!A:A,"<="&'Running Portfolio Value'!$A19,Transactions!B:B,"RRSP",Transactions!D:D,"TD International Fund -e (TDB911)",Transactions!C:C,{"Buy","Dividend","Switch to"})))-SUM((SUMIFS(Transactions!E:E,Transactions!A:A,"<="&'Running Portfolio Value'!A19,Transactions!B:B,"RRSP",Transactions!D:D,"TD International Fund -e (TDB911)",Transactions!C:C,{"Sell","Switch from"})))) -> 0 | AA19: =IF(A19="","",(SUM((SUMIFS(Transactions!G:G,Transactions!A:A,"<="&'Running Portfolio Value'!A19,Transactions!B:B,"RRSP",Transactions!D:D,"TD International Fund -e (TDB911)",Transactions!C:C,{"Buy","Dividend","Switch to"})))-SUM((SUMIFS(Transactions!E:E,Transactions!A:A,"<="&'Running Portfolio Value'!A19,Transactions!B:B,"RRSP",Transactions!D:D,"TD International Fund -e (TDB911)",Transactions!C:C,{"Sell","Switch from"}))))-SUM((SUMIFS(Transactions!G:G,Transactions!A:A,"<="&'Running Portfolio Value'!A19,Transactions!B:B,"RRSP",Transactions!D:D,"TD International Fund -e (TDB911)",Transactions!C:C,{"Dividend"})))) -> 0 | AB19: =IF(A19="","",(Z19*(VLOOKUP(A19,'Price Data All Dates'!A:D,4,FALSE)))) -> 0 | AC19: 0 | AD19: =IF($A19="","",SUM((SUMIFS(Transactions!E:E,Transactions!A:A,"<="&'Running Portfolio Value'!$A19,Transactions!B:B,"RRSP",Transactions!D:D,"TD Canadian Bond Index Fund -e (TDB909)",Transactions!C:C,{"Buy","Dividend","Switch to"})))-SUM((SUMIFS(Transactions!E:E,Transactions!A:A,"<="&'Running Portfolio Value'!A19,Transactions!B:B,"RRSP",Transactions!D:D,"TD Canadian Bond Index Fund -e (TDB909)",Transactions!C:C,{"Sell","Switch from"})))) -> 0 | AE19: =IF(A19="","",(SUM((SUMIFS(Transactions!G:G,Transactions!A:A,"<="&'Running Portfolio Value'!A19,Transactions!B:B,"RRSP",Transactions!D:D,"TD Canadian Bond Index Fund -e (TDB909)",Transactions!C:C,{"Buy","Dividend","Switch to"})))-SUM((SUMIFS(Transactions!E:E,Transactions!A:A,"<="&'Running Portfolio Value'!A19,Transactions!B:B,"RRSP",Transactions!D:D,"TD Canadian Bond Index Fund -e (TDB909)",Transactions!C:C,{"Sell","Switch from"}))))-SUM((SUMIFS(Transactions!G:G,Transactions!A:A,"<="&'Running Portfolio Value'!A19,Transactions!B:B,"RRSP",Transactions!D:D,"TD Canadian Bond Index Fund -e (TDB909)",Transactions!C:C,{"Dividend"})))) -> 0 | AF19: =IF(A19="","",(AD19*(VLOOKUP(A19,'Price Data All Dates'!A:E,5,FALSE)))) -> 0 | AG19: 0 | AH19: 0 | AI19: 0 | AJ19: 0 | AK19: 0 | AL19: 0 | AM19: 0
A20: =IF(TODAY()-(ROW()-3)>MIN(Transactions!A:A),TODAY()-(ROW()-3),"") -> 2018-04-23 | B20: =IF(A20="","",SUM((SUMIFS(Transactions!E:E,Transactions!A:A,"<="&'Running Portfolio Value'!A20,Transactions!B:B,"TFSA",Transactions!D:D,"TD Canadian Index Fund -e (TDB900)",Transactions!C:C,{"Buy","Dividend","Switch to"})))-SUM((SUMIFS(Transactions!E:E,Transactions!A:A,"<="&'Running Portfolio Value'!A20,Transactions!B:B,"TFSA",Transactions!D:D,"TD Canadian Index Fund -e (TDB900)",Transactions!C:C,{"Sell","Switch from"})))) -> 0 | C20: =IF(A20="","",(SUM((SUMIFS(Transactions!G:G,Transactions!A:A,"<="&'Running Portfolio Value'!A20,Transactions!B:B,"TFSA",Transactions!D:D,"TD Canadian Index Fund -e (TDB900)",Transactions!C:C,{"Buy","Dividend","Switch to"})))-SUM((SUMIFS(Transactions!E:E,Transactions!A:A,"<="&'Running Portfolio Value'!A20,Transactions!B:B,"TFSA",Transactions!D:D,"TD Canadian Index Fund -e (TDB900)",Transactions!C:C,{"Sell","Switch from"}))))-SUM((SUMIFS(Transactions!G:G,Transactions!A:A,"<="&'Running Portfolio Value'!A20,Transactions!B:B,"TFSA",Transactions!D:D,"TD Canadian Index Fund -e (TDB900)",Transactions!C:C,{"Dividend"})))) -> 0 | D20: =IF(A20="","",(B20*(VLOOKUP(A20,'Price Data All Dates'!A:B,2,FALSE)))) -> 0 | E20: 0 | F20: =IF($A20="","",SUM((SUMIFS(Transactions!E:E,Transactions!A:A,"<="&'Running Portfolio Value'!$A20,Transactions!B:B,"TFSA",Transactions!D:D,"TD US Index Fund -e (TDB902)",Transactions!C:C,{"Buy","Dividend","Switch to"})))-SUM((SUMIFS(Transactions!E:E,Transactions!A:A,"<="&'Running Portfolio Value'!A20,Transactions!B:B,"TFSA",Transactions!D:D,"TD US Index Fund -e (TDB902)",Transactions!C:C,{"Sell","Switch from"})))) -> 0 | G20: =IF(A20="","",(SUM((SUMIFS(Transactions!G:G,Transactions!A:A,"<="&'Running Portfolio Value'!A20,Transactions!B:B,"TFSA",Transactions!D:D,"TD US Index Fund -e (TDB902)",Transactions!C:C,{"Buy","Dividend","Switch to"})))-SUM((SUMIFS(Transactions!E:E,Transactions!A:A,"<="&'Running Portfolio Value'!A20,Transactions!B:B,"TFSA",Transactions!D:D,"TD US Index Fund -e (TDB902)",Transactions!C:C,{"Sell","Switch from"}))))-SUM((SUMIFS(Transactions!G:G,Transactions!A:A,"<="&'Running Portfolio Value'!A20,Transactions!B:B,"TFSA",Transactions!D:D,"TD US Index Fund -e (TDB902)",Transactions!C:C,{"Dividend"})))) -> 0 | H20: =IF(A20="","",(F20*(VLOOKUP(A20,'Price Data All Dates'!A:C,3,FALSE)))) -> 0 | I20: 0 | J20: =IF($A20="","",SUM((SUMIFS(Transactions!E:E,Transactions!A:A,"<="&'Running Portfolio Value'!$A20,Transactions!B:B,"TFSA",Transactions!D:D,"TD International Fund -e (TDB911)",Transactions!C:C,{"Buy","Dividend","Switch to"})))-SUM((SUMIFS(Transactions!E:E,Transactions!A:A,"<="&'Running Portfolio Value'!A20,Transactions!B:B,"TFSA",Transactions!D:D,"TD International Fund -e (TDB911)",Transactions!C:C,{"Sell","Switch from"})))) -> 0 | K20: =IF(A20="","",(SUM((SUMIFS(Transactions!G:G,Transactions!A:A,"<="&'Running Portfolio Value'!A20,Transactions!B:B,"TFSA",Transactions!D:D,"TD International Fund -e (TDB911)",Transactions!C:C,{"Buy","Dividend","Switch to"})))-SUM((SUMIFS(Transactions!E:E,Transactions!A:A,"<="&'Running Portfolio Value'!A20,Transactions!B:B,"TFSA",Transactions!D:D,"TD International Fund -e (TDB911)",Transactions!C:C,{"Sell","Switch from"}))))-SUM((SUMIFS(Transactions!G:G,Transactions!A:A,"<="&'Running Portfolio Value'!A20,Transactions!B:B,"TFSA",Transactions!D:D,"TD International Fund -e (TDB911)",Transactions!C:C,{"Dividend"})))) -> 0 | L20: =IF(A20="","",(J20*(VLOOKUP(A20,'Price Data All Dates'!A:D,4,FALSE)))) -> 0 | M20: 0 | N20: =IF($A20="","",SUM((SUMIFS(Transactions!E:E,Transactions!A:A,"<="&'Running Portfolio Value'!$A20,Transactions!B:B,"TFSA",Transactions!D:D,"TD Canadian Bond Index Fund -e (TDB909)",Transactions!C:C,{"Buy","Dividend","Switch to"})))-SUM((SUMIFS(Transactions!E:E,Transactions!A:A,"<="&'Running Portfolio Value'!A20,Transactions!B:B,"TFSA",Transactions!D:D,"TD Canadian Bond Index Fund -e (TDB909)",Transactions!C:C,{"Sell","Switch from"})))) -> 0 | O20: =IF(A20="","",(SUM((SUMIFS(Transactions!G:G,Transactions!A:A,"<="&'Running Portfolio Value'!A20,Transactions!B:B,"TFSA",Transactions!D:D,"TD Canadian Bond Index Fund -e (TDB909)",Transactions!C:C,{"Buy","Dividend","Switch to"})))-SUM((SUMIFS(Transactions!E:E,Transactions!A:A,"<="&'Running Portfolio Value'!A20,Transactions!B:B,"TFSA",Transactions!D:D,"TD Canadian Bond Index Fund -e (TDB909)",Transactions!C:C,{"Sell","Switch from"}))))-SUM((SUMIFS(Transactions!G:G,Transactions!A:A,"<="&'Running Portfolio Value'!A20,Transactions!B:B,"TFSA",Transactions!D:D,"TD Canadian Bond Index Fund -e (TDB909)",Transactions!C:C,{"Dividend"})))) -> 0 | P20: =IF(A20="","",(N20*(VLOOKUP(A20,'Price Data All Dates'!A:E,5,FALSE)))) -> 0 | Q20: 0 | R20: =IF($A20="","",SUM((SUMIFS(Transactions!E:E,Transactions!A:A,"<="&'Running Portfolio Value'!$A20,Transactions!B:B,"RRSP",Transactions!D:D,"TD Canadian Index Fund -e (TDB900)",Transactions!C:C,{"Buy","Dividend","Switch to"})))-SUM((SUMIFS(Transactions!E:E,Transactions!A:A,"<="&'Running Portfolio Value'!A20,Transactions!B:B,"RRSP",Transactions!D:D,"TD Canadian Index Fund -e (TDB900)",Transactions!C:C,{"Sell","Switch from"})))) -> 0 | S20: =IF(A20="","",(SUM((SUMIFS(Transactions!G:G,Transactions!A:A,"<="&'Running Portfolio Value'!A20,Transactions!B:B,"RRSP",Transactions!D:D,"TD Canadian Index Fund -e (TDB900)",Transactions!C:C,{"Buy","Dividend","Switch to"})))-SUM((SUMIFS(Transactions!E:E,Transactions!A:A,"<="&'Running Portfolio Value'!A20,Transactions!B:B,"RRSP",Transactions!D:D,"TD Canadian Index Fund -e (TDB900)",Transactions!C:C,{"Sell","Switch from"}))))-SUM((SUMIFS(Transactions!G:G,Transactions!A:A,"<="&'Running Portfolio Value'!A20,Transactions!B:B,"RRSP",Transactions!D:D,"TD Canadian Index Fund -e (TDB900)",Transactions!C:C,{"Dividend"})))) -> 0 | T20: =IF(A20="","",(R20*(VLOOKUP(A20,'Price Data All Dates'!A:B,2,FALSE)))) -> 0 | U20: 0 | V20: =IF($A20="","",SUM((SUMIFS(Transactions!E:E,Transactions!A:A,"<="&'Running Portfolio Value'!$A20,Transactions!B:B,"RRSP",Transactions!D:D,"TD US Index Fund -e (TDB902)",Transactions!C:C,{"Buy","Dividend","Switch to"})))-SUM((SUMIFS(Transactions!E:E,Transactions!A:A,"<="&'Running Portfolio Value'!A20,Transactions!B:B,"RRSP",Transactions!D:D,"TD US Index Fund -e (TDB902)",Transactions!C:C,{"Sell","Switch from"})))) -> 0 | W20: =IF(A20="","",(SUM((SUMIFS(Transactions!G:G,Transactions!A:A,"<="&'Running Portfolio Value'!A20,Transactions!B:B,"RRSP",Transactions!D:D,"TD US Index Fund -e (TDB902)",Transactions!C:C,{"Buy","Dividend","Switch to"})))-SUM((SUMIFS(Transactions!E:E,Transactions!A:A,"<="&'Running Portfolio Value'!A20,Transactions!B:B,"RRSP",Transactions!D:D,"TD US Index Fund -e (TDB902)",Transactions!C:C,{"Sell","Switch from"}))))-SUM((SUMIFS(Transactions!G:G,Transactions!A:A,"<="&'Running Portfolio Value'!A20,Transactions!B:B,"RRSP",Transactions!D:D,"TD US Index Fund -e (TDB902)",Transactions!C:C,{"Dividend"})))) -> 0 | X20: =IF(A20="","",(V20*(VLOOKUP(A20,'Price Data All Dates'!A:C,3,FALSE)))) -> 0 | Y20: 0 | Z20: =IF($A20="","",SUM((SUMIFS(Transactions!E:E,Transactions!A:A,"<="&'Running Portfolio Value'!$A20,Transactions!B:B,"RRSP",Transactions!D:D,"TD International Fund -e (TDB911)",Transactions!C:C,{"Buy","Dividend","Switch to"})))-SUM((SUMIFS(Transactions!E:E,Transactions!A:A,"<="&'Running Portfolio Value'!A20,Transactions!B:B,"RRSP",Transactions!D:D,"TD International Fund -e (TDB911)",Transactions!C:C,{"Sell","Switch from"})))) -> 0 | AA20: =IF(A20="","",(SUM((SUMIFS(Transactions!G:G,Transactions!A:A,"<="&'Running Portfolio Value'!A20,Transactions!B:B,"RRSP",Transactions!D:D,"TD International Fund -e (TDB911)",Transactions!C:C,{"Buy","Dividend","Switch to"})))-SUM((SUMIFS(Transactions!E:E,Transactions!A:A,"<="&'Running Portfolio Value'!A20,Transactions!B:B,"RRSP",Transactions!D:D,"TD International Fund -e (TDB911)",Transactions!C:C,{"Sell","Switch from"}))))-SUM((SUMIFS(Transactions!G:G,Transactions!A:A,"<="&'Running Portfolio Value'!A20,Transactions!B:B,"RRSP",Transactions!D:D,"TD International Fund -e (TDB911)",Transactions!C:C,{"Dividend"})))) -> 0 | AB20: =IF(A20="","",(Z20*(VLOOKUP(A20,'Price Data All Dates'!A:D,4,FALSE)))) -> 0 | AC20: 0 | AD20: =IF($A20="","",SUM((SUMIFS(Transactions!E:E,Transactions!A:A,"<="&'Running Portfolio Value'!$A20,Transactions!B:B,"RRSP",Transactions!D:D,"TD Canadian Bond Index Fund -e (TDB909)",Transactions!C:C,{"Buy","Dividend","Switch to"})))-SUM((SUMIFS(Transactions!E:E,Transactions!A:A,"<="&'Running Portfolio Value'!A20,Transactions!B:B,"RRSP",Transactions!D:D,"TD Canadian Bond Index Fund -e (TDB909)",Transactions!C:C,{"Sell","Switch from"})))) -> 0 | AE20: =IF(A20="","",(SUM((SUMIFS(Transactions!G:G,Transactions!A:A,"<="&'Running Portfolio Value'!A20,Transactions!B:B,"RRSP",Transactions!D:D,"TD Canadian Bond Index Fund -e (TDB909)",Transactions!C:C,{"Buy","Dividend","Switch to"})))-SUM((SUMIFS(Transactions!E:E,Transactions!A:A,"<="&'Running Portfolio Value'!A20,Transactions!B:B,"RRSP",Transactions!D:D,"TD Canadian Bond Index Fund -e (TDB909)",Transactions!C:C,{"Sell","Switch from"}))))-SUM((SUMIFS(Transactions!G:G,Transactions!A:A,"<="&'Running Portfolio Value'!A20,Transactions!B:B,"RRSP",Transactions!D:D,"TD Canadian Bond Index Fund -e (TDB909)",Transactions!C:C,{"Dividend"})))) -> 0 | AF20: =IF(A20="","",(AD20*(VLOOKUP(A20,'Price Data All Dates'!A:E,5,FALSE)))) -> 0 | AG20: 0 | AH20: 0 | AI20: 0 | AJ20: 0 | AK20: 0 | AL20: 0 | AM20: 0
A21: =IF(TODAY()-(ROW()-3)>MIN(Transactions!A:A),TODAY()-(ROW()-3),"") -> 2018-04-22 | B21: =IF(A21="","",SUM((SUMIFS(Transactions!E:E,Transactions!A:A,"<="&'Running Portfolio Value'!A21,Transactions!B:B,"TFSA",Transactions!D:D,"TD Canadian Index Fund -e (TDB900)",Transactions!C:C,{"Buy","Dividend","Switch to"})))-SUM((SUMIFS(Transactions!E:E,Transactions!A:A,"<="&'Running Portfolio Value'!A21,Transactions!B:B,"TFSA",Transactions!D:D,"TD Canadian Index Fund -e (TDB900)",Transactions!C:C,{"Sell","Switch from"})))) -> 0 | C21: =IF(A21="","",(SUM((SUMIFS(Transactions!G:G,Transactions!A:A,"<="&'Running Portfolio Value'!A21,Transactions!B:B,"TFSA",Transactions!D:D,"TD Canadian Index Fund -e (TDB900)",Transactions!C:C,{"Buy","Dividend","Switch to"})))-SUM((SUMIFS(Transactions!E:E,Transactions!A:A,"<="&'Running Portfolio Value'!A21,Transactions!B:B,"TFSA",Transactions!D:D,"TD Canadian Index Fund -e (TDB900)",Transactions!C:C,{"Sell","Switch from"}))))-SUM((SUMIFS(Transactions!G:G,Transactions!A:A,"<="&'Running Portfolio Value'!A21,Transactions!B:B,"TFSA",Transactions!D:D,"TD Canadian Index Fund -e (TDB900)",Transactions!C:C,{"Dividend"})))) -> 0 | D21: =IF(A21="","",(B21*(VLOOKUP(A21,'Price Data All Dates'!A:B,2,FALSE)))) -> 0 | E21: 0 | F21: =IF($A21="","",SUM((SUMIFS(Transactions!E:E,Transactions!A:A,"<="&'Running Portfolio Value'!$A21,Transactions!B:B,"TFSA",Transactions!D:D,"TD US Index Fund -e (TDB902)",Transactions!C:C,{"Buy","Dividend","Switch to"})))-SUM((SUMIFS(Transactions!E:E,Transactions!A:A,"<="&'Running Portfolio Value'!A21,Transactions!B:B,"TFSA",Transactions!D:D,"TD US Index Fund -e (TDB902)",Transactions!C:C,{"Sell","Switch from"})))) -> 0 | G21: =IF(A21="","",(SUM((SUMIFS(Transactions!G:G,Transactions!A:A,"<="&'Running Portfolio Value'!A21,Transactions!B:B,"TFSA",Transactions!D:D,"TD US Index Fund -e (TDB902)",Transactions!C:C,{"Buy","Dividend","Switch to"})))-SUM((SUMIFS(Transactions!E:E,Transactions!A:A,"<="&'Running Portfolio Value'!A21,Transactions!B:B,"TFSA",Transactions!D:D,"TD US Index Fund -e (TDB902)",Transactions!C:C,{"Sell","Switch from"}))))-SUM((SUMIFS(Transactions!G:G,Transactions!A:A,"<="&'Running Portfolio Value'!A21,Transactions!B:B,"TFSA",Transactions!D:D,"TD US Index Fund -e (TDB902)",Transactions!C:C,{"Dividend"})))) -> 0 | H21: =IF(A21="","",(F21*(VLOOKUP(A21,'Price Data All Dates'!A:C,3,FALSE)))) -> 0 | I21: 0 | J21: =IF($A21="","",SUM((SUMIFS(Transactions!E:E,Transactions!A:A,"<="&'Running Portfolio Value'!$A21,Transactions!B:B,"TFSA",Transactions!D:D,"TD International Fund -e (TDB911)",Transactions!C:C,{"Buy","Dividend","Switch to"})))-SUM((SUMIFS(Transactions!E:E,Transactions!A:A,"<="&'Running Portfolio Value'!A21,Transactions!B:B,"TFSA",Transactions!D:D,"TD International Fund -e (TDB911)",Transactions!C:C,{"Sell","Switch from"})))) -> 0 | K21: =IF(A21="","",(SUM((SUMIFS(Transactions!G:G,Transactions!A:A,"<="&'Running Portfolio Value'!A21,Transactions!B:B,"TFSA",Transactions!D:D,"TD International Fund -e (TDB911)",Transactions!C:C,{"Buy","Dividend","Switch to"})))-SUM((SUMIFS(Transactions!E:E,Transactions!A:A,"<="&'Running Portfolio Value'!A21,Transactions!B:B,"TFSA",Transactions!D:D,"TD International Fund -e (TDB911)",Transactions!C:C,{"Sell","Switch from"}))))-SUM((SUMIFS(Transactions!G:G,Transactions!A:A,"<="&'Running Portfolio Value'!A21,Transactions!B:B,"TFSA",Transactions!D:D,"TD International Fund -e (TDB911)",Transactions!C:C,{"Dividend"})))) -> 0 | L21: =IF(A21="","",(J21*(VLOOKUP(A21,'Price Data All Dates'!A:D,4,FALSE)))) -> 0 | M21: 0 | N21: =IF($A21="","",SUM((SUMIFS(Transactions!E:E,Transactions!A:A,"<="&'Running Portfolio Value'!$A21,Transactions!B:B,"TFSA",Transactions!D:D,"TD Canadian Bond Index Fund -e (TDB909)",Transactions!C:C,{"Buy","Dividend","Switch to"})))-SUM((SUMIFS(Transactions!E:E,Transactions!A:A,"<="&'Running Portfolio Value'!A21,Transactions!B:B,"TFSA",Transactions!D:D,"TD Canadian Bond Index Fund -e (TDB909)",Transactions!C:C,{"Sell","Switch from"})))) -> 0 | O21: =IF(A21="","",(SUM((SUMIFS(Transactions!G:G,Transactions!A:A,"<="&'Running Portfolio Value'!A21,Transactions!B:B,"TFSA",Transactions!D:D,"TD Canadian Bond Index Fund -e (TDB909)",Transactions!C:C,{"Buy","Dividend","Switch to"})))-SUM((SUMIFS(Transactions!E:E,Transactions!A:A,"<="&'Running Portfolio Value'!A21,Transactions!B:B,"TFSA",Transactions!D:D,"TD Canadian Bond Index Fund -e (TDB909)",Transactions!C:C,{"Sell","Switch from"}))))-SUM((SUMIFS(Transactions!G:G,Transactions!A:A,"<="&'Running Portfolio Value'!A21,Transactions!B:B,"TFSA",Transactions!D:D,"TD Canadian Bond Index Fund -e (TDB909)",Transactions!C:C,{"Dividend"})))) -> 0 | P21: =IF(A21="","",(N21*(VLOOKUP(A21,'Price Data All Dates'!A:E,5,FALSE)))) -> 0 | Q21: 0 | R21: =IF($A21="","",SUM((SUMIFS(Transactions!E:E,Transactions!A:A,"<="&'Running Portfolio Value'!$A21,Transactions!B:B,"RRSP",Transactions!D:D,"TD Canadian Index Fund -e (TDB900)",Transactions!C:C,{"Buy","Dividend","Switch to"})))-SUM((SUMIFS(Transactions!E:E,Transactions!A:A,"<="&'Running Portfolio Value'!A21,Transactions!B:B,"RRSP",Transactions!D:D,"TD Canadian Index Fund -e (TDB900)",Transactions!C:C,{"Sell","Switch from"})))) -> 0 | S21: =IF(A21="","",(SUM((SUMIFS(Transactions!G:G,Transactions!A:A,"<="&'Running Portfolio Value'!A21,Transactions!B:B,"RRSP",Transactions!D:D,"TD Canadian Index Fund -e (TDB900)",Transactions!C:C,{"Buy","Dividend","Switch to"})))-SUM((SUMIFS(Transactions!E:E,Transactions!A:A,"<="&'Running Portfolio Value'!A21,Transactions!B:B,"RRSP",Transactions!D:D,"TD Canadian Index Fund -e (TDB900)",Transactions!C:C,{"Sell","Switch from"}))))-SUM((SUMIFS(Transactions!G:G,Transactions!A:A,"<="&'Running Portfolio Value'!A21,Transactions!B:B,"RRSP",Transactions!D:D,"TD Canadian Index Fund -e (TDB900)",Transactions!C:C,{"Dividend"})))) -> 0 | T21: =IF(A21="","",(R21*(VLOOKUP(A21,'Price Data All Dates'!A:B,2,FALSE)))) -> 0 | U21: 0 | V21: =IF($A21="","",SUM((SUMIFS(Transactions!E:E,Transactions!A:A,"<="&'Running Portfolio Value'!$A21,Transactions!B:B,"RRSP",Transactions!D:D,"TD US Index Fund -e (TDB902)",Transactions!C:C,{"Buy","Dividend","Switch to"})))-SUM((SUMIFS(Transactions!E:E,Transactions!A:A,"<="&'Running Portfolio Value'!A21,Transactions!B:B,"RRSP",Transactions!D:D,"TD US Index Fund -e (TDB902)",Transactions!C:C,{"Sell","Switch from"})))) -> 0 | W21: =IF(A21="","",(SUM((SUMIFS(Transactions!G:G,Transactions!A:A,"<="&'Running Portfolio Value'!A21,Transactions!B:B,"RRSP",Transactions!D:D,"TD US Index Fund -e (TDB902)",Transactions!C:C,{"Buy","Dividend","Switch to"})))-SUM((SUMIFS(Transactions!E:E,Transactions!A:A,"<="&'Running Portfolio Value'!A21,Transactions!B:B,"RRSP",Transactions!D:D,"TD US Index Fund -e (TDB902)",Transactions!C:C,{"Sell","Switch from"}))))-SUM((SUMIFS(Transactions!G:G,Transactions!A:A,"<="&'Running Portfolio Value'!A21,Transactions!B:B,"RRSP",Transactions!D:D,"TD US Index Fund -e (TDB902)",Transactions!C:C,{"Dividend"})))) -> 0 | X21: =IF(A21="","",(V21*(VLOOKUP(A21,'Price Data All Dates'!A:C,3,FALSE)))) -> 0 | Y21: 0 | Z21: =IF($A21="","",SUM((SUMIFS(Transactions!E:E,Transactions!A:A,"<="&'Running Portfolio Value'!$A21,Transactions!B:B,"RRSP",Transactions!D:D,"TD International Fund -e (TDB911)",Transactions!C:C,{"Buy","Dividend","Switch to"})))-SUM((SUMIFS(Transactions!E:E,Transactions!A:A,"<="&'Running Portfolio Value'!A21,Transactions!B:B,"RRSP",Transactions!D:D,"TD International Fund -e (TDB911)",Transactions!C:C,{"Sell","Switch from"})))) -> 0 | AA21: =IF(A21="","",(SUM((SUMIFS(Transactions!G:G,Transactions!A:A,"<="&'Running Portfolio Value'!A21,Transactions!B:B,"RRSP",Transactions!D:D,"TD International Fund -e (TDB911)",Transactions!C:C,{"Buy","Dividend","Switch to"})))-SUM((SUMIFS(Transactions!E:E,Transactions!A:A,"<="&'Running Portfolio Value'!A21,Transactions!B:B,"RRSP",Transactions!D:D,"TD International Fund -e (TDB911)",Transactions!C:C,{"Sell","Switch from"}))))-SUM((SUMIFS(Transactions!G:G,Transactions!A:A,"<="&'Running Portfolio Value'!A21,Transactions!B:B,"RRSP",Transactions!D:D,"TD International Fund -e (TDB911)",Transactions!C:C,{"Dividend"})))) -> 0 | AB21: =IF(A21="","",(Z21*(VLOOKUP(A21,'Price Data All Dates'!A:D,4,FALSE)))) -> 0 | AC21: 0 | AD21: =IF($A21="","",SUM((SUMIFS(Transactions!E:E,Transactions!A:A,"<="&'Running Portfolio Value'!$A21,Transactions!B:B,"RRSP",Transactions!D:D,"TD Canadian Bond Index Fund -e (TDB909)",Transactions!C:C,{"Buy","Dividend","Switch to"})))-SUM((SUMIFS(Transactions!E:E,Transactions!A:A,"<="&'Running Portfolio Value'!A21,Transactions!B:B,"RRSP",Transactions!D:D,"TD Canadian Bond Index Fund -e (TDB909)",Transactions!C:C,{"Sell","Switch from"})))) -> 0 | AE21: =IF(A21="","",(SUM((SUMIFS(Transactions!G:G,Transactions!A:A,"<="&'Running Portfolio Value'!A21,Transactions!B:B,"RRSP",Transactions!D:D,"TD Canadian Bond Index Fund -e (TDB909)",Transactions!C:C,{"Buy","Dividend","Switch to"})))-SUM((SUMIFS(Transactions!E:E,Transactions!A:A,"<="&'Running Portfolio Value'!A21,Transactions!B:B,"RRSP",Transactions!D:D,"TD Canadian Bond Index Fund -e (TDB909)",Transactions!C:C,{"Sell","Switch from"}))))-SUM((SUMIFS(Transactions!G:G,Transactions!A:A,"<="&'Running Portfolio Value'!A21,Transactions!B:B,"RRSP",Transactions!D:D,"TD Canadian Bond Index Fund -e (TDB909)",Transactions!C:C,{"Dividend"})))) -> 0 | AF21: =IF(A21="","",(AD21*(VLOOKUP(A21,'Price Data All Dates'!A:E,5,FALSE)))) -> 0 | AG21: 0 | AH21: 0 | AI21: 0 | AJ21: 0 | AK21: 0 | AL21: 0 | AM21: 0
A22: =IF(TODAY()-(ROW()-3)>MIN(Transactions!A:A),TODAY()-(ROW()-3),"") -> 2018-04-21 | B22: =IF(A22="","",SUM((SUMIFS(Transactions!E:E,Transactions!A:A,"<="&'Running Portfolio Value'!A22,Transactions!B:B,"TFSA",Transactions!D:D,"TD Canadian Index Fund -e (TDB900)",Transactions!C:C,{"Buy","Dividend","Switch to"})))-SUM((SUMIFS(Transactions!E:E,Transactions!A:A,"<="&'Running Portfolio Value'!A22,Transactions!B:B,"TFSA",Transactions!D:D,"TD Canadian Index Fund -e (TDB900)",Transactions!C:C,{"Sell","Switch from"})))) -> 0 | C22: =IF(A22="","",(SUM((SUMIFS(Transactions!G:G,Transactions!A:A,"<="&'Running Portfolio Value'!A22,Transactions!B:B,"TFSA",Transactions!D:D,"TD Canadian Index Fund -e (TDB900)",Transactions!C:C,{"Buy","Dividend","Switch to"})))-SUM((SUMIFS(Transactions!E:E,Transactions!A:A,"<="&'Running Portfolio Value'!A22,Transactions!B:B,"TFSA",Transactions!D:D,"TD Canadian Index Fund -e (TDB900)",Transactions!C:C,{"Sell","Switch from"}))))-SUM((SUMIFS(Transactions!G:G,Transactions!A:A,"<="&'Running Portfolio Value'!A22,Transactions!B:B,"TFSA",Transactions!D:D,"TD Canadian Index Fund -e (TDB900)",Transactions!C:C,{"Dividend"})))) -> 0 | D22: =IF(A22="","",(B22*(VLOOKUP(A22,'Price Data All Dates'!A:B,2,FALSE)))) -> 0 | E22: 0 | F22: =IF($A22="","",SUM((SUMIFS(Transactions!E:E,Transactions!A:A,"<="&'Running Portfolio Value'!$A22,Transactions!B:B,"TFSA",Transactions!D:D,"TD US Index Fund -e (TDB902)",Transactions!C:C,{"Buy","Dividend","Switch to"})))-SUM((SUMIFS(Transactions!E:E,Transactions!A:A,"<="&'Running Portfolio Value'!A22,Transactions!B:B,"TFSA",Transactions!D:D,"TD US Index Fund -e (TDB902)",Transactions!C:C,{"Sell","Switch from"})))) -> 0 | G22: =IF(A22="","",(SUM((SUMIFS(Transactions!G:G,Transactions!A:A,"<="&'Running Portfolio Value'!A22,Transactions!B:B,"TFSA",Transactions!D:D,"TD US Index Fund -e (TDB902)",Transactions!C:C,{"Buy","Dividend","Switch to"})))-SUM((SUMIFS(Transactions!E:E,Transactions!A:A,"<="&'Running Portfolio Value'!A22,Transactions!B:B,"TFSA",Transactions!D:D,"TD US Index Fund -e (TDB902)",Transactions!C:C,{"Sell","Switch from"}))))-SUM((SUMIFS(Transactions!G:G,Transactions!A:A,"<="&'Running Portfolio Value'!A22,Transactions!B:B,"TFSA",Transactions!D:D,"TD US Index Fund -e (TDB902)",Transactions!C:C,{"Dividend"})))) -> 0 | H22: =IF(A22="","",(F22*(VLOOKUP(A22,'Price Data All Dates'!A:C,3,FALSE)))) -> 0 | I22: 0 | J22: =IF($A22="","",SUM((SUMIFS(Transactions!E:E,Transactions!A:A,"<="&'Running Portfolio Value'!$A22,Transactions!B:B,"TFSA",Transactions!D:D,"TD International Fund -e (TDB911)",Transactions!C:C,{"Buy","Dividend","Switch to"})))-SUM((SUMIFS(Transactions!E:E,Transactions!A:A,"<="&'Running Portfolio Value'!A22,Transactions!B:B,"TFSA",Transactions!D:D,"TD International Fund -e (TDB911)",Transactions!C:C,{"Sell","Switch from"})))) -> 0 | K22: =IF(A22="","",(SUM((SUMIFS(Transactions!G:G,Transactions!A:A,"<="&'Running Portfolio Value'!A22,Transactions!B:B,"TFSA",Transactions!D:D,"TD International Fund -e (TDB911)",Transactions!C:C,{"Buy","Dividend","Switch to"})))-SUM((SUMIFS(Transactions!E:E,Transactions!A:A,"<="&'Running Portfolio Value'!A22,Transactions!B:B,"TFSA",Transactions!D:D,"TD International Fund -e (TDB911)",Transactions!C:C,{"Sell","Switch from"}))))-SUM((SUMIFS(Transactions!G:G,Transactions!A:A,"<="&'Running Portfolio Value'!A22,Transactions!B:B,"TFSA",Transactions!D:D,"TD International Fund -e (TDB911)",Transactions!C:C,{"Dividend"})))) -> 0 | L22: =IF(A22="","",(J22*(VLOOKUP(A22,'Price Data All Dates'!A:D,4,FALSE)))) -> 0 | M22: 0 | N22: =IF($A22="","",SUM((SUMIFS(Transactions!E:E,Transactions!A:A,"<="&'Running Portfolio Value'!$A22,Transactions!B:B,"TFSA",Transactions!D:D,"TD Canadian Bond Index Fund -e (TDB909)",Transactions!C:C,{"Buy","Dividend","Switch to"})))-SUM((SUMIFS(Transactions!E:E,Transactions!A:A,"<="&'Running Portfolio Value'!A22,Transactions!B:B,"TFSA",Transactions!D:D,"TD Canadian Bond Index Fund -e (TDB909)",Transactions!C:C,{"Sell","Switch from"})))) -> 0 | O22: =IF(A22="","",(SUM((SUMIFS(Transactions!G:G,Transactions!A:A,"<="&'Running Portfolio Value'!A22,Transactions!B:B,"TFSA",Transactions!D:D,"TD Canadian Bond Index Fund -e (TDB909)",Transactions!C:C,{"Buy","Dividend","Switch to"})))-SUM((SUMIFS(Transactions!E:E,Transactions!A:A,"<="&'Running Portfolio Value'!A22,Transactions!B:B,"TFSA",Transactions!D:D,"TD Canadian Bond Index Fund -e (TDB909)",Transactions!C:C,{"Sell","Switch from"}))))-SUM((SUMIFS(Transactions!G:G,Transactions!A:A,"<="&'Running Portfolio Value'!A22,Transactions!B:B,"TFSA",Transactions!D:D,"TD Canadian Bond Index Fund -e (TDB909)",Transactions!C:C,{"Dividend"})))) -> 0 | P22: =IF(A22="","",(N22*(VLOOKUP(A22,'Price Data All Dates'!A:E,5,FALSE)))) -> 0 | Q22: 0 | R22: =IF($A22="","",SUM((SUMIFS(Transactions!E:E,Transactions!A:A,"<="&'Running Portfolio Value'!$A22,Transactions!B:B,"RRSP",Transactions!D:D,"TD Canadian Index Fund -e (TDB900)",Transactions!C:C,{"Buy","Dividend","Switch to"})))-SUM((SUMIFS(Transactions!E:E,Transactions!A:A,"<="&'Running Portfolio Value'!A22,Transactions!B:B,"RRSP",Transactions!D:D,"TD Canadian Index Fund -e (TDB900)",Transactions!C:C,{"Sell","Switch from"})))) -> 0 | S22: =IF(A22="","",(SUM((SUMIFS(Transactions!G:G,Transactions!A:A,"<="&'Running Portfolio Value'!A22,Transactions!B:B,"RRSP",Transactions!D:D,"TD Canadian Index Fund -e (TDB900)",Transactions!C:C,{"Buy","Dividend","Switch to"})))-SUM((SUMIFS(Transactions!E:E,Transactions!A:A,"<="&'Running Portfolio Value'!A22,Transactions!B:B,"RRSP",Transactions!D:D,"TD Canadian Index Fund -e (TDB900)",Transactions!C:C,{"Sell","Switch from"}))))-SUM((SUMIFS(Transactions!G:G,Transactions!A:A,"<="&'Running Portfolio Value'!A22,Transactions!B:B,"RRSP",Transactions!D:D,"TD Canadian Index Fund -e (TDB900)",Transactions!C:C,{"Dividend"})))) -> 0 | T22: =IF(A22="","",(R22*(VLOOKUP(A22,'Price Data All Dates'!A:B,2,FALSE)))) -> 0 | U22: 0 | V22: =IF($A22="","",SUM((SUMIFS(Transactions!E:E,Transactions!A:A,"<="&'Running Portfolio Value'!$A22,Transactions!B:B,"RRSP",Transactions!D:D,"TD US Index Fund -e (TDB902)",Transactions!C:C,{"Buy","Dividend","Switch to"})))-SUM((SUMIFS(Transactions!E:E,Transactions!A:A,"<="&'Running Portfolio Value'!A22,Transactions!B:B,"RRSP",Transactions!D:D,"TD US Index Fund -e (TDB902)",Transactions!C:C,{"Sell","Switch from"})))) -> 0 | W22: =IF(A22="","",(SUM((SUMIFS(Transactions!G:G,Transactions!A:A,"<="&'Running Portfolio Value'!A22,Transactions!B:B,"RRSP",Transactions!D:D,"TD US Index Fund -e (TDB902)",Transactions!C:C,{"Buy","Dividend","Switch to"})))-SUM((SUMIFS(Transactions!E:E,Transactions!A:A,"<="&'Running Portfolio Value'!A22,Transactions!B:B,"RRSP",Transactions!D:D,"TD US Index Fund -e (TDB902)",Transactions!C:C,{"Sell","Switch from"}))))-SUM((SUMIFS(Transactions!G:G,Transactions!A:A,"<="&'Running Portfolio Value'!A22,Transactions!B:B,"RRSP",Transactions!D:D,"TD US Index Fund -e (TDB902)",Transactions!C:C,{"Dividend"})))) -> 0 | X22: =IF(A22="","",(V22*(VLOOKUP(A22,'Price Data All Dates'!A:C,3,FALSE)))) -> 0 | Y22: 0 | Z22: =IF($A22="","",SUM((SUMIFS(Transactions!E:E,Transactions!A:A,"<="&'Running Portfolio Value'!$A22,Transactions!B:B,"RRSP",Transactions!D:D,"TD International Fund -e (TDB911)",Transactions!C:C,{"Buy","Dividend","Switch to"})))-SUM((SUMIFS(Transactions!E:E,Transactions!A:A,"<="&'Running Portfolio Value'!A22,Transactions!B:B,"RRSP",Transactions!D:D,"TD International Fund -e (TDB911)",Transactions!C:C,{"Sell","Switch from"})))) -> 0 | AA22: =IF(A22="","",(SUM((SUMIFS(Transactions!G:G,Transactions!A:A,"<="&'Running Portfolio Value'!A22,Transactions!B:B,"RRSP",Transactions!D:D,"TD International Fund -e (TDB911)",Transactions!C:C,{"Buy","Dividend","Switch to"})))-SUM((SUMIFS(Transactions!E:E,Transactions!A:A,"<="&'Running Portfolio Value'!A22,Transactions!B:B,"RRSP",Transactions!D:D,"TD International Fund -e (TDB911)",Transactions!C:C,{"Sell","Switch from"}))))-SUM((SUMIFS(Transactions!G:G,Transactions!A:A,"<="&'Running Portfolio Value'!A22,Transactions!B:B,"RRSP",Transactions!D:D,"TD International Fund -e (TDB911)",Transactions!C:C,{"Dividend"})))) -> 0 | AB22: =IF(A22="","",(Z22*(VLOOKUP(A22,'Price Data All Dates'!A:D,4,FALSE)))) -> 0 | AC22: 0 | AD22: =IF($A22="","",SUM((SUMIFS(Transactions!E:E,Transactions!A:A,"<="&'Running Portfolio Value'!$A22,Transactions!B:B,"RRSP",Transactions!D:D,"TD Canadian Bond Index Fund -e (TDB909)",Transactions!C:C,{"Buy","Dividend","Switch to"})))-SUM((SUMIFS(Transactions!E:E,Transactions!A:A,"<="&'Running Portfolio Value'!A22,Transactions!B:B,"RRSP",Transactions!D:D,"TD Canadian Bond Index Fund -e (TDB909)",Transactions!C:C,{"Sell","Switch from"})))) -> 0 | AE22: =IF(A22="","",(SUM((SUMIFS(Transactions!G:G,Transactions!A:A,"<="&'Running Portfolio Value'!A22,Transactions!B:B,"RRSP",Transactions!D:D,"TD Canadian Bond Index Fund -e (TDB909)",Transactions!C:C,{"Buy","Dividend","Switch to"})))-SUM((SUMIFS(Transactions!E:E,Transactions!A:A,"<="&'Running Portfolio Value'!A22,Transactions!B:B,"RRSP",Transactions!D:D,"TD Canadian Bond Index Fund -e (TDB909)",Transactions!C:C,{"Sell","Switch from"}))))-SUM((SUMIFS(Transactions!G:G,Transactions!A:A,"<="&'Running Portfolio Value'!A22,Transactions!B:B,"RRSP",Transactions!D:D,"TD Canadian Bond Index Fund -e (TDB909)",Transactions!C:C,{"Dividend"})))) -> 0 | AF22: =IF(A22="","",(AD22*(VLOOKUP(A22,'Price Data All Dates'!A:E,5,FALSE)))) -> 0 | AG22: 0 | AH22: 0 | AI22: 0 | AJ22: 0 | AK22: 0 | AL22: 0 | AM22: 0
A23: =IF(TODAY()-(ROW()-3)>MIN(Transactions!A:A),TODAY()-(ROW()-3),"") -> 2018-04-20 | B23: =IF(A23="","",SUM((SUMIFS(Transactions!E:E,Transactions!A:A,"<="&'Running Portfolio Value'!A23,Transactions!B:B,"TFSA",Transactions!D:D,"TD Canadian Index Fund -e (TDB900)",Transactions!C:C,{"Buy","Dividend","Switch to"})))-SUM((SUMIFS(Transactions!E:E,Transactions!A:A,"<="&'Running Portfolio Value'!A23,Transactions!B:B,"TFSA",Transactions!D:D,"TD Canadian Index Fund -e (TDB900)",Transactions!C:C,{"Sell","Switch from"})))) -> 0 | C23: =IF(A23="","",(SUM((SUMIFS(Transactions!G:G,Transactions!A:A,"<="&'Running Portfolio Value'!A23,Transactions!B:B,"TFSA",Transactions!D:D,"TD Canadian Index Fund -e (TDB900)",Transactions!C:C,{"Buy","Dividend","Switch to"})))-SUM((SUMIFS(Transactions!E:E,Transactions!A:A,"<="&'Running Portfolio Value'!A23,Transactions!B:B,"TFSA",Transactions!D:D,"TD Canadian Index Fund -e (TDB900)",Transactions!C:C,{"Sell","Switch from"}))))-SUM((SUMIFS(Transactions!G:G,Transactions!A:A,"<="&'Running Portfolio Value'!A23,Transactions!B:B,"TFSA",Transactions!D:D,"TD Canadian Index Fund -e (TDB900)",Transactions!C:C,{"Dividend"})))) -> 0 | D23: =IF(A23="","",(B23*(VLOOKUP(A23,'Price Data All Dates'!A:B,2,FALSE)))) -> 0 | E23: 0 | F23: =IF($A23="","",SUM((SUMIFS(Transactions!E:E,Transactions!A:A,"<="&'Running Portfolio Value'!$A23,Transactions!B:B,"TFSA",Transactions!D:D,"TD US Index Fund -e (TDB902)",Transactions!C:C,{"Buy","Dividend","Switch to"})))-SUM((SUMIFS(Transactions!E:E,Transactions!A:A,"<="&'Running Portfolio Value'!A23,Transactions!B:B,"TFSA",Transactions!D:D,"TD US Index Fund -e (TDB902)",Transactions!C:C,{"Sell","Switch from"})))) -> 0 | G23: =IF(A23="","",(SUM((SUMIFS(Transactions!G:G,Transactions!A:A,"<="&'Running Portfolio Value'!A23,Transactions!B:B,"TFSA",Transactions!D:D,"TD US Index Fund -e (TDB902)",Transactions!C:C,{"Buy","Dividend","Switch to"})))-SUM((SUMIFS(Transactions!E:E,Transactions!A:A,"<="&'Running Portfolio Value'!A23,Transactions!B:B,"TFSA",Transactions!D:D,"TD US Index Fund -e (TDB902)",Transactions!C:C,{"Sell","Switch from"}))))-SUM((SUMIFS(Transactions!G:G,Transactions!A:A,"<="&'Running Portfolio Value'!A23,Transactions!B:B,"TFSA",Transactions!D:D,"TD US Index Fund -e (TDB902)",Transactions!C:C,{"Dividend"})))) -> 0 | H23: =IF(A23="","",(F23*(VLOOKUP(A23,'Price Data All Dates'!A:C,3,FALSE)))) -> 0 | I23: 0 | J23: =IF($A23="","",SUM((SUMIFS(Transactions!E:E,Transactions!A:A,"<="&'Running Portfolio Value'!$A23,Transactions!B:B,"TFSA",Transactions!D:D,"TD International Fund -e (TDB911)",Transactions!C:C,{"Buy","Dividend","Switch to"})))-SUM((SUMIFS(Transactions!E:E,Transactions!A:A,"<="&'Running Portfolio Value'!A23,Transactions!B:B,"TFSA",Transactions!D:D,"TD International Fund -e (TDB911)",Transactions!C:C,{"Sell","Switch from"})))) -> 0 | K23: =IF(A23="","",(SUM((SUMIFS(Transactions!G:G,Transactions!A:A,"<="&'Running Portfolio Value'!A23,Transactions!B:B,"TFSA",Transactions!D:D,"TD International Fund -e (TDB911)",Transactions!C:C,{"Buy","Dividend","Switch to"})))-SUM((SUMIFS(Transactions!E:E,Transactions!A:A,"<="&'Running Portfolio Value'!A23,Transactions!B:B,"TFSA",Transactions!D:D,"TD International Fund -e (TDB911)",Transactions!C:C,{"Sell","Switch from"}))))-SUM((SUMIFS(Transactions!G:G,Transactions!A:A,"<="&'Running Portfolio Value'!A23,Transactions!B:B,"TFSA",Transactions!D:D,"TD International Fund -e (TDB911)",Transactions!C:C,{"Dividend"})))) -> 0 | L23: =IF(A23="","",(J23*(VLOOKUP(A23,'Price Data All Dates'!A:D,4,FALSE)))) -> 0 | M23: 0 | N23: =IF($A23="","",SUM((SUMIFS(Transactions!E:E,Transactions!A:A,"<="&'Running Portfolio Value'!$A23,Transactions!B:B,"TFSA",Transactions!D:D,"TD Canadian Bond Index Fund -e (TDB909)",Transactions!C:C,{"Buy","Dividend","Switch to"})))-SUM((SUMIFS(Transactions!E:E,Transactions!A:A,"<="&'Running Portfolio Value'!A23,Transactions!B:B,"TFSA",Transactions!D:D,"TD Canadian Bond Index Fund -e (TDB909)",Transactions!C:C,{"Sell","Switch from"})))) -> 0 | O23: =IF(A23="","",(SUM((SUMIFS(Transactions!G:G,Transactions!A:A,"<="&'Running Portfolio Value'!A23,Transactions!B:B,"TFSA",Transactions!D:D,"TD Canadian Bond Index Fund -e (TDB909)",Transactions!C:C,{"Buy","Dividend","Switch to"})))-SUM((SUMIFS(Transactions!E:E,Transactions!A:A,"<="&'Running Portfolio Value'!A23,Transactions!B:B,"TFSA",Transactions!D:D,"TD Canadian Bond Index Fund -e (TDB909)",Transactions!C:C,{"Sell","Switch from"}))))-SUM((SUMIFS(Transactions!G:G,Transactions!A:A,"<="&'Running Portfolio Value'!A23,Transactions!B:B,"TFSA",Transactions!D:D,"TD Canadian Bond Index Fund -e (TDB909)",Transactions!C:C,{"Dividend"})))) -> 0 | P23: =IF(A23="","",(N23*(VLOOKUP(A23,'Price Data All Dates'!A:E,5,FALSE)))) -> 0 | Q23: 0 | R23: =IF($A23="","",SUM((SUMIFS(Transactions!E:E,Transactions!A:A,"<="&'Running Portfolio Value'!$A23,Transactions!B:B,"RRSP",Transactions!D:D,"TD Canadian Index Fund -e (TDB900)",Transactions!C:C,{"Buy","Dividend","Switch to"})))-SUM((SUMIFS(Transactions!E:E,Transactions!A:A,"<="&'Running Portfolio Value'!A23,Transactions!B:B,"RRSP",Transactions!D:D,"TD Canadian Index Fund -e (TDB900)",Transactions!C:C,{"Sell","Switch from"})))) -> 0 | S23: =IF(A23="","",(SUM((SUMIFS(Transactions!G:G,Transactions!A:A,"<="&'Running Portfolio Value'!A23,Transactions!B:B,"RRSP",Transactions!D:D,"TD Canadian Index Fund -e (TDB900)",Transactions!C:C,{"Buy","Dividend","Switch to"})))-SUM((SUMIFS(Transactions!E:E,Transactions!A:A,"<="&'Running Portfolio Value'!A23,Transactions!B:B,"RRSP",Transactions!D:D,"TD Canadian Index Fund -e (TDB900)",Transactions!C:C,{"Sell","Switch from"}))))-SUM((SUMIFS(Transactions!G:G,Transactions!A:A,"<="&'Running Portfolio Value'!A23,Transactions!B:B,"RRSP",Transactions!D:D,"TD Canadian Index Fund -e (TDB900)",Transactions!C:C,{"Dividend"})))) -> 0 | T23: =IF(A23="","",(R23*(VLOOKUP(A23,'Price Data All Dates'!A:B,2,FALSE)))) -> 0 | U23: 0 | V23: =IF($A23="","",SUM((SUMIFS(Transactions!E:E,Transactions!A:A,"<="&'Running Portfolio Value'!$A23,Transactions!B:B,"RRSP",Transactions!D:D,"TD US Index Fund -e (TDB902)",Transactions!C:C,{"Buy","Dividend","Switch to"})))-SUM((SUMIFS(Transactions!E:E,Transactions!A:A,"<="&'Running Portfolio Value'!A23,Transactions!B:B,"RRSP",Transactions!D:D,"TD US Index Fund -e (TDB902)",Transactions!C:C,{"Sell","Switch from"})))) -> 0 | W23: =IF(A23="","",(SUM((SUMIFS(Transactions!G:G,Transactions!A:A,"<="&'Running Portfolio Value'!A23,Transactions!B:B,"RRSP",Transactions!D:D,"TD US Index Fund -e (TDB902)",Transactions!C:C,{"Buy","Dividend","Switch to"})))-SUM((SUMIFS(Transactions!E:E,Transactions!A:A,"<="&'Running Portfolio Value'!A23,Transactions!B:B,"RRSP",Transactions!D:D,"TD US Index Fund -e (TDB902)",Transactions!C:C,{"Sell","Switch from"}))))-SUM((SUMIFS(Transactions!G:G,Transactions!A:A,"<="&'Running Portfolio Value'!A23,Transactions!B:B,"RRSP",Transactions!D:D,"TD US Index Fund -e (TDB902)",Transactions!C:C,{"Dividend"})))) -> 0 | X23: =IF(A23="","",(V23*(VLOOKUP(A23,'Price Data All Dates'!A:C,3,FALSE)))) -> 0 | Y23: 0 | Z23: =IF($A23="","",SUM((SUMIFS(Transactions!E:E,Transactions!A:A,"<="&'Running Portfolio Value'!$A23,Transactions!B:B,"RRSP",Transactions!D:D,"TD International Fund -e (TDB911)",Transactions!C:C,{"Buy","Dividend","Switch to"})))-SUM((SUMIFS(Transactions!E:E,Transactions!A:A,"<="&'Running Portfolio Value'!A23,Transactions!B:B,"RRSP",Transactions!D:D,"TD International Fund -e (TDB911)",Transactions!C:C,{"Sell","Switch from"})))) -> 0 | AA23: =IF(A23="","",(SUM((SUMIFS(Transactions!G:G,Transactions!A:A,"<="&'Running Portfolio Value'!A23,Transactions!B:B,"RRSP",Transactions!D:D,"TD International Fund -e (TDB911)",Transactions!C:C,{"Buy","Dividend","Switch to"})))-SUM((SUMIFS(Transactions!E:E,Transactions!A:A,"<="&'Running Portfolio Value'!A23,Transactions!B:B,"RRSP",Transactions!D:D,"TD International Fund -e (TDB911)",Transactions!C:C,{"Sell","Switch from"}))))-SUM((SUMIFS(Transactions!G:G,Transactions!A:A,"<="&'Running Portfolio Value'!A23,Transactions!B:B,"RRSP",Transactions!D:D,"TD International Fund -e (TDB911)",Transactions!C:C,{"Dividend"})))) -> 0 | AB23: =IF(A23="","",(Z23*(VLOOKUP(A23,'Price Data All Dates'!A:D,4,FALSE)))) -> 0 | AC23: 0 | AD23: =IF($A23="","",SUM((SUMIFS(Transactions!E:E,Transactions!A:A,"<="&'Running Portfolio Value'!$A23,Transactions!B:B,"RRSP",Transactions!D:D,"TD Canadian Bond Index Fund -e (TDB909)",Transactions!C:C,{"Buy","Dividend","Switch to"})))-SUM((SUMIFS(Transactions!E:E,Transactions!A:A,"<="&'Running Portfolio Value'!A23,Transactions!B:B,"RRSP",Transactions!D:D,"TD Canadian Bond Index Fund -e (TDB909)",Transactions!C:C,{"Sell","Switch from"})))) -> 0 | AE23: =IF(A23="","",(SUM((SUMIFS(Transactions!G:G,Transactions!A:A,"<="&'Running Portfolio Value'!A23,Transactions!B:B,"RRSP",Transactions!D:D,"TD Canadian Bond Index Fund -e (TDB909)",Transactions!C:C,{"Buy","Dividend","Switch to"})))-SUM((SUMIFS(Transactions!E:E,Transactions!A:A,"<="&'Running Portfolio Value'!A23,Transactions!B:B,"RRSP",Transactions!D:D,"TD Canadian Bond Index Fund -e (TDB909)",Transactions!C:C,{"Sell","Switch from"}))))-SUM((SUMIFS(Transactions!G:G,Transactions!A:A,"<="&'Running Portfolio Value'!A23,Transactions!B:B,"RRSP",Transactions!D:D,"TD Canadian Bond Index Fund -e (TDB909)",Transactions!C:C,{"Dividend"})))) -> 0 | AF23: =IF(A23="","",(AD23*(VLOOKUP(A23,'Price Data All Dates'!A:E,5,FALSE)))) -> 0 | AG23: 0 | AH23: 0 | AI23: 0 | AJ23: 0 | AK23: 0 | AL23: 0 | AM23: 0
A24: =IF(TODAY()-(ROW()-3)>MIN(Transactions!A:A),TODAY()-(ROW()-3),"") -> 2018-04-19 | B24: =IF(A24="","",SUM((SUMIFS(Transactions!E:E,Transactions!A:A,"<="&'Running Portfolio Value'!A24,Transactions!B:B,"TFSA",Transactions!D:D,"TD Canadian Index Fund -e (TDB900)",Transactions!C:C,{"Buy","Dividend","Switch to"})))-SUM((SUMIFS(Transactions!E:E,Transactions!A:A,"<="&'Running Portfolio Value'!A24,Transactions!B:B,"TFSA",Transactions!D:D,"TD Canadian Index Fund -e (TDB900)",Transactions!C:C,{"Sell","Switch from"})))) -> 0 | C24: =IF(A24="","",(SUM((SUMIFS(Transactions!G:G,Transactions!A:A,"<="&'Running Portfolio Value'!A24,Transactions!B:B,"TFSA",Transactions!D:D,"TD Canadian Index Fund -e (TDB900)",Transactions!C:C,{"Buy","Dividend","Switch to"})))-SUM((SUMIFS(Transactions!E:E,Transactions!A:A,"<="&'Running Portfolio Value'!A24,Transactions!B:B,"TFSA",Transactions!D:D,"TD Canadian Index Fund -e (TDB900)",Transactions!C:C,{"Sell","Switch from"}))))-SUM((SUMIFS(Transactions!G:G,Transactions!A:A,"<="&'Running Portfolio Value'!A24,Transactions!B:B,"TFSA",Transactions!D:D,"TD Canadian Index Fund -e (TDB900)",Transactions!C:C,{"Dividend"})))) -> 0 | D24: =IF(A24="","",(B24*(VLOOKUP(A24,'Price Data All Dates'!A:B,2,FALSE)))) -> 0 | E24: 0 | F24: =IF($A24="","",SUM((SUMIFS(Transactions!E:E,Transactions!A:A,"<="&'Running Portfolio Value'!$A24,Transactions!B:B,"TFSA",Transactions!D:D,"TD US Index Fund -e (TDB902)",Transactions!C:C,{"Buy","Dividend","Switch to"})))-SUM((SUMIFS(Transactions!E:E,Transactions!A:A,"<="&'Running Portfolio Value'!A24,Transactions!B:B,"TFSA",Transactions!D:D,"TD US Index Fund -e (TDB902)",Transactions!C:C,{"Sell","Switch from"})))) -> 0 | G24: =IF(A24="","",(SUM((SUMIFS(Transactions!G:G,Transactions!A:A,"<="&'Running Portfolio Value'!A24,Transactions!B:B,"TFSA",Transactions!D:D,"TD US Index Fund -e (TDB902)",Transactions!C:C,{"Buy","Dividend","Switch to"})))-SUM((SUMIFS(Transactions!E:E,Transactions!A:A,"<="&'Running Portfolio Value'!A24,Transactions!B:B,"TFSA",Transactions!D:D,"TD US Index Fund -e (TDB902)",Transactions!C:C,{"Sell","Switch from"}))))-SUM((SUMIFS(Transactions!G:G,Transactions!A:A,"<="&'Running Portfolio Value'!A24,Transactions!B:B,"TFSA",Transactions!D:D,"TD US Index Fund -e (TDB902)",Transactions!C:C,{"Dividend"})))) -> 0 | H24: =IF(A24="","",(F24*(VLOOKUP(A24,'Price Data All Dates'!A:C,3,FALSE)))) -> 0 | I24: 0 | J24: =IF($A24="","",SUM((SUMIFS(Transactions!E:E,Transactions!A:A,"<="&'Running Portfolio Value'!$A24,Transactions!B:B,"TFSA",Transactions!D:D,"TD International Fund -e (TDB911)",Transactions!C:C,{"Buy","Dividend","Switch to"})))-SUM((SUMIFS(Transactions!E:E,Transactions!A:A,"<="&'Running Portfolio Value'!A24,Transactions!B:B,"TFSA",Transactions!D:D,"TD International Fund -e (TDB911)",Transactions!C:C,{"Sell","Switch from"})))) -> 0 | K24: =IF(A24="","",(SUM((SUMIFS(Transactions!G:G,Transactions!A:A,"<="&'Running Portfolio Value'!A24,Transactions!B:B,"TFSA",Transactions!D:D,"TD International Fund -e (TDB911)",Transactions!C:C,{"Buy","Dividend","Switch to"})))-SUM((SUMIFS(Transactions!E:E,Transactions!A:A,"<="&'Running Portfolio Value'!A24,Transactions!B:B,"TFSA",Transactions!D:D,"TD International Fund -e (TDB911)",Transactions!C:C,{"Sell","Switch from"}))))-SUM((SUMIFS(Transactions!G:G,Transactions!A:A,"<="&'Running Portfolio Value'!A24,Transactions!B:B,"TFSA",Transactions!D:D,"TD International Fund -e (TDB911)",Transactions!C:C,{"Dividend"})))) -> 0 | L24: =IF(A24="","",(J24*(VLOOKUP(A24,'Price Data All Dates'!A:D,4,FALSE)))) -> 0 | M24: 0 | N24: =IF($A24="","",SUM((SUMIFS(Transactions!E:E,Transactions!A:A,"<="&'Running Portfolio Value'!$A24,Transactions!B:B,"TFSA",Transactions!D:D,"TD Canadian Bond Index Fund -e (TDB909)",Transactions!C:C,{"Buy","Dividend","Switch to"})))-SUM((SUMIFS(Transactions!E:E,Transactions!A:A,"<="&'Running Portfolio Value'!A24,Transactions!B:B,"TFSA",Transactions!D:D,"TD Canadian Bond Index Fund -e (TDB909)",Transactions!C:C,{"Sell","Switch from"})))) -> 0 | O24: =IF(A24="","",(SUM((SUMIFS(Transactions!G:G,Transactions!A:A,"<="&'Running Portfolio Value'!A24,Transactions!B:B,"TFSA",Transactions!D:D,"TD Canadian Bond Index Fund -e (TDB909)",Transactions!C:C,{"Buy","Dividend","Switch to"})))-SUM((SUMIFS(Transactions!E:E,Transactions!A:A,"<="&'Running Portfolio Value'!A24,Transactions!B:B,"TFSA",Transactions!D:D,"TD Canadian Bond Index Fund -e (TDB909)",Transactions!C:C,{"Sell","Switch from"}))))-SUM((SUMIFS(Transactions!G:G,Transactions!A:A,"<="&'Running Portfolio Value'!A24,Transactions!B:B,"TFSA",Transactions!D:D,"TD Canadian Bond Index Fund -e (TDB909)",Transactions!C:C,{"Dividend"})))) -> 0 | P24: =IF(A24="","",(N24*(VLOOKUP(A24,'Price Data All Dates'!A:E,5,FALSE)))) -> 0 | Q24: 0 | R24: =IF($A24="","",SUM((SUMIFS(Transactions!E:E,Transactions!A:A,"<="&'Running Portfolio Value'!$A24,Transactions!B:B,"RRSP",Transactions!D:D,"TD Canadian Index Fund -e (TDB900)",Transactions!C:C,{"Buy","Dividend","Switch to"})))-SUM((SUMIFS(Transactions!E:E,Transactions!A:A,"<="&'Running Portfolio Value'!A24,Transactions!B:B,"RRSP",Transactions!D:D,"TD Canadian Index Fund -e (TDB900)",Transactions!C:C,{"Sell","Switch from"})))) -> 0 | S24: =IF(A24="","",(SUM((SUMIFS(Transactions!G:G,Transactions!A:A,"<="&'Running Portfolio Value'!A24,Transactions!B:B,"RRSP",Transactions!D:D,"TD Canadian Index Fund -e (TDB900)",Transactions!C:C,{"Buy","Dividend","Switch to"})))-SUM((SUMIFS(Transactions!E:E,Transactions!A:A,"<="&'Running Portfolio Value'!A24,Transactions!B:B,"RRSP",Transactions!D:D,"TD Canadian Index Fund -e (TDB900)",Transactions!C:C,{"Sell","Switch from"}))))-SUM((SUMIFS(Transactions!G:G,Transactions!A:A,"<="&'Running Portfolio Value'!A24,Transactions!B:B,"RRSP",Transactions!D:D,"TD Canadian Index Fund -e (TDB900)",Transactions!C:C,{"Dividend"})))) -> 0 | T24: =IF(A24="","",(R24*(VLOOKUP(A24,'Price Data All Dates'!A:B,2,FALSE)))) -> 0 | U24: 0 | V24: =IF($A24="","",SUM((SUMIFS(Transactions!E:E,Transactions!A:A,"<="&'Running Portfolio Value'!$A24,Transactions!B:B,"RRSP",Transactions!D:D,"TD US Index Fund -e (TDB902)",Transactions!C:C,{"Buy","Dividend","Switch to"})))-SUM((SUMIFS(Transactions!E:E,Transactions!A:A,"<="&'Running Portfolio Value'!A24,Transactions!B:B,"RRSP",Transactions!D:D,"TD US Index Fund -e (TDB902)",Transactions!C:C,{"Sell","Switch from"})))) -> 0 | W24: =IF(A24="","",(SUM((SUMIFS(Transactions!G:G,Transactions!A:A,"<="&'Running Portfolio Value'!A24,Transactions!B:B,"RRSP",Transactions!D:D,"TD US Index Fund -e (TDB902)",Transactions!C:C,{"Buy","Dividend","Switch to"})))-SUM((SUMIFS(Transactions!E:E,Transactions!A:A,"<="&'Running Portfolio Value'!A24,Transactions!B:B,"RRSP",Transactions!D:D,"TD US Index Fund -e (TDB902)",Transactions!C:C,{"Sell","Switch from"}))))-SUM((SUMIFS(Transactions!G:G,Transactions!A:A,"<="&'Running Portfolio Value'!A24,Transactions!B:B,"RRSP",Transactions!D:D,"TD US Index Fund -e (TDB902)",Transactions!C:C,{"Dividend"})))) -> 0 | X24: =IF(A24="","",(V24*(VLOOKUP(A24,'Price Data All Dates'!A:C,3,FALSE)))) -> 0 | Y24: 0 | Z24: =IF($A24="","",SUM((SUMIFS(Transactions!E:E,Transactions!A:A,"<="&'Running Portfolio Value'!$A24,Transactions!B:B,"RRSP",Transactions!D:D,"TD International Fund -e (TDB911)",Transactions!C:C,{"Buy","Dividend","Switch to"})))-SUM((SUMIFS(Transactions!E:E,Transactions!A:A,"<="&'Running Portfolio Value'!A24,Transactions!B:B,"RRSP",Transactions!D:D,"TD International Fund -e (TDB911)",Transactions!C:C,{"Sell","Switch from"})))) -> 0 | AA24: =IF(A24="","",(SUM((SUMIFS(Transactions!G:G,Transactions!A:A,"<="&'Running Portfolio Value'!A24,Transactions!B:B,"RRSP",Transactions!D:D,"TD International Fund -e (TDB911)",Transactions!C:C,{"Buy","Dividend","Switch to"})))-SUM((SUMIFS(Transactions!E:E,Transactions!A:A,"<="&'Running Portfolio Value'!A24,Transactions!B:B,"RRSP",Transactions!D:D,"TD International Fund -e (TDB911)",Transactions!C:C,{"Sell","Switch from"}))))-SUM((SUMIFS(Transactions!G:G,Transactions!A:A,"<="&'Running Portfolio Value'!A24,Transactions!B:B,"RRSP",Transactions!D:D,"TD International Fund -e (TDB911)",Transactions!C:C,{"Dividend"})))) -> 0 | AB24: =IF(A24="","",(Z24*(VLOOKUP(A24,'Price Data All Dates'!A:D,4,FALSE)))) -> 0 | AC24: 0 | AD24: =IF($A24="","",SUM((SUMIFS(Transactions!E:E,Transactions!A:A,"<="&'Running Portfolio Value'!$A24,Transactions!B:B,"RRSP",Transactions!D:D,"TD Canadian Bond Index Fund -e (TDB909)",Transactions!C:C,{"Buy","Dividend","Switch to"})))-SUM((SUMIFS(Transactions!E:E,Transactions!A:A,"<="&'Running Portfolio Value'!A24,Transactions!B:B,"RRSP",Transactions!D:D,"TD Canadian Bond Index Fund -e (TDB909)",Transactions!C:C,{"Sell","Switch from"})))) -> 0 | AE24: =IF(A24="","",(SUM((SUMIFS(Transactions!G:G,Transactions!A:A,"<="&'Running Portfolio Value'!A24,Transactions!B:B,"RRSP",Transactions!D:D,"TD Canadian Bond Index Fund -e (TDB909)",Transactions!C:C,{"Buy","Dividend","Switch to"})))-SUM((SUMIFS(Transactions!E:E,Transactions!A:A,"<="&'Running Portfolio Value'!A24,Transactions!B:B,"RRSP",Transactions!D:D,"TD Canadian Bond Index Fund -e (TDB909)",Transactions!C:C,{"Sell","Switch from"}))))-SUM((SUMIFS(Transactions!G:G,Transactions!A:A,"<="&'Running Portfolio Value'!A24,Transactions!B:B,"RRSP",Transactions!D:D,"TD Canadian Bond Index Fund -e (TDB909)",Transactions!C:C,{"Dividend"})))) -> 0 | AF24: =IF(A24="","",(AD24*(VLOOKUP(A24,'Price Data All Dates'!A:E,5,FALSE)))) -> 0 | AG24: 0 | AH24: 0 | AI24: 0 | AJ24: 0 | AK24: 0 | AL24: 0 | AM24: 0
A25: =IF(TODAY()-(ROW()-3)>MIN(Transactions!A:A),TODAY()-(ROW()-3),"") -> 2018-04-18 | B25: =IF(A25="","",SUM((SUMIFS(Transactions!E:E,Transactions!A:A,"<="&'Running Portfolio Value'!A25,Transactions!B:B,"TFSA",Transactions!D:D,"TD Canadian Index Fund -e (TDB900)",Transactions!C:C,{"Buy","Dividend","Switch to"})))-SUM((SUMIFS(Transactions!E:E,Transactions!A:A,"<="&'Running Portfolio Value'!A25,Transactions!B:B,"TFSA",Transactions!D:D,"TD Canadian Index Fund -e (TDB900)",Transactions!C:C,{"Sell","Switch from"})))) -> 0 | C25: =IF(A25="","",(SUM((SUMIFS(Transactions!G:G,Transactions!A:A,"<="&'Running Portfolio Value'!A25,Transactions!B:B,"TFSA",Transactions!D:D,"TD Canadian Index Fund -e (TDB900)",Transactions!C:C,{"Buy","Dividend","Switch to"})))-SUM((SUMIFS(Transactions!E:E,Transactions!A:A,"<="&'Running Portfolio Value'!A25,Transactions!B:B,"TFSA",Transactions!D:D,"TD Canadian Index Fund -e (TDB900)",Transactions!C:C,{"Sell","Switch from"}))))-SUM((SUMIFS(Transactions!G:G,Transactions!A:A,"<="&'Running Portfolio Value'!A25,Transactions!B:B,"TFSA",Transactions!D:D,"TD Canadian Index Fund -e (TDB900)",Transactions!C:C,{"Dividend"})))) -> 0 | D25: =IF(A25="","",(B25*(VLOOKUP(A25,'Price Data All Dates'!A:B,2,FALSE)))) -> 0 | E25: 0 | F25: =IF($A25="","",SUM((SUMIFS(Transactions!E:E,Transactions!A:A,"<="&'Running Portfolio Value'!$A25,Transactions!B:B,"TFSA",Transactions!D:D,"TD US Index Fund -e (TDB902)",Transactions!C:C,{"Buy","Dividend","Switch to"})))-SUM((SUMIFS(Transactions!E:E,Transactions!A:A,"<="&'Running Portfolio Value'!A25,Transactions!B:B,"TFSA",Transactions!D:D,"TD US Index Fund -e (TDB902)",Transactions!C:C,{"Sell","Switch from"})))) -> 0 | G25: =IF(A25="","",(SUM((SUMIFS(Transactions!G:G,Transactions!A:A,"<="&'Running Portfolio Value'!A25,Transactions!B:B,"TFSA",Transactions!D:D,"TD US Index Fund -e (TDB902)",Transactions!C:C,{"Buy","Dividend","Switch to"})))-SUM((SUMIFS(Transactions!E:E,Transactions!A:A,"<="&'Running Portfolio Value'!A25,Transactions!B:B,"TFSA",Transactions!D:D,"TD US Index Fund -e (TDB902)",Transactions!C:C,{"Sell","Switch from"}))))-SUM((SUMIFS(Transactions!G:G,Transactions!A:A,"<="&'Running Portfolio Value'!A25,Transactions!B:B,"TFSA",Transactions!D:D,"TD US Index Fund -e (TDB902)",Transactions!C:C,{"Dividend"})))) -> 0 | H25: =IF(A25="","",(F25*(VLOOKUP(A25,'Price Data All Dates'!A:C,3,FALSE)))) -> 0 | I25: 0 | J25: =IF($A25="","",SUM((SUMIFS(Transactions!E:E,Transactions!A:A,"<="&'Running Portfolio Value'!$A25,Transactions!B:B,"TFSA",Transactions!D:D,"TD International Fund -e (TDB911)",Transactions!C:C,{"Buy","Dividend","Switch to"})))-SUM((SUMIFS(Transactions!E:E,Transactions!A:A,"<="&'Running Portfolio Value'!A25,Transactions!B:B,"TFSA",Transactions!D:D,"TD International Fund -e (TDB911)",Transactions!C:C,{"Sell","Switch from"})))) -> 0 | K25: =IF(A25="","",(SUM((SUMIFS(Transactions!G:G,Transactions!A:A,"<="&'Running Portfolio Value'!A25,Transactions!B:B,"TFSA",Transactions!D:D,"TD International Fund -e (TDB911)",Transactions!C:C,{"Buy","Dividend","Switch to"})))-SUM((SUMIFS(Transactions!E:E,Transactions!A:A,"<="&'Running Portfolio Value'!A25,Transactions!B:B,"TFSA",Transactions!D:D,"TD International Fund -e (TDB911)",Transactions!C:C,{"Sell","Switch from"}))))-SUM((SUMIFS(Transactions!G:G,Transactions!A:A,"<="&'Running Portfolio Value'!A25,Transactions!B:B,"TFSA",Transactions!D:D,"TD International Fund -e (TDB911)",Transactions!C:C,{"Dividend"})))) -> 0 | L25: =IF(A25="","",(J25*(VLOOKUP(A25,'Price Data All Dates'!A:D,4,FALSE)))) -> 0 | M25: 0 | N25: =IF($A25="","",SUM((SUMIFS(Transactions!E:E,Transactions!A:A,"<="&'Running Portfolio Value'!$A25,Transactions!B:B,"TFSA",Transactions!D:D,"TD Canadian Bond Index Fund -e (TDB909)",Transactions!C:C,{"Buy","Dividend","Switch to"})))-SUM((SUMIFS(Transactions!E:E,Transactions!A:A,"<="&'Running Portfolio Value'!A25,Transactions!B:B,"TFSA",Transactions!D:D,"TD Canadian Bond Index Fund -e (TDB909)",Transactions!C:C,{"Sell","Switch from"})))) -> 0 | O25: =IF(A25="","",(SUM((SUMIFS(Transactions!G:G,Transactions!A:A,"<="&'Running Portfolio Value'!A25,Transactions!B:B,"TFSA",Transactions!D:D,"TD Canadian Bond Index Fund -e (TDB909)",Transactions!C:C,{"Buy","Dividend","Switch to"})))-SUM((SUMIFS(Transactions!E:E,Transactions!A:A,"<="&'Running Portfolio Value'!A25,Transactions!B:B,"TFSA",Transactions!D:D,"TD Canadian Bond Index Fund -e (TDB909)",Transactions!C:C,{"Sell","Switch from"}))))-SUM((SUMIFS(Transactions!G:G,Transactions!A:A,"<="&'Running Portfolio Value'!A25,Transactions!B:B,"TFSA",Transactions!D:D,"TD Canadian Bond Index Fund -e (TDB909)",Transactions!C:C,{"Dividend"})))) -> 0 | P25: =IF(A25="","",(N25*(VLOOKUP(A25,'Price Data All Dates'!A:E,5,FALSE)))) -> 0 | Q25: 0 | R25: =IF($A25="","",SUM((SUMIFS(Transactions!E:E,Transactions!A:A,"<="&'Running Portfolio Value'!$A25,Transactions!B:B,"RRSP",Transactions!D:D,"TD Canadian Index Fund -e (TDB900)",Transactions!C:C,{"Buy","Dividend","Switch to"})))-SUM((SUMIFS(Transactions!E:E,Transactions!A:A,"<="&'Running Portfolio Value'!A25,Transactions!B:B,"RRSP",Transactions!D:D,"TD Canadian Index Fund -e (TDB900)",Transactions!C:C,{"Sell","Switch from"})))) -> 0 | S25: =IF(A25="","",(SUM((SUMIFS(Transactions!G:G,Transactions!A:A,"<="&'Running Portfolio Value'!A25,Transactions!B:B,"RRSP",Transactions!D:D,"TD Canadian Index Fund -e (TDB900)",Transactions!C:C,{"Buy","Dividend","Switch to"})))-SUM((SUMIFS(Transactions!E:E,Transactions!A:A,"<="&'Running Portfolio Value'!A25,Transactions!B:B,"RRSP",Transactions!D:D,"TD Canadian Index Fund -e (TDB900)",Transactions!C:C,{"Sell","Switch from"}))))-SUM((SUMIFS(Transactions!G:G,Transactions!A:A,"<="&'Running Portfolio Value'!A25,Transactions!B:B,"RRSP",Transactions!D:D,"TD Canadian Index Fund -e (TDB900)",Transactions!C:C,{"Dividend"})))) -> 0 | T25: =IF(A25="","",(R25*(VLOOKUP(A25,'Price Data All Dates'!A:B,2,FALSE)))) -> 0 | U25: 0 | V25: =IF($A25="","",SUM((SUMIFS(Transactions!E:E,Transactions!A:A,"<="&'Running Portfolio Value'!$A25,Transactions!B:B,"RRSP",Transactions!D:D,"TD US Index Fund -e (TDB902)",Transactions!C:C,{"Buy","Dividend","Switch to"})))-SUM((SUMIFS(Transactions!E:E,Transactions!A:A,"<="&'Running Portfolio Value'!A25,Transactions!B:B,"RRSP",Transactions!D:D,"TD US Index Fund -e (TDB902)",Transactions!C:C,{"Sell","Switch from"})))) -> 0 | W25: =IF(A25="","",(SUM((SUMIFS(Transactions!G:G,Transactions!A:A,"<="&'Running Portfolio Value'!A25,Transactions!B:B,"RRSP",Transactions!D:D,"TD US Index Fund -e (TDB902)",Transactions!C:C,{"Buy","Dividend","Switch to"})))-SUM((SUMIFS(Transactions!E:E,Transactions!A:A,"<="&'Running Portfolio Value'!A25,Transactions!B:B,"RRSP",Transactions!D:D,"TD US Index Fund -e (TDB902)",Transactions!C:C,{"Sell","Switch from"}))))-SUM((SUMIFS(Transactions!G:G,Transactions!A:A,"<="&'Running Portfolio Value'!A25,Transactions!B:B,"RRSP",Transactions!D:D,"TD US Index Fund -e (TDB902)",Transactions!C:C,{"Dividend"})))) -> 0 | X25: =IF(A25="","",(V25*(VLOOKUP(A25,'Price Data All Dates'!A:C,3,FALSE)))) -> 0 | Y25: 0 | Z25: =IF($A25="","",SUM((SUMIFS(Transactions!E:E,Transactions!A:A,"<="&'Running Portfolio Value'!$A25,Transactions!B:B,"RRSP",Transactions!D:D,"TD International Fund -e (TDB911)",Transactions!C:C,{"Buy","Dividend","Switch to"})))-SUM((SUMIFS(Transactions!E:E,Transactions!A:A,"<="&'Running Portfolio Value'!A25,Transactions!B:B,"RRSP",Transactions!D:D,"TD International Fund -e (TDB911)",Transactions!C:C,{"Sell","Switch from"})))) -> 0 | AA25: =IF(A25="","",(SUM((SUMIFS(Transactions!G:G,Transactions!A:A,"<="&'Running Portfolio Value'!A25,Transactions!B:B,"RRSP",Transactions!D:D,"TD International Fund -e (TDB911)",Transactions!C:C,{"Buy","Dividend","Switch to"})))-SUM((SUMIFS(Transactions!E:E,Transactions!A:A,"<="&'Running Portfolio Value'!A25,Transactions!B:B,"RRSP",Transactions!D:D,"TD International Fund -e (TDB911)",Transactions!C:C,{"Sell","Switch from"}))))-SUM((SUMIFS(Transactions!G:G,Transactions!A:A,"<="&'Running Portfolio Value'!A25,Transactions!B:B,"RRSP",Transactions!D:D,"TD International Fund -e (TDB911)",Transactions!C:C,{"Dividend"})))) -> 0 | AB25: =IF(A25="","",(Z25*(VLOOKUP(A25,'Price Data All Dates'!A:D,4,FALSE)))) -> 0 | AC25: 0 | AD25: =IF($A25="","",SUM((SUMIFS(Transactions!E:E,Transactions!A:A,"<="&'Running Portfolio Value'!$A25,Transactions!B:B,"RRSP",Transactions!D:D,"TD Canadian Bond Index Fund -e (TDB909)",Transactions!C:C,{"Buy","Dividend","Switch to"})))-SUM((SUMIFS(Transactions!E:E,Transactions!A:A,"<="&'Running Portfolio Value'!A25,Transactions!B:B,"RRSP",Transactions!D:D,"TD Canadian Bond Index Fund -e (TDB909)",Transactions!C:C,{"Sell","Switch from"})))) -> 0 | AE25: =IF(A25="","",(SUM((SUMIFS(Transactions!G:G,Transactions!A:A,"<="&'Running Portfolio Value'!A25,Transactions!B:B,"RRSP",Transactions!D:D,"TD Canadian Bond Index Fund -e (TDB909)",Transactions!C:C,{"Buy","Dividend","Switch to"})))-SUM((SUMIFS(Transactions!E:E,Transactions!A:A,"<="&'Running Portfolio Value'!A25,Transactions!B:B,"RRSP",Transactions!D:D,"TD Canadian Bond Index Fund -e (TDB909)",Transactions!C:C,{"Sell","Switch from"}))))-SUM((SUMIFS(Transactions!G:G,Transactions!A:A,"<="&'Running Portfolio Value'!A25,Transactions!B:B,"RRSP",Transactions!D:D,"TD Canadian Bond Index Fund -e (TDB909)",Transactions!C:C,{"Dividend"})))) -> 0 | AF25: =IF(A25="","",(AD25*(VLOOKUP(A25,'Price Data All Dates'!A:E,5,FALSE)))) -> 0 | AG25: 0 | AH25: 0 | AI25: 0 | AJ25: 0 | AK25: 0 | AL25: 0 | AM25: 0
